Workbook

Sheet Pulldown (hidden)
A1: 不超過50萬元 | B1: 請選擇 | C1: 月薪僱員 | D1: For monthly-rated (最後一個月工資／12個月的平均工資) | E1: SP(>2years) | F1: 請選擇 | G1: MC -> VC | H1: 有
A2: 超過50萬元 | B2: 強積金計劃 | C2: 非月薪僱員 | D2: For non-monthly rated (18天的工資總和／12個月每日平均工資的18倍) | E2: LSP(>5years) | F2: 遣散費 | G2: VC -> MC | H2: 沒有
B3: 職業退休計劃 | F3: 長期服務金

Sheet Subsidy (hidden)
A1: 取消「對沖」 後的年份 | B1: 僱主每年遣散費／長服金 支出總額首500,000元的個案 | C1: 封頂金額 | D1: 僱主每年遣散費／長服金 支出總額超過首500,000元的個案
A2: 1 | B2: 0.5 | C2: 3000 | D2: 0.5 | F2: 50% 或 超出「封頂」金額 3,000 元的餘額（以較高者為準） | G2: 0.5
A3: 2 | B3: 0.5 | C3: 3000 | D3: 0.5 | F3: 50% 或 超出「封頂」金額 3,000 元的餘額（以較高者為準） | G3: 0.5
A4: 3 | B4: 0.5 | C4: 3000 | D4: 0.5 | F4: 50% 或 超出「封頂」金額 3,000 元的餘額（以較高者為準） | G4: 0.5
A5: 4 | B5: 0.45 | C5: 25000 | D5: 0.45 | F5: 45% 或 超出「封頂」金額 25,000 元的餘額（以較高者為準） | G5: 0.45
A6: 5 | B6: 0.4 | C6: 25000 | D6: 0.4 | F6: 40% 或 超出「封頂」金額 25,000 元的餘額（以較高者為準） | G6: 0.4
A7: 6 | B7: 0.35 | C7: 25000 | D7: 0.35 | F7: 35% 或 超出「封頂」金額 25,000 元的餘額（以較高者為準） | G7: 0.35
A8: 7 | B8: 0.3 | C8: 50000 | D8: 0.3 | F8: 30% 或 超出「封頂」金額 50,000 元的餘額（以較高者為準） | G8: 0.3
A9: 8 | B9: 0.25 | C9: 50000 | D9: 0.25 | F9: 25% 或 超出「封頂」金額 50,000 元的餘額（以較高者為準） | G9: 0.25
A10: 9 | B10: 0.2 | C10: 50000 | D10: 0.2 | F10: 20% 或 超出「封頂」金額 50,000 元的餘額（以較高者為準） | G10: 0.2
A11: 10 | B11: 0.2 | C11: 0 | D11: 0.15 | F11: 0.2 | G11: 0.15
A12: 11 | B12: 0.2 | C12: 0 | D12: 0.1 | F12: 0.2 | G12: 0.1
A13: 12 | B13: 0.15 | C13: 0 | D13: 0.5 | F13: 0.15 | G13: 0.5
A14: 13 | B14: 0.15 | C14: 0 | D14: 0 | F14: 0.15 | G14: 0
A15: 14 | B15: 0.1 | C15: 0 | D15: 0 | F15: 0.1 | G15: 0
A16: 15 | B16: 0.1 | C16: 0 | D16: 0 | F16: 0.1 | G16: 0
A17: 16 | B17: 0.1 | C17: 0 | D17: 0 | F17: 0.1 | G17: 0
A18: 17 | B18: 0.1 | C18: 0 | D18: 0 | F18: 0.1 | G18: 0
A19: 18 | B19: 0.1 | C19: 0 | D19: 0 | F19: 0.1 | G19: 0
A20: 19 | B20: 0.1 | C20: 0 | D20: 0 | F20: 0.1 | G20: 0
A21: 20 | B21: 0.05 | C21: 0 | D21: 0 | F21: 0.05 | G21: 0
A22: 21 | B22: 0.05 | C22: 0 | D22: 0 | F22: 0.05 | G22: 0
A23: 22 | B23: 0.05 | C23: 0 | D23: 0 | F23: 0.05 | G23: 0
A24: 23 | B24: 0.05 | C24: 0 | D24: 0 | F24: 0.05 | G24: 0
A25: 24 | B25: 0.05 | C25: 0 | D25: 0 | F25: 0.05 | G25: 0
A26: 25 | B26: 0.05 | C26: 0 | D26: 0 | F26: 0.05 | G26: 0

Sheet Sort (hidden)
A1: =計得掂試算表!A10 -> 1 | B1: =計得掂試算表!B10 -> 0 | C1: =計得掂試算表!C10 -> 請選擇 | D1: =計得掂試算表!F10 -> 00:00:00 | E1: =計得掂試算表!G10 -> 00:00:00 | F1: =計得掂試算表!L10 -> 月薪僱員 | G1: =計得掂試算表!O10 -> 0 | H1: =計得掂試算表!P10 -> 0 | I1: =計得掂試算表!AD10 -> 0 | J1: =計得掂試算表!AT10 -> 0 | K1: =計得掂試算表!AU10 -> 0 | L1: =計得掂試算表!AV10 -> 強積金計劃 | M1: =計得掂試算表!AX10 -> MC -> VC | N1: =計得掂試算表!AZ10 -> 0 | O1: =計得掂試算表!BA10 -> 0 | P1: =計得掂試算表!BB10 -> 0 | Q1: =計得掂試算表!BS10 -> N/A | R1: =計得掂試算表!BU10 -> N/A | S1: =計得掂試算表!BV10 -> 沒有 | T1: =計得掂試算表!BY10 -> 0 | U1: =計得掂試算表!BZ10 -> 0 | V1: =計得掂試算表!CA10 -> 0 | W1: =計得掂試算表!CB10 -> 0 | X1: =計得掂試算表!CC10 -> 0 | Y1: =計得掂試算表!CD10 -> 0 | Z1: =計得掂試算表!CH10 -> N/A | AA1: =計得掂試算表!CL10 -> 0 | AB1: =計得掂試算表!CM10 -> N/A | AC1: =計得掂試算表!CO10 -> 不超過50萬元 | AD1: =計得掂試算表!CQ10 -> 0 | AE1: =計得掂試算表!CR10 -> 0 | AF1: =計得掂試算表!CW10 -> 0 | AG1: =計得掂試算表!CX10 -> 0 | AH1: =計得掂試算表!CY10 -> 0 | AI1: =計得掂試算表!CZ10 -> 0 | AJ1: =計得掂試算表!DA10 -> 0 | AK1: =計得掂試算表!DB10 -> 0 | AL1: =計得掂試算表!DC10 -> 0
A2: =計得掂試算表!A11 -> 2 | B2: =計得掂試算表!B11 -> 0 | C2: =計得掂試算表!C11 -> 請選擇 | D2: =計得掂試算表!F11 -> 00:00:00 | E2: =計得掂試算表!G11 -> 00:00:00 | F2: =計得掂試算表!L11 -> 月薪僱員 | G2: =計得掂試算表!O11 -> 0 | H2: =計得掂試算表!P11 -> 0 | I2: =計得掂試算表!AD11 -> 0 | J2: =計得掂試算表!AT11 -> 0 | K2: =計得掂試算表!AU11 -> 0 | L2: =計得掂試算表!AV11 -> 強積金計劃 | M2: =計得掂試算表!AX11 -> MC -> VC | N2: =計得掂試算表!AZ11 -> 0 | O2: =計得掂試算表!BA11 -> 0 | P2: =計得掂試算表!BB11 -> 0 | Q2: =計得掂試算表!BS11 -> N/A | R2: =計得掂試算表!BU11 -> N/A | S2: =計得掂試算表!BV11 -> 沒有 | T2: =計得掂試算表!BY11 -> 0 | U2: =計得掂試算表!BZ11 -> 0 | V2: =計得掂試算表!CA11 -> 0 | W2: =計得掂試算表!CB11 -> 0 | X2: =計得掂試算表!CC11 -> 0 | Y2: =計得掂試算表!CD11 -> 0 | Z2: =計得掂試算表!CH11 -> N/A | AA2: =計得掂試算表!CL11 -> 0 | AB2: =計得掂試算表!CM11 -> N/A | AC2: =計得掂試算表!CO11 -> 不超過50萬元 | AD2: =計得掂試算表!CQ11 -> 0 | AE2: =計得掂試算表!CR11 -> 0 | AF2: =計得掂試算表!CW11 -> 0 | AG2: =計得掂試算表!CX11 -> 0 | AH2: =計得掂試算表!CY11 -> 0 | AI2: =計得掂試算表!CZ11 -> 0 | AJ2: =計得掂試算表!DA11 -> 0 | AK2: =計得掂試算表!DB11 -> 0 | AL2: =計得掂試算表!DC11 -> 0
A3: =計得掂試算表!A12 -> 3 | B3: =計得掂試算表!B12 -> 0 | C3: =計得掂試算表!C12 -> 請選擇 | D3: =計得掂試算表!F12 -> 00:00:00 | E3: =計得掂試算表!G12 -> 00:00:00 | F3: =計得掂試算表!L12 -> 月薪僱員 | G3: =計得掂試算表!O12 -> 0 | H3: =計得掂試算表!P12 -> 0 | I3: =計得掂試算表!AD12 -> 0 | J3: =計得掂試算表!AT12 -> 0 | K3: =計得掂試算表!AU12 -> 0 | L3: =計得掂試算表!AV12 -> 強積金計劃 | M3: =計得掂試算表!AX12 -> MC -> VC | N3: =計得掂試算表!AZ12 -> 0 | O3: =計得掂試算表!BA12 -> 0 | P3: =計得掂試算表!BB12 -> 0 | Q3: =計得掂試算表!BS12 -> N/A | R3: =計得掂試算表!BU12 -> N/A | S3: =計得掂試算表!BV12 -> 沒有 | T3: =計得掂試算表!BY12 -> 0 | U3: =計得掂試算表!BZ12 -> 0 | V3: =計得掂試算表!CA12 -> 0 | W3: =計得掂試算表!CB12 -> 0 | X3: =計得掂試算表!CC12 -> 0 | Y3: =計得掂試算表!CD12 -> 0 | Z3: =計得掂試算表!CH12 -> N/A | AA3: =計得掂試算表!CL12 -> 0 | AB3: =計得掂試算表!CM12 -> N/A | AC3: =計得掂試算表!CO12 -> 不超過50萬元 | AD3: =計得掂試算表!CQ12 -> 0 | AE3: =計得掂試算表!CR12 -> 0 | AF3: =計得掂試算表!CW12 -> 0 | AG3: =計得掂試算表!CX12 -> 0 | AH3: =計得掂試算表!CY12 -> 0 | AI3: =計得掂試算表!CZ12 -> 0 | AJ3: =計得掂試算表!DA12 -> 0 | AK3: =計得掂試算表!DB12 -> 0 | AL3: =計得掂試算表!DC12 -> 0
A4: =計得掂試算表!A13 -> 4 | B4: =計得掂試算表!B13 -> 0 | C4: =計得掂試算表!C13 -> 請選擇 | D4: =計得掂試算表!F13 -> 00:00:00 | E4: =計得掂試算表!G13 -> 00:00:00 | F4: =計得掂試算表!L13 -> 月薪僱員 | G4: =計得掂試算表!O13 -> 0 | H4: =計得掂試算表!P13 -> 0 | I4: =計得掂試算表!AD13 -> 0 | J4: =計得掂試算表!AT13 -> 0 | K4: =計得掂試算表!AU13 -> 0 | L4: =計得掂試算表!AV13 -> 強積金計劃 | M4: =計得掂試算表!AX13 -> MC -> VC | N4: =計得掂試算表!AZ13 -> 0 | O4: =計得掂試算表!BA13 -> 0 | P4: =計得掂試算表!BB13 -> 0 | Q4: =計得掂試算表!BS13 -> N/A | R4: =計得掂試算表!BU13 -> N/A | S4: =計得掂試算表!BV13 -> 沒有 | T4: =計得掂試算表!BY13 -> 0 | U4: =計得掂試算表!BZ13 -> 0 | V4: =計得掂試算表!CA13 -> 0 | W4: =計得掂試算表!CB13 -> 0 | X4: =計得掂試算表!CC13 -> 0 | Y4: =計得掂試算表!CD13 -> 0 | Z4: =計得掂試算表!CH13 -> N/A | AA4: =計得掂試算表!CL13 -> 0 | AB4: =計得掂試算表!CM13 -> N/A | AC4: =計得掂試算表!CO13 -> 不超過50萬元 | AD4: =計得掂試算表!CQ13 -> 0 | AE4: =計得掂試算表!CR13 -> 0 | AF4: =計得掂試算表!CW13 -> 0 | AG4: =計得掂試算表!CX13 -> 0 | AH4: =計得掂試算表!CY13 -> 0 | AI4: =計得掂試算表!CZ13 -> 0 | AJ4: =計得掂試算表!DA13 -> 0 | AK4: =計得掂試算表!DB13 -> 0 | AL4: =計得掂試算表!DC13 -> 0
A5: =計得掂試算表!A14 -> 5 | B5: =計得掂試算表!B14 -> 0 | C5: =計得掂試算表!C14 -> 請選擇 | D5: =計得掂試算表!F14 -> 00:00:00 | E5: =計得掂試算表!G14 -> 00:00:00 | F5: =計得掂試算表!L14 -> 月薪僱員 | G5: =計得掂試算表!O14 -> 0 | H5: =計得掂試算表!P14 -> 0 | I5: =計得掂試算表!AD14 -> 0 | J5: =計得掂試算表!AT14 -> 0 | K5: =計得掂試算表!AU14 -> 0 | L5: =計得掂試算表!AV14 -> 強積金計劃 | M5: =計得掂試算表!AX14 -> MC -> VC | N5: =計得掂試算表!AZ14 -> 0 | O5: =計得掂試算表!BA14 -> 0 | P5: =計得掂試算表!BB14 -> 0 | Q5: =計得掂試算表!BS14 -> N/A | R5: =計得掂試算表!BU14 -> N/A | S5: =計得掂試算表!BV14 -> 沒有 | T5: =計得掂試算表!BY14 -> 0 | U5: =計得掂試算表!BZ14 -> 0 | V5: =計得掂試算表!CA14 -> 0 | W5: =計得掂試算表!CB14 -> 0 | X5: =計得掂試算表!CC14 -> 0 | Y5: =計得掂試算表!CD14 -> 0 | Z5: =計得掂試算表!CH14 -> N/A | AA5: =計得掂試算表!CL14 -> 0 | AB5: =計得掂試算表!CM14 -> N/A | AC5: =計得掂試算表!CO14 -> 不超過50萬元 | AD5: =計得掂試算表!CQ14 -> 0 | AE5: =計得掂試算表!CR14 -> 0 | AF5: =計得掂試算表!CW14 -> 0 | AG5: =計得掂試算表!CX14 -> 0 | AH5: =計得掂試算表!CY14 -> 0 | AI5: =計得掂試算表!CZ14 -> 0 | AJ5: =計得掂試算表!DA14 -> 0 | AK5: =計得掂試算表!DB14 -> 0 | AL5: =計得掂試算表!DC14 -> 0
A6: =計得掂試算表!A15 -> 6 | B6: =計得掂試算表!B15 -> 0 | C6: =計得掂試算表!C15 -> 請選擇 | D6: =計得掂試算表!F15 -> 00:00:00 | E6: =計得掂試算表!G15 -> 00:00:00 | F6: =計得掂試算表!L15 -> 月薪僱員 | G6: =計得掂試算表!O15 -> 0 | H6: =計得掂試算表!P15 -> 0 | I6: =計得掂試算表!AD15 -> 0 | J6: =計得掂試算表!AT15 -> 0 | K6: =計得掂試算表!AU15 -> 0 | L6: =計得掂試算表!AV15 -> 強積金計劃 | M6: =計得掂試算表!AX15 -> MC -> VC | N6: =計得掂試算表!AZ15 -> 0 | O6: =計得掂試算表!BA15 -> 0 | P6: =計得掂試算表!BB15 -> 0 | Q6: =計得掂試算表!BS15 -> N/A | R6: =計得掂試算表!BU15 -> N/A | S6: =計得掂試算表!BV15 -> 沒有 | T6: =計得掂試算表!BY15 -> 0 | U6: =計得掂試算表!BZ15 -> 0 | V6: =計得掂試算表!CA15 -> 0 | W6: =計得掂試算表!CB15 -> 0 | X6: =計得掂試算表!CC15 -> 0 | Y6: =計得掂試算表!CD15 -> 0 | Z6: =計得掂試算表!CH15 -> N/A | AA6: =計得掂試算表!CL15 -> 0 | AB6: =計得掂試算表!CM15 -> N/A | AC6: =計得掂試算表!CO15 -> 不超過50萬元 | AD6: =計得掂試算表!CQ15 -> 0 | AE6: =計得掂試算表!CR15 -> 0 | AF6: =計得掂試算表!CW15 -> 0 | AG6: =計得掂試算表!CX15 -> 0 | AH6: =計得掂試算表!CY15 -> 0 | AI6: =計得掂試算表!CZ15 -> 0 | AJ6: =計得掂試算表!DA15 -> 0 | AK6: =計得掂試算表!DB15 -> 0 | AL6: =計得掂試算表!DC15 -> 0
A7: =計得掂試算表!A16 -> 7 | B7: =計得掂試算表!B16 -> 0 | C7: =計得掂試算表!C16 -> 請選擇 | D7: =計得掂試算表!F16 -> 00:00:00 | E7: =計得掂試算表!G16 -> 00:00:00 | F7: =計得掂試算表!L16 -> 月薪僱員 | G7: =計得掂試算表!O16 -> 0 | H7: =計得掂試算表!P16 -> 0 | I7: =計得掂試算表!AD16 -> 0 | J7: =計得掂試算表!AT16 -> 0 | K7: =計得掂試算表!AU16 -> 0 | L7: =計得掂試算表!AV16 -> 強積金計劃 | M7: =計得掂試算表!AX16 -> MC -> VC | N7: =計得掂試算表!AZ16 -> 0 | O7: =計得掂試算表!BA16 -> 0 | P7: =計得掂試算表!BB16 -> 0 | Q7: =計得掂試算表!BS16 -> N/A | R7: =計得掂試算表!BU16 -> N/A | S7: =計得掂試算表!BV16 -> 沒有 | T7: =計得掂試算表!BY16 -> 0 | U7: =計得掂試算表!BZ16 -> 0 | V7: =計得掂試算表!CA16 -> 0 | W7: =計得掂試算表!CB16 -> 0 | X7: =計得掂試算表!CC16 -> 0 | Y7: =計得掂試算表!CD16 -> 0 | Z7: =計得掂試算表!CH16 -> N/A | AA7: =計得掂試算表!CL16 -> 0 | AB7: =計得掂試算表!CM16 -> N/A | AC7: =計得掂試算表!CO16 -> 不超過50萬元 | AD7: =計得掂試算表!CQ16 -> 0 | AE7: =計得掂試算表!CR16 -> 0 | AF7: =計得掂試算表!CW16 -> 0 | AG7: =計得掂試算表!CX16 -> 0 | AH7: =計得掂試算表!CY16 -> 0 | AI7: =計得掂試算表!CZ16 -> 0 | AJ7: =計得掂試算表!DA16 -> 0 | AK7: =計得掂試算表!DB16 -> 0 | AL7: =計得掂試算表!DC16 -> 0
A8: =計得掂試算表!A17 -> 8 | B8: =計得掂試算表!B17 -> 0 | C8: =計得掂試算表!C17 -> 請選擇 | D8: =計得掂試算表!F17 -> 00:00:00 | E8: =計得掂試算表!G17 -> 00:00:00 | F8: =計得掂試算表!L17 -> 月薪僱員 | G8: =計得掂試算表!O17 -> 0 | H8: =計得掂試算表!P17 -> 0 | I8: =計得掂試算表!AD17 -> 0 | J8: =計得掂試算表!AT17 -> 0 | K8: =計得掂試算表!AU17 -> 0 | L8: =計得掂試算表!AV17 -> 強積金計劃 | M8: =計得掂試算表!AX17 -> MC -> VC | N8: =計得掂試算表!AZ17 -> 0 | O8: =計得掂試算表!BA17 -> 0 | P8: =計得掂試算表!BB17 -> 0 | Q8: =計得掂試算表!BS17 -> N/A | R8: =計得掂試算表!BU17 -> N/A | S8: =計得掂試算表!BV17 -> 沒有 | T8: =計得掂試算表!BY17 -> 0 | U8: =計得掂試算表!BZ17 -> 0 | V8: =計得掂試算表!CA17 -> 0 | W8: =計得掂試算表!CB17 -> 0 | X8: =計得掂試算表!CC17 -> 0 | Y8: =計得掂試算表!CD17 -> 0 | Z8: =計得掂試算表!CH17 -> N/A | AA8: =計得掂試算表!CL17 -> 0 | AB8: =計得掂試算表!CM17 -> N/A | AC8: =計得掂試算表!CO17 -> 不超過50萬元 | AD8: =計得掂試算表!CQ17 -> 0 | AE8: =計得掂試算表!CR17 -> 0 | AF8: =計得掂試算表!CW17 -> 0 | AG8: =計得掂試算表!CX17 -> 0 | AH8: =計得掂試算表!CY17 -> 0 | AI8: =計得掂試算表!CZ17 -> 0 | AJ8: =計得掂試算表!DA17 -> 0 | AK8: =計得掂試算表!DB17 -> 0 | AL8: =計得掂試算表!DC17 -> 0
A9: =計得掂試算表!A18 -> 9 | B9: =計得掂試算表!B18 -> 0 | C9: =計得掂試算表!C18 -> 請選擇 | D9: =計得掂試算表!F18 -> 00:00:00 | E9: =計得掂試算表!G18 -> 00:00:00 | F9: =計得掂試算表!L18 -> 月薪僱員 | G9: =計得掂試算表!O18 -> 0 | H9: =計得掂試算表!P18 -> 0 | I9: =計得掂試算表!AD18 -> 0 | J9: =計得掂試算表!AT18 -> 0 | K9: =計得掂試算表!AU18 -> 0 | L9: =計得掂試算表!AV18 -> 強積金計劃 | M9: =計得掂試算表!AX18 -> MC -> VC | N9: =計得掂試算表!AZ18 -> 0 | O9: =計得掂試算表!BA18 -> 0 | P9: =計得掂試算表!BB18 -> 0 | Q9: =計得掂試算表!BS18 -> N/A | R9: =計得掂試算表!BU18 -> N/A | S9: =計得掂試算表!BV18 -> 沒有 | T9: =計得掂試算表!BY18 -> 0 | U9: =計得掂試算表!BZ18 -> 0 | V9: =計得掂試算表!CA18 -> 0 | W9: =計得掂試算表!CB18 -> 0 | X9: =計得掂試算表!CC18 -> 0 | Y9: =計得掂試算表!CD18 -> 0 | Z9: =計得掂試算表!CH18 -> N/A | AA9: =計得掂試算表!CL18 -> 0 | AB9: =計得掂試算表!CM18 -> N/A | AC9: =計得掂試算表!CO18 -> 不超過50萬元 | AD9: =計得掂試算表!CQ18 -> 0 | AE9: =計得掂試算表!CR18 -> 0 | AF9: =計得掂試算表!CW18 -> 0 | AG9: =計得掂試算表!CX18 -> 0 | AH9: =計得掂試算表!CY18 -> 0 | AI9: =計得掂試算表!CZ18 -> 0 | AJ9: =計得掂試算表!DA18 -> 0 | AK9: =計得掂試算表!DB18 -> 0 | AL9: =計得掂試算表!DC18 -> 0
A10: =計得掂試算表!A19 -> 10 | B10: =計得掂試算表!B19 -> 0 | C10: =計得掂試算表!C19 -> 請選擇 | D10: =計得掂試算表!F19 -> 00:00:00 | E10: =計得掂試算表!G19 -> 00:00:00 | F10: =計得掂試算表!L19 -> 月薪僱員 | G10: =計得掂試算表!O19 -> 0 | H10: =計得掂試算表!P19 -> 0 | I10: =計得掂試算表!AD19 -> 0 | J10: =計得掂試算表!AT19 -> 0 | K10: =計得掂試算表!AU19 -> 0 | L10: =計得掂試算表!AV19 -> 強積金計劃 | M10: =計得掂試算表!AX19 -> MC -> VC | N10: =計得掂試算表!AZ19 -> 0 | O10: =計得掂試算表!BA19 -> 0 | P10: =計得掂試算表!BB19 -> 0 | Q10: =計得掂試算表!BS19 -> N/A | R10: =計得掂試算表!BU19 -> N/A | S10: =計得掂試算表!BV19 -> 沒有 | T10: =計得掂試算表!BY19 -> 0 | U10: =計得掂試算表!BZ19 -> 0 | V10: =計得掂試算表!CA19 -> 0 | W10: =計得掂試算表!CB19 -> 0 | X10: =計得掂試算表!CC19 -> 0 | Y10: =計得掂試算表!CD19 -> 0 | Z10: =計得掂試算表!CH19 -> N/A | AA10: =計得掂試算表!CL19 -> 0 | AB10: =計得掂試算表!CM19 -> N/A | AC10: =計得掂試算表!CO19 -> 不超過50萬元 | AD10: =計得掂試算表!CQ19 -> 0 | AE10: =計得掂試算表!CR19 -> 0 | AF10: =計得掂試算表!CW19 -> 0 | AG10: =計得掂試算表!CX19 -> 0 | AH10: =計得掂試算表!CY19 -> 0 | AI10: =計得掂試算表!CZ19 -> 0 | AJ10: =計得掂試算表!DA19 -> 0 | AK10: =計得掂試算表!DB19 -> 0 | AL10: =計得掂試算表!DC19 -> 0
A11: =計得掂試算表!A20 -> 11 | B11: =計得掂試算表!B20 -> 0 | C11: =計得掂試算表!C20 -> 請選擇 | D11: =計得掂試算表!F20 -> 00:00:00 | E11: =計得掂試算表!G20 -> 00:00:00 | F11: =計得掂試算表!L20 -> 月薪僱員 | G11: =計得掂試算表!O20 -> 0 | H11: =計得掂試算表!P20 -> 0 | I11: =計得掂試算表!AD20 -> 0 | J11: =計得掂試算表!AT20 -> 0 | K11: =計得掂試算表!AU20 -> 0 | L11: =計得掂試算表!AV20 -> 強積金計劃 | M11: =計得掂試算表!AX20 -> MC -> VC | N11: =計得掂試算表!AZ20 -> 0 | O11: =計得掂試算表!BA20 -> 0 | P11: =計得掂試算表!BB20 -> 0 | Q11: =計得掂試算表!BS20 -> N/A | R11: =計得掂試算表!BU20 -> N/A | S11: =計得掂試算表!BV20 -> 沒有 | T11: =計得掂試算表!BY20 -> 0 | U11: =計得掂試算表!BZ20 -> 0 | V11: =計得掂試算表!CA20 -> 0 | W11: =計得掂試算表!CB20 -> 0 | X11: =計得掂試算表!CC20 -> 0 | Y11: =計得掂試算表!CD20 -> 0 | Z11: =計得掂試算表!CH20 -> N/A | AA11: =計得掂試算表!CL20 -> 0 | AB11: =計得掂試算表!CM20 -> N/A | AC11: =計得掂試算表!CO20 -> 不超過50萬元 | AD11: =計得掂試算表!CQ20 -> 0 | AE11: =計得掂試算表!CR20 -> 0 | AF11: =計得掂試算表!CW20 -> 0 | AG11: =計得掂試算表!CX20 -> 0 | AH11: =計得掂試算表!CY20 -> 0 | AI11: =計得掂試算表!CZ20 -> 0 | AJ11: =計得掂試算表!DA20 -> 0 | AK11: =計得掂試算表!DB20 -> 0 | AL11: =計得掂試算表!DC20 -> 0
A12: =計得掂試算表!A21 -> 12 | B12: =計得掂試算表!B21 -> 0 | C12: =計得掂試算表!C21 -> 請選擇 | D12: =計得掂試算表!F21 -> 00:00:00 | E12: =計得掂試算表!G21 -> 00:00:00 | F12: =計得掂試算表!L21 -> 月薪僱員 | G12: =計得掂試算表!O21 -> 0 | H12: =計得掂試算表!P21 -> 0 | I12: =計得掂試算表!AD21 -> 0 | J12: =計得掂試算表!AT21 -> 0 | K12: =計得掂試算表!AU21 -> 0 | L12: =計得掂試算表!AV21 -> 強積金計劃 | M12: =計得掂試算表!AX21 -> MC -> VC | N12: =計得掂試算表!AZ21 -> 0 | O12: =計得掂試算表!BA21 -> 0 | P12: =計得掂試算表!BB21 -> 0 | Q12: =計得掂試算表!BS21 -> N/A | R12: =計得掂試算表!BU21 -> N/A | S12: =計得掂試算表!BV21 -> 沒有 | T12: =計得掂試算表!BY21 -> 0 | U12: =計得掂試算表!BZ21 -> 0 | V12: =計得掂試算表!CA21 -> 0 | W12: =計得掂試算表!CB21 -> 0 | X12: =計得掂試算表!CC21 -> 0 | Y12: =計得掂試算表!CD21 -> 0 | Z12: =計得掂試算表!CH21 -> N/A | AA12: =計得掂試算表!CL21 -> 0 | AB12: =計得掂試算表!CM21 -> N/A | AC12: =計得掂試算表!CO21 -> 不超過50萬元 | AD12: =計得掂試算表!CQ21 -> 0 | AE12: =計得掂試算表!CR21 -> 0 | AF12: =計得掂試算表!CW21 -> 0 | AG12: =計得掂試算表!CX21 -> 0 | AH12: =計得掂試算表!CY21 -> 0 | AI12: =計得掂試算表!CZ21 -> 0 | AJ12: =計得掂試算表!DA21 -> 0 | AK12: =計得掂試算表!DB21 -> 0 | AL12: =計得掂試算表!DC21 -> 0
A13: =計得掂試算表!A22 -> 13 | B13: =計得掂試算表!B22 -> 0 | C13: =計得掂試算表!C22 -> 請選擇 | D13: =計得掂試算表!F22 -> 00:00:00 | E13: =計得掂試算表!G22 -> 00:00:00 | F13: =計得掂試算表!L22 -> 月薪僱員 | G13: =計得掂試算表!O22 -> 0 | H13: =計得掂試算表!P22 -> 0 | I13: =計得掂試算表!AD22 -> 0 | J13: =計得掂試算表!AT22 -> 0 | K13: =計得掂試算表!AU22 -> 0 | L13: =計得掂試算表!AV22 -> 強積金計劃 | M13: =計得掂試算表!AX22 -> MC -> VC | N13: =計得掂試算表!AZ22 -> 0 | O13: =計得掂試算表!BA22 -> 0 | P13: =計得掂試算表!BB22 -> 0 | Q13: =計得掂試算表!BS22 -> N/A | R13: =計得掂試算表!BU22 -> N/A | S13: =計得掂試算表!BV22 -> 沒有 | T13: =計得掂試算表!BY22 -> 0 | U13: =計得掂試算表!BZ22 -> 0 | V13: =計得掂試算表!CA22 -> 0 | W13: =計得掂試算表!CB22 -> 0 | X13: =計得掂試算表!CC22 -> 0 | Y13: =計得掂試算表!CD22 -> 0 | Z13: =計得掂試算表!CH22 -> N/A | AA13: =計得掂試算表!CL22 -> 0 | AB13: =計得掂試算表!CM22 -> N/A | AC13: =計得掂試算表!CO22 -> 不超過50萬元 | AD13: =計得掂試算表!CQ22 -> 0 | AE13: =計得掂試算表!CR22 -> 0 | AF13: =計得掂試算表!CW22 -> 0 | AG13: =計得掂試算表!CX22 -> 0 | AH13: =計得掂試算表!CY22 -> 0 | AI13: =計得掂試算表!CZ22 -> 0 | AJ13: =計得掂試算表!DA22 -> 0 | AK13: =計得掂試算表!DB22 -> 0 | AL13: =計得掂試算表!DC22 -> 0
A14: =計得掂試算表!A23 -> 14 | B14: =計得掂試算表!B23 -> 0 | C14: =計得掂試算表!C23 -> 請選擇 | D14: =計得掂試算表!F23 -> 00:00:00 | E14: =計得掂試算表!G23 -> 00:00:00 | F14: =計得掂試算表!L23 -> 月薪僱員 | G14: =計得掂試算表!O23 -> 0 | H14: =計得掂試算表!P23 -> 0 | I14: =計得掂試算表!AD23 -> 0 | J14: =計得掂試算表!AT23 -> 0 | K14: =計得掂試算表!AU23 -> 0 | L14: =計得掂試算表!AV23 -> 強積金計劃 | M14: =計得掂試算表!AX23 -> MC -> VC | N14: =計得掂試算表!AZ23 -> 0 | O14: =計得掂試算表!BA23 -> 0 | P14: =計得掂試算表!BB23 -> 0 | Q14: =計得掂試算表!BS23 -> N/A | R14: =計得掂試算表!BU23 -> N/A | S14: =計得掂試算表!BV23 -> 沒有 | T14: =計得掂試算表!BY23 -> 0 | U14: =計得掂試算表!BZ23 -> 0 | V14: =計得掂試算表!CA23 -> 0 | W14: =計得掂試算表!CB23 -> 0 | X14: =計得掂試算表!CC23 -> 0 | Y14: =計得掂試算表!CD23 -> 0 | Z14: =計得掂試算表!CH23 -> N/A | AA14: =計得掂試算表!CL23 -> 0 | AB14: =計得掂試算表!CM23 -> N/A | AC14: =計得掂試算表!CO23 -> 不超過50萬元 | AD14: =計得掂試算表!CQ23 -> 0 | AE14: =計得掂試算表!CR23 -> 0 | AF14: =計得掂試算表!CW23 -> 0 | AG14: =計得掂試算表!CX23 -> 0 | AH14: =計得掂試算表!CY23 -> 0 | AI14: =計得掂試算表!CZ23 -> 0 | AJ14: =計得掂試算表!DA23 -> 0 | AK14: =計得掂試算表!DB23 -> 0 | AL14: =計得掂試算表!DC23 -> 0
A15: =計得掂試算表!A24 -> 15 | B15: =計得掂試算表!B24 -> 0 | C15: =計得掂試算表!C24 -> 請選擇 | D15: =計得掂試算表!F24 -> 00:00:00 | E15: =計得掂試算表!G24 -> 00:00:00 | F15: =計得掂試算表!L24 -> 月薪僱員 | G15: =計得掂試算表!O24 -> 0 | H15: =計得掂試算表!P24 -> 0 | I15: =計得掂試算表!AD24 -> 0 | J15: =計得掂試算表!AT24 -> 0 | K15: =計得掂試算表!AU24 -> 0 | L15: =計得掂試算表!AV24 -> 強積金計劃 | M15: =計得掂試算表!AX24 -> MC -> VC | N15: =計得掂試算表!AZ24 -> 0 | O15: =計得掂試算表!BA24 -> 0 | P15: =計得掂試算表!BB24 -> 0 | Q15: =計得掂試算表!BS24 -> N/A | R15: =計得掂試算表!BU24 -> N/A | S15: =計得掂試算表!BV24 -> 沒有 | T15: =計得掂試算表!BY24 -> 0 | U15: =計得掂試算表!BZ24 -> 0 | V15: =計得掂試算表!CA24 -> 0 | W15: =計得掂試算表!CB24 -> 0 | X15: =計得掂試算表!CC24 -> 0 | Y15: =計得掂試算表!CD24 -> 0 | Z15: =計得掂試算表!CH24 -> N/A | AA15: =計得掂試算表!CL24 -> 0 | AB15: =計得掂試算表!CM24 -> N/A | AC15: =計得掂試算表!CO24 -> 不超過50萬元 | AD15: =計得掂試算表!CQ24 -> 0 | AE15: =計得掂試算表!CR24 -> 0 | AF15: =計得掂試算表!CW24 -> 0 | AG15: =計得掂試算表!CX24 -> 0 | AH15: =計得掂試算表!CY24 -> 0 | AI15: =計得掂試算表!CZ24 -> 0 | AJ15: =計得掂試算表!DA24 -> 0 | AK15: =計得掂試算表!DB24 -> 0 | AL15: =計得掂試算表!DC24 -> 0
A16: =計得掂試算表!A25 -> 16 | B16: =計得掂試算表!B25 -> 0 | C16: =計得掂試算表!C25 -> 請選擇 | D16: =計得掂試算表!F25 -> 00:00:00 | E16: =計得掂試算表!G25 -> 00:00:00 | F16: =計得掂試算表!L25 -> 月薪僱員 | G16: =計得掂試算表!O25 -> 0 | H16: =計得掂試算表!P25 -> 0 | I16: =計得掂試算表!AD25 -> 0 | J16: =計得掂試算表!AT25 -> 0 | K16: =計得掂試算表!AU25 -> 0 | L16: =計得掂試算表!AV25 -> 強積金計劃 | M16: =計得掂試算表!AX25 -> MC -> VC | N16: =計得掂試算表!AZ25 -> 0 | O16: =計得掂試算表!BA25 -> 0 | P16: =計得掂試算表!BB25 -> 0 | Q16: =計得掂試算表!BS25 -> N/A | R16: =計得掂試算表!BU25 -> N/A | S16: =計得掂試算表!BV25 -> 沒有 | T16: =計得掂試算表!BY25 -> 0 | U16: =計得掂試算表!BZ25 -> 0 | V16: =計得掂試算表!CA25 -> 0 | W16: =計得掂試算表!CB25 -> 0 | X16: =計得掂試算表!CC25 -> 0 | Y16: =計得掂試算表!CD25 -> 0 | Z16: =計得掂試算表!CH25 -> N/A | AA16: =計得掂試算表!CL25 -> 0 | AB16: =計得掂試算表!CM25 -> N/A | AC16: =計得掂試算表!CO25 -> 不超過50萬元 | AD16: =計得掂試算表!CQ25 -> 0 | AE16: =計得掂試算表!CR25 -> 0 | AF16: =計得掂試算表!CW25 -> 0 | AG16: =計得掂試算表!CX25 -> 0 | AH16: =計得掂試算表!CY25 -> 0 | AI16: =計得掂試算表!CZ25 -> 0 | AJ16: =計得掂試算表!DA25 -> 0 | AK16: =計得掂試算表!DB25 -> 0 | AL16: =計得掂試算表!DC25 -> 0
A17: =計得掂試算表!A26 -> 17 | B17: =計得掂試算表!B26 -> 0 | C17: =計得掂試算表!C26 -> 請選擇 | D17: =計得掂試算表!F26 -> 00:00:00 | E17: =計得掂試算表!G26 -> 00:00:00 | F17: =計得掂試算表!L26 -> 月薪僱員 | G17: =計得掂試算表!O26 -> 0 | H17: =計得掂試算表!P26 -> 0 | I17: =計得掂試算表!AD26 -> 0 | J17: =計得掂試算表!AT26 -> 0 | K17: =計得掂試算表!AU26 -> 0 | L17: =計得掂試算表!AV26 -> 強積金計劃 | M17: =計得掂試算表!AX26 -> MC -> VC | N17: =計得掂試算表!AZ26 -> 0 | O17: =計得掂試算表!BA26 -> 0 | P17: =計得掂試算表!BB26 -> 0 | Q17: =計得掂試算表!BS26 -> N/A | R17: =計得掂試算表!BU26 -> N/A | S17: =計得掂試算表!BV26 -> 沒有 | T17: =計得掂試算表!BY26 -> 0 | U17: =計得掂試算表!BZ26 -> 0 | V17: =計得掂試算表!CA26 -> 0 | W17: =計得掂試算表!CB26 -> 0 | X17: =計得掂試算表!CC26 -> 0 | Y17: =計得掂試算表!CD26 -> 0 | Z17: =計得掂試算表!CH26 -> N/A | AA17: =計得掂試算表!CL26 -> 0 | AB17: =計得掂試算表!CM26 -> N/A | AC17: =計得掂試算表!CO26 -> 不超過50萬元 | AD17: =計得掂試算表!CQ26 -> 0 | AE17: =計得掂試算表!CR26 -> 0 | AF17: =計得掂試算表!CW26 -> 0 | AG17: =計得掂試算表!CX26 -> 0 | AH17: =計得掂試算表!CY26 -> 0 | AI17: =計得掂試算表!CZ26 -> 0 | AJ17: =計得掂試算表!DA26 -> 0 | AK17: =計得掂試算表!DB26 -> 0 | AL17: =計得掂試算表!DC26 -> 0
A18: =計得掂試算表!A27 -> 18 | B18: =計得掂試算表!B27 -> 0 | C18: =計得掂試算表!C27 -> 請選擇 | D18: =計得掂試算表!F27 -> 00:00:00 | E18: =計得掂試算表!G27 -> 00:00:00 | F18: =計得掂試算表!L27 -> 月薪僱員 | G18: =計得掂試算表!O27 -> 0 | H18: =計得掂試算表!P27 -> 0 | I18: =計得掂試算表!AD27 -> 0 | J18: =計得掂試算表!AT27 -> 0 | K18: =計得掂試算表!AU27 -> 0 | L18: =計得掂試算表!AV27 -> 強積金計劃 | M18: =計得掂試算表!AX27 -> MC -> VC | N18: =計得掂試算表!AZ27 -> 0 | O18: =計得掂試算表!BA27 -> 0 | P18: =計得掂試算表!BB27 -> 0 | Q18: =計得掂試算表!BS27 -> N/A | R18: =計得掂試算表!BU27 -> N/A | S18: =計得掂試算表!BV27 -> 沒有 | T18: =計得掂試算表!BY27 -> 0 | U18: =計得掂試算表!BZ27 -> 0 | V18: =計得掂試算表!CA27 -> 0 | W18: =計得掂試算表!CB27 -> 0 | X18: =計得掂試算表!CC27 -> 0 | Y18: =計得掂試算表!CD27 -> 0 | Z18: =計得掂試算表!CH27 -> N/A | AA18: =計得掂試算表!CL27 -> 0 | AB18: =計得掂試算表!CM27 -> N/A | AC18: =計得掂試算表!CO27 -> 不超過50萬元 | AD18: =計得掂試算表!CQ27 -> 0 | AE18: =計得掂試算表!CR27 -> 0 | AF18: =計得掂試算表!CW27 -> 0 | AG18: =計得掂試算表!CX27 -> 0 | AH18: =計得掂試算表!CY27 -> 0 | AI18: =計得掂試算表!CZ27 -> 0 | AJ18: =計得掂試算表!DA27 -> 0 | AK18: =計得掂試算表!DB27 -> 0 | AL18: =計得掂試算表!DC27 -> 0
A19: =計得掂試算表!A28 -> 19 | B19: =計得掂試算表!B28 -> 0 | C19: =計得掂試算表!C28 -> 請選擇 | D19: =計得掂試算表!F28 -> 00:00:00 | E19: =計得掂試算表!G28 -> 00:00:00 | F19: =計得掂試算表!L28 -> 月薪僱員 | G19: =計得掂試算表!O28 -> 0 | H19: =計得掂試算表!P28 -> 0 | I19: =計得掂試算表!AD28 -> 0 | J19: =計得掂試算表!AT28 -> 0 | K19: =計得掂試算表!AU28 -> 0 | L19: =計得掂試算表!AV28 -> 強積金計劃 | M19: =計得掂試算表!AX28 -> MC -> VC | N19: =計得掂試算表!AZ28 -> 0 | O19: =計得掂試算表!BA28 -> 0 | P19: =計得掂試算表!BB28 -> 0 | Q19: =計得掂試算表!BS28 -> N/A | R19: =計得掂試算表!BU28 -> N/A | S19: =計得掂試算表!BV28 -> 沒有 | T19: =計得掂試算表!BY28 -> 0 | U19: =計得掂試算表!BZ28 -> 0 | V19: =計得掂試算表!CA28 -> 0 | W19: =計得掂試算表!CB28 -> 0 | X19: =計得掂試算表!CC28 -> 0 | Y19: =計得掂試算表!CD28 -> 0 | Z19: =計得掂試算表!CH28 -> N/A | AA19: =計得掂試算表!CL28 -> 0 | AB19: =計得掂試算表!CM28 -> N/A | AC19: =計得掂試算表!CO28 -> 不超過50萬元 | AD19: =計得掂試算表!CQ28 -> 0 | AE19: =計得掂試算表!CR28 -> 0 | AF19: =計得掂試算表!CW28 -> 0 | AG19: =計得掂試算表!CX28 -> 0 | AH19: =計得掂試算表!CY28 -> 0 | AI19: =計得掂試算表!CZ28 -> 0 | AJ19: =計得掂試算表!DA28 -> 0 | AK19: =計得掂試算表!DB28 -> 0 | AL19: =計得掂試算表!DC28 -> 0
A20: =計得掂試算表!A29 -> 20 | B20: =計得掂試算表!B29 -> 0 | C20: =計得掂試算表!C29 -> 請選擇 | D20: =計得掂試算表!F29 -> 00:00:00 | E20: =計得掂試算表!G29 -> 00:00:00 | F20: =計得掂試算表!L29 -> 月薪僱員 | G20: =計得掂試算表!O29 -> 0 | H20: =計得掂試算表!P29 -> 0 | I20: =計得掂試算表!AD29 -> 0 | J20: =計得掂試算表!AT29 -> 0 | K20: =計得掂試算表!AU29 -> 0 | L20: =計得掂試算表!AV29 -> 強積金計劃 | M20: =計得掂試算表!AX29 -> MC -> VC | N20: =計得掂試算表!AZ29 -> 0 | O20: =計得掂試算表!BA29 -> 0 | P20: =計得掂試算表!BB29 -> 0 | Q20: =計得掂試算表!BS29 -> N/A | R20: =計得掂試算表!BU29 -> N/A | S20: =計得掂試算表!BV29 -> 沒有 | T20: =計得掂試算表!BY29 -> 0 | U20: =計得掂試算表!BZ29 -> 0 | V20: =計得掂試算表!CA29 -> 0 | W20: =計得掂試算表!CB29 -> 0 | X20: =計得掂試算表!CC29 -> 0 | Y20: =計得掂試算表!CD29 -> 0 | Z20: =計得掂試算表!CH29 -> N/A | AA20: =計得掂試算表!CL29 -> 0 | AB20: =計得掂試算表!CM29 -> N/A | AC20: =計得掂試算表!CO29 -> 不超過50萬元 | AD20: =計得掂試算表!CQ29 -> 0 | AE20: =計得掂試算表!CR29 -> 0 | AF20: =計得掂試算表!CW29 -> 0 | AG20: =計得掂試算表!CX29 -> 0 | AH20: =計得掂試算表!CY29 -> 0 | AI20: =計得掂試算表!CZ29 -> 0 | AJ20: =計得掂試算表!DA29 -> 0 | AK20: =計得掂試算表!DB29 -> 0 | AL20: =計得掂試算表!DC29 -> 0
A21: =計得掂試算表!A30 -> 21 | B21: =計得掂試算表!B30 -> 0 | C21: =計得掂試算表!C30 -> 請選擇 | D21: =計得掂試算表!F30 -> 00:00:00 | E21: =計得掂試算表!G30 -> 00:00:00 | F21: =計得掂試算表!L30 -> 月薪僱員 | G21: =計得掂試算表!O30 -> 0 | H21: =計得掂試算表!P30 -> 0 | I21: =計得掂試算表!AD30 -> 0 | J21: =計得掂試算表!AT30 -> 0 | K21: =計得掂試算表!AU30 -> 0 | L21: =計得掂試算表!AV30 -> 強積金計劃 | M21: =計得掂試算表!AX30 -> MC -> VC | N21: =計得掂試算表!AZ30 -> 0 | O21: =計得掂試算表!BA30 -> 0 | P21: =計得掂試算表!BB30 -> 0 | Q21: =計得掂試算表!BS30 -> N/A | R21: =計得掂試算表!BU30 -> N/A | S21: =計得掂試算表!BV30 -> 沒有 | T21: =計得掂試算表!BY30 -> 0 | U21: =計得掂試算表!BZ30 -> 0 | V21: =計得掂試算表!CA30 -> 0 | W21: =計得掂試算表!CB30 -> 0 | X21: =計得掂試算表!CC30 -> 0 | Y21: =計得掂試算表!CD30 -> 0 | Z21: =計得掂試算表!CH30 -> N/A | AA21: =計得掂試算表!CL30 -> 0 | AB21: =計得掂試算表!CM30 -> N/A | AC21: =計得掂試算表!CO30 -> 不超過50萬元 | AD21: =計得掂試算表!CQ30 -> 0 | AE21: =計得掂試算表!CR30 -> 0 | AF21: =計得掂試算表!CW30 -> 0 | AG21: =計得掂試算表!CX30 -> 0 | AH21: =計得掂試算表!CY30 -> 0 | AI21: =計得掂試算表!CZ30 -> 0 | AJ21: =計得掂試算表!DA30 -> 0 | AK21: =計得掂試算表!DB30 -> 0 | AL21: =計得掂試算表!DC30 -> 0
A22: =計得掂試算表!A31 -> 22 | B22: =計得掂試算表!B31 -> 0 | C22: =計得掂試算表!C31 -> 請選擇 | D22: =計得掂試算表!F31 -> 00:00:00 | E22: =計得掂試算表!G31 -> 00:00:00 | F22: =計得掂試算表!L31 -> 月薪僱員 | G22: =計得掂試算表!O31 -> 0 | H22: =計得掂試算表!P31 -> 0 | I22: =計得掂試算表!AD31 -> 0 | J22: =計得掂試算表!AT31 -> 0 | K22: =計得掂試算表!AU31 -> 0 | L22: =計得掂試算表!AV31 -> 強積金計劃 | M22: =計得掂試算表!AX31 -> MC -> VC | N22: =計得掂試算表!AZ31 -> 0 | O22: =計得掂試算表!BA31 -> 0 | P22: =計得掂試算表!BB31 -> 0 | Q22: =計得掂試算表!BS31 -> N/A | R22: =計得掂試算表!BU31 -> N/A | S22: =計得掂試算表!BV31 -> 沒有 | T22: =計得掂試算表!BY31 -> 0 | U22: =計得掂試算表!BZ31 -> 0 | V22: =計得掂試算表!CA31 -> 0 | W22: =計得掂試算表!CB31 -> 0 | X22: =計得掂試算表!CC31 -> 0 | Y22: =計得掂試算表!CD31 -> 0 | Z22: =計得掂試算表!CH31 -> N/A | AA22: =計得掂試算表!CL31 -> 0 | AB22: =計得掂試算表!CM31 -> N/A | AC22: =計得掂試算表!CO31 -> 不超過50萬元 | AD22: =計得掂試算表!CQ31 -> 0 | AE22: =計得掂試算表!CR31 -> 0 | AF22: =計得掂試算表!CW31 -> 0 | AG22: =計得掂試算表!CX31 -> 0 | AH22: =計得掂試算表!CY31 -> 0 | AI22: =計得掂試算表!CZ31 -> 0 | AJ22: =計得掂試算表!DA31 -> 0 | AK22: =計得掂試算表!DB31 -> 0 | AL22: =計得掂試算表!DC31 -> 0
A23: =計得掂試算表!A32 -> 23 | B23: =計得掂試算表!B32 -> 0 | C23: =計得掂試算表!C32 -> 請選擇 | D23: =計得掂試算表!F32 -> 00:00:00 | E23: =計得掂試算表!G32 -> 00:00:00 | F23: =計得掂試算表!L32 -> 月薪僱員 | G23: =計得掂試算表!O32 -> 0 | H23: =計得掂試算表!P32 -> 0 | I23: =計得掂試算表!AD32 -> 0 | J23: =計得掂試算表!AT32 -> 0 | K23: =計得掂試算表!AU32 -> 0 | L23: =計得掂試算表!AV32 -> 強積金計劃 | M23: =計得掂試算表!AX32 -> MC -> VC | N23: =計得掂試算表!AZ32 -> 0 | O23: =計得掂試算表!BA32 -> 0 | P23: =計得掂試算表!BB32 -> 0 | Q23: =計得掂試算表!BS32 -> N/A | R23: =計得掂試算表!BU32 -> N/A | S23: =計得掂試算表!BV32 -> 沒有 | T23: =計得掂試算表!BY32 -> 0 | U23: =計得掂試算表!BZ32 -> 0 | V23: =計得掂試算表!CA32 -> 0 | W23: =計得掂試算表!CB32 -> 0 | X23: =計得掂試算表!CC32 -> 0 | Y23: =計得掂試算表!CD32 -> 0 | Z23: =計得掂試算表!CH32 -> N/A | AA23: =計得掂試算表!CL32 -> 0 | AB23: =計得掂試算表!CM32 -> N/A | AC23: =計得掂試算表!CO32 -> 不超過50萬元 | AD23: =計得掂試算表!CQ32 -> 0 | AE23: =計得掂試算表!CR32 -> 0 | AF23: =計得掂試算表!CW32 -> 0 | AG23: =計得掂試算表!CX32 -> 0 | AH23: =計得掂試算表!CY32 -> 0 | AI23: =計得掂試算表!CZ32 -> 0 | AJ23: =計得掂試算表!DA32 -> 0 | AK23: =計得掂試算表!DB32 -> 0 | AL23: =計得掂試算表!DC32 -> 0
A24: =計得掂試算表!A33 -> 24 | B24: =計得掂試算表!B33 -> 0 | C24: =計得掂試算表!C33 -> 請選擇 | D24: =計得掂試算表!F33 -> 00:00:00 | E24: =計得掂試算表!G33 -> 00:00:00 | F24: =計得掂試算表!L33 -> 月薪僱員 | G24: =計得掂試算表!O33 -> 0 | H24: =計得掂試算表!P33 -> 0 | I24: =計得掂試算表!AD33 -> 0 | J24: =計得掂試算表!AT33 -> 0 | K24: =計得掂試算表!AU33 -> 0 | L24: =計得掂試算表!AV33 -> 強積金計劃 | M24: =計得掂試算表!AX33 -> MC -> VC | N24: =計得掂試算表!AZ33 -> 0 | O24: =計得掂試算表!BA33 -> 0 | P24: =計得掂試算表!BB33 -> 0 | Q24: =計得掂試算表!BS33 -> N/A | R24: =計得掂試算表!BU33 -> N/A | S24: =計得掂試算表!BV33 -> 沒有 | T24: =計得掂試算表!BY33 -> 0 | U24: =計得掂試算表!BZ33 -> 0 | V24: =計得掂試算表!CA33 -> 0 | W24: =計得掂試算表!CB33 -> 0 | X24: =計得掂試算表!CC33 -> 0 | Y24: =計得掂試算表!CD33 -> 0 | Z24: =計得掂試算表!CH33 -> N/A | AA24: =計得掂試算表!CL33 -> 0 | AB24: =計得掂試算表!CM33 -> N/A | AC24: =計得掂試算表!CO33 -> 不超過50萬元 | AD24: =計得掂試算表!CQ33 -> 0 | AE24: =計得掂試算表!CR33 -> 0 | AF24: =計得掂試算表!CW33 -> 0 | AG24: =計得掂試算表!CX33 -> 0 | AH24: =計得掂試算表!CY33 -> 0 | AI24: =計得掂試算表!CZ33 -> 0 | AJ24: =計得掂試算表!DA33 -> 0 | AK24: =計得掂試算表!DB33 -> 0 | AL24: =計得掂試算表!DC33 -> 0
A25: =計得掂試算表!A34 -> 25 | B25: =計得掂試算表!B34 -> 0 | C25: =計得掂試算表!C34 -> 請選擇 | D25: =計得掂試算表!F34 -> 00:00:00 | E25: =計得掂試算表!G34 -> 00:00:00 | F25: =計得掂試算表!L34 -> 月薪僱員 | G25: =計得掂試算表!O34 -> 0 | H25: =計得掂試算表!P34 -> 0 | I25: =計得掂試算表!AD34 -> 0 | J25: =計得掂試算表!AT34 -> 0 | K25: =計得掂試算表!AU34 -> 0 | L25: =計得掂試算表!AV34 -> 強積金計劃 | M25: =計得掂試算表!AX34 -> MC -> VC | N25: =計得掂試算表!AZ34 -> 0 | O25: =計得掂試算表!BA34 -> 0 | P25: =計得掂試算表!BB34 -> 0 | Q25: =計得掂試算表!BS34 -> N/A | R25: =計得掂試算表!BU34 -> N/A | S25: =計得掂試算表!BV34 -> 沒有 | T25: =計得掂試算表!BY34 -> 0 | U25: =計得掂試算表!BZ34 -> 0 | V25: =計得掂試算表!CA34 -> 0 | W25: =計得掂試算表!CB34 -> 0 | X25: =計得掂試算表!CC34 -> 0 | Y25: =計得掂試算表!CD34 -> 0 | Z25: =計得掂試算表!CH34 -> N/A | AA25: =計得掂試算表!CL34 -> 0 | AB25: =計得掂試算表!CM34 -> N/A | AC25: =計得掂試算表!CO34 -> 不超過50萬元 | AD25: =計得掂試算表!CQ34 -> 0 | AE25: =計得掂試算表!CR34 -> 0 | AF25: =計得掂試算表!CW34 -> 0 | AG25: =計得掂試算表!CX34 -> 0 | AH25: =計得掂試算表!CY34 -> 0 | AI25: =計得掂試算表!CZ34 -> 0 | AJ25: =計得掂試算表!DA34 -> 0 | AK25: =計得掂試算表!DB34 -> 0 | AL25: =計得掂試算表!DC34 -> 0
A26: =計得掂試算表!A35 -> 26 | B26: =計得掂試算表!B35 -> 0 | C26: =計得掂試算表!C35 -> 請選擇 | D26: =計得掂試算表!F35 -> 00:00:00 | E26: =計得掂試算表!G35 -> 00:00:00 | F26: =計得掂試算表!L35 -> 月薪僱員 | G26: =計得掂試算表!O35 -> 0 | H26: =計得掂試算表!P35 -> 0 | I26: =計得掂試算表!AD35 -> 0 | J26: =計得掂試算表!AT35 -> 0 | K26: =計得掂試算表!AU35 -> 0 | L26: =計得掂試算表!AV35 -> 強積金計劃 | M26: =計得掂試算表!AX35 -> MC -> VC | N26: =計得掂試算表!AZ35 -> 0 | O26: =計得掂試算表!BA35 -> 0 | P26: =計得掂試算表!BB35 -> 0 | Q26: =計得掂試算表!BS35 -> N/A | R26: =計得掂試算表!BU35 -> N/A | S26: =計得掂試算表!BV35 -> 沒有 | T26: =計得掂試算表!BY35 -> 0 | U26: =計得掂試算表!BZ35 -> 0 | V26: =計得掂試算表!CA35 -> 0 | W26: =計得掂試算表!CB35 -> 0 | X26: =計得掂試算表!CC35 -> 0 | Y26: =計得掂試算表!CD35 -> 0 | Z26: =計得掂試算表!CH35 -> N/A | AA26: =計得掂試算表!CL35 -> 0 | AB26: =計得掂試算表!CM35 -> N/A | AC26: =計得掂試算表!CO35 -> 不超過50萬元 | AD26: =計得掂試算表!CQ35 -> 0 | AE26: =計得掂試算表!CR35 -> 0 | AF26: =計得掂試算表!CW35 -> 0 | AG26: =計得掂試算表!CX35 -> 0 | AH26: =計得掂試算表!CY35 -> 0 | AI26: =計得掂試算表!CZ35 -> 0 | AJ26: =計得掂試算表!DA35 -> 0 | AK26: =計得掂試算表!DB35 -> 0 | AL26: =計得掂試算表!DC35 -> 0
A27: =計得掂試算表!A36 -> 27 | B27: =計得掂試算表!B36 -> 0 | C27: =計得掂試算表!C36 -> 請選擇 | D27: =計得掂試算表!F36 -> 00:00:00 | E27: =計得掂試算表!G36 -> 00:00:00 | F27: =計得掂試算表!L36 -> 月薪僱員 | G27: =計得掂試算表!O36 -> 0 | H27: =計得掂試算表!P36 -> 0 | I27: =計得掂試算表!AD36 -> 0 | J27: =計得掂試算表!AT36 -> 0 | K27: =計得掂試算表!AU36 -> 0 | L27: =計得掂試算表!AV36 -> 強積金計劃 | M27: =計得掂試算表!AX36 -> MC -> VC | N27: =計得掂試算表!AZ36 -> 0 | O27: =計得掂試算表!BA36 -> 0 | P27: =計得掂試算表!BB36 -> 0 | Q27: =計得掂試算表!BS36 -> N/A | R27: =計得掂試算表!BU36 -> N/A | S27: =計得掂試算表!BV36 -> 沒有 | T27: =計得掂試算表!BY36 -> 0 | U27: =計得掂試算表!BZ36 -> 0 | V27: =計得掂試算表!CA36 -> 0 | W27: =計得掂試算表!CB36 -> 0 | X27: =計得掂試算表!CC36 -> 0 | Y27: =計得掂試算表!CD36 -> 0 | Z27: =計得掂試算表!CH36 -> N/A | AA27: =計得掂試算表!CL36 -> 0 | AB27: =計得掂試算表!CM36 -> N/A | AC27: =計得掂試算表!CO36 -> 不超過50萬元 | AD27: =計得掂試算表!CQ36 -> 0 | AE27: =計得掂試算表!CR36 -> 0 | AF27: =計得掂試算表!CW36 -> 0 | AG27: =計得掂試算表!CX36 -> 0 | AH27: =計得掂試算表!CY36 -> 0 | AI27: =計得掂試算表!CZ36 -> 0 | AJ27: =計得掂試算表!DA36 -> 0 | AK27: =計得掂試算表!DB36 -> 0 | AL27: =計得掂試算表!DC36 -> 0
A28: =計得掂試算表!A37 -> 28 | B28: =計得掂試算表!B37 -> 0 | C28: =計得掂試算表!C37 -> 請選擇 | D28: =計得掂試算表!F37 -> 00:00:00 | E28: =計得掂試算表!G37 -> 00:00:00 | F28: =計得掂試算表!L37 -> 月薪僱員 | G28: =計得掂試算表!O37 -> 0 | H28: =計得掂試算表!P37 -> 0 | I28: =計得掂試算表!AD37 -> 0 | J28: =計得掂試算表!AT37 -> 0 | K28: =計得掂試算表!AU37 -> 0 | L28: =計得掂試算表!AV37 -> 強積金計劃 | M28: =計得掂試算表!AX37 -> MC -> VC | N28: =計得掂試算表!AZ37 -> 0 | O28: =計得掂試算表!BA37 -> 0 | P28: =計得掂試算表!BB37 -> 0 | Q28: =計得掂試算表!BS37 -> N/A | R28: =計得掂試算表!BU37 -> N/A | S28: =計得掂試算表!BV37 -> 沒有 | T28: =計得掂試算表!BY37 -> 0 | U28: =計得掂試算表!BZ37 -> 0 | V28: =計得掂試算表!CA37 -> 0 | W28: =計得掂試算表!CB37 -> 0 | X28: =計得掂試算表!CC37 -> 0 | Y28: =計得掂試算表!CD37 -> 0 | Z28: =計得掂試算表!CH37 -> N/A | AA28: =計得掂試算表!CL37 -> 0 | AB28: =計得掂試算表!CM37 -> N/A | AC28: =計得掂試算表!CO37 -> 不超過50萬元 | AD28: =計得掂試算表!CQ37 -> 0 | AE28: =計得掂試算表!CR37 -> 0 | AF28: =計得掂試算表!CW37 -> 0 | AG28: =計得掂試算表!CX37 -> 0 | AH28: =計得掂試算表!CY37 -> 0 | AI28: =計得掂試算表!CZ37 -> 0 | AJ28: =計得掂試算表!DA37 -> 0 | AK28: =計得掂試算表!DB37 -> 0 | AL28: =計得掂試算表!DC37 -> 0
A29: =計得掂試算表!A38 -> 29 | B29: =計得掂試算表!B38 -> 0 | C29: =計得掂試算表!C38 -> 請選擇 | D29: =計得掂試算表!F38 -> 00:00:00 | E29: =計得掂試算表!G38 -> 00:00:00 | F29: =計得掂試算表!L38 -> 月薪僱員 | G29: =計得掂試算表!O38 -> 0 | H29: =計得掂試算表!P38 -> 0 | I29: =計得掂試算表!AD38 -> 0 | J29: =計得掂試算表!AT38 -> 0 | K29: =計得掂試算表!AU38 -> 0 | L29: =計得掂試算表!AV38 -> 強積金計劃 | M29: =計得掂試算表!AX38 -> MC -> VC | N29: =計得掂試算表!AZ38 -> 0 | O29: =計得掂試算表!BA38 -> 0 | P29: =計得掂試算表!BB38 -> 0 | Q29: =計得掂試算表!BS38 -> N/A | R29: =計得掂試算表!BU38 -> N/A | S29: =計得掂試算表!BV38 -> 沒有 | T29: =計得掂試算表!BY38 -> 0 | U29: =計得掂試算表!BZ38 -> 0 | V29: =計得掂試算表!CA38 -> 0 | W29: =計得掂試算表!CB38 -> 0 | X29: =計得掂試算表!CC38 -> 0 | Y29: =計得掂試算表!CD38 -> 0 | Z29: =計得掂試算表!CH38 -> N/A | AA29: =計得掂試算表!CL38 -> 0 | AB29: =計得掂試算表!CM38 -> N/A | AC29: =計得掂試算表!CO38 -> 不超過50萬元 | AD29: =計得掂試算表!CQ38 -> 0 | AE29: =計得掂試算表!CR38 -> 0 | AF29: =計得掂試算表!CW38 -> 0 | AG29: =計得掂試算表!CX38 -> 0 | AH29: =計得掂試算表!CY38 -> 0 | AI29: =計得掂試算表!CZ38 -> 0 | AJ29: =計得掂試算表!DA38 -> 0 | AK29: =計得掂試算表!DB38 -> 0 | AL29: =計得掂試算表!DC38 -> 0
A30: =計得掂試算表!A39 -> 30 | B30: =計得掂試算表!B39 -> 0 | C30: =計得掂試算表!C39 -> 請選擇 | D30: =計得掂試算表!F39 -> 00:00:00 | E30: =計得掂試算表!G39 -> 00:00:00 | F30: =計得掂試算表!L39 -> 月薪僱員 | G30: =計得掂試算表!O39 -> 0 | H30: =計得掂試算表!P39 -> 0 | I30: =計得掂試算表!AD39 -> 0 | J30: =計得掂試算表!AT39 -> 0 | K30: =計得掂試算表!AU39 -> 0 | L30: =計得掂試算表!AV39 -> 強積金計劃 | M30: =計得掂試算表!AX39 -> MC -> VC | N30: =計得掂試算表!AZ39 -> 0 | O30: =計得掂試算表!BA39 -> 0 | P30: =計得掂試算表!BB39 -> 0 | Q30: =計得掂試算表!BS39 -> N/A | R30: =計得掂試算表!BU39 -> N/A | S30: =計得掂試算表!BV39 -> 沒有 | T30: =計得掂試算表!BY39 -> 0 | U30: =計得掂試算表!BZ39 -> 0 | V30: =計得掂試算表!CA39 -> 0 | W30: =計得掂試算表!CB39 -> 0 | X30: =計得掂試算表!CC39 -> 0 | Y30: =計得掂試算表!CD39 -> 0 | Z30: =計得掂試算表!CH39 -> N/A | AA30: =計得掂試算表!CL39 -> 0 | AB30: =計得掂試算表!CM39 -> N/A | AC30: =計得掂試算表!CO39 -> 不超過50萬元 | AD30: =計得掂試算表!CQ39 -> 0 | AE30: =計得掂試算表!CR39 -> 0 | AF30: =計得掂試算表!CW39 -> 0 | AG30: =計得掂試算表!CX39 -> 0 | AH30: =計得掂試算表!CY39 -> 0 | AI30: =計得掂試算表!CZ39 -> 0 | AJ30: =計得掂試算表!DA39 -> 0 | AK30: =計得掂試算表!DB39 -> 0 | AL30: =計得掂試算表!DC39 -> 0
A31: =計得掂試算表!A40 -> 31 | B31: =計得掂試算表!B40 -> 0 | C31: =計得掂試算表!C40 -> 請選擇 | D31: =計得掂試算表!F40 -> 00:00:00 | E31: =計得掂試算表!G40 -> 00:00:00 | F31: =計得掂試算表!L40 -> 月薪僱員 | G31: =計得掂試算表!O40 -> 0 | H31: =計得掂試算表!P40 -> 0 | I31: =計得掂試算表!AD40 -> 0 | J31: =計得掂試算表!AT40 -> 0 | K31: =計得掂試算表!AU40 -> 0 | L31: =計得掂試算表!AV40 -> 強積金計劃 | M31: =計得掂試算表!AX40 -> MC -> VC | N31: =計得掂試算表!AZ40 -> 0 | O31: =計得掂試算表!BA40 -> 0 | P31: =計得掂試算表!BB40 -> 0 | Q31: =計得掂試算表!BS40 -> N/A | R31: =計得掂試算表!BU40 -> N/A | S31: =計得掂試算表!BV40 -> 沒有 | T31: =計得掂試算表!BY40 -> 0 | U31: =計得掂試算表!BZ40 -> 0 | V31: =計得掂試算表!CA40 -> 0 | W31: =計得掂試算表!CB40 -> 0 | X31: =計得掂試算表!CC40 -> 0 | Y31: =計得掂試算表!CD40 -> 0 | Z31: =計得掂試算表!CH40 -> N/A | AA31: =計得掂試算表!CL40 -> 0 | AB31: =計得掂試算表!CM40 -> N/A | AC31: =計得掂試算表!CO40 -> 不超過50萬元 | AD31: =計得掂試算表!CQ40 -> 0 | AE31: =計得掂試算表!CR40 -> 0 | AF31: =計得掂試算表!CW40 -> 0 | AG31: =計得掂試算表!CX40 -> 0 | AH31: =計得掂試算表!CY40 -> 0 | AI31: =計得掂試算表!CZ40 -> 0 | AJ31: =計得掂試算表!DA40 -> 0 | AK31: =計得掂試算表!DB40 -> 0 | AL31: =計得掂試算表!DC40 -> 0
A32: =計得掂試算表!A41 -> 32 | B32: =計得掂試算表!B41 -> 0 | C32: =計得掂試算表!C41 -> 請選擇 | D32: =計得掂試算表!F41 -> 00:00:00 | E32: =計得掂試算表!G41 -> 00:00:00 | F32: =計得掂試算表!L41 -> 月薪僱員 | G32: =計得掂試算表!O41 -> 0 | H32: =計得掂試算表!P41 -> 0 | I32: =計得掂試算表!AD41 -> 0 | J32: =計得掂試算表!AT41 -> 0 | K32: =計得掂試算表!AU41 -> 0 | L32: =計得掂試算表!AV41 -> 強積金計劃 | M32: =計得掂試算表!AX41 -> MC -> VC | N32: =計得掂試算表!AZ41 -> 0 | O32: =計得掂試算表!BA41 -> 0 | P32: =計得掂試算表!BB41 -> 0 | Q32: =計得掂試算表!BS41 -> N/A | R32: =計得掂試算表!BU41 -> N/A | S32: =計得掂試算表!BV41 -> 沒有 | T32: =計得掂試算表!BY41 -> 0 | U32: =計得掂試算表!BZ41 -> 0 | V32: =計得掂試算表!CA41 -> 0 | W32: =計得掂試算表!CB41 -> 0 | X32: =計得掂試算表!CC41 -> 0 | Y32: =計得掂試算表!CD41 -> 0 | Z32: =計得掂試算表!CH41 -> N/A | AA32: =計得掂試算表!CL41 -> 0 | AB32: =計得掂試算表!CM41 -> N/A | AC32: =計得掂試算表!CO41 -> 不超過50萬元 | AD32: =計得掂試算表!CQ41 -> 0 | AE32: =計得掂試算表!CR41 -> 0 | AF32: =計得掂試算表!CW41 -> 0 | AG32: =計得掂試算表!CX41 -> 0 | AH32: =計得掂試算表!CY41 -> 0 | AI32: =計得掂試算表!CZ41 -> 0 | AJ32: =計得掂試算表!DA41 -> 0 | AK32: =計得掂試算表!DB41 -> 0 | AL32: =計得掂試算表!DC41 -> 0
A33: =計得掂試算表!A42 -> 33 | B33: =計得掂試算表!B42 -> 0 | C33: =計得掂試算表!C42 -> 請選擇 | D33: =計得掂試算表!F42 -> 00:00:00 | E33: =計得掂試算表!G42 -> 00:00:00 | F33: =計得掂試算表!L42 -> 月薪僱員 | G33: =計得掂試算表!O42 -> 0 | H33: =計得掂試算表!P42 -> 0 | I33: =計得掂試算表!AD42 -> 0 | J33: =計得掂試算表!AT42 -> 0 | K33: =計得掂試算表!AU42 -> 0 | L33: =計得掂試算表!AV42 -> 強積金計劃 | M33: =計得掂試算表!AX42 -> MC -> VC | N33: =計得掂試算表!AZ42 -> 0 | O33: =計得掂試算表!BA42 -> 0 | P33: =計得掂試算表!BB42 -> 0 | Q33: =計得掂試算表!BS42 -> N/A | R33: =計得掂試算表!BU42 -> N/A | S33: =計得掂試算表!BV42 -> 沒有 | T33: =計得掂試算表!BY42 -> 0 | U33: =計得掂試算表!BZ42 -> 0 | V33: =計得掂試算表!CA42 -> 0 | W33: =計得掂試算表!CB42 -> 0 | X33: =計得掂試算表!CC42 -> 0 | Y33: =計得掂試算表!CD42 -> 0 | Z33: =計得掂試算表!CH42 -> N/A | AA33: =計得掂試算表!CL42 -> 0 | AB33: =計得掂試算表!CM42 -> N/A | AC33: =計得掂試算表!CO42 -> 不超過50萬元 | AD33: =計得掂試算表!CQ42 -> 0 | AE33: =計得掂試算表!CR42 -> 0 | AF33: =計得掂試算表!CW42 -> 0 | AG33: =計得掂試算表!CX42 -> 0 | AH33: =計得掂試算表!CY42 -> 0 | AI33: =計得掂試算表!CZ42 -> 0 | AJ33: =計得掂試算表!DA42 -> 0 | AK33: =計得掂試算表!DB42 -> 0 | AL33: =計得掂試算表!DC42 -> 0
A34: =計得掂試算表!A43 -> 34 | B34: =計得掂試算表!B43 -> 0 | C34: =計得掂試算表!C43 -> 請選擇 | D34: =計得掂試算表!F43 -> 00:00:00 | E34: =計得掂試算表!G43 -> 00:00:00 | F34: =計得掂試算表!L43 -> 月薪僱員 | G34: =計得掂試算表!O43 -> 0 | H34: =計得掂試算表!P43 -> 0 | I34: =計得掂試算表!AD43 -> 0 | J34: =計得掂試算表!AT43 -> 0 | K34: =計得掂試算表!AU43 -> 0 | L34: =計得掂試算表!AV43 -> 強積金計劃 | M34: =計得掂試算表!AX43 -> MC -> VC | N34: =計得掂試算表!AZ43 -> 0 | O34: =計得掂試算表!BA43 -> 0 | P34: =計得掂試算表!BB43 -> 0 | Q34: =計得掂試算表!BS43 -> N/A | R34: =計得掂試算表!BU43 -> N/A | S34: =計得掂試算表!BV43 -> 沒有 | T34: =計得掂試算表!BY43 -> 0 | U34: =計得掂試算表!BZ43 -> 0 | V34: =計得掂試算表!CA43 -> 0 | W34: =計得掂試算表!CB43 -> 0 | X34: =計得掂試算表!CC43 -> 0 | Y34: =計得掂試算表!CD43 -> 0 | Z34: =計得掂試算表!CH43 -> N/A | AA34: =計得掂試算表!CL43 -> 0 | AB34: =計得掂試算表!CM43 -> N/A | AC34: =計得掂試算表!CO43 -> 不超過50萬元 | AD34: =計得掂試算表!CQ43 -> 0 | AE34: =計得掂試算表!CR43 -> 0 | AF34: =計得掂試算表!CW43 -> 0 | AG34: =計得掂試算表!CX43 -> 0 | AH34: =計得掂試算表!CY43 -> 0 | AI34: =計得掂試算表!CZ43 -> 0 | AJ34: =計得掂試算表!DA43 -> 0 | AK34: =計得掂試算表!DB43 -> 0 | AL34: =計得掂試算表!DC43 -> 0
A35: =計得掂試算表!A44 -> 35 | B35: =計得掂試算表!B44 -> 0 | C35: =計得掂試算表!C44 -> 請選擇 | D35: =計得掂試算表!F44 -> 00:00:00 | E35: =計得掂試算表!G44 -> 00:00:00 | F35: =計得掂試算表!L44 -> 月薪僱員 | G35: =計得掂試算表!O44 -> 0 | H35: =計得掂試算表!P44 -> 0 | I35: =計得掂試算表!AD44 -> 0 | J35: =計得掂試算表!AT44 -> 0 | K35: =計得掂試算表!AU44 -> 0 | L35: =計得掂試算表!AV44 -> 強積金計劃 | M35: =計得掂試算表!AX44 -> MC -> VC | N35: =計得掂試算表!AZ44 -> 0 | O35: =計得掂試算表!BA44 -> 0 | P35: =計得掂試算表!BB44 -> 0 | Q35: =計得掂試算表!BS44 -> N/A | R35: =計得掂試算表!BU44 -> N/A | S35: =計得掂試算表!BV44 -> 沒有 | T35: =計得掂試算表!BY44 -> 0 | U35: =計得掂試算表!BZ44 -> 0 | V35: =計得掂試算表!CA44 -> 0 | W35: =計得掂試算表!CB44 -> 0 | X35: =計得掂試算表!CC44 -> 0 | Y35: =計得掂試算表!CD44 -> 0 | Z35: =計得掂試算表!CH44 -> N/A | AA35: =計得掂試算表!CL44 -> 0 | AB35: =計得掂試算表!CM44 -> N/A | AC35: =計得掂試算表!CO44 -> 不超過50萬元 | AD35: =計得掂試算表!CQ44 -> 0 | AE35: =計得掂試算表!CR44 -> 0 | AF35: =計得掂試算表!CW44 -> 0 | AG35: =計得掂試算表!CX44 -> 0 | AH35: =計得掂試算表!CY44 -> 0 | AI35: =計得掂試算表!CZ44 -> 0 | AJ35: =計得掂試算表!DA44 -> 0 | AK35: =計得掂試算表!DB44 -> 0 | AL35: =計得掂試算表!DC44 -> 0
A36: =計得掂試算表!A45 -> 36 | B36: =計得掂試算表!B45 -> 0 | C36: =計得掂試算表!C45 -> 請選擇 | D36: =計得掂試算表!F45 -> 00:00:00 | E36: =計得掂試算表!G45 -> 00:00:00 | F36: =計得掂試算表!L45 -> 月薪僱員 | G36: =計得掂試算表!O45 -> 0 | H36: =計得掂試算表!P45 -> 0 | I36: =計得掂試算表!AD45 -> 0 | J36: =計得掂試算表!AT45 -> 0 | K36: =計得掂試算表!AU45 -> 0 | L36: =計得掂試算表!AV45 -> 強積金計劃 | M36: =計得掂試算表!AX45 -> MC -> VC | N36: =計得掂試算表!AZ45 -> 0 | O36: =計得掂試算表!BA45 -> 0 | P36: =計得掂試算表!BB45 -> 0 | Q36: =計得掂試算表!BS45 -> N/A | R36: =計得掂試算表!BU45 -> N/A | S36: =計得掂試算表!BV45 -> 沒有 | T36: =計得掂試算表!BY45 -> 0 | U36: =計得掂試算表!BZ45 -> 0 | V36: =計得掂試算表!CA45 -> 0 | W36: =計得掂試算表!CB45 -> 0 | X36: =計得掂試算表!CC45 -> 0 | Y36: =計得掂試算表!CD45 -> 0 | Z36: =計得掂試算表!CH45 -> N/A | AA36: =計得掂試算表!CL45 -> 0 | AB36: =計得掂試算表!CM45 -> N/A | AC36: =計得掂試算表!CO45 -> 不超過50萬元 | AD36: =計得掂試算表!CQ45 -> 0 | AE36: =計得掂試算表!CR45 -> 0 | AF36: =計得掂試算表!CW45 -> 0 | AG36: =計得掂試算表!CX45 -> 0 | AH36: =計得掂試算表!CY45 -> 0 | AI36: =計得掂試算表!CZ45 -> 0 | AJ36: =計得掂試算表!DA45 -> 0 | AK36: =計得掂試算表!DB45 -> 0 | AL36: =計得掂試算表!DC45 -> 0
A37: =計得掂試算表!A46 -> 37 | B37: =計得掂試算表!B46 -> 0 | C37: =計得掂試算表!C46 -> 請選擇 | D37: =計得掂試算表!F46 -> 00:00:00 | E37: =計得掂試算表!G46 -> 00:00:00 | F37: =計得掂試算表!L46 -> 月薪僱員 | G37: =計得掂試算表!O46 -> 0 | H37: =計得掂試算表!P46 -> 0 | I37: =計得掂試算表!AD46 -> 0 | J37: =計得掂試算表!AT46 -> 0 | K37: =計得掂試算表!AU46 -> 0 | L37: =計得掂試算表!AV46 -> 強積金計劃 | M37: =計得掂試算表!AX46 -> MC -> VC | N37: =計得掂試算表!AZ46 -> 0 | O37: =計得掂試算表!BA46 -> 0 | P37: =計得掂試算表!BB46 -> 0 | Q37: =計得掂試算表!BS46 -> N/A | R37: =計得掂試算表!BU46 -> N/A | S37: =計得掂試算表!BV46 -> 沒有 | T37: =計得掂試算表!BY46 -> 0 | U37: =計得掂試算表!BZ46 -> 0 | V37: =計得掂試算表!CA46 -> 0 | W37: =計得掂試算表!CB46 -> 0 | X37: =計得掂試算表!CC46 -> 0 | Y37: =計得掂試算表!CD46 -> 0 | Z37: =計得掂試算表!CH46 -> N/A | AA37: =計得掂試算表!CL46 -> 0 | AB37: =計得掂試算表!CM46 -> N/A | AC37: =計得掂試算表!CO46 -> 不超過50萬元 | AD37: =計得掂試算表!CQ46 -> 0 | AE37: =計得掂試算表!CR46 -> 0 | AF37: =計得掂試算表!CW46 -> 0 | AG37: =計得掂試算表!CX46 -> 0 | AH37: =計得掂試算表!CY46 -> 0 | AI37: =計得掂試算表!CZ46 -> 0 | AJ37: =計得掂試算表!DA46 -> 0 | AK37: =計得掂試算表!DB46 -> 0 | AL37: =計得掂試算表!DC46 -> 0
A38: =計得掂試算表!A47 -> 38 | B38: =計得掂試算表!B47 -> 0 | C38: =計得掂試算表!C47 -> 請選擇 | D38: =計得掂試算表!F47 -> 00:00:00 | E38: =計得掂試算表!G47 -> 00:00:00 | F38: =計得掂試算表!L47 -> 月薪僱員 | G38: =計得掂試算表!O47 -> 0 | H38: =計得掂試算表!P47 -> 0 | I38: =計得掂試算表!AD47 -> 0 | J38: =計得掂試算表!AT47 -> 0 | K38: =計得掂試算表!AU47 -> 0 | L38: =計得掂試算表!AV47 -> 強積金計劃 | M38: =計得掂試算表!AX47 -> MC -> VC | N38: =計得掂試算表!AZ47 -> 0 | O38: =計得掂試算表!BA47 -> 0 | P38: =計得掂試算表!BB47 -> 0 | Q38: =計得掂試算表!BS47 -> N/A | R38: =計得掂試算表!BU47 -> N/A | S38: =計得掂試算表!BV47 -> 沒有 | T38: =計得掂試算表!BY47 -> 0 | U38: =計得掂試算表!BZ47 -> 0 | V38: =計得掂試算表!CA47 -> 0 | W38: =計得掂試算表!CB47 -> 0 | X38: =計得掂試算表!CC47 -> 0 | Y38: =計得掂試算表!CD47 -> 0 | Z38: =計得掂試算表!CH47 -> N/A | AA38: =計得掂試算表!CL47 -> 0 | AB38: =計得掂試算表!CM47 -> N/A | AC38: =計得掂試算表!CO47 -> 不超過50萬元 | AD38: =計得掂試算表!CQ47 -> 0 | AE38: =計得掂試算表!CR47 -> 0 | AF38: =計得掂試算表!CW47 -> 0 | AG38: =計得掂試算表!CX47 -> 0 | AH38: =計得掂試算表!CY47 -> 0 | AI38: =計得掂試算表!CZ47 -> 0 | AJ38: =計得掂試算表!DA47 -> 0 | AK38: =計得掂試算表!DB47 -> 0 | AL38: =計得掂試算表!DC47 -> 0
A39: =計得掂試算表!A48 -> 39 | B39: =計得掂試算表!B48 -> 0 | C39: =計得掂試算表!C48 -> 請選擇 | D39: =計得掂試算表!F48 -> 00:00:00 | E39: =計得掂試算表!G48 -> 00:00:00 | F39: =計得掂試算表!L48 -> 月薪僱員 | G39: =計得掂試算表!O48 -> 0 | H39: =計得掂試算表!P48 -> 0 | I39: =計得掂試算表!AD48 -> 0 | J39: =計得掂試算表!AT48 -> 0 | K39: =計得掂試算表!AU48 -> 0 | L39: =計得掂試算表!AV48 -> 強積金計劃 | M39: =計得掂試算表!AX48 -> MC -> VC | N39: =計得掂試算表!AZ48 -> 0 | O39: =計得掂試算表!BA48 -> 0 | P39: =計得掂試算表!BB48 -> 0 | Q39: =計得掂試算表!BS48 -> N/A | R39: =計得掂試算表!BU48 -> N/A | S39: =計得掂試算表!BV48 -> 沒有 | T39: =計得掂試算表!BY48 -> 0 | U39: =計得掂試算表!BZ48 -> 0 | V39: =計得掂試算表!CA48 -> 0 | W39: =計得掂試算表!CB48 -> 0 | X39: =計得掂試算表!CC48 -> 0 | Y39: =計得掂試算表!CD48 -> 0 | Z39: =計得掂試算表!CH48 -> N/A | AA39: =計得掂試算表!CL48 -> 0 | AB39: =計得掂試算表!CM48 -> N/A | AC39: =計得掂試算表!CO48 -> 不超過50萬元 | AD39: =計得掂試算表!CQ48 -> 0 | AE39: =計得掂試算表!CR48 -> 0 | AF39: =計得掂試算表!CW48 -> 0 | AG39: =計得掂試算表!CX48 -> 0 | AH39: =計得掂試算表!CY48 -> 0 | AI39: =計得掂試算表!CZ48 -> 0 | AJ39: =計得掂試算表!DA48 -> 0 | AK39: =計得掂試算表!DB48 -> 0 | AL39: =計得掂試算表!DC48 -> 0
A40: =計得掂試算表!A49 -> 40 | B40: =計得掂試算表!B49 -> 0 | C40: =計得掂試算表!C49 -> 請選擇 | D40: =計得掂試算表!F49 -> 00:00:00 | E40: =計得掂試算表!G49 -> 00:00:00 | F40: =計得掂試算表!L49 -> 月薪僱員 | G40: =計得掂試算表!O49 -> 0 | H40: =計得掂試算表!P49 -> 0 | I40: =計得掂試算表!AD49 -> 0 | J40: =計得掂試算表!AT49 -> 0 | K40: =計得掂試算表!AU49 -> 0 | L40: =計得掂試算表!AV49 -> 強積金計劃 | M40: =計得掂試算表!AX49 -> MC -> VC | N40: =計得掂試算表!AZ49 -> 0 | O40: =計得掂試算表!BA49 -> 0 | P40: =計得掂試算表!BB49 -> 0 | Q40: =計得掂試算表!BS49 -> N/A | R40: =計得掂試算表!BU49 -> N/A | S40: =計得掂試算表!BV49 -> 沒有 | T40: =計得掂試算表!BY49 -> 0 | U40: =計得掂試算表!BZ49 -> 0 | V40: =計得掂試算表!CA49 -> 0 | W40: =計得掂試算表!CB49 -> 0 | X40: =計得掂試算表!CC49 -> 0 | Y40: =計得掂試算表!CD49 -> 0 | Z40: =計得掂試算表!CH49 -> N/A | AA40: =計得掂試算表!CL49 -> 0 | AB40: =計得掂試算表!CM49 -> N/A | AC40: =計得掂試算表!CO49 -> 不超過50萬元 | AD40: =計得掂試算表!CQ49 -> 0 | AE40: =計得掂試算表!CR49 -> 0 | AF40: =計得掂試算表!CW49 -> 0 | AG40: =計得掂試算表!CX49 -> 0 | AH40: =計得掂試算表!CY49 -> 0 | AI40: =計得掂試算表!CZ49 -> 0 | AJ40: =計得掂試算表!DA49 -> 0 | AK40: =計得掂試算表!DB49 -> 0 | AL40: =計得掂試算表!DC49 -> 0
A41: =計得掂試算表!A50 -> 41 | B41: =計得掂試算表!B50 -> 0 | C41: =計得掂試算表!C50 -> 請選擇 | D41: =計得掂試算表!F50 -> 00:00:00 | E41: =計得掂試算表!G50 -> 00:00:00 | F41: =計得掂試算表!L50 -> 月薪僱員 | G41: =計得掂試算表!O50 -> 0 | H41: =計得掂試算表!P50 -> 0 | I41: =計得掂試算表!AD50 -> 0 | J41: =計得掂試算表!AT50 -> 0 | K41: =計得掂試算表!AU50 -> 0 | L41: =計得掂試算表!AV50 -> 強積金計劃 | M41: =計得掂試算表!AX50 -> MC -> VC | N41: =計得掂試算表!AZ50 -> 0 | O41: =計得掂試算表!BA50 -> 0 | P41: =計得掂試算表!BB50 -> 0 | Q41: =計得掂試算表!BS50 -> N/A | R41: =計得掂試算表!BU50 -> N/A | S41: =計得掂試算表!BV50 -> 沒有 | T41: =計得掂試算表!BY50 -> 0 | U41: =計得掂試算表!BZ50 -> 0 | V41: =計得掂試算表!CA50 -> 0 | W41: =計得掂試算表!CB50 -> 0 | X41: =計得掂試算表!CC50 -> 0 | Y41: =計得掂試算表!CD50 -> 0 | Z41: =計得掂試算表!CH50 -> N/A | AA41: =計得掂試算表!CL50 -> 0 | AB41: =計得掂試算表!CM50 -> N/A | AC41: =計得掂試算表!CO50 -> 不超過50萬元 | AD41: =計得掂試算表!CQ50 -> 0 | AE41: =計得掂試算表!CR50 -> 0 | AF41: =計得掂試算表!CW50 -> 0 | AG41: =計得掂試算表!CX50 -> 0 | AH41: =計得掂試算表!CY50 -> 0 | AI41: =計得掂試算表!CZ50 -> 0 | AJ41: =計得掂試算表!DA50 -> 0 | AK41: =計得掂試算表!DB50 -> 0 | AL41: =計得掂試算表!DC50 -> 0
A42: =計得掂試算表!A51 -> 42 | B42: =計得掂試算表!B51 -> 0 | C42: =計得掂試算表!C51 -> 請選擇 | D42: =計得掂試算表!F51 -> 00:00:00 | E42: =計得掂試算表!G51 -> 00:00:00 | F42: =計得掂試算表!L51 -> 月薪僱員 | G42: =計得掂試算表!O51 -> 0 | H42: =計得掂試算表!P51 -> 0 | I42: =計得掂試算表!AD51 -> 0 | J42: =計得掂試算表!AT51 -> 0 | K42: =計得掂試算表!AU51 -> 0 | L42: =計得掂試算表!AV51 -> 強積金計劃 | M42: =計得掂試算表!AX51 -> MC -> VC | N42: =計得掂試算表!AZ51 -> 0 | O42: =計得掂試算表!BA51 -> 0 | P42: =計得掂試算表!BB51 -> 0 | Q42: =計得掂試算表!BS51 -> N/A | R42: =計得掂試算表!BU51 -> N/A | S42: =計得掂試算表!BV51 -> 沒有 | T42: =計得掂試算表!BY51 -> 0 | U42: =計得掂試算表!BZ51 -> 0 | V42: =計得掂試算表!CA51 -> 0 | W42: =計得掂試算表!CB51 -> 0 | X42: =計得掂試算表!CC51 -> 0 | Y42: =計得掂試算表!CD51 -> 0 | Z42: =計得掂試算表!CH51 -> N/A | AA42: =計得掂試算表!CL51 -> 0 | AB42: =計得掂試算表!CM51 -> N/A | AC42: =計得掂試算表!CO51 -> 不超過50萬元 | AD42: =計得掂試算表!CQ51 -> 0 | AE42: =計得掂試算表!CR51 -> 0 | AF42: =計得掂試算表!CW51 -> 0 | AG42: =計得掂試算表!CX51 -> 0 | AH42: =計得掂試算表!CY51 -> 0 | AI42: =計得掂試算表!CZ51 -> 0 | AJ42: =計得掂試算表!DA51 -> 0 | AK42: =計得掂試算表!DB51 -> 0 | AL42: =計得掂試算表!DC51 -> 0
A43: =計得掂試算表!A52 -> 43 | B43: =計得掂試算表!B52 -> 0 | C43: =計得掂試算表!C52 -> 請選擇 | D43: =計得掂試算表!F52 -> 00:00:00 | E43: =計得掂試算表!G52 -> 00:00:00 | F43: =計得掂試算表!L52 -> 月薪僱員 | G43: =計得掂試算表!O52 -> 0 | H43: =計得掂試算表!P52 -> 0 | I43: =計得掂試算表!AD52 -> 0 | J43: =計得掂試算表!AT52 -> 0 | K43: =計得掂試算表!AU52 -> 0 | L43: =計得掂試算表!AV52 -> 強積金計劃 | M43: =計得掂試算表!AX52 -> MC -> VC | N43: =計得掂試算表!AZ52 -> 0 | O43: =計得掂試算表!BA52 -> 0 | P43: =計得掂試算表!BB52 -> 0 | Q43: =計得掂試算表!BS52 -> N/A | R43: =計得掂試算表!BU52 -> N/A | S43: =計得掂試算表!BV52 -> 沒有 | T43: =計得掂試算表!BY52 -> 0 | U43: =計得掂試算表!BZ52 -> 0 | V43: =計得掂試算表!CA52 -> 0 | W43: =計得掂試算表!CB52 -> 0 | X43: =計得掂試算表!CC52 -> 0 | Y43: =計得掂試算表!CD52 -> 0 | Z43: =計得掂試算表!CH52 -> N/A | AA43: =計得掂試算表!CL52 -> 0 | AB43: =計得掂試算表!CM52 -> N/A | AC43: =計得掂試算表!CO52 -> 不超過50萬元 | AD43: =計得掂試算表!CQ52 -> 0 | AE43: =計得掂試算表!CR52 -> 0 | AF43: =計得掂試算表!CW52 -> 0 | AG43: =計得掂試算表!CX52 -> 0 | AH43: =計得掂試算表!CY52 -> 0 | AI43: =計得掂試算表!CZ52 -> 0 | AJ43: =計得掂試算表!DA52 -> 0 | AK43: =計得掂試算表!DB52 -> 0 | AL43: =計得掂試算表!DC52 -> 0
A44: =計得掂試算表!A53 -> 44 | B44: =計得掂試算表!B53 -> 0 | C44: =計得掂試算表!C53 -> 請選擇 | D44: =計得掂試算表!F53 -> 00:00:00 | E44: =計得掂試算表!G53 -> 00:00:00 | F44: =計得掂試算表!L53 -> 月薪僱員 | G44: =計得掂試算表!O53 -> 0 | H44: =計得掂試算表!P53 -> 0 | I44: =計得掂試算表!AD53 -> 0 | J44: =計得掂試算表!AT53 -> 0 | K44: =計得掂試算表!AU53 -> 0 | L44: =計得掂試算表!AV53 -> 強積金計劃 | M44: =計得掂試算表!AX53 -> MC -> VC | N44: =計得掂試算表!AZ53 -> 0 | O44: =計得掂試算表!BA53 -> 0 | P44: =計得掂試算表!BB53 -> 0 | Q44: =計得掂試算表!BS53 -> N/A | R44: =計得掂試算表!BU53 -> N/A | S44: =計得掂試算表!BV53 -> 沒有 | T44: =計得掂試算表!BY53 -> 0 | U44: =計得掂試算表!BZ53 -> 0 | V44: =計得掂試算表!CA53 -> 0 | W44: =計得掂試算表!CB53 -> 0 | X44: =計得掂試算表!CC53 -> 0 | Y44: =計得掂試算表!CD53 -> 0 | Z44: =計得掂試算表!CH53 -> N/A | AA44: =計得掂試算表!CL53 -> 0 | AB44: =計得掂試算表!CM53 -> N/A | AC44: =計得掂試算表!CO53 -> 不超過50萬元 | AD44: =計得掂試算表!CQ53 -> 0 | AE44: =計得掂試算表!CR53 -> 0 | AF44: =計得掂試算表!CW53 -> 0 | AG44: =計得掂試算表!CX53 -> 0 | AH44: =計得掂試算表!CY53 -> 0 | AI44: =計得掂試算表!CZ53 -> 0 | AJ44: =計得掂試算表!DA53 -> 0 | AK44: =計得掂試算表!DB53 -> 0 | AL44: =計得掂試算表!DC53 -> 0
A45: =計得掂試算表!A54 -> 45 | B45: =計得掂試算表!B54 -> 0 | C45: =計得掂試算表!C54 -> 請選擇 | D45: =計得掂試算表!F54 -> 00:00:00 | E45: =計得掂試算表!G54 -> 00:00:00 | F45: =計得掂試算表!L54 -> 月薪僱員 | G45: =計得掂試算表!O54 -> 0 | H45: =計得掂試算表!P54 -> 0 | I45: =計得掂試算表!AD54 -> 0 | J45: =計得掂試算表!AT54 -> 0 | K45: =計得掂試算表!AU54 -> 0 | L45: =計得掂試算表!AV54 -> 強積金計劃 | M45: =計得掂試算表!AX54 -> MC -> VC | N45: =計得掂試算表!AZ54 -> 0 | O45: =計得掂試算表!BA54 -> 0 | P45: =計得掂試算表!BB54 -> 0 | Q45: =計得掂試算表!BS54 -> N/A | R45: =計得掂試算表!BU54 -> N/A | S45: =計得掂試算表!BV54 -> 沒有 | T45: =計得掂試算表!BY54 -> 0 | U45: =計得掂試算表!BZ54 -> 0 | V45: =計得掂試算表!CA54 -> 0 | W45: =計得掂試算表!CB54 -> 0 | X45: =計得掂試算表!CC54 -> 0 | Y45: =計得掂試算表!CD54 -> 0 | Z45: =計得掂試算表!CH54 -> N/A | AA45: =計得掂試算表!CL54 -> 0 | AB45: =計得掂試算表!CM54 -> N/A | AC45: =計得掂試算表!CO54 -> 不超過50萬元 | AD45: =計得掂試算表!CQ54 -> 0 | AE45: =計得掂試算表!CR54 -> 0 | AF45: =計得掂試算表!CW54 -> 0 | AG45: =計得掂試算表!CX54 -> 0 | AH45: =計得掂試算表!CY54 -> 0 | AI45: =計得掂試算表!CZ54 -> 0 | AJ45: =計得掂試算表!DA54 -> 0 | AK45: =計得掂試算表!DB54 -> 0 | AL45: =計得掂試算表!DC54 -> 0
A46: =計得掂試算表!A55 -> 46 | B46: =計得掂試算表!B55 -> 0 | C46: =計得掂試算表!C55 -> 請選擇 | D46: =計得掂試算表!F55 -> 00:00:00 | E46: =計得掂試算表!G55 -> 00:00:00 | F46: =計得掂試算表!L55 -> 月薪僱員 | G46: =計得掂試算表!O55 -> 0 | H46: =計得掂試算表!P55 -> 0 | I46: =計得掂試算表!AD55 -> 0 | J46: =計得掂試算表!AT55 -> 0 | K46: =計得掂試算表!AU55 -> 0 | L46: =計得掂試算表!AV55 -> 強積金計劃 | M46: =計得掂試算表!AX55 -> MC -> VC | N46: =計得掂試算表!AZ55 -> 0 | O46: =計得掂試算表!BA55 -> 0 | P46: =計得掂試算表!BB55 -> 0 | Q46: =計得掂試算表!BS55 -> N/A | R46: =計得掂試算表!BU55 -> N/A | S46: =計得掂試算表!BV55 -> 沒有 | T46: =計得掂試算表!BY55 -> 0 | U46: =計得掂試算表!BZ55 -> 0 | V46: =計得掂試算表!CA55 -> 0 | W46: =計得掂試算表!CB55 -> 0 | X46: =計得掂試算表!CC55 -> 0 | Y46: =計得掂試算表!CD55 -> 0 | Z46: =計得掂試算表!CH55 -> N/A | AA46: =計得掂試算表!CL55 -> 0 | AB46: =計得掂試算表!CM55 -> N/A | AC46: =計得掂試算表!CO55 -> 不超過50萬元 | AD46: =計得掂試算表!CQ55 -> 0 | AE46: =計得掂試算表!CR55 -> 0 | AF46: =計得掂試算表!CW55 -> 0 | AG46: =計得掂試算表!CX55 -> 0 | AH46: =計得掂試算表!CY55 -> 0 | AI46: =計得掂試算表!CZ55 -> 0 | AJ46: =計得掂試算表!DA55 -> 0 | AK46: =計得掂試算表!DB55 -> 0 | AL46: =計得掂試算表!DC55 -> 0
A47: =計得掂試算表!A56 -> 47 | B47: =計得掂試算表!B56 -> 0 | C47: =計得掂試算表!C56 -> 請選擇 | D47: =計得掂試算表!F56 -> 00:00:00 | E47: =計得掂試算表!G56 -> 00:00:00 | F47: =計得掂試算表!L56 -> 月薪僱員 | G47: =計得掂試算表!O56 -> 0 | H47: =計得掂試算表!P56 -> 0 | I47: =計得掂試算表!AD56 -> 0 | J47: =計得掂試算表!AT56 -> 0 | K47: =計得掂試算表!AU56 -> 0 | L47: =計得掂試算表!AV56 -> 強積金計劃 | M47: =計得掂試算表!AX56 -> MC -> VC | N47: =計得掂試算表!AZ56 -> 0 | O47: =計得掂試算表!BA56 -> 0 | P47: =計得掂試算表!BB56 -> 0 | Q47: =計得掂試算表!BS56 -> N/A | R47: =計得掂試算表!BU56 -> N/A | S47: =計得掂試算表!BV56 -> 沒有 | T47: =計得掂試算表!BY56 -> 0 | U47: =計得掂試算表!BZ56 -> 0 | V47: =計得掂試算表!CA56 -> 0 | W47: =計得掂試算表!CB56 -> 0 | X47: =計得掂試算表!CC56 -> 0 | Y47: =計得掂試算表!CD56 -> 0 | Z47: =計得掂試算表!CH56 -> N/A | AA47: =計得掂試算表!CL56 -> 0 | AB47: =計得掂試算表!CM56 -> N/A | AC47: =計得掂試算表!CO56 -> 不超過50萬元 | AD47: =計得掂試算表!CQ56 -> 0 | AE47: =計得掂試算表!CR56 -> 0 | AF47: =計得掂試算表!CW56 -> 0 | AG47: =計得掂試算表!CX56 -> 0 | AH47: =計得掂試算表!CY56 -> 0 | AI47: =計得掂試算表!CZ56 -> 0 | AJ47: =計得掂試算表!DA56 -> 0 | AK47: =計得掂試算表!DB56 -> 0 | AL47: =計得掂試算表!DC56 -> 0
A48: =計得掂試算表!A57 -> 48 | B48: =計得掂試算表!B57 -> 0 | C48: =計得掂試算表!C57 -> 請選擇 | D48: =計得掂試算表!F57 -> 00:00:00 | E48: =計得掂試算表!G57 -> 00:00:00 | F48: =計得掂試算表!L57 -> 月薪僱員 | G48: =計得掂試算表!O57 -> 0 | H48: =計得掂試算表!P57 -> 0 | I48: =計得掂試算表!AD57 -> 0 | J48: =計得掂試算表!AT57 -> 0 | K48: =計得掂試算表!AU57 -> 0 | L48: =計得掂試算表!AV57 -> 強積金計劃 | M48: =計得掂試算表!AX57 -> MC -> VC | N48: =計得掂試算表!AZ57 -> 0 | O48: =計得掂試算表!BA57 -> 0 | P48: =計得掂試算表!BB57 -> 0 | Q48: =計得掂試算表!BS57 -> N/A | R48: =計得掂試算表!BU57 -> N/A | S48: =計得掂試算表!BV57 -> 沒有 | T48: =計得掂試算表!BY57 -> 0 | U48: =計得掂試算表!BZ57 -> 0 | V48: =計得掂試算表!CA57 -> 0 | W48: =計得掂試算表!CB57 -> 0 | X48: =計得掂試算表!CC57 -> 0 | Y48: =計得掂試算表!CD57 -> 0 | Z48: =計得掂試算表!CH57 -> N/A | AA48: =計得掂試算表!CL57 -> 0 | AB48: =計得掂試算表!CM57 -> N/A | AC48: =計得掂試算表!CO57 -> 不超過50萬元 | AD48: =計得掂試算表!CQ57 -> 0 | AE48: =計得掂試算表!CR57 -> 0 | AF48: =計得掂試算表!CW57 -> 0 | AG48: =計得掂試算表!CX57 -> 0 | AH48: =計得掂試算表!CY57 -> 0 | AI48: =計得掂試算表!CZ57 -> 0 | AJ48: =計得掂試算表!DA57 -> 0 | AK48: =計得掂試算表!DB57 -> 0 | AL48: =計得掂試算表!DC57 -> 0
A49: =計得掂試算表!A58 -> 49 | B49: =計得掂試算表!B58 -> 0 | C49: =計得掂試算表!C58 -> 請選擇 | D49: =計得掂試算表!F58 -> 00:00:00 | E49: =計得掂試算表!G58 -> 00:00:00 | F49: =計得掂試算表!L58 -> 月薪僱員 | G49: =計得掂試算表!O58 -> 0 | H49: =計得掂試算表!P58 -> 0 | I49: =計得掂試算表!AD58 -> 0 | J49: =計得掂試算表!AT58 -> 0 | K49: =計得掂試算表!AU58 -> 0 | L49: =計得掂試算表!AV58 -> 強積金計劃 | M49: =計得掂試算表!AX58 -> MC -> VC | N49: =計得掂試算表!AZ58 -> 0 | O49: =計得掂試算表!BA58 -> 0 | P49: =計得掂試算表!BB58 -> 0 | Q49: =計得掂試算表!BS58 -> N/A | R49: =計得掂試算表!BU58 -> N/A | S49: =計得掂試算表!BV58 -> 沒有 | T49: =計得掂試算表!BY58 -> 0 | U49: =計得掂試算表!BZ58 -> 0 | V49: =計得掂試算表!CA58 -> 0 | W49: =計得掂試算表!CB58 -> 0 | X49: =計得掂試算表!CC58 -> 0 | Y49: =計得掂試算表!CD58 -> 0 | Z49: =計得掂試算表!CH58 -> N/A | AA49: =計得掂試算表!CL58 -> 0 | AB49: =計得掂試算表!CM58 -> N/A | AC49: =計得掂試算表!CO58 -> 不超過50萬元 | AD49: =計得掂試算表!CQ58 -> 0 | AE49: =計得掂試算表!CR58 -> 0 | AF49: =計得掂試算表!CW58 -> 0 | AG49: =計得掂試算表!CX58 -> 0 | AH49: =計得掂試算表!CY58 -> 0 | AI49: =計得掂試算表!CZ58 -> 0 | AJ49: =計得掂試算表!DA58 -> 0 | AK49: =計得掂試算表!DB58 -> 0 | AL49: =計得掂試算表!DC58 -> 0
A50: =計得掂試算表!A59 -> 50 | B50: =計得掂試算表!B59 -> 0 | C50: =計得掂試算表!C59 -> 請選擇 | D50: =計得掂試算表!F59 -> 00:00:00 | E50: =計得掂試算表!G59 -> 00:00:00 | F50: =計得掂試算表!L59 -> 月薪僱員 | G50: =計得掂試算表!O59 -> 0 | H50: =計得掂試算表!P59 -> 0 | I50: =計得掂試算表!AD59 -> 0 | J50: =計得掂試算表!AT59 -> 0 | K50: =計得掂試算表!AU59 -> 0 | L50: =計得掂試算表!AV59 -> 強積金計劃 | M50: =計得掂試算表!AX59 -> MC -> VC | N50: =計得掂試算表!AZ59 -> 0 | O50: =計得掂試算表!BA59 -> 0 | P50: =計得掂試算表!BB59 -> 0 | Q50: =計得掂試算表!BS59 -> N/A | R50: =計得掂試算表!BU59 -> N/A | S50: =計得掂試算表!BV59 -> 沒有 | T50: =計得掂試算表!BY59 -> 0 | U50: =計得掂試算表!BZ59 -> 0 | V50: =計得掂試算表!CA59 -> 0 | W50: =計得掂試算表!CB59 -> 0 | X50: =計得掂試算表!CC59 -> 0 | Y50: =計得掂試算表!CD59 -> 0 | Z50: =計得掂試算表!CH59 -> N/A | AA50: =計得掂試算表!CL59 -> 0 | AB50: =計得掂試算表!CM59 -> N/A | AC50: =計得掂試算表!CO59 -> 不超過50萬元 | AD50: =計得掂試算表!CQ59 -> 0 | AE50: =計得掂試算表!CR59 -> 0 | AF50: =計得掂試算表!CW59 -> 0 | AG50: =計得掂試算表!CX59 -> 0 | AH50: =計得掂試算表!CY59 -> 0 | AI50: =計得掂試算表!CZ59 -> 0 | AJ50: =計得掂試算表!DA59 -> 0 | AK50: =計得掂試算表!DB59 -> 0 | AL50: =計得掂試算表!DC59 -> 0
A51: =計得掂試算表!A60 -> 51 | B51: =計得掂試算表!B60 -> 0 | C51: =計得掂試算表!C60 -> 請選擇 | D51: =計得掂試算表!F60 -> 00:00:00 | E51: =計得掂試算表!G60 -> 00:00:00 | F51: =計得掂試算表!L60 -> 月薪僱員 | G51: =計得掂試算表!O60 -> 0 | H51: =計得掂試算表!P60 -> 0 | I51: =計得掂試算表!AD60 -> 0 | J51: =計得掂試算表!AT60 -> 0 | K51: =計得掂試算表!AU60 -> 0 | L51: =計得掂試算表!AV60 -> 強積金計劃 | M51: =計得掂試算表!AX60 -> MC -> VC | N51: =計得掂試算表!AZ60 -> 0 | O51: =計得掂試算表!BA60 -> 0 | P51: =計得掂試算表!BB60 -> 0 | Q51: =計得掂試算表!BS60 -> N/A | R51: =計得掂試算表!BU60 -> N/A | S51: =計得掂試算表!BV60 -> 沒有 | T51: =計得掂試算表!BY60 -> 0 | U51: =計得掂試算表!BZ60 -> 0 | V51: =計得掂試算表!CA60 -> 0 | W51: =計得掂試算表!CB60 -> 0 | X51: =計得掂試算表!CC60 -> 0 | Y51: =計得掂試算表!CD60 -> 0 | Z51: =計得掂試算表!CH60 -> N/A | AA51: =計得掂試算表!CL60 -> 0 | AB51: =計得掂試算表!CM60 -> N/A | AC51: =計得掂試算表!CO60 -> 不超過50萬元 | AD51: =計得掂試算表!CQ60 -> 0 | AE51: =計得掂試算表!CR60 -> 0 | AF51: =計得掂試算表!CW60 -> 0 | AG51: =計得掂試算表!CX60 -> 0 | AH51: =計得掂試算表!CY60 -> 0 | AI51: =計得掂試算表!CZ60 -> 0 | AJ51: =計得掂試算表!DA60 -> 0 | AK51: =計得掂試算表!DB60 -> 0 | AL51: =計得掂試算表!DC60 -> 0
A52: =計得掂試算表!A61 -> 52 | B52: =計得掂試算表!B61 -> 0 | C52: =計得掂試算表!C61 -> 請選擇 | D52: =計得掂試算表!F61 -> 00:00:00 | E52: =計得掂試算表!G61 -> 00:00:00 | F52: =計得掂試算表!L61 -> 月薪僱員 | G52: =計得掂試算表!O61 -> 0 | H52: =計得掂試算表!P61 -> 0 | I52: =計得掂試算表!AD61 -> 0 | J52: =計得掂試算表!AT61 -> 0 | K52: =計得掂試算表!AU61 -> 0 | L52: =計得掂試算表!AV61 -> 強積金計劃 | M52: =計得掂試算表!AX61 -> MC -> VC | N52: =計得掂試算表!AZ61 -> 0 | O52: =計得掂試算表!BA61 -> 0 | P52: =計得掂試算表!BB61 -> 0 | Q52: =計得掂試算表!BS61 -> N/A | R52: =計得掂試算表!BU61 -> N/A | S52: =計得掂試算表!BV61 -> 沒有 | T52: =計得掂試算表!BY61 -> 0 | U52: =計得掂試算表!BZ61 -> 0 | V52: =計得掂試算表!CA61 -> 0 | W52: =計得掂試算表!CB61 -> 0 | X52: =計得掂試算表!CC61 -> 0 | Y52: =計得掂試算表!CD61 -> 0 | Z52: =計得掂試算表!CH61 -> N/A | AA52: =計得掂試算表!CL61 -> 0 | AB52: =計得掂試算表!CM61 -> N/A | AC52: =計得掂試算表!CO61 -> 不超過50萬元 | AD52: =計得掂試算表!CQ61 -> 0 | AE52: =計得掂試算表!CR61 -> 0 | AF52: =計得掂試算表!CW61 -> 0 | AG52: =計得掂試算表!CX61 -> 0 | AH52: =計得掂試算表!CY61 -> 0 | AI52: =計得掂試算表!CZ61 -> 0 | AJ52: =計得掂試算表!DA61 -> 0 | AK52: =計得掂試算表!DB61 -> 0 | AL52: =計得掂試算表!DC61 -> 0
A53: =計得掂試算表!A62 -> 53 | B53: =計得掂試算表!B62 -> 0 | C53: =計得掂試算表!C62 -> 請選擇 | D53: =計得掂試算表!F62 -> 00:00:00 | E53: =計得掂試算表!G62 -> 00:00:00 | F53: =計得掂試算表!L62 -> 月薪僱員 | G53: =計得掂試算表!O62 -> 0 | H53: =計得掂試算表!P62 -> 0 | I53: =計得掂試算表!AD62 -> 0 | J53: =計得掂試算表!AT62 -> 0 | K53: =計得掂試算表!AU62 -> 0 | L53: =計得掂試算表!AV62 -> 強積金計劃 | M53: =計得掂試算表!AX62 -> MC -> VC | N53: =計得掂試算表!AZ62 -> 0 | O53: =計得掂試算表!BA62 -> 0 | P53: =計得掂試算表!BB62 -> 0 | Q53: =計得掂試算表!BS62 -> N/A | R53: =計得掂試算表!BU62 -> N/A | S53: =計得掂試算表!BV62 -> 沒有 | T53: =計得掂試算表!BY62 -> 0 | U53: =計得掂試算表!BZ62 -> 0 | V53: =計得掂試算表!CA62 -> 0 | W53: =計得掂試算表!CB62 -> 0 | X53: =計得掂試算表!CC62 -> 0 | Y53: =計得掂試算表!CD62 -> 0 | Z53: =計得掂試算表!CH62 -> N/A | AA53: =計得掂試算表!CL62 -> 0 | AB53: =計得掂試算表!CM62 -> N/A | AC53: =計得掂試算表!CO62 -> 不超過50萬元 | AD53: =計得掂試算表!CQ62 -> 0 | AE53: =計得掂試算表!CR62 -> 0 | AF53: =計得掂試算表!CW62 -> 0 | AG53: =計得掂試算表!CX62 -> 0 | AH53: =計得掂試算表!CY62 -> 0 | AI53: =計得掂試算表!CZ62 -> 0 | AJ53: =計得掂試算表!DA62 -> 0 | AK53: =計得掂試算表!DB62 -> 0 | AL53: =計得掂試算表!DC62 -> 0
A54: =計得掂試算表!A63 -> 54 | B54: =計得掂試算表!B63 -> 0 | C54: =計得掂試算表!C63 -> 請選擇 | D54: =計得掂試算表!F63 -> 00:00:00 | E54: =計得掂試算表!G63 -> 00:00:00 | F54: =計得掂試算表!L63 -> 月薪僱員 | G54: =計得掂試算表!O63 -> 0 | H54: =計得掂試算表!P63 -> 0 | I54: =計得掂試算表!AD63 -> 0 | J54: =計得掂試算表!AT63 -> 0 | K54: =計得掂試算表!AU63 -> 0 | L54: =計得掂試算表!AV63 -> 強積金計劃 | M54: =計得掂試算表!AX63 -> MC -> VC | N54: =計得掂試算表!AZ63 -> 0 | O54: =計得掂試算表!BA63 -> 0 | P54: =計得掂試算表!BB63 -> 0 | Q54: =計得掂試算表!BS63 -> N/A | R54: =計得掂試算表!BU63 -> N/A | S54: =計得掂試算表!BV63 -> 沒有 | T54: =計得掂試算表!BY63 -> 0 | U54: =計得掂試算表!BZ63 -> 0 | V54: =計得掂試算表!CA63 -> 0 | W54: =計得掂試算表!CB63 -> 0 | X54: =計得掂試算表!CC63 -> 0 | Y54: =計得掂試算表!CD63 -> 0 | Z54: =計得掂試算表!CH63 -> N/A | AA54: =計得掂試算表!CL63 -> 0 | AB54: =計得掂試算表!CM63 -> N/A | AC54: =計得掂試算表!CO63 -> 不超過50萬元 | AD54: =計得掂試算表!CQ63 -> 0 | AE54: =計得掂試算表!CR63 -> 0 | AF54: =計得掂試算表!CW63 -> 0 | AG54: =計得掂試算表!CX63 -> 0 | AH54: =計得掂試算表!CY63 -> 0 | AI54: =計得掂試算表!CZ63 -> 0 | AJ54: =計得掂試算表!DA63 -> 0 | AK54: =計得掂試算表!DB63 -> 0 | AL54: =計得掂試算表!DC63 -> 0
A55: =計得掂試算表!A64 -> 55 | B55: =計得掂試算表!B64 -> 0 | C55: =計得掂試算表!C64 -> 請選擇 | D55: =計得掂試算表!F64 -> 00:00:00 | E55: =計得掂試算表!G64 -> 00:00:00 | F55: =計得掂試算表!L64 -> 月薪僱員 | G55: =計得掂試算表!O64 -> 0 | H55: =計得掂試算表!P64 -> 0 | I55: =計得掂試算表!AD64 -> 0 | J55: =計得掂試算表!AT64 -> 0 | K55: =計得掂試算表!AU64 -> 0 | L55: =計得掂試算表!AV64 -> 強積金計劃 | M55: =計得掂試算表!AX64 -> MC -> VC | N55: =計得掂試算表!AZ64 -> 0 | O55: =計得掂試算表!BA64 -> 0 | P55: =計得掂試算表!BB64 -> 0 | Q55: =計得掂試算表!BS64 -> N/A | R55: =計得掂試算表!BU64 -> N/A | S55: =計得掂試算表!BV64 -> 沒有 | T55: =計得掂試算表!BY64 -> 0 | U55: =計得掂試算表!BZ64 -> 0 | V55: =計得掂試算表!CA64 -> 0 | W55: =計得掂試算表!CB64 -> 0 | X55: =計得掂試算表!CC64 -> 0 | Y55: =計得掂試算表!CD64 -> 0 | Z55: =計得掂試算表!CH64 -> N/A | AA55: =計得掂試算表!CL64 -> 0 | AB55: =計得掂試算表!CM64 -> N/A | AC55: =計得掂試算表!CO64 -> 不超過50萬元 | AD55: =計得掂試算表!CQ64 -> 0 | AE55: =計得掂試算表!CR64 -> 0 | AF55: =計得掂試算表!CW64 -> 0 | AG55: =計得掂試算表!CX64 -> 0 | AH55: =計得掂試算表!CY64 -> 0 | AI55: =計得掂試算表!CZ64 -> 0 | AJ55: =計得掂試算表!DA64 -> 0 | AK55: =計得掂試算表!DB64 -> 0 | AL55: =計得掂試算表!DC64 -> 0
A56: =計得掂試算表!A65 -> 56 | B56: =計得掂試算表!B65 -> 0 | C56: =計得掂試算表!C65 -> 請選擇 | D56: =計得掂試算表!F65 -> 00:00:00 | E56: =計得掂試算表!G65 -> 00:00:00 | F56: =計得掂試算表!L65 -> 月薪僱員 | G56: =計得掂試算表!O65 -> 0 | H56: =計得掂試算表!P65 -> 0 | I56: =計得掂試算表!AD65 -> 0 | J56: =計得掂試算表!AT65 -> 0 | K56: =計得掂試算表!AU65 -> 0 | L56: =計得掂試算表!AV65 -> 強積金計劃 | M56: =計得掂試算表!AX65 -> MC -> VC | N56: =計得掂試算表!AZ65 -> 0 | O56: =計得掂試算表!BA65 -> 0 | P56: =計得掂試算表!BB65 -> 0 | Q56: =計得掂試算表!BS65 -> N/A | R56: =計得掂試算表!BU65 -> N/A | S56: =計得掂試算表!BV65 -> 沒有 | T56: =計得掂試算表!BY65 -> 0 | U56: =計得掂試算表!BZ65 -> 0 | V56: =計得掂試算表!CA65 -> 0 | W56: =計得掂試算表!CB65 -> 0 | X56: =計得掂試算表!CC65 -> 0 | Y56: =計得掂試算表!CD65 -> 0 | Z56: =計得掂試算表!CH65 -> N/A | AA56: =計得掂試算表!CL65 -> 0 | AB56: =計得掂試算表!CM65 -> N/A | AC56: =計得掂試算表!CO65 -> 不超過50萬元 | AD56: =計得掂試算表!CQ65 -> 0 | AE56: =計得掂試算表!CR65 -> 0 | AF56: =計得掂試算表!CW65 -> 0 | AG56: =計得掂試算表!CX65 -> 0 | AH56: =計得掂試算表!CY65 -> 0 | AI56: =計得掂試算表!CZ65 -> 0 | AJ56: =計得掂試算表!DA65 -> 0 | AK56: =計得掂試算表!DB65 -> 0 | AL56: =計得掂試算表!DC65 -> 0
A57: =計得掂試算表!A66 -> 57 | B57: =計得掂試算表!B66 -> 0 | C57: =計得掂試算表!C66 -> 請選擇 | D57: =計得掂試算表!F66 -> 00:00:00 | E57: =計得掂試算表!G66 -> 00:00:00 | F57: =計得掂試算表!L66 -> 月薪僱員 | G57: =計得掂試算表!O66 -> 0 | H57: =計得掂試算表!P66 -> 0 | I57: =計得掂試算表!AD66 -> 0 | J57: =計得掂試算表!AT66 -> 0 | K57: =計得掂試算表!AU66 -> 0 | L57: =計得掂試算表!AV66 -> 強積金計劃 | M57: =計得掂試算表!AX66 -> MC -> VC | N57: =計得掂試算表!AZ66 -> 0 | O57: =計得掂試算表!BA66 -> 0 | P57: =計得掂試算表!BB66 -> 0 | Q57: =計得掂試算表!BS66 -> N/A | R57: =計得掂試算表!BU66 -> N/A | S57: =計得掂試算表!BV66 -> 沒有 | T57: =計得掂試算表!BY66 -> 0 | U57: =計得掂試算表!BZ66 -> 0 | V57: =計得掂試算表!CA66 -> 0 | W57: =計得掂試算表!CB66 -> 0 | X57: =計得掂試算表!CC66 -> 0 | Y57: =計得掂試算表!CD66 -> 0 | Z57: =計得掂試算表!CH66 -> N/A | AA57: =計得掂試算表!CL66 -> 0 | AB57: =計得掂試算表!CM66 -> N/A | AC57: =計得掂試算表!CO66 -> 不超過50萬元 | AD57: =計得掂試算表!CQ66 -> 0 | AE57: =計得掂試算表!CR66 -> 0 | AF57: =計得掂試算表!CW66 -> 0 | AG57: =計得掂試算表!CX66 -> 0 | AH57: =計得掂試算表!CY66 -> 0 | AI57: =計得掂試算表!CZ66 -> 0 | AJ57: =計得掂試算表!DA66 -> 0 | AK57: =計得掂試算表!DB66 -> 0 | AL57: =計得掂試算表!DC66 -> 0
A58: =計得掂試算表!A67 -> 58 | B58: =計得掂試算表!B67 -> 0 | C58: =計得掂試算表!C67 -> 請選擇 | D58: =計得掂試算表!F67 -> 00:00:00 | E58: =計得掂試算表!G67 -> 00:00:00 | F58: =計得掂試算表!L67 -> 月薪僱員 | G58: =計得掂試算表!O67 -> 0 | H58: =計得掂試算表!P67 -> 0 | I58: =計得掂試算表!AD67 -> 0 | J58: =計得掂試算表!AT67 -> 0 | K58: =計得掂試算表!AU67 -> 0 | L58: =計得掂試算表!AV67 -> 強積金計劃 | M58: =計得掂試算表!AX67 -> MC -> VC | N58: =計得掂試算表!AZ67 -> 0 | O58: =計得掂試算表!BA67 -> 0 | P58: =計得掂試算表!BB67 -> 0 | Q58: =計得掂試算表!BS67 -> N/A | R58: =計得掂試算表!BU67 -> N/A | S58: =計得掂試算表!BV67 -> 沒有 | T58: =計得掂試算表!BY67 -> 0 | U58: =計得掂試算表!BZ67 -> 0 | V58: =計得掂試算表!CA67 -> 0 | W58: =計得掂試算表!CB67 -> 0 | X58: =計得掂試算表!CC67 -> 0 | Y58: =計得掂試算表!CD67 -> 0 | Z58: =計得掂試算表!CH67 -> N/A | AA58: =計得掂試算表!CL67 -> 0 | AB58: =計得掂試算表!CM67 -> N/A | AC58: =計得掂試算表!CO67 -> 不超過50萬元 | AD58: =計得掂試算表!CQ67 -> 0 | AE58: =計得掂試算表!CR67 -> 0 | AF58: =計得掂試算表!CW67 -> 0 | AG58: =計得掂試算表!CX67 -> 0 | AH58: =計得掂試算表!CY67 -> 0 | AI58: =計得掂試算表!CZ67 -> 0 | AJ58: =計得掂試算表!DA67 -> 0 | AK58: =計得掂試算表!DB67 -> 0 | AL58: =計得掂試算表!DC67 -> 0
A59: =計得掂試算表!A68 -> 59 | B59: =計得掂試算表!B68 -> 0 | C59: =計得掂試算表!C68 -> 請選擇 | D59: =計得掂試算表!F68 -> 00:00:00 | E59: =計得掂試算表!G68 -> 00:00:00 | F59: =計得掂試算表!L68 -> 月薪僱員 | G59: =計得掂試算表!O68 -> 0 | H59: =計得掂試算表!P68 -> 0 | I59: =計得掂試算表!AD68 -> 0 | J59: =計得掂試算表!AT68 -> 0 | K59: =計得掂試算表!AU68 -> 0 | L59: =計得掂試算表!AV68 -> 強積金計劃 | M59: =計得掂試算表!AX68 -> MC -> VC | N59: =計得掂試算表!AZ68 -> 0 | O59: =計得掂試算表!BA68 -> 0 | P59: =計得掂試算表!BB68 -> 0 | Q59: =計得掂試算表!BS68 -> N/A | R59: =計得掂試算表!BU68 -> N/A | S59: =計得掂試算表!BV68 -> 沒有 | T59: =計得掂試算表!BY68 -> 0 | U59: =計得掂試算表!BZ68 -> 0 | V59: =計得掂試算表!CA68 -> 0 | W59: =計得掂試算表!CB68 -> 0 | X59: =計得掂試算表!CC68 -> 0 | Y59: =計得掂試算表!CD68 -> 0 | Z59: =計得掂試算表!CH68 -> N/A | AA59: =計得掂試算表!CL68 -> 0 | AB59: =計得掂試算表!CM68 -> N/A | AC59: =計得掂試算表!CO68 -> 不超過50萬元 | AD59: =計得掂試算表!CQ68 -> 0 | AE59: =計得掂試算表!CR68 -> 0 | AF59: =計得掂試算表!CW68 -> 0 | AG59: =計得掂試算表!CX68 -> 0 | AH59: =計得掂試算表!CY68 -> 0 | AI59: =計得掂試算表!CZ68 -> 0 | AJ59: =計得掂試算表!DA68 -> 0 | AK59: =計得掂試算表!DB68 -> 0 | AL59: =計得掂試算表!DC68 -> 0
A60: =計得掂試算表!A69 -> 60 | B60: =計得掂試算表!B69 -> 0 | C60: =計得掂試算表!C69 -> 請選擇 | D60: =計得掂試算表!F69 -> 00:00:00 | E60: =計得掂試算表!G69 -> 00:00:00 | F60: =計得掂試算表!L69 -> 月薪僱員 | G60: =計得掂試算表!O69 -> 0 | H60: =計得掂試算表!P69 -> 0 | I60: =計得掂試算表!AD69 -> 0 | J60: =計得掂試算表!AT69 -> 0 | K60: =計得掂試算表!AU69 -> 0 | L60: =計得掂試算表!AV69 -> 強積金計劃 | M60: =計得掂試算表!AX69 -> MC -> VC | N60: =計得掂試算表!AZ69 -> 0 | O60: =計得掂試算表!BA69 -> 0 | P60: =計得掂試算表!BB69 -> 0 | Q60: =計得掂試算表!BS69 -> N/A | R60: =計得掂試算表!BU69 -> N/A | S60: =計得掂試算表!BV69 -> 沒有 | T60: =計得掂試算表!BY69 -> 0 | U60: =計得掂試算表!BZ69 -> 0 | V60: =計得掂試算表!CA69 -> 0 | W60: =計得掂試算表!CB69 -> 0 | X60: =計得掂試算表!CC69 -> 0 | Y60: =計得掂試算表!CD69 -> 0 | Z60: =計得掂試算表!CH69 -> N/A | AA60: =計得掂試算表!CL69 -> 0 | AB60: =計得掂試算表!CM69 -> N/A | AC60: =計得掂試算表!CO69 -> 不超過50萬元 | AD60: =計得掂試算表!CQ69 -> 0 | AE60: =計得掂試算表!CR69 -> 0 | AF60: =計得掂試算表!CW69 -> 0 | AG60: =計得掂試算表!CX69 -> 0 | AH60: =計得掂試算表!CY69 -> 0 | AI60: =計得掂試算表!CZ69 -> 0 | AJ60: =計得掂試算表!DA69 -> 0 | AK60: =計得掂試算表!DB69 -> 0 | AL60: =計得掂試算表!DC69 -> 0
A61: =計得掂試算表!A70 -> 61 | B61: =計得掂試算表!B70 -> 0 | C61: =計得掂試算表!C70 -> 請選擇 | D61: =計得掂試算表!F70 -> 00:00:00 | E61: =計得掂試算表!G70 -> 00:00:00 | F61: =計得掂試算表!L70 -> 月薪僱員 | G61: =計得掂試算表!O70 -> 0 | H61: =計得掂試算表!P70 -> 0 | I61: =計得掂試算表!AD70 -> 0 | J61: =計得掂試算表!AT70 -> 0 | K61: =計得掂試算表!AU70 -> 0 | L61: =計得掂試算表!AV70 -> 強積金計劃 | M61: =計得掂試算表!AX70 -> MC -> VC | N61: =計得掂試算表!AZ70 -> 0 | O61: =計得掂試算表!BA70 -> 0 | P61: =計得掂試算表!BB70 -> 0 | Q61: =計得掂試算表!BS70 -> N/A | R61: =計得掂試算表!BU70 -> N/A | S61: =計得掂試算表!BV70 -> 沒有 | T61: =計得掂試算表!BY70 -> 0 | U61: =計得掂試算表!BZ70 -> 0 | V61: =計得掂試算表!CA70 -> 0 | W61: =計得掂試算表!CB70 -> 0 | X61: =計得掂試算表!CC70 -> 0 | Y61: =計得掂試算表!CD70 -> 0 | Z61: =計得掂試算表!CH70 -> N/A | AA61: =計得掂試算表!CL70 -> 0 | AB61: =計得掂試算表!CM70 -> N/A | AC61: =計得掂試算表!CO70 -> 不超過50萬元 | AD61: =計得掂試算表!CQ70 -> 0 | AE61: =計得掂試算表!CR70 -> 0 | AF61: =計得掂試算表!CW70 -> 0 | AG61: =計得掂試算表!CX70 -> 0 | AH61: =計得掂試算表!CY70 -> 0 | AI61: =計得掂試算表!CZ70 -> 0 | AJ61: =計得掂試算表!DA70 -> 0 | AK61: =計得掂試算表!DB70 -> 0 | AL61: =計得掂試算表!DC70 -> 0
A62: =計得掂試算表!A71 -> 62 | B62: =計得掂試算表!B71 -> 0 | C62: =計得掂試算表!C71 -> 請選擇 | D62: =計得掂試算表!F71 -> 00:00:00 | E62: =計得掂試算表!G71 -> 00:00:00 | F62: =計得掂試算表!L71 -> 月薪僱員 | G62: =計得掂試算表!O71 -> 0 | H62: =計得掂試算表!P71 -> 0 | I62: =計得掂試算表!AD71 -> 0 | J62: =計得掂試算表!AT71 -> 0 | K62: =計得掂試算表!AU71 -> 0 | L62: =計得掂試算表!AV71 -> 強積金計劃 | M62: =計得掂試算表!AX71 -> MC -> VC | N62: =計得掂試算表!AZ71 -> 0 | O62: =計得掂試算表!BA71 -> 0 | P62: =計得掂試算表!BB71 -> 0 | Q62: =計得掂試算表!BS71 -> N/A | R62: =計得掂試算表!BU71 -> N/A | S62: =計得掂試算表!BV71 -> 沒有 | T62: =計得掂試算表!BY71 -> 0 | U62: =計得掂試算表!BZ71 -> 0 | V62: =計得掂試算表!CA71 -> 0 | W62: =計得掂試算表!CB71 -> 0 | X62: =計得掂試算表!CC71 -> 0 | Y62: =計得掂試算表!CD71 -> 0 | Z62: =計得掂試算表!CH71 -> N/A | AA62: =計得掂試算表!CL71 -> 0 | AB62: =計得掂試算表!CM71 -> N/A | AC62: =計得掂試算表!CO71 -> 不超過50萬元 | AD62: =計得掂試算表!CQ71 -> 0 | AE62: =計得掂試算表!CR71 -> 0 | AF62: =計得掂試算表!CW71 -> 0 | AG62: =計得掂試算表!CX71 -> 0 | AH62: =計得掂試算表!CY71 -> 0 | AI62: =計得掂試算表!CZ71 -> 0 | AJ62: =計得掂試算表!DA71 -> 0 | AK62: =計得掂試算表!DB71 -> 0 | AL62: =計得掂試算表!DC71 -> 0
A63: =計得掂試算表!A72 -> 63 | B63: =計得掂試算表!B72 -> 0 | C63: =計得掂試算表!C72 -> 請選擇 | D63: =計得掂試算表!F72 -> 00:00:00 | E63: =計得掂試算表!G72 -> 00:00:00 | F63: =計得掂試算表!L72 -> 月薪僱員 | G63: =計得掂試算表!O72 -> 0 | H63: =計得掂試算表!P72 -> 0 | I63: =計得掂試算表!AD72 -> 0 | J63: =計得掂試算表!AT72 -> 0 | K63: =計得掂試算表!AU72 -> 0 | L63: =計得掂試算表!AV72 -> 強積金計劃 | M63: =計得掂試算表!AX72 -> MC -> VC | N63: =計得掂試算表!AZ72 -> 0 | O63: =計得掂試算表!BA72 -> 0 | P63: =計得掂試算表!BB72 -> 0 | Q63: =計得掂試算表!BS72 -> N/A | R63: =計得掂試算表!BU72 -> N/A | S63: =計得掂試算表!BV72 -> 沒有 | T63: =計得掂試算表!BY72 -> 0 | U63: =計得掂試算表!BZ72 -> 0 | V63: =計得掂試算表!CA72 -> 0 | W63: =計得掂試算表!CB72 -> 0 | X63: =計得掂試算表!CC72 -> 0 | Y63: =計得掂試算表!CD72 -> 0 | Z63: =計得掂試算表!CH72 -> N/A | AA63: =計得掂試算表!CL72 -> 0 | AB63: =計得掂試算表!CM72 -> N/A | AC63: =計得掂試算表!CO72 -> 不超過50萬元 | AD63: =計得掂試算表!CQ72 -> 0 | AE63: =計得掂試算表!CR72 -> 0 | AF63: =計得掂試算表!CW72 -> 0 | AG63: =計得掂試算表!CX72 -> 0 | AH63: =計得掂試算表!CY72 -> 0 | AI63: =計得掂試算表!CZ72 -> 0 | AJ63: =計得掂試算表!DA72 -> 0 | AK63: =計得掂試算表!DB72 -> 0 | AL63: =計得掂試算表!DC72 -> 0
A64: =計得掂試算表!A73 -> 64 | B64: =計得掂試算表!B73 -> 0 | C64: =計得掂試算表!C73 -> 請選擇 | D64: =計得掂試算表!F73 -> 00:00:00 | E64: =計得掂試算表!G73 -> 00:00:00 | F64: =計得掂試算表!L73 -> 月薪僱員 | G64: =計得掂試算表!O73 -> 0 | H64: =計得掂試算表!P73 -> 0 | I64: =計得掂試算表!AD73 -> 0 | J64: =計得掂試算表!AT73 -> 0 | K64: =計得掂試算表!AU73 -> 0 | L64: =計得掂試算表!AV73 -> 強積金計劃 | M64: =計得掂試算表!AX73 -> MC -> VC | N64: =計得掂試算表!AZ73 -> 0 | O64: =計得掂試算表!BA73 -> 0 | P64: =計得掂試算表!BB73 -> 0 | Q64: =計得掂試算表!BS73 -> N/A | R64: =計得掂試算表!BU73 -> N/A | S64: =計得掂試算表!BV73 -> 沒有 | T64: =計得掂試算表!BY73 -> 0 | U64: =計得掂試算表!BZ73 -> 0 | V64: =計得掂試算表!CA73 -> 0 | W64: =計得掂試算表!CB73 -> 0 | X64: =計得掂試算表!CC73 -> 0 | Y64: =計得掂試算表!CD73 -> 0 | Z64: =計得掂試算表!CH73 -> N/A | AA64: =計得掂試算表!CL73 -> 0 | AB64: =計得掂試算表!CM73 -> N/A | AC64: =計得掂試算表!CO73 -> 不超過50萬元 | AD64: =計得掂試算表!CQ73 -> 0 | AE64: =計得掂試算表!CR73 -> 0 | AF64: =計得掂試算表!CW73 -> 0 | AG64: =計得掂試算表!CX73 -> 0 | AH64: =計得掂試算表!CY73 -> 0 | AI64: =計得掂試算表!CZ73 -> 0 | AJ64: =計得掂試算表!DA73 -> 0 | AK64: =計得掂試算表!DB73 -> 0 | AL64: =計得掂試算表!DC73 -> 0
A65: =計得掂試算表!A74 -> 65 | B65: =計得掂試算表!B74 -> 0 | C65: =計得掂試算表!C74 -> 請選擇 | D65: =計得掂試算表!F74 -> 00:00:00 | E65: =計得掂試算表!G74 -> 00:00:00 | F65: =計得掂試算表!L74 -> 月薪僱員 | G65: =計得掂試算表!O74 -> 0 | H65: =計得掂試算表!P74 -> 0 | I65: =計得掂試算表!AD74 -> 0 | J65: =計得掂試算表!AT74 -> 0 | K65: =計得掂試算表!AU74 -> 0 | L65: =計得掂試算表!AV74 -> 強積金計劃 | M65: =計得掂試算表!AX74 -> MC -> VC | N65: =計得掂試算表!AZ74 -> 0 | O65: =計得掂試算表!BA74 -> 0 | P65: =計得掂試算表!BB74 -> 0 | Q65: =計得掂試算表!BS74 -> N/A | R65: =計得掂試算表!BU74 -> N/A | S65: =計得掂試算表!BV74 -> 沒有 | T65: =計得掂試算表!BY74 -> 0 | U65: =計得掂試算表!BZ74 -> 0 | V65: =計得掂試算表!CA74 -> 0 | W65: =計得掂試算表!CB74 -> 0 | X65: =計得掂試算表!CC74 -> 0 | Y65: =計得掂試算表!CD74 -> 0 | Z65: =計得掂試算表!CH74 -> N/A | AA65: =計得掂試算表!CL74 -> 0 | AB65: =計得掂試算表!CM74 -> N/A | AC65: =計得掂試算表!CO74 -> 不超過50萬元 | AD65: =計得掂試算表!CQ74 -> 0 | AE65: =計得掂試算表!CR74 -> 0 | AF65: =計得掂試算表!CW74 -> 0 | AG65: =計得掂試算表!CX74 -> 0 | AH65: =計得掂試算表!CY74 -> 0 | AI65: =計得掂試算表!CZ74 -> 0 | AJ65: =計得掂試算表!DA74 -> 0 | AK65: =計得掂試算表!DB74 -> 0 | AL65: =計得掂試算表!DC74 -> 0
A66: =計得掂試算表!A75 -> 66 | B66: =計得掂試算表!B75 -> 0 | C66: =計得掂試算表!C75 -> 請選擇 | D66: =計得掂試算表!F75 -> 00:00:00 | E66: =計得掂試算表!G75 -> 00:00:00 | F66: =計得掂試算表!L75 -> 月薪僱員 | G66: =計得掂試算表!O75 -> 0 | H66: =計得掂試算表!P75 -> 0 | I66: =計得掂試算表!AD75 -> 0 | J66: =計得掂試算表!AT75 -> 0 | K66: =計得掂試算表!AU75 -> 0 | L66: =計得掂試算表!AV75 -> 強積金計劃 | M66: =計得掂試算表!AX75 -> MC -> VC | N66: =計得掂試算表!AZ75 -> 0 | O66: =計得掂試算表!BA75 -> 0 | P66: =計得掂試算表!BB75 -> 0 | Q66: =計得掂試算表!BS75 -> N/A | R66: =計得掂試算表!BU75 -> N/A | S66: =計得掂試算表!BV75 -> 沒有 | T66: =計得掂試算表!BY75 -> 0 | U66: =計得掂試算表!BZ75 -> 0 | V66: =計得掂試算表!CA75 -> 0 | W66: =計得掂試算表!CB75 -> 0 | X66: =計得掂試算表!CC75 -> 0 | Y66: =計得掂試算表!CD75 -> 0 | Z66: =計得掂試算表!CH75 -> N/A | AA66: =計得掂試算表!CL75 -> 0 | AB66: =計得掂試算表!CM75 -> N/A | AC66: =計得掂試算表!CO75 -> 不超過50萬元 | AD66: =計得掂試算表!CQ75 -> 0 | AE66: =計得掂試算表!CR75 -> 0 | AF66: =計得掂試算表!CW75 -> 0 | AG66: =計得掂試算表!CX75 -> 0 | AH66: =計得掂試算表!CY75 -> 0 | AI66: =計得掂試算表!CZ75 -> 0 | AJ66: =計得掂試算表!DA75 -> 0 | AK66: =計得掂試算表!DB75 -> 0 | AL66: =計得掂試算表!DC75 -> 0
A67: =計得掂試算表!A76 -> 67 | B67: =計得掂試算表!B76 -> 0 | C67: =計得掂試算表!C76 -> 請選擇 | D67: =計得掂試算表!F76 -> 00:00:00 | E67: =計得掂試算表!G76 -> 00:00:00 | F67: =計得掂試算表!L76 -> 月薪僱員 | G67: =計得掂試算表!O76 -> 0 | H67: =計得掂試算表!P76 -> 0 | I67: =計得掂試算表!AD76 -> 0 | J67: =計得掂試算表!AT76 -> 0 | K67: =計得掂試算表!AU76 -> 0 | L67: =計得掂試算表!AV76 -> 強積金計劃 | M67: =計得掂試算表!AX76 -> MC -> VC | N67: =計得掂試算表!AZ76 -> 0 | O67: =計得掂試算表!BA76 -> 0 | P67: =計得掂試算表!BB76 -> 0 | Q67: =計得掂試算表!BS76 -> N/A | R67: =計得掂試算表!BU76 -> N/A | S67: =計得掂試算表!BV76 -> 沒有 | T67: =計得掂試算表!BY76 -> 0 | U67: =計得掂試算表!BZ76 -> 0 | V67: =計得掂試算表!CA76 -> 0 | W67: =計得掂試算表!CB76 -> 0 | X67: =計得掂試算表!CC76 -> 0 | Y67: =計得掂試算表!CD76 -> 0 | Z67: =計得掂試算表!CH76 -> N/A | AA67: =計得掂試算表!CL76 -> 0 | AB67: =計得掂試算表!CM76 -> N/A | AC67: =計得掂試算表!CO76 -> 不超過50萬元 | AD67: =計得掂試算表!CQ76 -> 0 | AE67: =計得掂試算表!CR76 -> 0 | AF67: =計得掂試算表!CW76 -> 0 | AG67: =計得掂試算表!CX76 -> 0 | AH67: =計得掂試算表!CY76 -> 0 | AI67: =計得掂試算表!CZ76 -> 0 | AJ67: =計得掂試算表!DA76 -> 0 | AK67: =計得掂試算表!DB76 -> 0 | AL67: =計得掂試算表!DC76 -> 0
A68: =計得掂試算表!A77 -> 68 | B68: =計得掂試算表!B77 -> 0 | C68: =計得掂試算表!C77 -> 請選擇 | D68: =計得掂試算表!F77 -> 00:00:00 | E68: =計得掂試算表!G77 -> 00:00:00 | F68: =計得掂試算表!L77 -> 月薪僱員 | G68: =計得掂試算表!O77 -> 0 | H68: =計得掂試算表!P77 -> 0 | I68: =計得掂試算表!AD77 -> 0 | J68: =計得掂試算表!AT77 -> 0 | K68: =計得掂試算表!AU77 -> 0 | L68: =計得掂試算表!AV77 -> 強積金計劃 | M68: =計得掂試算表!AX77 -> MC -> VC | N68: =計得掂試算表!AZ77 -> 0 | O68: =計得掂試算表!BA77 -> 0 | P68: =計得掂試算表!BB77 -> 0 | Q68: =計得掂試算表!BS77 -> N/A | R68: =計得掂試算表!BU77 -> N/A | S68: =計得掂試算表!BV77 -> 沒有 | T68: =計得掂試算表!BY77 -> 0 | U68: =計得掂試算表!BZ77 -> 0 | V68: =計得掂試算表!CA77 -> 0 | W68: =計得掂試算表!CB77 -> 0 | X68: =計得掂試算表!CC77 -> 0 | Y68: =計得掂試算表!CD77 -> 0 | Z68: =計得掂試算表!CH77 -> N/A | AA68: =計得掂試算表!CL77 -> 0 | AB68: =計得掂試算表!CM77 -> N/A | AC68: =計得掂試算表!CO77 -> 不超過50萬元 | AD68: =計得掂試算表!CQ77 -> 0 | AE68: =計得掂試算表!CR77 -> 0 | AF68: =計得掂試算表!CW77 -> 0 | AG68: =計得掂試算表!CX77 -> 0 | AH68: =計得掂試算表!CY77 -> 0 | AI68: =計得掂試算表!CZ77 -> 0 | AJ68: =計得掂試算表!DA77 -> 0 | AK68: =計得掂試算表!DB77 -> 0 | AL68: =計得掂試算表!DC77 -> 0
A69: =計得掂試算表!A78 -> 69 | B69: =計得掂試算表!B78 -> 0 | C69: =計得掂試算表!C78 -> 請選擇 | D69: =計得掂試算表!F78 -> 00:00:00 | E69: =計得掂試算表!G78 -> 00:00:00 | F69: =計得掂試算表!L78 -> 月薪僱員 | G69: =計得掂試算表!O78 -> 0 | H69: =計得掂試算表!P78 -> 0 | I69: =計得掂試算表!AD78 -> 0 | J69: =計得掂試算表!AT78 -> 0 | K69: =計得掂試算表!AU78 -> 0 | L69: =計得掂試算表!AV78 -> 強積金計劃 | M69: =計得掂試算表!AX78 -> MC -> VC | N69: =計得掂試算表!AZ78 -> 0 | O69: =計得掂試算表!BA78 -> 0 | P69: =計得掂試算表!BB78 -> 0 | Q69: =計得掂試算表!BS78 -> N/A | R69: =計得掂試算表!BU78 -> N/A | S69: =計得掂試算表!BV78 -> 沒有 | T69: =計得掂試算表!BY78 -> 0 | U69: =計得掂試算表!BZ78 -> 0 | V69: =計得掂試算表!CA78 -> 0 | W69: =計得掂試算表!CB78 -> 0 | X69: =計得掂試算表!CC78 -> 0 | Y69: =計得掂試算表!CD78 -> 0 | Z69: =計得掂試算表!CH78 -> N/A | AA69: =計得掂試算表!CL78 -> 0 | AB69: =計得掂試算表!CM78 -> N/A | AC69: =計得掂試算表!CO78 -> 不超過50萬元 | AD69: =計得掂試算表!CQ78 -> 0 | AE69: =計得掂試算表!CR78 -> 0 | AF69: =計得掂試算表!CW78 -> 0 | AG69: =計得掂試算表!CX78 -> 0 | AH69: =計得掂試算表!CY78 -> 0 | AI69: =計得掂試算表!CZ78 -> 0 | AJ69: =計得掂試算表!DA78 -> 0 | AK69: =計得掂試算表!DB78 -> 0 | AL69: =計得掂試算表!DC78 -> 0
A70: =計得掂試算表!A79 -> 70 | B70: =計得掂試算表!B79 -> 0 | C70: =計得掂試算表!C79 -> 請選擇 | D70: =計得掂試算表!F79 -> 00:00:00 | E70: =計得掂試算表!G79 -> 00:00:00 | F70: =計得掂試算表!L79 -> 月薪僱員 | G70: =計得掂試算表!O79 -> 0 | H70: =計得掂試算表!P79 -> 0 | I70: =計得掂試算表!AD79 -> 0 | J70: =計得掂試算表!AT79 -> 0 | K70: =計得掂試算表!AU79 -> 0 | L70: =計得掂試算表!AV79 -> 強積金計劃 | M70: =計得掂試算表!AX79 -> MC -> VC | N70: =計得掂試算表!AZ79 -> 0 | O70: =計得掂試算表!BA79 -> 0 | P70: =計得掂試算表!BB79 -> 0 | Q70: =計得掂試算表!BS79 -> N/A | R70: =計得掂試算表!BU79 -> N/A | S70: =計得掂試算表!BV79 -> 沒有 | T70: =計得掂試算表!BY79 -> 0 | U70: =計得掂試算表!BZ79 -> 0 | V70: =計得掂試算表!CA79 -> 0 | W70: =計得掂試算表!CB79 -> 0 | X70: =計得掂試算表!CC79 -> 0 | Y70: =計得掂試算表!CD79 -> 0 | Z70: =計得掂試算表!CH79 -> N/A | AA70: =計得掂試算表!CL79 -> 0 | AB70: =計得掂試算表!CM79 -> N/A | AC70: =計得掂試算表!CO79 -> 不超過50萬元 | AD70: =計得掂試算表!CQ79 -> 0 | AE70: =計得掂試算表!CR79 -> 0 | AF70: =計得掂試算表!CW79 -> 0 | AG70: =計得掂試算表!CX79 -> 0 | AH70: =計得掂試算表!CY79 -> 0 | AI70: =計得掂試算表!CZ79 -> 0 | AJ70: =計得掂試算表!DA79 -> 0 | AK70: =計得掂試算表!DB79 -> 0 | AL70: =計得掂試算表!DC79 -> 0
A71: =計得掂試算表!A80 -> 71 | B71: =計得掂試算表!B80 -> 0 | C71: =計得掂試算表!C80 -> 請選擇 | D71: =計得掂試算表!F80 -> 00:00:00 | E71: =計得掂試算表!G80 -> 00:00:00 | F71: =計得掂試算表!L80 -> 月薪僱員 | G71: =計得掂試算表!O80 -> 0 | H71: =計得掂試算表!P80 -> 0 | I71: =計得掂試算表!AD80 -> 0 | J71: =計得掂試算表!AT80 -> 0 | K71: =計得掂試算表!AU80 -> 0 | L71: =計得掂試算表!AV80 -> 強積金計劃 | M71: =計得掂試算表!AX80 -> MC -> VC | N71: =計得掂試算表!AZ80 -> 0 | O71: =計得掂試算表!BA80 -> 0 | P71: =計得掂試算表!BB80 -> 0 | Q71: =計得掂試算表!BS80 -> N/A | R71: =計得掂試算表!BU80 -> N/A | S71: =計得掂試算表!BV80 -> 沒有 | T71: =計得掂試算表!BY80 -> 0 | U71: =計得掂試算表!BZ80 -> 0 | V71: =計得掂試算表!CA80 -> 0 | W71: =計得掂試算表!CB80 -> 0 | X71: =計得掂試算表!CC80 -> 0 | Y71: =計得掂試算表!CD80 -> 0 | Z71: =計得掂試算表!CH80 -> N/A | AA71: =計得掂試算表!CL80 -> 0 | AB71: =計得掂試算表!CM80 -> N/A | AC71: =計得掂試算表!CO80 -> 不超過50萬元 | AD71: =計得掂試算表!CQ80 -> 0 | AE71: =計得掂試算表!CR80 -> 0 | AF71: =計得掂試算表!CW80 -> 0 | AG71: =計得掂試算表!CX80 -> 0 | AH71: =計得掂試算表!CY80 -> 0 | AI71: =計得掂試算表!CZ80 -> 0 | AJ71: =計得掂試算表!DA80 -> 0 | AK71: =計得掂試算表!DB80 -> 0 | AL71: =計得掂試算表!DC80 -> 0
A72: =計得掂試算表!A81 -> 72 | B72: =計得掂試算表!B81 -> 0 | C72: =計得掂試算表!C81 -> 請選擇 | D72: =計得掂試算表!F81 -> 00:00:00 | E72: =計得掂試算表!G81 -> 00:00:00 | F72: =計得掂試算表!L81 -> 月薪僱員 | G72: =計得掂試算表!O81 -> 0 | H72: =計得掂試算表!P81 -> 0 | I72: =計得掂試算表!AD81 -> 0 | J72: =計得掂試算表!AT81 -> 0 | K72: =計得掂試算表!AU81 -> 0 | L72: =計得掂試算表!AV81 -> 強積金計劃 | M72: =計得掂試算表!AX81 -> MC -> VC | N72: =計得掂試算表!AZ81 -> 0 | O72: =計得掂試算表!BA81 -> 0 | P72: =計得掂試算表!BB81 -> 0 | Q72: =計得掂試算表!BS81 -> N/A | R72: =計得掂試算表!BU81 -> N/A | S72: =計得掂試算表!BV81 -> 沒有 | T72: =計得掂試算表!BY81 -> 0 | U72: =計得掂試算表!BZ81 -> 0 | V72: =計得掂試算表!CA81 -> 0 | W72: =計得掂試算表!CB81 -> 0 | X72: =計得掂試算表!CC81 -> 0 | Y72: =計得掂試算表!CD81 -> 0 | Z72: =計得掂試算表!CH81 -> N/A | AA72: =計得掂試算表!CL81 -> 0 | AB72: =計得掂試算表!CM81 -> N/A | AC72: =計得掂試算表!CO81 -> 不超過50萬元 | AD72: =計得掂試算表!CQ81 -> 0 | AE72: =計得掂試算表!CR81 -> 0 | AF72: =計得掂試算表!CW81 -> 0 | AG72: =計得掂試算表!CX81 -> 0 | AH72: =計得掂試算表!CY81 -> 0 | AI72: =計得掂試算表!CZ81 -> 0 | AJ72: =計得掂試算表!DA81 -> 0 | AK72: =計得掂試算表!DB81 -> 0 | AL72: =計得掂試算表!DC81 -> 0
A73: =計得掂試算表!A82 -> 73 | B73: =計得掂試算表!B82 -> 0 | C73: =計得掂試算表!C82 -> 請選擇 | D73: =計得掂試算表!F82 -> 00:00:00 | E73: =計得掂試算表!G82 -> 00:00:00 | F73: =計得掂試算表!L82 -> 月薪僱員 | G73: =計得掂試算表!O82 -> 0 | H73: =計得掂試算表!P82 -> 0 | I73: =計得掂試算表!AD82 -> 0 | J73: =計得掂試算表!AT82 -> 0 | K73: =計得掂試算表!AU82 -> 0 | L73: =計得掂試算表!AV82 -> 強積金計劃 | M73: =計得掂試算表!AX82 -> MC -> VC | N73: =計得掂試算表!AZ82 -> 0 | O73: =計得掂試算表!BA82 -> 0 | P73: =計得掂試算表!BB82 -> 0 | Q73: =計得掂試算表!BS82 -> N/A | R73: =計得掂試算表!BU82 -> N/A | S73: =計得掂試算表!BV82 -> 沒有 | T73: =計得掂試算表!BY82 -> 0 | U73: =計得掂試算表!BZ82 -> 0 | V73: =計得掂試算表!CA82 -> 0 | W73: =計得掂試算表!CB82 -> 0 | X73: =計得掂試算表!CC82 -> 0 | Y73: =計得掂試算表!CD82 -> 0 | Z73: =計得掂試算表!CH82 -> N/A | AA73: =計得掂試算表!CL82 -> 0 | AB73: =計得掂試算表!CM82 -> N/A | AC73: =計得掂試算表!CO82 -> 不超過50萬元 | AD73: =計得掂試算表!CQ82 -> 0 | AE73: =計得掂試算表!CR82 -> 0 | AF73: =計得掂試算表!CW82 -> 0 | AG73: =計得掂試算表!CX82 -> 0 | AH73: =計得掂試算表!CY82 -> 0 | AI73: =計得掂試算表!CZ82 -> 0 | AJ73: =計得掂試算表!DA82 -> 0 | AK73: =計得掂試算表!DB82 -> 0 | AL73: =計得掂試算表!DC82 -> 0
A74: =計得掂試算表!A83 -> 74 | B74: =計得掂試算表!B83 -> 0 | C74: =計得掂試算表!C83 -> 請選擇 | D74: =計得掂試算表!F83 -> 00:00:00 | E74: =計得掂試算表!G83 -> 00:00:00 | F74: =計得掂試算表!L83 -> 月薪僱員 | G74: =計得掂試算表!O83 -> 0 | H74: =計得掂試算表!P83 -> 0 | I74: =計得掂試算表!AD83 -> 0 | J74: =計得掂試算表!AT83 -> 0 | K74: =計得掂試算表!AU83 -> 0 | L74: =計得掂試算表!AV83 -> 強積金計劃 | M74: =計得掂試算表!AX83 -> MC -> VC | N74: =計得掂試算表!AZ83 -> 0 | O74: =計得掂試算表!BA83 -> 0 | P74: =計得掂試算表!BB83 -> 0 | Q74: =計得掂試算表!BS83 -> N/A | R74: =計得掂試算表!BU83 -> N/A | S74: =計得掂試算表!BV83 -> 沒有 | T74: =計得掂試算表!BY83 -> 0 | U74: =計得掂試算表!BZ83 -> 0 | V74: =計得掂試算表!CA83 -> 0 | W74: =計得掂試算表!CB83 -> 0 | X74: =計得掂試算表!CC83 -> 0 | Y74: =計得掂試算表!CD83 -> 0 | Z74: =計得掂試算表!CH83 -> N/A | AA74: =計得掂試算表!CL83 -> 0 | AB74: =計得掂試算表!CM83 -> N/A | AC74: =計得掂試算表!CO83 -> 不超過50萬元 | AD74: =計得掂試算表!CQ83 -> 0 | AE74: =計得掂試算表!CR83 -> 0 | AF74: =計得掂試算表!CW83 -> 0 | AG74: =計得掂試算表!CX83 -> 0 | AH74: =計得掂試算表!CY83 -> 0 | AI74: =計得掂試算表!CZ83 -> 0 | AJ74: =計得掂試算表!DA83 -> 0 | AK74: =計得掂試算表!DB83 -> 0 | AL74: =計得掂試算表!DC83 -> 0
A75: =計得掂試算表!A84 -> 75 | B75: =計得掂試算表!B84 -> 0 | C75: =計得掂試算表!C84 -> 請選擇 | D75: =計得掂試算表!F84 -> 00:00:00 | E75: =計得掂試算表!G84 -> 00:00:00 | F75: =計得掂試算表!L84 -> 月薪僱員 | G75: =計得掂試算表!O84 -> 0 | H75: =計得掂試算表!P84 -> 0 | I75: =計得掂試算表!AD84 -> 0 | J75: =計得掂試算表!AT84 -> 0 | K75: =計得掂試算表!AU84 -> 0 | L75: =計得掂試算表!AV84 -> 強積金計劃 | M75: =計得掂試算表!AX84 -> MC -> VC | N75: =計得掂試算表!AZ84 -> 0 | O75: =計得掂試算表!BA84 -> 0 | P75: =計得掂試算表!BB84 -> 0 | Q75: =計得掂試算表!BS84 -> N/A | R75: =計得掂試算表!BU84 -> N/A | S75: =計得掂試算表!BV84 -> 沒有 | T75: =計得掂試算表!BY84 -> 0 | U75: =計得掂試算表!BZ84 -> 0 | V75: =計得掂試算表!CA84 -> 0 | W75: =計得掂試算表!CB84 -> 0 | X75: =計得掂試算表!CC84 -> 0 | Y75: =計得掂試算表!CD84 -> 0 | Z75: =計得掂試算表!CH84 -> N/A | AA75: =計得掂試算表!CL84 -> 0 | AB75: =計得掂試算表!CM84 -> N/A | AC75: =計得掂試算表!CO84 -> 不超過50萬元 | AD75: =計得掂試算表!CQ84 -> 0 | AE75: =計得掂試算表!CR84 -> 0 | AF75: =計得掂試算表!CW84 -> 0 | AG75: =計得掂試算表!CX84 -> 0 | AH75: =計得掂試算表!CY84 -> 0 | AI75: =計得掂試算表!CZ84 -> 0 | AJ75: =計得掂試算表!DA84 -> 0 | AK75: =計得掂試算表!DB84 -> 0 | AL75: =計得掂試算表!DC84 -> 0
A76: =計得掂試算表!A85 -> 76 | B76: =計得掂試算表!B85 -> 0 | C76: =計得掂試算表!C85 -> 請選擇 | D76: =計得掂試算表!F85 -> 00:00:00 | E76: =計得掂試算表!G85 -> 00:00:00 | F76: =計得掂試算表!L85 -> 月薪僱員 | G76: =計得掂試算表!O85 -> 0 | H76: =計得掂試算表!P85 -> 0 | I76: =計得掂試算表!AD85 -> 0 | J76: =計得掂試算表!AT85 -> 0 | K76: =計得掂試算表!AU85 -> 0 | L76: =計得掂試算表!AV85 -> 強積金計劃 | M76: =計得掂試算表!AX85 -> MC -> VC | N76: =計得掂試算表!AZ85 -> 0 | O76: =計得掂試算表!BA85 -> 0 | P76: =計得掂試算表!BB85 -> 0 | Q76: =計得掂試算表!BS85 -> N/A | R76: =計得掂試算表!BU85 -> N/A | S76: =計得掂試算表!BV85 -> 沒有 | T76: =計得掂試算表!BY85 -> 0 | U76: =計得掂試算表!BZ85 -> 0 | V76: =計得掂試算表!CA85 -> 0 | W76: =計得掂試算表!CB85 -> 0 | X76: =計得掂試算表!CC85 -> 0 | Y76: =計得掂試算表!CD85 -> 0 | Z76: =計得掂試算表!CH85 -> N/A | AA76: =計得掂試算表!CL85 -> 0 | AB76: =計得掂試算表!CM85 -> N/A | AC76: =計得掂試算表!CO85 -> 不超過50萬元 | AD76: =計得掂試算表!CQ85 -> 0 | AE76: =計得掂試算表!CR85 -> 0 | AF76: =計得掂試算表!CW85 -> 0 | AG76: =計得掂試算表!CX85 -> 0 | AH76: =計得掂試算表!CY85 -> 0 | AI76: =計得掂試算表!CZ85 -> 0 | AJ76: =計得掂試算表!DA85 -> 0 | AK76: =計得掂試算表!DB85 -> 0 | AL76: =計得掂試算表!DC85 -> 0
A77: =計得掂試算表!A86 -> 77 | B77: =計得掂試算表!B86 -> 0 | C77: =計得掂試算表!C86 -> 請選擇 | D77: =計得掂試算表!F86 -> 00:00:00 | E77: =計得掂試算表!G86 -> 00:00:00 | F77: =計得掂試算表!L86 -> 月薪僱員 | G77: =計得掂試算表!O86 -> 0 | H77: =計得掂試算表!P86 -> 0 | I77: =計得掂試算表!AD86 -> 0 | J77: =計得掂試算表!AT86 -> 0 | K77: =計得掂試算表!AU86 -> 0 | L77: =計得掂試算表!AV86 -> 強積金計劃 | M77: =計得掂試算表!AX86 -> MC -> VC | N77: =計得掂試算表!AZ86 -> 0 | O77: =計得掂試算表!BA86 -> 0 | P77: =計得掂試算表!BB86 -> 0 | Q77: =計得掂試算表!BS86 -> N/A | R77: =計得掂試算表!BU86 -> N/A | S77: =計得掂試算表!BV86 -> 沒有 | T77: =計得掂試算表!BY86 -> 0 | U77: =計得掂試算表!BZ86 -> 0 | V77: =計得掂試算表!CA86 -> 0 | W77: =計得掂試算表!CB86 -> 0 | X77: =計得掂試算表!CC86 -> 0 | Y77: =計得掂試算表!CD86 -> 0 | Z77: =計得掂試算表!CH86 -> N/A | AA77: =計得掂試算表!CL86 -> 0 | AB77: =計得掂試算表!CM86 -> N/A | AC77: =計得掂試算表!CO86 -> 不超過50萬元 | AD77: =計得掂試算表!CQ86 -> 0 | AE77: =計得掂試算表!CR86 -> 0 | AF77: =計得掂試算表!CW86 -> 0 | AG77: =計得掂試算表!CX86 -> 0 | AH77: =計得掂試算表!CY86 -> 0 | AI77: =計得掂試算表!CZ86 -> 0 | AJ77: =計得掂試算表!DA86 -> 0 | AK77: =計得掂試算表!DB86 -> 0 | AL77: =計得掂試算表!DC86 -> 0
A78: =計得掂試算表!A87 -> 78 | B78: =計得掂試算表!B87 -> 0 | C78: =計得掂試算表!C87 -> 請選擇 | D78: =計得掂試算表!F87 -> 00:00:00 | E78: =計得掂試算表!G87 -> 00:00:00 | F78: =計得掂試算表!L87 -> 月薪僱員 | G78: =計得掂試算表!O87 -> 0 | H78: =計得掂試算表!P87 -> 0 | I78: =計得掂試算表!AD87 -> 0 | J78: =計得掂試算表!AT87 -> 0 | K78: =計得掂試算表!AU87 -> 0 | L78: =計得掂試算表!AV87 -> 強積金計劃 | M78: =計得掂試算表!AX87 -> MC -> VC | N78: =計得掂試算表!AZ87 -> 0 | O78: =計得掂試算表!BA87 -> 0 | P78: =計得掂試算表!BB87 -> 0 | Q78: =計得掂試算表!BS87 -> N/A | R78: =計得掂試算表!BU87 -> N/A | S78: =計得掂試算表!BV87 -> 沒有 | T78: =計得掂試算表!BY87 -> 0 | U78: =計得掂試算表!BZ87 -> 0 | V78: =計得掂試算表!CA87 -> 0 | W78: =計得掂試算表!CB87 -> 0 | X78: =計得掂試算表!CC87 -> 0 | Y78: =計得掂試算表!CD87 -> 0 | Z78: =計得掂試算表!CH87 -> N/A | AA78: =計得掂試算表!CL87 -> 0 | AB78: =計得掂試算表!CM87 -> N/A | AC78: =計得掂試算表!CO87 -> 不超過50萬元 | AD78: =計得掂試算表!CQ87 -> 0 | AE78: =計得掂試算表!CR87 -> 0 | AF78: =計得掂試算表!CW87 -> 0 | AG78: =計得掂試算表!CX87 -> 0 | AH78: =計得掂試算表!CY87 -> 0 | AI78: =計得掂試算表!CZ87 -> 0 | AJ78: =計得掂試算表!DA87 -> 0 | AK78: =計得掂試算表!DB87 -> 0 | AL78: =計得掂試算表!DC87 -> 0
A79: =計得掂試算表!A88 -> 79 | B79: =計得掂試算表!B88 -> 0 | C79: =計得掂試算表!C88 -> 請選擇 | D79: =計得掂試算表!F88 -> 00:00:00 | E79: =計得掂試算表!G88 -> 00:00:00 | F79: =計得掂試算表!L88 -> 月薪僱員 | G79: =計得掂試算表!O88 -> 0 | H79: =計得掂試算表!P88 -> 0 | I79: =計得掂試算表!AD88 -> 0 | J79: =計得掂試算表!AT88 -> 0 | K79: =計得掂試算表!AU88 -> 0 | L79: =計得掂試算表!AV88 -> 強積金計劃 | M79: =計得掂試算表!AX88 -> MC -> VC | N79: =計得掂試算表!AZ88 -> 0 | O79: =計得掂試算表!BA88 -> 0 | P79: =計得掂試算表!BB88 -> 0 | Q79: =計得掂試算表!BS88 -> N/A | R79: =計得掂試算表!BU88 -> N/A | S79: =計得掂試算表!BV88 -> 沒有 | T79: =計得掂試算表!BY88 -> 0 | U79: =計得掂試算表!BZ88 -> 0 | V79: =計得掂試算表!CA88 -> 0 | W79: =計得掂試算表!CB88 -> 0 | X79: =計得掂試算表!CC88 -> 0 | Y79: =計得掂試算表!CD88 -> 0 | Z79: =計得掂試算表!CH88 -> N/A | AA79: =計得掂試算表!CL88 -> 0 | AB79: =計得掂試算表!CM88 -> N/A | AC79: =計得掂試算表!CO88 -> 不超過50萬元 | AD79: =計得掂試算表!CQ88 -> 0 | AE79: =計得掂試算表!CR88 -> 0 | AF79: =計得掂試算表!CW88 -> 0 | AG79: =計得掂試算表!CX88 -> 0 | AH79: =計得掂試算表!CY88 -> 0 | AI79: =計得掂試算表!CZ88 -> 0 | AJ79: =計得掂試算表!DA88 -> 0 | AK79: =計得掂試算表!DB88 -> 0 | AL79: =計得掂試算表!DC88 -> 0
A80: =計得掂試算表!A89 -> 80 | B80: =計得掂試算表!B89 -> 0 | C80: =計得掂試算表!C89 -> 請選擇 | D80: =計得掂試算表!F89 -> 00:00:00 | E80: =計得掂試算表!G89 -> 00:00:00 | F80: =計得掂試算表!L89 -> 月薪僱員 | G80: =計得掂試算表!O89 -> 0 | H80: =計得掂試算表!P89 -> 0 | I80: =計得掂試算表!AD89 -> 0 | J80: =計得掂試算表!AT89 -> 0 | K80: =計得掂試算表!AU89 -> 0 | L80: =計得掂試算表!AV89 -> 強積金計劃 | M80: =計得掂試算表!AX89 -> MC -> VC | N80: =計得掂試算表!AZ89 -> 0 | O80: =計得掂試算表!BA89 -> 0 | P80: =計得掂試算表!BB89 -> 0 | Q80: =計得掂試算表!BS89 -> N/A | R80: =計得掂試算表!BU89 -> N/A | S80: =計得掂試算表!BV89 -> 沒有 | T80: =計得掂試算表!BY89 -> 0 | U80: =計得掂試算表!BZ89 -> 0 | V80: =計得掂試算表!CA89 -> 0 | W80: =計得掂試算表!CB89 -> 0 | X80: =計得掂試算表!CC89 -> 0 | Y80: =計得掂試算表!CD89 -> 0 | Z80: =計得掂試算表!CH89 -> N/A | AA80: =計得掂試算表!CL89 -> 0 | AB80: =計得掂試算表!CM89 -> N/A | AC80: =計得掂試算表!CO89 -> 不超過50萬元 | AD80: =計得掂試算表!CQ89 -> 0 | AE80: =計得掂試算表!CR89 -> 0 | AF80: =計得掂試算表!CW89 -> 0 | AG80: =計得掂試算表!CX89 -> 0 | AH80: =計得掂試算表!CY89 -> 0 | AI80: =計得掂試算表!CZ89 -> 0 | AJ80: =計得掂試算表!DA89 -> 0 | AK80: =計得掂試算表!DB89 -> 0 | AL80: =計得掂試算表!DC89 -> 0
A81: =計得掂試算表!A90 -> 81 | B81: =計得掂試算表!B90 -> 0 | C81: =計得掂試算表!C90 -> 請選擇 | D81: =計得掂試算表!F90 -> 00:00:00 | E81: =計得掂試算表!G90 -> 00:00:00 | F81: =計得掂試算表!L90 -> 月薪僱員 | G81: =計得掂試算表!O90 -> 0 | H81: =計得掂試算表!P90 -> 0 | I81: =計得掂試算表!AD90 -> 0 | J81: =計得掂試算表!AT90 -> 0 | K81: =計得掂試算表!AU90 -> 0 | L81: =計得掂試算表!AV90 -> 強積金計劃 | M81: =計得掂試算表!AX90 -> MC -> VC | N81: =計得掂試算表!AZ90 -> 0 | O81: =計得掂試算表!BA90 -> 0 | P81: =計得掂試算表!BB90 -> 0 | Q81: =計得掂試算表!BS90 -> N/A | R81: =計得掂試算表!BU90 -> N/A | S81: =計得掂試算表!BV90 -> 沒有 | T81: =計得掂試算表!BY90 -> 0 | U81: =計得掂試算表!BZ90 -> 0 | V81: =計得掂試算表!CA90 -> 0 | W81: =計得掂試算表!CB90 -> 0 | X81: =計得掂試算表!CC90 -> 0 | Y81: =計得掂試算表!CD90 -> 0 | Z81: =計得掂試算表!CH90 -> N/A | AA81: =計得掂試算表!CL90 -> 0 | AB81: =計得掂試算表!CM90 -> N/A | AC81: =計得掂試算表!CO90 -> 不超過50萬元 | AD81: =計得掂試算表!CQ90 -> 0 | AE81: =計得掂試算表!CR90 -> 0 | AF81: =計得掂試算表!CW90 -> 0 | AG81: =計得掂試算表!CX90 -> 0 | AH81: =計得掂試算表!CY90 -> 0 | AI81: =計得掂試算表!CZ90 -> 0 | AJ81: =計得掂試算表!DA90 -> 0 | AK81: =計得掂試算表!DB90 -> 0 | AL81: =計得掂試算表!DC90 -> 0
A82: =計得掂試算表!A91 -> 82 | B82: =計得掂試算表!B91 -> 0 | C82: =計得掂試算表!C91 -> 請選擇 | D82: =計得掂試算表!F91 -> 00:00:00 | E82: =計得掂試算表!G91 -> 00:00:00 | F82: =計得掂試算表!L91 -> 月薪僱員 | G82: =計得掂試算表!O91 -> 0 | H82: =計得掂試算表!P91 -> 0 | I82: =計得掂試算表!AD91 -> 0 | J82: =計得掂試算表!AT91 -> 0 | K82: =計得掂試算表!AU91 -> 0 | L82: =計得掂試算表!AV91 -> 強積金計劃 | M82: =計得掂試算表!AX91 -> MC -> VC | N82: =計得掂試算表!AZ91 -> 0 | O82: =計得掂試算表!BA91 -> 0 | P82: =計得掂試算表!BB91 -> 0 | Q82: =計得掂試算表!BS91 -> N/A | R82: =計得掂試算表!BU91 -> N/A | S82: =計得掂試算表!BV91 -> 沒有 | T82: =計得掂試算表!BY91 -> 0 | U82: =計得掂試算表!BZ91 -> 0 | V82: =計得掂試算表!CA91 -> 0 | W82: =計得掂試算表!CB91 -> 0 | X82: =計得掂試算表!CC91 -> 0 | Y82: =計得掂試算表!CD91 -> 0 | Z82: =計得掂試算表!CH91 -> N/A | AA82: =計得掂試算表!CL91 -> 0 | AB82: =計得掂試算表!CM91 -> N/A | AC82: =計得掂試算表!CO91 -> 不超過50萬元 | AD82: =計得掂試算表!CQ91 -> 0 | AE82: =計得掂試算表!CR91 -> 0 | AF82: =計得掂試算表!CW91 -> 0 | AG82: =計得掂試算表!CX91 -> 0 | AH82: =計得掂試算表!CY91 -> 0 | AI82: =計得掂試算表!CZ91 -> 0 | AJ82: =計得掂試算表!DA91 -> 0 | AK82: =計得掂試算表!DB91 -> 0 | AL82: =計得掂試算表!DC91 -> 0
A83: =計得掂試算表!A92 -> 83 | B83: =計得掂試算表!B92 -> 0 | C83: =計得掂試算表!C92 -> 請選擇 | D83: =計得掂試算表!F92 -> 00:00:00 | E83: =計得掂試算表!G92 -> 00:00:00 | F83: =計得掂試算表!L92 -> 月薪僱員 | G83: =計得掂試算表!O92 -> 0 | H83: =計得掂試算表!P92 -> 0 | I83: =計得掂試算表!AD92 -> 0 | J83: =計得掂試算表!AT92 -> 0 | K83: =計得掂試算表!AU92 -> 0 | L83: =計得掂試算表!AV92 -> 強積金計劃 | M83: =計得掂試算表!AX92 -> MC -> VC | N83: =計得掂試算表!AZ92 -> 0 | O83: =計得掂試算表!BA92 -> 0 | P83: =計得掂試算表!BB92 -> 0 | Q83: =計得掂試算表!BS92 -> N/A | R83: =計得掂試算表!BU92 -> N/A | S83: =計得掂試算表!BV92 -> 沒有 | T83: =計得掂試算表!BY92 -> 0 | U83: =計得掂試算表!BZ92 -> 0 | V83: =計得掂試算表!CA92 -> 0 | W83: =計得掂試算表!CB92 -> 0 | X83: =計得掂試算表!CC92 -> 0 | Y83: =計得掂試算表!CD92 -> 0 | Z83: =計得掂試算表!CH92 -> N/A | AA83: =計得掂試算表!CL92 -> 0 | AB83: =計得掂試算表!CM92 -> N/A | AC83: =計得掂試算表!CO92 -> 不超過50萬元 | AD83: =計得掂試算表!CQ92 -> 0 | AE83: =計得掂試算表!CR92 -> 0 | AF83: =計得掂試算表!CW92 -> 0 | AG83: =計得掂試算表!CX92 -> 0 | AH83: =計得掂試算表!CY92 -> 0 | AI83: =計得掂試算表!CZ92 -> 0 | AJ83: =計得掂試算表!DA92 -> 0 | AK83: =計得掂試算表!DB92 -> 0 | AL83: =計得掂試算表!DC92 -> 0
A84: =計得掂試算表!A93 -> 84 | B84: =計得掂試算表!B93 -> 0 | C84: =計得掂試算表!C93 -> 請選擇 | D84: =計得掂試算表!F93 -> 00:00:00 | E84: =計得掂試算表!G93 -> 00:00:00 | F84: =計得掂試算表!L93 -> 月薪僱員 | G84: =計得掂試算表!O93 -> 0 | H84: =計得掂試算表!P93 -> 0 | I84: =計得掂試算表!AD93 -> 0 | J84: =計得掂試算表!AT93 -> 0 | K84: =計得掂試算表!AU93 -> 0 | L84: =計得掂試算表!AV93 -> 強積金計劃 | M84: =計得掂試算表!AX93 -> MC -> VC | N84: =計得掂試算表!AZ93 -> 0 | O84: =計得掂試算表!BA93 -> 0 | P84: =計得掂試算表!BB93 -> 0 | Q84: =計得掂試算表!BS93 -> N/A | R84: =計得掂試算表!BU93 -> N/A | S84: =計得掂試算表!BV93 -> 沒有 | T84: =計得掂試算表!BY93 -> 0 | U84: =計得掂試算表!BZ93 -> 0 | V84: =計得掂試算表!CA93 -> 0 | W84: =計得掂試算表!CB93 -> 0 | X84: =計得掂試算表!CC93 -> 0 | Y84: =計得掂試算表!CD93 -> 0 | Z84: =計得掂試算表!CH93 -> N/A | AA84: =計得掂試算表!CL93 -> 0 | AB84: =計得掂試算表!CM93 -> N/A | AC84: =計得掂試算表!CO93 -> 不超過50萬元 | AD84: =計得掂試算表!CQ93 -> 0 | AE84: =計得掂試算表!CR93 -> 0 | AF84: =計得掂試算表!CW93 -> 0 | AG84: =計得掂試算表!CX93 -> 0 | AH84: =計得掂試算表!CY93 -> 0 | AI84: =計得掂試算表!CZ93 -> 0 | AJ84: =計得掂試算表!DA93 -> 0 | AK84: =計得掂試算表!DB93 -> 0 | AL84: =計得掂試算表!DC93 -> 0
A85: =計得掂試算表!A94 -> 85 | B85: =計得掂試算表!B94 -> 0 | C85: =計得掂試算表!C94 -> 請選擇 | D85: =計得掂試算表!F94 -> 00:00:00 | E85: =計得掂試算表!G94 -> 00:00:00 | F85: =計得掂試算表!L94 -> 月薪僱員 | G85: =計得掂試算表!O94 -> 0 | H85: =計得掂試算表!P94 -> 0 | I85: =計得掂試算表!AD94 -> 0 | J85: =計得掂試算表!AT94 -> 0 | K85: =計得掂試算表!AU94 -> 0 | L85: =計得掂試算表!AV94 -> 強積金計劃 | M85: =計得掂試算表!AX94 -> MC -> VC | N85: =計得掂試算表!AZ94 -> 0 | O85: =計得掂試算表!BA94 -> 0 | P85: =計得掂試算表!BB94 -> 0 | Q85: =計得掂試算表!BS94 -> N/A | R85: =計得掂試算表!BU94 -> N/A | S85: =計得掂試算表!BV94 -> 沒有 | T85: =計得掂試算表!BY94 -> 0 | U85: =計得掂試算表!BZ94 -> 0 | V85: =計得掂試算表!CA94 -> 0 | W85: =計得掂試算表!CB94 -> 0 | X85: =計得掂試算表!CC94 -> 0 | Y85: =計得掂試算表!CD94 -> 0 | Z85: =計得掂試算表!CH94 -> N/A | AA85: =計得掂試算表!CL94 -> 0 | AB85: =計得掂試算表!CM94 -> N/A | AC85: =計得掂試算表!CO94 -> 不超過50萬元 | AD85: =計得掂試算表!CQ94 -> 0 | AE85: =計得掂試算表!CR94 -> 0 | AF85: =計得掂試算表!CW94 -> 0 | AG85: =計得掂試算表!CX94 -> 0 | AH85: =計得掂試算表!CY94 -> 0 | AI85: =計得掂試算表!CZ94 -> 0 | AJ85: =計得掂試算表!DA94 -> 0 | AK85: =計得掂試算表!DB94 -> 0 | AL85: =計得掂試算表!DC94 -> 0
A86: =計得掂試算表!A95 -> 86 | B86: =計得掂試算表!B95 -> 0 | C86: =計得掂試算表!C95 -> 請選擇 | D86: =計得掂試算表!F95 -> 00:00:00 | E86: =計得掂試算表!G95 -> 00:00:00 | F86: =計得掂試算表!L95 -> 月薪僱員 | G86: =計得掂試算表!O95 -> 0 | H86: =計得掂試算表!P95 -> 0 | I86: =計得掂試算表!AD95 -> 0 | J86: =計得掂試算表!AT95 -> 0 | K86: =計得掂試算表!AU95 -> 0 | L86: =計得掂試算表!AV95 -> 強積金計劃 | M86: =計得掂試算表!AX95 -> MC -> VC | N86: =計得掂試算表!AZ95 -> 0 | O86: =計得掂試算表!BA95 -> 0 | P86: =計得掂試算表!BB95 -> 0 | Q86: =計得掂試算表!BS95 -> N/A | R86: =計得掂試算表!BU95 -> N/A | S86: =計得掂試算表!BV95 -> 沒有 | T86: =計得掂試算表!BY95 -> 0 | U86: =計得掂試算表!BZ95 -> 0 | V86: =計得掂試算表!CA95 -> 0 | W86: =計得掂試算表!CB95 -> 0 | X86: =計得掂試算表!CC95 -> 0 | Y86: =計得掂試算表!CD95 -> 0 | Z86: =計得掂試算表!CH95 -> N/A | AA86: =計得掂試算表!CL95 -> 0 | AB86: =計得掂試算表!CM95 -> N/A | AC86: =計得掂試算表!CO95 -> 不超過50萬元 | AD86: =計得掂試算表!CQ95 -> 0 | AE86: =計得掂試算表!CR95 -> 0 | AF86: =計得掂試算表!CW95 -> 0 | AG86: =計得掂試算表!CX95 -> 0 | AH86: =計得掂試算表!CY95 -> 0 | AI86: =計得掂試算表!CZ95 -> 0 | AJ86: =計得掂試算表!DA95 -> 0 | AK86: =計得掂試算表!DB95 -> 0 | AL86: =計得掂試算表!DC95 -> 0
A87: =計得掂試算表!A96 -> 87 | B87: =計得掂試算表!B96 -> 0 | C87: =計得掂試算表!C96 -> 請選擇 | D87: =計得掂試算表!F96 -> 00:00:00 | E87: =計得掂試算表!G96 -> 00:00:00 | F87: =計得掂試算表!L96 -> 月薪僱員 | G87: =計得掂試算表!O96 -> 0 | H87: =計得掂試算表!P96 -> 0 | I87: =計得掂試算表!AD96 -> 0 | J87: =計得掂試算表!AT96 -> 0 | K87: =計得掂試算表!AU96 -> 0 | L87: =計得掂試算表!AV96 -> 強積金計劃 | M87: =計得掂試算表!AX96 -> MC -> VC | N87: =計得掂試算表!AZ96 -> 0 | O87: =計得掂試算表!BA96 -> 0 | P87: =計得掂試算表!BB96 -> 0 | Q87: =計得掂試算表!BS96 -> N/A | R87: =計得掂試算表!BU96 -> N/A | S87: =計得掂試算表!BV96 -> 沒有 | T87: =計得掂試算表!BY96 -> 0 | U87: =計得掂試算表!BZ96 -> 0 | V87: =計得掂試算表!CA96 -> 0 | W87: =計得掂試算表!CB96 -> 0 | X87: =計得掂試算表!CC96 -> 0 | Y87: =計得掂試算表!CD96 -> 0 | Z87: =計得掂試算表!CH96 -> N/A | AA87: =計得掂試算表!CL96 -> 0 | AB87: =計得掂試算表!CM96 -> N/A | AC87: =計得掂試算表!CO96 -> 不超過50萬元 | AD87: =計得掂試算表!CQ96 -> 0 | AE87: =計得掂試算表!CR96 -> 0 | AF87: =計得掂試算表!CW96 -> 0 | AG87: =計得掂試算表!CX96 -> 0 | AH87: =計得掂試算表!CY96 -> 0 | AI87: =計得掂試算表!CZ96 -> 0 | AJ87: =計得掂試算表!DA96 -> 0 | AK87: =計得掂試算表!DB96 -> 0 | AL87: =計得掂試算表!DC96 -> 0
A88: =計得掂試算表!A97 -> 88 | B88: =計得掂試算表!B97 -> 0 | C88: =計得掂試算表!C97 -> 請選擇 | D88: =計得掂試算表!F97 -> 00:00:00 | E88: =計得掂試算表!G97 -> 00:00:00 | F88: =計得掂試算表!L97 -> 月薪僱員 | G88: =計得掂試算表!O97 -> 0 | H88: =計得掂試算表!P97 -> 0 | I88: =計得掂試算表!AD97 -> 0 | J88: =計得掂試算表!AT97 -> 0 | K88: =計得掂試算表!AU97 -> 0 | L88: =計得掂試算表!AV97 -> 強積金計劃 | M88: =計得掂試算表!AX97 -> MC -> VC | N88: =計得掂試算表!AZ97 -> 0 | O88: =計得掂試算表!BA97 -> 0 | P88: =計得掂試算表!BB97 -> 0 | Q88: =計得掂試算表!BS97 -> N/A | R88: =計得掂試算表!BU97 -> N/A | S88: =計得掂試算表!BV97 -> 沒有 | T88: =計得掂試算表!BY97 -> 0 | U88: =計得掂試算表!BZ97 -> 0 | V88: =計得掂試算表!CA97 -> 0 | W88: =計得掂試算表!CB97 -> 0 | X88: =計得掂試算表!CC97 -> 0 | Y88: =計得掂試算表!CD97 -> 0 | Z88: =計得掂試算表!CH97 -> N/A | AA88: =計得掂試算表!CL97 -> 0 | AB88: =計得掂試算表!CM97 -> N/A | AC88: =計得掂試算表!CO97 -> 不超過50萬元 | AD88: =計得掂試算表!CQ97 -> 0 | AE88: =計得掂試算表!CR97 -> 0 | AF88: =計得掂試算表!CW97 -> 0 | AG88: =計得掂試算表!CX97 -> 0 | AH88: =計得掂試算表!CY97 -> 0 | AI88: =計得掂試算表!CZ97 -> 0 | AJ88: =計得掂試算表!DA97 -> 0 | AK88: =計得掂試算表!DB97 -> 0 | AL88: =計得掂試算表!DC97 -> 0
A89: =計得掂試算表!A98 -> 89 | B89: =計得掂試算表!B98 -> 0 | C89: =計得掂試算表!C98 -> 請選擇 | D89: =計得掂試算表!F98 -> 00:00:00 | E89: =計得掂試算表!G98 -> 00:00:00 | F89: =計得掂試算表!L98 -> 月薪僱員 | G89: =計得掂試算表!O98 -> 0 | H89: =計得掂試算表!P98 -> 0 | I89: =計得掂試算表!AD98 -> 0 | J89: =計得掂試算表!AT98 -> 0 | K89: =計得掂試算表!AU98 -> 0 | L89: =計得掂試算表!AV98 -> 強積金計劃 | M89: =計得掂試算表!AX98 -> MC -> VC | N89: =計得掂試算表!AZ98 -> 0 | O89: =計得掂試算表!BA98 -> 0 | P89: =計得掂試算表!BB98 -> 0 | Q89: =計得掂試算表!BS98 -> N/A | R89: =計得掂試算表!BU98 -> N/A | S89: =計得掂試算表!BV98 -> 沒有 | T89: =計得掂試算表!BY98 -> 0 | U89: =計得掂試算表!BZ98 -> 0 | V89: =計得掂試算表!CA98 -> 0 | W89: =計得掂試算表!CB98 -> 0 | X89: =計得掂試算表!CC98 -> 0 | Y89: =計得掂試算表!CD98 -> 0 | Z89: =計得掂試算表!CH98 -> N/A | AA89: =計得掂試算表!CL98 -> 0 | AB89: =計得掂試算表!CM98 -> N/A | AC89: =計得掂試算表!CO98 -> 不超過50萬元 | AD89: =計得掂試算表!CQ98 -> 0 | AE89: =計得掂試算表!CR98 -> 0 | AF89: =計得掂試算表!CW98 -> 0 | AG89: =計得掂試算表!CX98 -> 0 | AH89: =計得掂試算表!CY98 -> 0 | AI89: =計得掂試算表!CZ98 -> 0 | AJ89: =計得掂試算表!DA98 -> 0 | AK89: =計得掂試算表!DB98 -> 0 | AL89: =計得掂試算表!DC98 -> 0
A90: =計得掂試算表!A99 -> 90 | B90: =計得掂試算表!B99 -> 0 | C90: =計得掂試算表!C99 -> 請選擇 | D90: =計得掂試算表!F99 -> 00:00:00 | E90: =計得掂試算表!G99 -> 00:00:00 | F90: =計得掂試算表!L99 -> 月薪僱員 | G90: =計得掂試算表!O99 -> 0 | H90: =計得掂試算表!P99 -> 0 | I90: =計得掂試算表!AD99 -> 0 | J90: =計得掂試算表!AT99 -> 0 | K90: =計得掂試算表!AU99 -> 0 | L90: =計得掂試算表!AV99 -> 強積金計劃 | M90: =計得掂試算表!AX99 -> MC -> VC | N90: =計得掂試算表!AZ99 -> 0 | O90: =計得掂試算表!BA99 -> 0 | P90: =計得掂試算表!BB99 -> 0 | Q90: =計得掂試算表!BS99 -> N/A | R90: =計得掂試算表!BU99 -> N/A | S90: =計得掂試算表!BV99 -> 沒有 | T90: =計得掂試算表!BY99 -> 0 | U90: =計得掂試算表!BZ99 -> 0 | V90: =計得掂試算表!CA99 -> 0 | W90: =計得掂試算表!CB99 -> 0 | X90: =計得掂試算表!CC99 -> 0 | Y90: =計得掂試算表!CD99 -> 0 | Z90: =計得掂試算表!CH99 -> N/A | AA90: =計得掂試算表!CL99 -> 0 | AB90: =計得掂試算表!CM99 -> N/A | AC90: =計得掂試算表!CO99 -> 不超過50萬元 | AD90: =計得掂試算表!CQ99 -> 0 | AE90: =計得掂試算表!CR99 -> 0 | AF90: =計得掂試算表!CW99 -> 0 | AG90: =計得掂試算表!CX99 -> 0 | AH90: =計得掂試算表!CY99 -> 0 | AI90: =計得掂試算表!CZ99 -> 0 | AJ90: =計得掂試算表!DA99 -> 0 | AK90: =計得掂試算表!DB99 -> 0 | AL90: =計得掂試算表!DC99 -> 0
A91: =計得掂試算表!A100 -> 91 | B91: =計得掂試算表!B100 -> 0 | C91: =計得掂試算表!C100 -> 請選擇 | D91: =計得掂試算表!F100 -> 00:00:00 | E91: =計得掂試算表!G100 -> 00:00:00 | F91: =計得掂試算表!L100 -> 月薪僱員 | G91: =計得掂試算表!O100 -> 0 | H91: =計得掂試算表!P100 -> 0 | I91: =計得掂試算表!AD100 -> 0 | J91: =計得掂試算表!AT100 -> 0 | K91: =計得掂試算表!AU100 -> 0 | L91: =計得掂試算表!AV100 -> 強積金計劃 | M91: =計得掂試算表!AX100 -> MC -> VC | N91: =計得掂試算表!AZ100 -> 0 | O91: =計得掂試算表!BA100 -> 0 | P91: =計得掂試算表!BB100 -> 0 | Q91: =計得掂試算表!BS100 -> N/A | R91: =計得掂試算表!BU100 -> N/A | S91: =計得掂試算表!BV100 -> 沒有 | T91: =計得掂試算表!BY100 -> 0 | U91: =計得掂試算表!BZ100 -> 0 | V91: =計得掂試算表!CA100 -> 0 | W91: =計得掂試算表!CB100 -> 0 | X91: =計得掂試算表!CC100 -> 0 | Y91: =計得掂試算表!CD100 -> 0 | Z91: =計得掂試算表!CH100 -> N/A | AA91: =計得掂試算表!CL100 -> 0 | AB91: =計得掂試算表!CM100 -> N/A | AC91: =計得掂試算表!CO100 -> 不超過50萬元 | AD91: =計得掂試算表!CQ100 -> 0 | AE91: =計得掂試算表!CR100 -> 0 | AF91: =計得掂試算表!CW100 -> 0 | AG91: =計得掂試算表!CX100 -> 0 | AH91: =計得掂試算表!CY100 -> 0 | AI91: =計得掂試算表!CZ100 -> 0 | AJ91: =計得掂試算表!DA100 -> 0 | AK91: =計得掂試算表!DB100 -> 0 | AL91: =計得掂試算表!DC100 -> 0
A92: =計得掂試算表!A101 -> 92 | B92: =計得掂試算表!B101 -> 0 | C92: =計得掂試算表!C101 -> 請選擇 | D92: =計得掂試算表!F101 -> 00:00:00 | E92: =計得掂試算表!G101 -> 00:00:00 | F92: =計得掂試算表!L101 -> 月薪僱員 | G92: =計得掂試算表!O101 -> 0 | H92: =計得掂試算表!P101 -> 0 | I92: =計得掂試算表!AD101 -> 0 | J92: =計得掂試算表!AT101 -> 0 | K92: =計得掂試算表!AU101 -> 0 | L92: =計得掂試算表!AV101 -> 強積金計劃 | M92: =計得掂試算表!AX101 -> MC -> VC | N92: =計得掂試算表!AZ101 -> 0 | O92: =計得掂試算表!BA101 -> 0 | P92: =計得掂試算表!BB101 -> 0 | Q92: =計得掂試算表!BS101 -> N/A | R92: =計得掂試算表!BU101 -> N/A | S92: =計得掂試算表!BV101 -> 沒有 | T92: =計得掂試算表!BY101 -> 0 | U92: =計得掂試算表!BZ101 -> 0 | V92: =計得掂試算表!CA101 -> 0 | W92: =計得掂試算表!CB101 -> 0 | X92: =計得掂試算表!CC101 -> 0 | Y92: =計得掂試算表!CD101 -> 0 | Z92: =計得掂試算表!CH101 -> N/A | AA92: =計得掂試算表!CL101 -> 0 | AB92: =計得掂試算表!CM101 -> N/A | AC92: =計得掂試算表!CO101 -> 不超過50萬元 | AD92: =計得掂試算表!CQ101 -> 0 | AE92: =計得掂試算表!CR101 -> 0 | AF92: =計得掂試算表!CW101 -> 0 | AG92: =計得掂試算表!CX101 -> 0 | AH92: =計得掂試算表!CY101 -> 0 | AI92: =計得掂試算表!CZ101 -> 0 | AJ92: =計得掂試算表!DA101 -> 0 | AK92: =計得掂試算表!DB101 -> 0 | AL92: =計得掂試算表!DC101 -> 0
A93: =計得掂試算表!A102 -> 93 | B93: =計得掂試算表!B102 -> 0 | C93: =計得掂試算表!C102 -> 請選擇 | D93: =計得掂試算表!F102 -> 00:00:00 | E93: =計得掂試算表!G102 -> 00:00:00 | F93: =計得掂試算表!L102 -> 月薪僱員 | G93: =計得掂試算表!O102 -> 0 | H93: =計得掂試算表!P102 -> 0 | I93: =計得掂試算表!AD102 -> 0 | J93: =計得掂試算表!AT102 -> 0 | K93: =計得掂試算表!AU102 -> 0 | L93: =計得掂試算表!AV102 -> 強積金計劃 | M93: =計得掂試算表!AX102 -> MC -> VC | N93: =計得掂試算表!AZ102 -> 0 | O93: =計得掂試算表!BA102 -> 0 | P93: =計得掂試算表!BB102 -> 0 | Q93: =計得掂試算表!BS102 -> N/A | R93: =計得掂試算表!BU102 -> N/A | S93: =計得掂試算表!BV102 -> 沒有 | T93: =計得掂試算表!BY102 -> 0 | U93: =計得掂試算表!BZ102 -> 0 | V93: =計得掂試算表!CA102 -> 0 | W93: =計得掂試算表!CB102 -> 0 | X93: =計得掂試算表!CC102 -> 0 | Y93: =計得掂試算表!CD102 -> 0 | Z93: =計得掂試算表!CH102 -> N/A | AA93: =計得掂試算表!CL102 -> 0 | AB93: =計得掂試算表!CM102 -> N/A | AC93: =計得掂試算表!CO102 -> 不超過50萬元 | AD93: =計得掂試算表!CQ102 -> 0 | AE93: =計得掂試算表!CR102 -> 0 | AF93: =計得掂試算表!CW102 -> 0 | AG93: =計得掂試算表!CX102 -> 0 | AH93: =計得掂試算表!CY102 -> 0 | AI93: =計得掂試算表!CZ102 -> 0 | AJ93: =計得掂試算表!DA102 -> 0 | AK93: =計得掂試算表!DB102 -> 0 | AL93: =計得掂試算表!DC102 -> 0
A94: =計得掂試算表!A103 -> 94 | B94: =計得掂試算表!B103 -> 0 | C94: =計得掂試算表!C103 -> 請選擇 | D94: =計得掂試算表!F103 -> 00:00:00 | E94: =計得掂試算表!G103 -> 00:00:00 | F94: =計得掂試算表!L103 -> 月薪僱員 | G94: =計得掂試算表!O103 -> 0 | H94: =計得掂試算表!P103 -> 0 | I94: =計得掂試算表!AD103 -> 0 | J94: =計得掂試算表!AT103 -> 0 | K94: =計得掂試算表!AU103 -> 0 | L94: =計得掂試算表!AV103 -> 強積金計劃 | M94: =計得掂試算表!AX103 -> MC -> VC | N94: =計得掂試算表!AZ103 -> 0 | O94: =計得掂試算表!BA103 -> 0 | P94: =計得掂試算表!BB103 -> 0 | Q94: =計得掂試算表!BS103 -> N/A | R94: =計得掂試算表!BU103 -> N/A | S94: =計得掂試算表!BV103 -> 沒有 | T94: =計得掂試算表!BY103 -> 0 | U94: =計得掂試算表!BZ103 -> 0 | V94: =計得掂試算表!CA103 -> 0 | W94: =計得掂試算表!CB103 -> 0 | X94: =計得掂試算表!CC103 -> 0 | Y94: =計得掂試算表!CD103 -> 0 | Z94: =計得掂試算表!CH103 -> N/A | AA94: =計得掂試算表!CL103 -> 0 | AB94: =計得掂試算表!CM103 -> N/A | AC94: =計得掂試算表!CO103 -> 不超過50萬元 | AD94: =計得掂試算表!CQ103 -> 0 | AE94: =計得掂試算表!CR103 -> 0 | AF94: =計得掂試算表!CW103 -> 0 | AG94: =計得掂試算表!CX103 -> 0 | AH94: =計得掂試算表!CY103 -> 0 | AI94: =計得掂試算表!CZ103 -> 0 | AJ94: =計得掂試算表!DA103 -> 0 | AK94: =計得掂試算表!DB103 -> 0 | AL94: =計得掂試算表!DC103 -> 0
A95: =計得掂試算表!A104 -> 95 | B95: =計得掂試算表!B104 -> 0 | C95: =計得掂試算表!C104 -> 請選擇 | D95: =計得掂試算表!F104 -> 00:00:00 | E95: =計得掂試算表!G104 -> 00:00:00 | F95: =計得掂試算表!L104 -> 月薪僱員 | G95: =計得掂試算表!O104 -> 0 | H95: =計得掂試算表!P104 -> 0 | I95: =計得掂試算表!AD104 -> 0 | J95: =計得掂試算表!AT104 -> 0 | K95: =計得掂試算表!AU104 -> 0 | L95: =計得掂試算表!AV104 -> 強積金計劃 | M95: =計得掂試算表!AX104 -> MC -> VC | N95: =計得掂試算表!AZ104 -> 0 | O95: =計得掂試算表!BA104 -> 0 | P95: =計得掂試算表!BB104 -> 0 | Q95: =計得掂試算表!BS104 -> N/A | R95: =計得掂試算表!BU104 -> N/A | S95: =計得掂試算表!BV104 -> 沒有 | T95: =計得掂試算表!BY104 -> 0 | U95: =計得掂試算表!BZ104 -> 0 | V95: =計得掂試算表!CA104 -> 0 | W95: =計得掂試算表!CB104 -> 0 | X95: =計得掂試算表!CC104 -> 0 | Y95: =計得掂試算表!CD104 -> 0 | Z95: =計得掂試算表!CH104 -> N/A | AA95: =計得掂試算表!CL104 -> 0 | AB95: =計得掂試算表!CM104 -> N/A | AC95: =計得掂試算表!CO104 -> 不超過50萬元 | AD95: =計得掂試算表!CQ104 -> 0 | AE95: =計得掂試算表!CR104 -> 0 | AF95: =計得掂試算表!CW104 -> 0 | AG95: =計得掂試算表!CX104 -> 0 | AH95: =計得掂試算表!CY104 -> 0 | AI95: =計得掂試算表!CZ104 -> 0 | AJ95: =計得掂試算表!DA104 -> 0 | AK95: =計得掂試算表!DB104 -> 0 | AL95: =計得掂試算表!DC104 -> 0
A96: =計得掂試算表!A105 -> 96 | B96: =計得掂試算表!B105 -> 0 | C96: =計得掂試算表!C105 -> 請選擇 | D96: =計得掂試算表!F105 -> 00:00:00 | E96: =計得掂試算表!G105 -> 00:00:00 | F96: =計得掂試算表!L105 -> 月薪僱員 | G96: =計得掂試算表!O105 -> 0 | H96: =計得掂試算表!P105 -> 0 | I96: =計得掂試算表!AD105 -> 0 | J96: =計得掂試算表!AT105 -> 0 | K96: =計得掂試算表!AU105 -> 0 | L96: =計得掂試算表!AV105 -> 強積金計劃 | M96: =計得掂試算表!AX105 -> MC -> VC | N96: =計得掂試算表!AZ105 -> 0 | O96: =計得掂試算表!BA105 -> 0 | P96: =計得掂試算表!BB105 -> 0 | Q96: =計得掂試算表!BS105 -> N/A | R96: =計得掂試算表!BU105 -> N/A | S96: =計得掂試算表!BV105 -> 沒有 | T96: =計得掂試算表!BY105 -> 0 | U96: =計得掂試算表!BZ105 -> 0 | V96: =計得掂試算表!CA105 -> 0 | W96: =計得掂試算表!CB105 -> 0 | X96: =計得掂試算表!CC105 -> 0 | Y96: =計得掂試算表!CD105 -> 0 | Z96: =計得掂試算表!CH105 -> N/A | AA96: =計得掂試算表!CL105 -> 0 | AB96: =計得掂試算表!CM105 -> N/A | AC96: =計得掂試算表!CO105 -> 不超過50萬元 | AD96: =計得掂試算表!CQ105 -> 0 | AE96: =計得掂試算表!CR105 -> 0 | AF96: =計得掂試算表!CW105 -> 0 | AG96: =計得掂試算表!CX105 -> 0 | AH96: =計得掂試算表!CY105 -> 0 | AI96: =計得掂試算表!CZ105 -> 0 | AJ96: =計得掂試算表!DA105 -> 0 | AK96: =計得掂試算表!DB105 -> 0 | AL96: =計得掂試算表!DC105 -> 0
A97: =計得掂試算表!A106 -> 97 | B97: =計得掂試算表!B106 -> 0 | C97: =計得掂試算表!C106 -> 請選擇 | D97: =計得掂試算表!F106 -> 00:00:00 | E97: =計得掂試算表!G106 -> 00:00:00 | F97: =計得掂試算表!L106 -> 月薪僱員 | G97: =計得掂試算表!O106 -> 0 | H97: =計得掂試算表!P106 -> 0 | I97: =計得掂試算表!AD106 -> 0 | J97: =計得掂試算表!AT106 -> 0 | K97: =計得掂試算表!AU106 -> 0 | L97: =計得掂試算表!AV106 -> 強積金計劃 | M97: =計得掂試算表!AX106 -> MC -> VC | N97: =計得掂試算表!AZ106 -> 0 | O97: =計得掂試算表!BA106 -> 0 | P97: =計得掂試算表!BB106 -> 0 | Q97: =計得掂試算表!BS106 -> N/A | R97: =計得掂試算表!BU106 -> N/A | S97: =計得掂試算表!BV106 -> 沒有 | T97: =計得掂試算表!BY106 -> 0 | U97: =計得掂試算表!BZ106 -> 0 | V97: =計得掂試算表!CA106 -> 0 | W97: =計得掂試算表!CB106 -> 0 | X97: =計得掂試算表!CC106 -> 0 | Y97: =計得掂試算表!CD106 -> 0 | Z97: =計得掂試算表!CH106 -> N/A | AA97: =計得掂試算表!CL106 -> 0 | AB97: =計得掂試算表!CM106 -> N/A | AC97: =計得掂試算表!CO106 -> 不超過50萬元 | AD97: =計得掂試算表!CQ106 -> 0 | AE97: =計得掂試算表!CR106 -> 0 | AF97: =計得掂試算表!CW106 -> 0 | AG97: =計得掂試算表!CX106 -> 0 | AH97: =計得掂試算表!CY106 -> 0 | AI97: =計得掂試算表!CZ106 -> 0 | AJ97: =計得掂試算表!DA106 -> 0 | AK97: =計得掂試算表!DB106 -> 0 | AL97: =計得掂試算表!DC106 -> 0
A98: =計得掂試算表!A107 -> 98 | B98: =計得掂試算表!B107 -> 0 | C98: =計得掂試算表!C107 -> 請選擇 | D98: =計得掂試算表!F107 -> 00:00:00 | E98: =計得掂試算表!G107 -> 00:00:00 | F98: =計得掂試算表!L107 -> 月薪僱員 | G98: =計得掂試算表!O107 -> 0 | H98: =計得掂試算表!P107 -> 0 | I98: =計得掂試算表!AD107 -> 0 | J98: =計得掂試算表!AT107 -> 0 | K98: =計得掂試算表!AU107 -> 0 | L98: =計得掂試算表!AV107 -> 強積金計劃 | M98: =計得掂試算表!AX107 -> MC -> VC | N98: =計得掂試算表!AZ107 -> 0 | O98: =計得掂試算表!BA107 -> 0 | P98: =計得掂試算表!BB107 -> 0 | Q98: =計得掂試算表!BS107 -> N/A | R98: =計得掂試算表!BU107 -> N/A | S98: =計得掂試算表!BV107 -> 沒有 | T98: =計得掂試算表!BY107 -> 0 | U98: =計得掂試算表!BZ107 -> 0 | V98: =計得掂試算表!CA107 -> 0 | W98: =計得掂試算表!CB107 -> 0 | X98: =計得掂試算表!CC107 -> 0 | Y98: =計得掂試算表!CD107 -> 0 | Z98: =計得掂試算表!CH107 -> N/A | AA98: =計得掂試算表!CL107 -> 0 | AB98: =計得掂試算表!CM107 -> N/A | AC98: =計得掂試算表!CO107 -> 不超過50萬元 | AD98: =計得掂試算表!CQ107 -> 0 | AE98: =計得掂試算表!CR107 -> 0 | AF98: =計得掂試算表!CW107 -> 0 | AG98: =計得掂試算表!CX107 -> 0 | AH98: =計得掂試算表!CY107 -> 0 | AI98: =計得掂試算表!CZ107 -> 0 | AJ98: =計得掂試算表!DA107 -> 0 | AK98: =計得掂試算表!DB107 -> 0 | AL98: =計得掂試算表!DC107 -> 0
A99: =計得掂試算表!A108 -> 99 | B99: =計得掂試算表!B108 -> 0 | C99: =計得掂試算表!C108 -> 請選擇 | D99: =計得掂試算表!F108 -> 00:00:00 | E99: =計得掂試算表!G108 -> 00:00:00 | F99: =計得掂試算表!L108 -> 月薪僱員 | G99: =計得掂試算表!O108 -> 0 | H99: =計得掂試算表!P108 -> 0 | I99: =計得掂試算表!AD108 -> 0 | J99: =計得掂試算表!AT108 -> 0 | K99: =計得掂試算表!AU108 -> 0 | L99: =計得掂試算表!AV108 -> 強積金計劃 | M99: =計得掂試算表!AX108 -> MC -> VC | N99: =計得掂試算表!AZ108 -> 0 | O99: =計得掂試算表!BA108 -> 0 | P99: =計得掂試算表!BB108 -> 0 | Q99: =計得掂試算表!BS108 -> N/A | R99: =計得掂試算表!BU108 -> N/A | S99: =計得掂試算表!BV108 -> 沒有 | T99: =計得掂試算表!BY108 -> 0 | U99: =計得掂試算表!BZ108 -> 0 | V99: =計得掂試算表!CA108 -> 0 | W99: =計得掂試算表!CB108 -> 0 | X99: =計得掂試算表!CC108 -> 0 | Y99: =計得掂試算表!CD108 -> 0 | Z99: =計得掂試算表!CH108 -> N/A | AA99: =計得掂試算表!CL108 -> 0 | AB99: =計得掂試算表!CM108 -> N/A | AC99: =計得掂試算表!CO108 -> 不超過50萬元 | AD99: =計得掂試算表!CQ108 -> 0 | AE99: =計得掂試算表!CR108 -> 0 | AF99: =計得掂試算表!CW108 -> 0 | AG99: =計得掂試算表!CX108 -> 0 | AH99: =計得掂試算表!CY108 -> 0 | AI99: =計得掂試算表!CZ108 -> 0 | AJ99: =計得掂試算表!DA108 -> 0 | AK99: =計得掂試算表!DB108 -> 0 | AL99: =計得掂試算表!DC108 -> 0
A100: =計得掂試算表!A109 -> 0 | B100: =計得掂試算表!B109 -> 0 | C100: =計得掂試算表!C109 -> 0 | D100: =計得掂試算表!F109 -> 00:00:00 | E100: =計得掂試算表!G109 -> 00:00:00 | F100: =計得掂試算表!L109 -> 0 | G100: =計得掂試算表!O109 -> 0 | H100: =計得掂試算表!P109 -> 0 | I100: =計得掂試算表!AD109 -> 0 | J100: =計得掂試算表!AT109 -> 0 | K100: =計得掂試算表!AU109 -> 0 | L100: =計得掂試算表!AV109 -> 0 | M100: =計得掂試算表!AX109 -> 0 | N100: =計得掂試算表!AZ109 -> 0 | O100: =計得掂試算表!BA109 -> 0 | P100: =計得掂試算表!BB109 -> 0 | Q100: =計得掂試算表!BS109 -> 0 | R100: =計得掂試算表!BU109 -> 0 | S100: =計得掂試算表!BV109 -> 0 | T100: =計得掂試算表!BY109 -> 0 | U100: =計得掂試算表!BZ109 -> 0 | V100: =計得掂試算表!CA109 -> 0 | W100: =計得掂試算表!CB109 -> 0 | X100: =計得掂試算表!CC109 -> 0 | Y100: =計得掂試算表!CD109 -> 0 | Z100: =計得掂試算表!CH109 -> 0 | AA100: =計得掂試算表!CL109 -> 0 | AB100: =計得掂試算表!CM109 -> 0 | AC100: =計得掂試算表!CO109 -> Total: | AD100: =計得掂試算表!CQ109 -> 0 | AE100: =計得掂試算表!CR109 -> 0 | AF100: =計得掂試算表!CW109 -> 0 | AG100: =計得掂試算表!CX109 -> 0 | AH100: =計得掂試算表!CY109 -> 0 | AI100: =計得掂試算表!CZ109 -> 0 | AJ100: =計得掂試算表!DA109 -> 0 | AK100: =計得掂試算表!DB109 -> 0 | AL100: =計得掂試算表!DC109 -> 0

Sheet 注意事項
D1: 更新日期：2025 年 8 月 20 日
A3: 為配合 2025 年 5 月 1 日取消強積金「對沖」安排，勞工處推行取消強積金「對沖」安排資助計劃（資助計劃）。
A5: 資助計劃為僱主提供為期 25 年的資助，分擔僱主就僱員在 2025 年 5 月 1 日及之後的僱用期所衍生的遣散費／長期服務金（長服金）（即遣散費／長服金轉制後部分）的支出。
A6: 在資助期內，資助比率會按年遞減，協助僱主逐步適應政策轉變。
A8: 勞工處的網上計算工具「計得掂」( | B8: https://www.offsettingsubsidy.gov.hk/tc/calculator.html | C8: )旨在協助僱主計算取消強積金「對沖」安排生效後的遣散費／長服金支出（不多於五位僱員），
A9: 及估算政府資助款額。「計得掂」試算表（本試算表）則提供快捷方式讓僱主就大批僱員（不多於99位）作相關計算及估算。如欲了解計算詳情，請參考網上計算工具「計得掂」。
A11: 注意事項：
A13: 1) 為確保電腦和資訊科技安全，使用者應從援「沖」易網站下載 「計得掂」試算表，而不應使用從其他網站下載或經轉發接收的檔案。勞工處對於因下載及／或使用本試算表所引致的 任何損失、損害、費用或開支，一概不會承擔任何責任。
A16: 2) 勞工處建議使用者於利用「計得掂」試算表前，先到援「沖」易網站查閱試算表的版本資料，或重新下載試算表，以確保所使用的為最新版本。
A18: 3) 請使用 MS Excel 2019 或較新的版本開啟及使用本試算表。
A20: 4) 本試算表是根據《2022年僱傭及退休計劃法例(抵銷安排)(修訂)條例》的條文、使用者輸入的資料以及一些假設情況作運算，計算步驟和結果只作初步參考和示範用途。
A21: 使用者須根據僱傭合約的條款及僱員受僱的具體情況，以準確計算僱員的相關法定權益。
A23: 5) 本試算表假定僱員整段僱傭期均受強積金制度涵蓋，如僱員整段或部分僱傭期不受強積金制度涵蓋（例如僱員年滿 65 歲後的僱傭期），本試算表提供的計算結果或與實際情況有所不同。
A25: 6) 勞工處對於因使用／未能使用本試算表，或因使用／引用本試算表的資料或內容所引致的任何損失、損害、費用或開支，一概不會承擔任何責任。
A26: 任何人士不應將本試算表所提供的資料用於法律程序，或作為申索的證據。
A28: 7) 數字的進位：由於數字經下捨 (除計算政府資助款額的部分經下捨)，分項總和未必與總數相等。
A30: 8) 本試算表不會就所輸入的數值進行邏輯核實，使用者必須留意輸入正確資料／數值。
A32: 9) 請依順序輸入各項所需資料及避免直接複製並貼上數值於表格內，因為這可能會繞過試算表中預設的驗證規則。
A34: 10) 輸入的資料會自動儲存於「排序或篩選檢視」內以供使用者作排序或篩選之用。
A36: 11) 計算須知：
A37: - 僱員終止僱傭合約的有關日期須在 2025 年 5 月 1 日至 2050 年 4 月 30 日之間（包括首尾兩日）。
A38: - 根據《僱傭條例》，僱員必須於終止僱傭合約的有關日期前按連續性合約受僱不少於24個月，才能享有遣散費。
A39: - 根據《僱傭條例》，僱員必須於終止僱傭合約的有關日期前按連續性合約受僱不少於5年，才能享有長服金。
A40: - 根據《僱傭條例》，在計算遣散費／長服金時，就月薪僱員而言，「轉制日」前的工資 / 終止僱傭合約前的工資上限為$22,500；就非月薪僱員而言，其上限為$22,500的三分之二（即$15,000）。
A41: - 根據《僱傭條例》，遣散費／長服金的最高款額為$390,000。如僱員的遣散費／長服金總額超過$390,000，超出上限的款額須從轉制後部分扣減。
A42: - 就參加職業退休計劃的僱員，「剔除款項」及「利益餘額」的計算公式如下：
A43: 「剔除款項」：最終每月平均有關入息（現時的上限為$30,000） × 享有職業退休計劃利益的服務年數（只計算2000年12月1日或以後的服務年數） × 5% × 12
A44: 「利益餘額」：職業退休計劃既有利益 –「剔除款項」
A46: 12) 有關計算法定權益的詳情，應以相關的法例原文為依歸。
A47: ̶

Sheet 計得掂試算表
A2: 「計得掂」試算表 (計算取消強積金「對沖」安排後遣散費／長期服務金支出及政府資助)
A3: 2025-05-01 | F3: 第一部分 - 僱員的資料 | AD3: 第二部分 - 計算「對沖」金額及須支付的遣散費／長期服務金總額 | CO3: 第三部分 - 計算取消強積金「對沖」安排資助計劃款額 | CY3: 第四部分 - 總結
A4: 序號 | B4: 僱員姓名 | C4: 計算遣散費／ 長期服務金 | F4: (1) 開始受僱日期 | G4: (2) 終止僱傭合約的 有關日期 | L4: (3) 月薪僱員／ 非月薪僱員 | O4: (4) 「轉制日」前的工資 如僱員為月薪僱員： 請輸入僱員在轉制日前最後一個月的工資／ 12個月的每月平均工資 如僱員為非月薪僱員： 請輸入僱員在轉制日前最後工作的30個 正常工作日中選取的任何18 天的工資總和／ 最後12個月每日平均工資的18倍 | P4: (5) 終止僱傭合約前的工資 如僱員為月薪僱員： 請輸入僱員在終止僱傭合約前最後一個月的 工資／12個月的每月平均工資 如僱員為非月薪僱員： 請輸入僱員在終止僱傭合約前最後工作的 30個正常工作日中選取的任何18 天的工資 總和／最後12個月每日平均工資的18倍 | Q4: 遣散費／長期服務金轉制前部分的計算： | AD4: (6) 遣散費／長期服務金 轉制前部分款額 | AT4: (7) 遣散費／長期服務金 轉制後部分款額 | AU4: (8) 遣散費／長期服務金 總額 | AV4: (9) 僱員是參加強積金計劃／ 獲強積金豁免的職業退休 計劃? | AX4: (10) 你選擇的遣散費／長期服務金「對沖」次序為? 強積金計劃： 先以僱主強積金強制性供款累算權益「對沖」，再以 自願性供款（及其他自願性權益／利益，如有）「對沖」 (MC -> VC) 或相反次序 (VC -> MC) 職業退休計劃： 先以職業退休計劃「剔除款項」「對沖」，再以 自願性供款（及其他自願性權益／利益，如有）「對沖」(MC -> VC)或相反次序 (VC -> MC) | AZ4: 適用於強積金計劃 | BA4: 適用於獲強積金豁免的職業退休計劃 | BV4: (16) 你有否向僱員提供以下權益／利益， 並用作「對沖」僱員的遣散費／長期服 務金？ 強積金計劃： 強積金自願性供款累算權益／ 按僱員 服務年數支付的酬金／非強積金豁免的 職業退休計劃利益 職業退休計劃： 「利益餘額」／ 按僱員服務年數支付的 酬金／非強積金豁免的職業退休計劃利益 | BY4: 適用於強積金計劃 | CC4: 適用於獲強積金豁免的職業退休計劃 | CE4: 遣散費／長服金的「對沖」安排 | CH4: (23) 經「對沖」後 須支付的轉制前 部分款額 | CL4: (24) 經「對沖」後 須支付的轉制後 部分款額 | CM4: (25) 經「對沖」後僱主 須支付的遣散費/ 長期服務金總額 | CO4: (26) 該資助年度就所有僱員的 遣散費／長期服務金轉制後 部分須支付的累積總額 | CQ4: (27) 僱員在取消 「對沖」後 第N年離職 | CR4: (28) 就遣散費／長服金轉制後部分，你可獲得的資助比率 | CW4: (29) 就遣散費／長服金 轉制後部分，你可 獲得的政府資助 款額 | CX4: (30) 在取消強積金 「對沖」安排資助 計劃下，你須支付 的遣散費轉制後 部分款額 | CY4: (31) 僱員的遣散費／ 長期服務金總額 | CZ4: (32) 用作「對沖」的 款項 | DA4: (33) 經「對沖」後僱主 須支付的遣散費／ 長期服務金 | DB4: (34) 我可得的政府資助 款額 | DC4: (35) 扣除政府資助後我 須支付的遣散費／ 長期服務金
D5: Ensures C8 prompts for a valid selection and assigns numeric values (1, 2) for specific options, defaulting to 0 for invalid or unselected states. | E5: 取消「對沖」安排的生效日期（轉制日） | Q5: I （轉制前的工資） （以$22,500為上限） | R5: ratio | S5: no. of year | V5: no. of working day | Y5: no. of years | AB5: N?/O? | AC5: （轉制日前的服務年資） | AE5: ii （終止僱傭合約前的工資） （以$22,500為上限） | AF5: ratio | AH5: no. of year | AK5: no. of working day | AN5: no. of years | AQ5: N?/O? | AR5: （轉制日後的服務年資） | AZ5: (11) 用作「對沖」 轉制前部分的 僱主強積金強制性 供款的累算權益 | BA5: (12)僱主獲強積金豁免 的職業退休計劃 既有利益 | BB5: (13) 僱員最終每月 平均有關入息 | BC5: ii （最終每月平均有關入息） （以$30,000為上限） | BF5: no. of year | BI5: no. of working day | BL5: no. of years | BO5: N?/O? | BP5: （享有職業退休計劃利益的服務年數） | BQ5: 0.05 | BR5: 12 | BS5: (14)「剔除款項」 (只可用作「對沖」僱員的遣散費／長期服務金轉制前部分) | BT5: (15)「利益餘額」： | BU5: (15)「利益餘額」 (可用作「對沖」僱員的遣散費／長期服務金轉制前或轉制後部分） | BX5: K+AV+AX | BY5: (17) 用作「對沖」的 僱主強積金自願性 供款的累算權益 | BZ5: (18) 用作「對沖」的 按僱員服務年資 支付的酬金 | CA5: (19) 用作「對沖」的 非強積金豁免的 職業退休計劃利益 | CB5: (20) 用作「對沖」的 「利益餘額」 | CC5: (21) 用作「對沖」的 按僱員服務年資 支付的酬金 | CD5: (22) 用作「對沖」的 非強積金豁免的 職業退休計劃利益 | CF5: 僱主強積金 強制性供款的累算權益 | CG5: 剔除款項： | CI5: 剩餘的僱主強積金自願性供款累算權益／酬金／非強積金豁免的職業退休計劃利益總額 | CK5: 經「對沖」轉制前部分後 剩餘的僱主強積金自願性供款累算權益／酬金／非強積金豁免的職業退休計劃利益總額 | CN5: 適用/不適用 取消強積金「對沖」安排資助計劃 0/N/A = Not applicable 1 =applicable | CP5: 每年遣散費／長服金支出總額 | CS5: 可獲得的資助比率 | CT5: 可獲得的資助金額 | CU5: 「封頂」金額 | CV5: 超出「封頂」金額的餘額
C6: 必填項目 | F6: 必填項目 | G6: 必填項目 | L6: 必填項目 | O6: 必填項目 | P6: 必填項目 | AV6: 必填項目 | AX6: 必填項目 | AZ6: 必填項目 | BA6: 必填項目 | BB6: 必填項目 | BV6: 必填項目 | BY6: 必填項目 | BZ6: 必填項目 | CA6: 必填項目 | CB6: 必填項目 | CC6: 必填項目 | CD6: 必填項目 | CO6: 必填項目
A7: 例子1 | B7: 陳XX | C7: 遣散費 | D7: =IF(OR(C7="", C7="Pls select"), 0, IF(C7=Pulldown!$F$2, 1, IF(C7=Pulldown!$F$3, 2, 0))) -> 1 | E7: =$A$3 -> 2025-05-01 | F7: 2020-01-01 | G7: 2026-05-01 | H7: =IF(OR(F7="",G7=""),"Input Required", IF(G7<F7,"Invalid Date Order", IF(G7<E7,"Date Before Transition", IF(D7=1,IF(DATEDIF(F7,G7+1,"y")>=2,"1-valid","1-invalid"), IF(D7=2,IF(DATEDIF(F7,G7+1,"y")>=5,"2-valid","2-invalid"),"Invalid Category"))))) -> 1-valid | I7: =IFERROR(CHOOSE(MATCH($H7,{"1-valid","2-valid","Input Required","Date Before Transition"},0),1,2,3,4),0) -> 1 | J7: =IF(OR(F7="",G7=""),"Input Required",IF(F7>=E7,"轉制日後開始受僱",IF(E7>F7,"轉制日前開始受僱","Invalid Category"))) -> 轉制日前開始受僱 | K7: =IFERROR(CHOOSE(MATCH($J7,{"轉制日前開始受僱","轉制日後開始受僱"},0),1,2),0) -> 1 | L7: 月薪僱員 | M7: =IFERROR(CHOOSE(MATCH($L7,Pulldown!$C$1:$C$2,0),22500,15000),0) -> 22500 | N7: =IFERROR(CHOOSE(MATCH($L7,Pulldown!$C$1:$C$2,0),2/3,1),0) -> 0.6666666667 | O7: 10000 | P7: 18000 | Q7: =IF(OR(I7=1, I7=2), IF(K7=0, "", IF(K7=1, IF(OR(M7="N/A", O7="N/A"), "N/A", IF(OR(M7="", O7=""), "", MIN(M7, O7))), IF(K7=2, "N/A", ""))), "") -> 10000 | R7: =$N7 -> 0.6666666667 | S7: =IF(OR(I7=1, I7=2), IF((F7<=E7),(DATEDIF(F7,E7,"Y")),"N/A"), "") -> 5 | T7: =IF(OR(I7=1, I7=2), IF(F7>E7, F7, F7), "") -> 2020-01-01 | U7: =IF(OR(I7=1, I7=2), IF(F7>E7, E7-1, E7-1), "") -> 2025-04-30 | V7: =IF(OR(I7=1, I7=2), IF(F7>E7, "N/A", E7-DATE(YEAR(F7)+S7, MONTH(F7), DAY(F7))), "") -> 120 | W7: =IF(OR(I7=1, I7=2), IF(F7>E7, DATE(YEAR(E7), MONTH(F7), DAY(F7)), DATE(YEAR(F7)+S7, MONTH(F7), DAY(F7))), "") -> 2025-01-01 | X7: =IF(OR(I7=1, I7=2), IF(F7>E7, E7-1, E7-1), "") -> 2025-04-30 | Y7: =IF(OR(I7=1, I7=2), IF(F7>E7, "N/A", DATE(YEAR(W7)+1, MONTH(W7), DAY(W7))-W7), "") -> 365 | Z7: =IF(OR(I7=1, I7=2), IF(F7>E7, DATE(YEAR(E7), MONTH(F7), DAY(F7)), DATE(YEAR(F7)+S7, MONTH(F7), DAY(F7))), "") -> 2025-01-01 | AA7: =IF(OR(I7=1, I7=2), IF(F7>E7, DATE(YEAR(W7)+1, MONTH(W7), DAY(W7))-1, DATE(YEAR(W7)+1, MONTH(W7), DAY(W7))-1), "") -> 2025-12-31 | AB7: =IF(OR(S7="N/A", V7="N/A", Y7="N/A"), "N/A", IF(OR(S7="", V7="", Y7="", Y7=0), "", V7/Y7)) -> 0.3287671233 | AC7: =IF(AB7="N/A", "N/A", IF(AB7="", "", S7 + AB7)) -> 5.328767123 | AD7: =IF(OR(Q7="N/A", R7="N/A", AC7="N/A"), "N/A", IF(OR(Q7="", R7="", AC7=""), 0, ROUND(MIN(390000, Q7*R7*AC7), 2))) -> 35525.11 | AE7: =IF(OR(I7=1, I7=2), IF(K7=0, "", IF(OR(K7=1, K7=2), IF(OR(M7="N/A", P7="N/A"), "N/A", IF(OR(M7="", P7=""), "", MIN(M7, P7))), "")), "") -> 18000 | AF7: =$N7 -> 0.6666666667 | AG7: =IF(E7>F7,E7,F7) -> 2025-05-01 | AH7: =IF(OR(I7=1, I7=2), IF(F7<=E7, DATEDIF(E7, G7, "Y"), DATEDIF(F7, G7, "Y")), "") -> 1 | AI7: =IF(OR(I7=1, I7=2), IF(F7<=E7, E7, F7), "") -> 2025-05-01 | AJ7: =IF(OR(I7=1, I7=2), G7, "") -> 2026-05-01 | AK7: =IF(OR(I7=1, I7=2), IF(F7<=E7, G7-DATE(YEAR(E7)+AH7, MONTH(E7), DAY(E7)), G7-DATE(YEAR(F7)+AH7, MONTH(F7), DAY(F7)))+1, "") -> 1 | AL7: =IF(OR(I7=1, I7=2), IF(F7<=E7, DATE(YEAR(E7)+AH7, MONTH(E7), DAY(E7)), DATE(YEAR(F7)+AH7, MONTH(F7), DAY(F7))), "") -> 2026-05-01 | AM7: =IF(OR(I7=1, I7=2), G7, "") -> 2026-05-01 | AN7: =IF(OR(I7=1, I7=2), IF(F7<=E7, DATE(YEAR(E7)+AH7+1, MONTH(E7), DAY(E7))-DATE(YEAR(E7)+AH7, MONTH(E7), DAY(E7)), DATE(YEAR(F7)+AH7+1, MONTH(F7), DAY(F7))-DATE(YEAR(F7)+AH7, MONTH(F7), DAY(F7))), "") -> 365 | AO7: =IF(OR(I7=1, I7=2), IF(F7<=E7, DATE(YEAR(E7)+AH7, MONTH(E7), DAY(E7)), DATE(YEAR(F7)+AH7, MONTH(F7), DAY(F7))), "") -> 2026-05-01 | AP7: =IF(OR(I7=1, I7=2), IF(F7<=E7, DATE(YEAR(E7)+AH7+1, MONTH(E7), DAY(E7)), DATE(YEAR(F7)+AH7+1, MONTH(F7), DAY(F7)))-1, "") -> 2027-04-30 | AQ7: =IF(OR(AH7="N/A", AK7="N/A", AN7="N/A"), "N/A", IF(OR(AH7="", AK7="", AN7="", AN7=0), "", AK7/AN7)) -> 0.002739726027 | AR7: =IF(AQ7="N/A", "N/A", IF(AQ7="", "", AH7 + AQ7)) -> 1.002739726 | AS7: =IF(OR(AE7="N/A", AF7="N/A", AR7="N/A"), "N/A", IF(OR(AE7="", AF7="", AR7=""), 0, ROUND(MIN(390000, AE7*AF7*AR7),2))) -> 12032.88 | AT7: =IF(AD7="N/A", AS7, IFERROR(IF(AD7+AS7>=390000, 390000-AD7, AS7), AS7)) -> 12032.88 | AU7: =IFERROR(ROUNDDOWN(MIN(SUM(AD7, AS7), 390000), 2), 0) -> 47557.99 | AV7: 強積金計劃 | AW7: =IF(AV7="",0,IFERROR(CHOOSE(MATCH(AV7,Pulldown!$B$2:$B$3,0),1,2),0)) -> 1 | AX7: MC -> VC | AY7: =IF(AX7="",0,IFERROR(CHOOSE(MATCH(AX7,Pulldown!$G$1:$G$2,0),1,2),0)) -> 1 | AZ7: 150000 | BA7: 0 | BB7: 0 | BC7: =IF(AW7=1, "N/A", IF(BB7="", 0, MIN(30000, BB7))) -> N/A | BD7: =IF(AW7=1,"N/A",(MAX("1/12/2000",F7))) -> N/A | BE7: =IF(AW7=1,"N/A",G7) -> N/A | BF7: =IF(AW7=1, "N/A", IF(AW7=2, IFERROR(IF(OR(NOT(ISNUMBER(BD7)), NOT(ISNUMBER(BE7)), BD7<DATE(1900,1,1), BE7<DATE(1900,1,1), BE7<BD7), "N/A", DATEDIF(BD7, BE7, "Y")), "N/A"), "")) -> N/A | BG7: =IF(AW7=1, "N/A", IF(AW7=2, BD7, "")) -> N/A | BH7: =IF(AW7=1, "N/A", IF(AW7=2, DATE(YEAR(BE7), MONTH(BD7), DAY(BD7)-1), "")) -> N/A | BI7: =IF(AW7=1, "N/A", IF(AW7=2, IFERROR(IF(OR(NOT(ISNUMBER(BD7)), NOT(ISNUMBER(BE7)), BD7<DATE(1900,1,1), BE7<DATE(1900,1,1), BE7<BD7), "N/A", BE7 - DATE(YEAR(BD7) + BF7, MONTH(BD7), DAY(BD7)) + 1), "N/A"), "")) -> N/A | BJ7: =IF(AW7=1, "N/A", IF(AW7=2, IFERROR(IF(OR(NOT(ISNUMBER(BD7)), NOT(ISNUMBER(BE7)), BD7<DATE(1900,1,1), BE7<DATE(1900,1,1), BE7<BD7), "N/A", DATE(YEAR(BD7) +BF7, MONTH(BD7), DAY(BD7))), "N/A"), "")) -> N/A | BK7: =IF(AW7=1, "N/A", IF(AW7=2, BE7, "")) -> N/A | BL7: =IF(AW7=1, "N/A", IF(AW7=2, IF(OR(NOT(ISNUMBER(BD7)), NOT(ISNUMBER(BE7)), BD7<DATE(1900,1,1), BE7<DATE(1900,1,1), BE7<BD7, BF7="N/A", BF7="", NOT(ISNUMBER(BF7))), "N/A", IFERROR( IF(AND(ISNUMBER(DATE(YEAR(BD7)+BF7+1, MONTH(BD7), DAY(BD7)-1)), ISNUMBER(DATE(YEAR(BD7)+BF7, MONTH(BD7), DAY(BD7)))), DATE(YEAR(BD7)+BF7+1, MONTH(BD7), DAY(BD7)-1) - DATE(YEAR(BD7)+BF7, MONTH(BD7), DAY(BD7)) + 1, "N/A"), "N/A")), "")) -> N/A | BM7: =IF(AW7=1, "N/A", IF(AW7=2, IFERROR(IF(OR(NOT(ISNUMBER(BD7)), NOT(ISNUMBER(BE7)), BD7<DATE(1900,1,1), BE7<DATE(1900,1,1), BE7<BD7), "N/A", DATE(YEAR(BD7) + BF7, MONTH(BD7), DAY(BD7))), "N/A"), "")) -> N/A | BN7: =IF(AW7=1, "N/A", IF(AW7=2, IF(OR(NOT(ISNUMBER(BD7)), NOT(ISNUMBER(BE7)), BD7<DATE(1900,1,1), BE7<DATE(1900,1,1), BE7<BD7, BF7="N/A", BF7="", NOT(ISNUMBER(BF7))), "N/A", IFERROR( IF(ISNUMBER(DATE(YEAR(BD7)+BF7+1, MONTH(BD7), DAY(BD7)-1)), DATE(YEAR(BD7)+BF7+1, MONTH(BD7), DAY(BD7)-1), "N/A"), "N/A")), "")) -> N/A | BO7: =IF($AW7=1, "N/A", IF($AW7=2, IF(OR(NOT(ISNUMBER(BD7)), NOT(ISNUMBER(BE7)), BD7<DATE(1900,1,1), BE7<DATE(1900,1,1), BE7<BD7, BF7="N/A", BF7="", NOT(ISNUMBER(BF7)), BI7="N/A", NOT(ISNUMBER(BI7)), BL7="N/A", NOT(ISNUMBER(BL7)), BL7=0), "N/A", IFERROR(BI7/BL7, "N/A")), "")) -> N/A | BP7: =IF($AW7=1, "N/A", IF($AW7=2, IF(OR(NOT(ISNUMBER(BD7)), NOT(ISNUMBER(BE7)), BD7<DATE(1900,1,1), BE7<DATE(1900,1,1), BE7<BD7, BF7="N/A", BF7="", NOT(ISNUMBER(BF7)), BO7="N/A", NOT(ISNUMBER(BO7))), "N/A", IFERROR(BF7+BO7, "N/A")), "")) -> N/A | BQ7: =IF($AW7=1,"N/A",($BQ$5)) -> N/A | BR7: =IF($AW7=1,"N/A",($BR$5)) -> N/A | BS7: =IF($AW7=1, "N/A", IF($AW7=2, IF(OR(NOT(ISNUMBER(BD7)), NOT(ISNUMBER(BE7)), BD7<DATE(1900,1,1), BE7<DATE(1900,1,1), BE7<BD7, BF7="N/A", BF7="", NOT(ISNUMBER(BF7)), BP7="N/A", NOT(ISNUMBER(BP7)), NOT(ISNUMBER(BA7)), NOT(ISNUMBER(BC7)), NOT(ISNUMBER(BQ7)), NOT(ISNUMBER(BR7))), "N/A", IFERROR(MIN(ROUND(BA7,2), ROUND(BC7*BP7*BQ7*BR7,2)), "N/A")), "")) -> N/A | BT7: =IF($AW7=1, "N/A", IF($AW7=2, IF(OR(NOT(ISNUMBER(BD7)), NOT(ISNUMBER(BE7)), BD7<DATE(1900,1,1), BE7<DATE(1900,1,1), BE7<BD7, BF7="N/A", BF7="", NOT(ISNUMBER(BF7)), BS7="N/A", NOT(ISNUMBER(BS7)), NOT(ISNUMBER(BA7))), "N/A", IF(BA7="", 0, IFERROR(BA7 - ROUNDDOWN(BS7,2), "N/A"))), "")) -> N/A | BU7: =IF(ISNA(INDIRECT("BT" & ROW())), "N/A", INDIRECT("BT" & ROW())) -> N/A | BV7: 沒有 | BW7: =IF(BV7="",0,IFERROR(CHOOSE(MATCH(BV7,Pulldown!$H$1:$H$2,0),1,2),0)) -> 2 | BX7: =CONCATENATE(K7,AW7,AY7) -> 111 | BY7: 0 | BZ7: 0 | CA7: 0 | CB7: 0 | CC7: 0 | CD7: 0 | CE7: =IF((AD7="N/A"),"N/A",(MIN(390000,AD7))) -> 35525.11 | CF7: =IF($AW7=1, IF($AD7="N/A", "N/A", IF($AZ7="", 0, $AZ7)), "N/A") -> 150000 | CG7: =IF($AW7=2,(IF((AD7="N/A"),"N/A",(BS7))),"N/A") -> N/A | CH7: =IFERROR( IF(BW7=2, IF(OR(BX7="211",BX7="212",BX7="221",BX7="222"),"N/A", IF(AND(ISTEXT(BX7),BX7="111",AW7=1),MAX(0,CE7-CF7), IF(AND(ISTEXT(BX7),BX7="112",AW7=1),MAX(0,CE7-CF7), IF(AND(ISTEXT(BX7),BX7="121",AW7=2),MAX(0,CE7-CG7), IF(AND(ISTEXT(BX7),BX7="122",AW7=2),MAX(0,CE7-CG7),"N/A"))))), IF(BW7=1, IF(OR(BX7="211",BX7="212",BX7="221",BX7="222"),"N/A", IF(AND(ISTEXT(BX7),BX7="111",AW7=1), MAX(0,CE7-CF7-IF(OR(ISBLANK(BY7),NOT(ISNUMBER(BY7))),0,BY7)-IF(OR(ISBLANK(BZ7),NOT(ISNUMBER(BZ7))),0,BZ7)-IF(OR(ISBLANK(CA7),NOT(ISNUMBER(CA7))),0,CA7)), IF(AND(ISTEXT(BX7),BX7="112",AW7=1), MAX(0,CE7-IF(OR(ISBLANK(BY7),NOT(ISNUMBER(BY7))),0,BY7)-IF(OR(ISBLANK(BZ7),NOT(ISNUMBER(BZ7))),0,BZ7)-IF(OR(ISBLANK(CA7),NOT(ISNUMBER(CA7))),0,CA7)-CF7), IF(AND(ISTEXT(BX7),BX7="121",AW7=2), MAX(0,CE7-CG7-IF(OR(ISBLANK(CB7),NOT(ISNUMBER(CB7))),0,CB7)-IF(OR(ISBLANK(CC7),NOT(ISNUMBER(CC7))),0,CC7)-IF(OR(ISBLANK(CD7),NOT(ISNUMBER(CD7))),0,CD7)), IF(AND(ISTEXT(BX7),BX7="122",AW7=2), MAX(0,CE7-IF(OR(ISBLANK(CB7),NOT(ISNUMBER(CB7))),0,CB7)-IF(OR(ISBLANK(CC7),NOT(ISNUMBER(CC7))),0,CC7)-IF(OR(ISBLANK(CD7),NOT(ISNUMBER(CD7))),0,CD7)-CG7),"N/A"))))), "N/A")),"Calculation error") -> 0 | CI7: =IFERROR( IF(BW7=2, IFERROR( IF(OR(BX7="211", BX7="212", BX7="221", BX7="222"), "N/A", IF(AND(ISTEXT(BX7), BX7="111", AW7=1), 0-MIN(0,MAX(CE7-CF7,0))+0-MIN(0,MAX(CE7-CF7-0,0))+0-MIN(0,MAX(CE7-CF7-0-0,0)), IF(AND(ISTEXT(BX7), BX7="112", AW7=1), 0-MIN(0,MAX(CE7,0))+0-MIN(0,MAX(CE7-0,0))+0-MIN(0,MAX(CE7-0-0,0)), IF(AND(ISTEXT(BX7), BX7="121", AW7=2), 0-MIN(0,MAX(CE7-CG7,0))+0-MIN(0,MAX(CE7-CG7-0,0))+0-MIN(0,MAX(CE7-CG7-0-0,0)), IF(AND(ISTEXT(BX7), BX7="122", AW7=2), 0-MIN(0,MAX(CE7,0))+0-MIN(0,MAX(CE7-0,0))+0-MIN(0,MAX(CE7-0-0,0)), "Invalid case" ) ) ) ) ), "Calculation error" ), IF(BW7=1, IFERROR( IF(OR(BX7="211", BX7="212", BX7="221", BX7="222"), "N/A", IF(AND(ISTEXT(BX7), BX7="111", AW7=1), IF(ISBLANK(BY7), 0, BY7)-MIN(IF(ISBLANK(BY7), 0, BY7),MAX(CE7-CF7,0)) + IF(ISBLANK(BZ7), 0, BZ7)-MIN(IF(ISBLANK(BZ7), 0, BZ7),MAX(CE7-CF7-IF(ISBLANK(BY7), 0, BY7),0)) + IF(ISBLANK(CA7), 0, CA7)-MIN(IF(ISBLANK(CA7), 0, CA7),MAX(CE7-CF7-IF(ISBLANK(BY7), 0, BY7)-IF(ISBLANK(BZ7), 0, BZ7),0)), IF(AND(ISTEXT(BX7), BX7="112", AW7=1), IF(ISBLANK(BY7), 0, BY7)-MIN(IF(ISBLANK(BY7), 0, BY7),MAX(CE7,0)) + IF(ISBLANK(BZ7), 0, BZ7)-MIN(IF(ISBLANK(BZ7), 0, BZ7),MAX(CE7-IF(ISBLANK(BY7), 0, BY7),0)) + IF(ISBLANK(CA7), 0, CA7)-MIN(IF(ISBLANK(CA7), 0, CA7),MAX(CE7-IF(ISBLANK(BY7), 0, BY7)-IF(ISBLANK(BZ7), 0, BZ7),0)), IF(AND(ISTEXT(BX7), BX7="121", AW7=2), IF(ISBLANK(CB7), 0, CB7)-MIN(IF(ISBLANK(CB7), 0, CB7),MAX(CE7-CG7,0)) + IF(ISBLANK(CC7), 0, CC7)-MIN(IF(ISBLANK(CC7), 0, CC7),MAX(CE7-CG7-IF(ISBLANK(CB7), 0, CB7),0)) + IF(ISBLANK(CD7), 0, CD7)-MIN(IF(ISBLANK(CD7), 0, CD7),MAX(CE7-CG7-IF(ISBLANK(CB7), 0, CB7)-IF(ISBLANK(CC7), 0, CC7),0)), IF(AND(ISTEXT(BX7), BX7="122", AW7=2), IF(ISBLANK(CB7), 0, CB7)-MIN(IF(ISBLANK(CB7), 0, CB7),MAX(CE7,0)) + IF(ISBLANK(CC7), 0, CC7)-MIN(IF(ISBLANK(CC7), 0, CC7),MAX(CE7-IF(ISBLANK(CB7), 0, CB7),0)) + IF(ISBLANK(CD7), 0, CD7)-MIN(IF(ISBLANK(CD7), 0, CD7),MAX(CE7-IF(ISBLANK(CB7), 0, CB7)-IF(ISBLANK(CC7), 0, CC7),0)), "Invalid case" ) ) ) ) ), "Calculation error" ), "Invalid BW" ) ), "Calculation error" ) -> 0 | CJ7: =IF((CE7="N/A"),AS7,(MIN(AS7,390000-CE7))) -> 12032.88 | CK7: =IFERROR( IF(BW7=2, IFERROR( IF(ISNUMBER(CI7), IF(OR(ISBLANK(CI7), NOT(ISNUMBER(CI7))), 0, CI7), IF(AW7=1, 0+0+0, IF(AW7=2, 0+0+0, "Calculation error" ) ) ), "Calculation error" ), IF(BW7=1, IFERROR( IF(ISNUMBER(CI7), IF(OR(ISBLANK(CI7), NOT(ISNUMBER(CI7))), 0, CI7), IF(AW7=1, IF(ISBLANK(BY7), 0, BY7) + IF(ISBLANK(BZ7), 0, BZ7) + IF(ISBLANK(CA7), 0, CA7), IF(AW7=2, IF(ISBLANK(CB7), 0, CB7) + IF(ISBLANK(CC7), 0, CC7) + IF(ISBLANK(CD7), 0, CD7), "Calculation error" ) ) ), "Calculation error" ), "Invalid BW" ) ), "Calculation error" ) -> 0 | CL7: =IFERROR(IF(CK7>=CJ7,0,IF(CK7<CJ7,CJ7-CK7,0)),"Calculation error") -> 12032.88 | CM7: =IFERROR( IF(OR(I7=1,I7=2), SUM(CH7,CL7), "N/A"), "Calculation error") -> 12032.88 | CN7: =IF(AND(ISNUMBER(CM7), CM7>0), 1, 0) -> 1 | CO7: 不超過50萬元 | CP7: =IF(CO7=Pulldown!$A$1,1,IF(CO7=Pulldown!$A$2,2,0)) -> 1 | CQ7: =IF(G7="", 0, IF(OR(E7="", G7<E7), "Invalid", DATEDIF(E7, G7, "Y") + 1)) -> 2 | CR7: =IFERROR( IF(NOT(OR(CP7=1,CP7=2)),0%, IF(ISERROR(MATCH(CQ7,Subsidy!$A$2:$A$26,0)),0%, IF(CP7=1,VLOOKUP(CQ7,Subsidy!$A$2:$G$26,6,FALSE), IF(CP7=2,VLOOKUP(CQ7,Subsidy!$A$2:$G$26,7,FALSE),0%)))), "Calculation error") -> 50% 或 超出「封頂」金額 3,000 元的餘額（以較高者為準） | CS7: =IFERROR( IF(NOT(OR(CP7=1,CP7=2)),0%, IF(ISERROR(MATCH(CQ7,Subsidy!$A$2:$A$26,0)),0%, IF(CP7=1,VLOOKUP(CQ7,Subsidy!$A$2:$D$26,2,FALSE), IF(CP7=2,VLOOKUP(CQ7,Subsidy!$A$2:$D$26,4,FALSE),0%)))), "Calculation error") -> 0.5 | CT7: =IFERROR(ROUNDDOWN((CL7*CS7),2), 0) -> 6016.44 | CU7: =IFERROR( IF(NOT(OR(CP7=1,CP7=2)),0, IF(ISERROR(MATCH(CQ7,Subsidy!$A$2:$A$26,0)),0, IF(CP7=2,"N/A", IF(AND(CP7=1,CQ7<=9),VLOOKUP(CQ7,Subsidy!$A$2:$D$26,3,FALSE),0)))), "Calculation error") -> 3000 | CV7: =IF(AND(CP7=1, CQ7<=9, NOT(ISERROR(MATCH(CQ7, Subsidy!$A$2:$A$26, 0)))), IFERROR(IF(CL7-CU7<0, "Invalid Case", CL7-CU7), 0), 0) -> 9032.88 | CW7: =MAX(CT7, CV7) -> 9032.88 | CX7: =IFERROR(CL7-CW7, 0) -> 3000 | CY7: =IFERROR(ROUNDDOWN(MIN(SUM(AD7, AS7), 390000), 2), 0) -> 47557.99 | CZ7: =CY7-DA7 -> 35525.11 | DA7: =SUM(CH7,CL7) -> 12032.88 | DB7: =CW7 -> 9032.88 | DC7: =DA7-DB7 -> 3000
A8: 例子2 | B8: 李XX | C8: 長期服務金 | D8: =IF(OR(C8="", C8="Pls select"), 0, IF(C8=Pulldown!$F$2, 1, IF(C8=Pulldown!$F$3, 2, 0))) -> 2 | E8: =$A$3 -> 2025-05-01 | F8: 2020-01-01 | G8: 2028-06-30 | H8: =IF(OR(F8="",G8=""),"Input Required", IF(G8<F8,"Invalid Date Order", IF(G8<E8,"Date Before Transition", IF(D8=1,IF(DATEDIF(F8,G8+1,"y")>=2,"1-valid","1-invalid"), IF(D8=2,IF(DATEDIF(F8,G8+1,"y")>=5,"2-valid","2-invalid"),"Invalid Category"))))) -> 2-valid | I8: =IFERROR(CHOOSE(MATCH($H8,{"1-valid","2-valid","Input Required","Date Before Transition"},0),1,2,3,4),0) -> 2 | J8: =IF(OR(F8="",G8=""),"Input Required",IF(F8>=E8,"轉制日後開始受僱",IF(E8>F8,"轉制日前開始受僱","Invalid Category"))) -> 轉制日前開始受僱 | K8: =IFERROR(CHOOSE(MATCH($J8,{"轉制日前開始受僱","轉制日後開始受僱"},0),1,2),0) -> 1 | L8: 月薪僱員 | M8: =IFERROR(CHOOSE(MATCH($L8,Pulldown!$C$1:$C$2,0),22500,15000),0) -> 22500 | N8: =IFERROR(CHOOSE(MATCH($L8,Pulldown!$C$1:$C$2,0),2/3,1),0) -> 0.6666666667 | O8: 12000 | P8: 22000 | Q8: 12000 | R8: =$N8 -> 0.6666666667 | S8: 5 | T8: 2020-01-01 | U8: 2025-04-30 | V8: 120 | W8: 2025-01-01 | X8: 2025-04-30 | Y8: 365 | Z8: 2025-01-01 | AA8: 2025-12-31 | AB8: 0.3287671233 | AC8: 5.328767123 | AD8: =IF(OR(Q8="N/A", R8="N/A", AC8="N/A"), "N/A", IF(OR(Q8="", R8="", AC8=""), 0, ROUND(MIN(390000, Q8*R8*AC8), 2))) -> 42630.14 | AE8: 22000 | AF8: =$N8 -> 0.6666666667 | AG8: 2025-05-01 | AH8: 3 | AI8: 2025-05-01 | AJ8: 2028-06-30 | AK8: 61 | AL8: 2028-05-01 | AM8: 2028-06-30 | AN8: 365 | AO8: 2028-05-01 | AP8: 2029-04-30 | AQ8: 0.1671232877 | AR8: 3.167123288 | AS8: =IF(OR(AE8="N/A", AF8="N/A", AR8="N/A"), "N/A", IF(OR(AE8="", AF8="", AR8=""), 0, ROUND(MIN(390000, AE8*AF8*AR8),2))) -> 46451.14 | AT8: 46451.14 | AU8: 89081.28 | AV8: 職業退休計劃 | AW8: =IF(AV8="",0,IFERROR(CHOOSE(MATCH(AV8,Pulldown!$B$2:$B$3,0),1,2),0)) -> 2 | AX8: MC -> VC | AY8: =IF(AX8="",0,IFERROR(CHOOSE(MATCH(AX8,Pulldown!$G$1:$G$2,0),1,2),0)) -> 1 | AZ8: 0 | BA8: 100000 | BB8: 20000 | BC8: 20000 | BD8: 2020-01-01 | BE8: 2028-06-30 | BF8: 8 | BG8: 2020-01-01 | BH8: 2027-12-31 | BI8: 182 | BJ8: 2028-01-01 | BK8: 2028-06-30 | BL8: 366 | BM8: 2028-01-01 | BN8: 2028-12-31 | BO8: 0.4972677596 | BP8: 8.49726776 | BQ8: =IF($AW8=1,"N/A",($BQ$5)) -> 0.05 | BR8: =IF($AW8=1,"N/A",($BR$5)) -> 12 | BS8: =IF($AW8=1, "N/A", IF($AW8=2, IF(OR(NOT(ISNUMBER(BD8)), NOT(ISNUMBER(BE8)), BD8<DATE(1900,1,1), BE8<DATE(1900,1,1), BE8<BD8, BF8="N/A", BF8="", NOT(ISNUMBER(BF8)), BP8="N/A", NOT(ISNUMBER(BP8)), NOT(ISNUMBER(BA8)), NOT(ISNUMBER(BC8)), NOT(ISNUMBER(BQ8)), NOT(ISNUMBER(BR8))), "N/A", IFERROR(MIN(ROUND(BA8,2), ROUND(BC8*BP8*BQ8*BR8,2)), "N/A")), "")) -> 100000 | BT8: 0 | BU8: =IF(ISNA(INDIRECT("BT" & ROW())), "N/A", INDIRECT("BT" & ROW())) -> 0 | BV8: 沒有 | BW8: =IF(BV8="",0,IFERROR(CHOOSE(MATCH(BV8,Pulldown!$H$1:$H$2,0),1,2),0)) -> 2 | BX8: 121 | BY8: 0 | BZ8: 0 | CA8: 0 | CB8: 0 | CC8: 0 | CD8: 0 | CE8: 42630.14 | CF8: =IF($AW8=1, IF($AD8="N/A", "N/A", IF($AZ8="", 0, $AZ8)), "N/A") -> N/A | CG8: 100000 | CH8: =IFERROR( IF(BW8=2, IF(OR(BX8="211",BX8="212",BX8="221",BX8="222"),"N/A", IF(AND(ISTEXT(BX8),BX8="111",AW8=1),MAX(0,CE8-CF8), IF(AND(ISTEXT(BX8),BX8="112",AW8=1),MAX(0,CE8-CF8), IF(AND(ISTEXT(BX8),BX8="121",AW8=2),MAX(0,CE8-CG8), IF(AND(ISTEXT(BX8),BX8="122",AW8=2),MAX(0,CE8-CG8),"N/A"))))), IF(BW8=1, IF(OR(BX8="211",BX8="212",BX8="221",BX8="222"),"N/A", IF(AND(ISTEXT(BX8),BX8="111",AW8=1), MAX(0,CE8-CF8-IF(OR(ISBLANK(BY8),NOT(ISNUMBER(BY8))),0,BY8)-IF(OR(ISBLANK(BZ8),NOT(ISNUMBER(BZ8))),0,BZ8)-IF(OR(ISBLANK(CA8),NOT(ISNUMBER(CA8))),0,CA8)), IF(AND(ISTEXT(BX8),BX8="112",AW8=1), MAX(0,CE8-IF(OR(ISBLANK(BY8),NOT(ISNUMBER(BY8))),0,BY8)-IF(OR(ISBLANK(BZ8),NOT(ISNUMBER(BZ8))),0,BZ8)-IF(OR(ISBLANK(CA8),NOT(ISNUMBER(CA8))),0,CA8)-CF8), IF(AND(ISTEXT(BX8),BX8="121",AW8=2), MAX(0,CE8-CG8-IF(OR(ISBLANK(CB8),NOT(ISNUMBER(CB8))),0,CB8)-IF(OR(ISBLANK(CC8),NOT(ISNUMBER(CC8))),0,CC8)-IF(OR(ISBLANK(CD8),NOT(ISNUMBER(CD8))),0,CD8)), IF(AND(ISTEXT(BX8),BX8="122",AW8=2), MAX(0,CE8-IF(OR(ISBLANK(CB8),NOT(ISNUMBER(CB8))),0,CB8)-IF(OR(ISBLANK(CC8),NOT(ISNUMBER(CC8))),0,CC8)-IF(OR(ISBLANK(CD8),NOT(ISNUMBER(CD8))),0,CD8)-CG8),"N/A"))))), "N/A")),"Calculation error") -> 0 | CI8: =IFERROR( IF(BW8=2, IFERROR( IF(OR(BX8="211", BX8="212", BX8="221", BX8="222"), "N/A", IF(AND(ISTEXT(BX8), BX8="111", AW8=1), 0-MIN(0,MAX(CE8-CF8,0))+0-MIN(0,MAX(CE8-CF8-0,0))+0-MIN(0,MAX(CE8-CF8-0-0,0)), IF(AND(ISTEXT(BX8), BX8="112", AW8=1), 0-MIN(0,MAX(CE8,0))+0-MIN(0,MAX(CE8-0,0))+0-MIN(0,MAX(CE8-0-0,0)), IF(AND(ISTEXT(BX8), BX8="121", AW8=2), 0-MIN(0,MAX(CE8-CG8,0))+0-MIN(0,MAX(CE8-CG8-0,0))+0-MIN(0,MAX(CE8-CG8-0-0,0)), IF(AND(ISTEXT(BX8), BX8="122", AW8=2), 0-MIN(0,MAX(CE8,0))+0-MIN(0,MAX(CE8-0,0))+0-MIN(0,MAX(CE8-0-0,0)), "Invalid case" ) ) ) ) ), "Calculation error" ), IF(BW8=1, IFERROR( IF(OR(BX8="211", BX8="212", BX8="221", BX8="222"), "N/A", IF(AND(ISTEXT(BX8), BX8="111", AW8=1), IF(ISBLANK(BY8), 0, BY8)-MIN(IF(ISBLANK(BY8), 0, BY8),MAX(CE8-CF8,0)) + IF(ISBLANK(BZ8), 0, BZ8)-MIN(IF(ISBLANK(BZ8), 0, BZ8),MAX(CE8-CF8-IF(ISBLANK(BY8), 0, BY8),0)) + IF(ISBLANK(CA8), 0, CA8)-MIN(IF(ISBLANK(CA8), 0, CA8),MAX(CE8-CF8-IF(ISBLANK(BY8), 0, BY8)-IF(ISBLANK(BZ8), 0, BZ8),0)), IF(AND(ISTEXT(BX8), BX8="112", AW8=1), IF(ISBLANK(BY8), 0, BY8)-MIN(IF(ISBLANK(BY8), 0, BY8),MAX(CE8,0)) + IF(ISBLANK(BZ8), 0, BZ8)-MIN(IF(ISBLANK(BZ8), 0, BZ8),MAX(CE8-IF(ISBLANK(BY8), 0, BY8),0)) + IF(ISBLANK(CA8), 0, CA8)-MIN(IF(ISBLANK(CA8), 0, CA8),MAX(CE8-IF(ISBLANK(BY8), 0, BY8)-IF(ISBLANK(BZ8), 0, BZ8),0)), IF(AND(ISTEXT(BX8), BX8="121", AW8=2), IF(ISBLANK(CB8), 0, CB8)-MIN(IF(ISBLANK(CB8), 0, CB8),MAX(CE8-CG8,0)) + IF(ISBLANK(CC8), 0, CC8)-MIN(IF(ISBLANK(CC8), 0, CC8),MAX(CE8-CG8-IF(ISBLANK(CB8), 0, CB8),0)) + IF(ISBLANK(CD8), 0, CD8)-MIN(IF(ISBLANK(CD8), 0, CD8),MAX(CE8-CG8-IF(ISBLANK(CB8), 0, CB8)-IF(ISBLANK(CC8), 0, CC8),0)), IF(AND(ISTEXT(BX8), BX8="122", AW8=2), IF(ISBLANK(CB8), 0, CB8)-MIN(IF(ISBLANK(CB8), 0, CB8),MAX(CE8,0)) + IF(ISBLANK(CC8), 0, CC8)-MIN(IF(ISBLANK(CC8), 0, CC8),MAX(CE8-IF(ISBLANK(CB8), 0, CB8),0)) + IF(ISBLANK(CD8), 0, CD8)-MIN(IF(ISBLANK(CD8), 0, CD8),MAX(CE8-IF(ISBLANK(CB8), 0, CB8)-IF(ISBLANK(CC8), 0, CC8),0)), "Invalid case" ) ) ) ) ), "Calculation error" ), "Invalid BW" ) ), "Calculation error" ) -> 0 | CJ8: 46451.14 | CK8: =IFERROR( IF(BW8=2, IFERROR( IF(ISNUMBER(CI8), IF(OR(ISBLANK(CI8), NOT(ISNUMBER(CI8))), 0, CI8), IF(AW8=1, 0+0+0, IF(AW8=2, 0+0+0, "Calculation error" ) ) ), "Calculation error" ), IF(BW8=1, IFERROR( IF(ISNUMBER(CI8), IF(OR(ISBLANK(CI8), NOT(ISNUMBER(CI8))), 0, CI8), IF(AW8=1, IF(ISBLANK(BY8), 0, BY8) + IF(ISBLANK(BZ8), 0, BZ8) + IF(ISBLANK(CA8), 0, CA8), IF(AW8=2, IF(ISBLANK(CB8), 0, CB8) + IF(ISBLANK(CC8), 0, CC8) + IF(ISBLANK(CD8), 0, CD8), "Calculation error" ) ) ), "Calculation error" ), "Invalid BW" ) ), "Calculation error" ) -> 0 | CL8: =IFERROR(IF(CK8>=CJ8,0,IF(CK8<CJ8,CJ8-CK8,0)),"Calculation error") -> 46451.14 | CM8: 46451.14 | CN8: 1 | CO8: 不超過50萬元 | CP8: =IF(CO8=Pulldown!$A$1,1,IF(CO8=Pulldown!$A$2,2,0)) -> 1 | CQ8: 4 | CR8: =IFERROR( IF(NOT(OR(CP8=1,CP8=2)),0%, IF(ISERROR(MATCH(CQ8,Subsidy!$A$2:$A$26,0)),0%, IF(CP8=1,VLOOKUP(CQ8,Subsidy!$A$2:$G$26,6,FALSE), IF(CP8=2,VLOOKUP(CQ8,Subsidy!$A$2:$G$26,7,FALSE),0%)))), "Calculation error") -> 45% 或 超出「封頂」金額 25,000 元的餘額（以較高者為準） | CS8: =IFERROR( IF(NOT(OR(CP8=1,CP8=2)),0%, IF(ISERROR(MATCH(CQ8,Subsidy!$A$2:$A$26,0)),0%, IF(CP8=1,VLOOKUP(CQ8,Subsidy!$A$2:$D$26,2,FALSE), IF(CP8=2,VLOOKUP(CQ8,Subsidy!$A$2:$D$26,4,FALSE),0%)))), "Calculation error") -> 0.45 | CT8: 20903.01 | CU8: =IFERROR( IF(NOT(OR(CP8=1,CP8=2)),0, IF(ISERROR(MATCH(CQ8,Subsidy!$A$2:$A$26,0)),0, IF(CP8=2,"N/A", IF(AND(CP8=1,CQ8<=9),VLOOKUP(CQ8,Subsidy!$A$2:$D$26,3,FALSE),0)))), "Calculation error") -> 25000 | CV8: =IF(AND(CP8=1, CQ8<=9, NOT(ISERROR(MATCH(CQ8, Subsidy!$A$2:$A$26, 0)))), IFERROR(IF(CL8-CU8<0, "Invalid Case", CL8-CU8), 0), 0) -> 21451.14 | CW8: 21451.14 | CX8: 25000 | CY8: 89081.28 | CZ8: 42630.14 | DA8: 46451.14 | DB8: 21451.14 | DC8: 25000
A10: 1 | C10: 請選擇 | D10: =IF(OR(C10="", C10="Pls select"), 0, IF(C10=Pulldown!$F$2, 1, IF(C10=Pulldown!$F$3, 2, 0))) -> 0 | E10: 2025-05-01 | H10: =IF(OR(F10="",G10=""),"Input Required", IF(G10<F10,"Invalid Date Order", IF(G10<E10,"Date Before Transition", IF(D10=1,IF(DATEDIF(F10,G10+1,"y")>=2,"1-valid","1-invalid"), IF(D10=2,IF(DATEDIF(F10,G10+1,"y")>=5,"2-valid","2-invalid"),"Invalid Category"))))) -> Input Required | I10: =IFERROR(CHOOSE(MATCH($H10,{"1-valid","2-valid","Input Required","Date Before Transition"},0),1,2,3,4),0) -> 3 | J10: =IF(OR(F10="",G10=""),"Input Required",IF(F10>=E10,"轉制日後開始受僱",IF(E10>F10,"轉制日前開始受僱","Invalid Category"))) -> Input Required | K10: =IFERROR(CHOOSE(MATCH($J10,{"轉制日前開始受僱","轉制日後開始受僱"},0),1,2),0) -> 0 | L10: 月薪僱員 | M10: =IFERROR(CHOOSE(MATCH($L10,Pulldown!$C$1:$C$2,0),22500,15000),0) -> 22500 | N10: =IFERROR(CHOOSE(MATCH($L10,Pulldown!$C$1:$C$2,0),2/3,1),0) -> 0.6666666667 | O10: 0 | P10: 0 | Q10: =IF(OR(I10=1, I10=2), IF(K10=0, "", IF(K10=1, IF(OR(M10="N/A", O10="N/A"), "N/A", IF(OR(M10="", O10=""), "", MIN(M10, O10))), IF(K10=2, "N/A", ""))), "") ->  | R10: 0.6666666667 | S10: =IF(OR(I10=1, I10=2), IF((F10<=E10),(DATEDIF(F10,E10,"Y")),"N/A"), "") ->  | T10: =IF(OR(I10=1, I10=2), IF(F10>E10, F10, F10), "") ->  | U10: =IF(OR(I10=1, I10=2), IF(F10>E10, E10-1, E10-1), "") ->  | V10: =IF(OR(I10=1, I10=2), IF(F10>E10, "N/A", E10-DATE(YEAR(F10)+S10, MONTH(F10), DAY(F10))), "") ->  | W10: =IF(OR(I10=1, I10=2), IF(F10>E10, DATE(YEAR(E10), MONTH(F10), DAY(F10)), DATE(YEAR(F10)+S10, MONTH(F10), DAY(F10))), "") ->  | X10: =IF(OR(I10=1, I10=2), IF(F10>E10, E10-1, E10-1), "") ->  | Y10: =IF(OR(I10=1, I10=2), IF(F10>E10, "N/A", DATE(YEAR(W10)+1, MONTH(W10), DAY(W10))-W10), "") ->  | Z10: =IF(OR(I10=1, I10=2), IF(F10>E10, DATE(YEAR(E10), MONTH(F10), DAY(F10)), DATE(YEAR(F10)+S10, MONTH(F10), DAY(F10))), "") ->  | AA10: =IF(OR(I10=1, I10=2), IF(F10>E10, DATE(YEAR(W10)+1, MONTH(W10), DAY(W10))-1, DATE(YEAR(W10)+1, MONTH(W10), DAY(W10))-1), "") ->  | AB10: =IF(OR(S10="N/A", V10="N/A", Y10="N/A"), "N/A", IF(OR(S10="", V10="", Y10="", Y10=0), "", V10/Y10)) ->  | AC10: =IF(AB10="N/A", "N/A", IF(AB10="", "", S10 + AB10)) ->  | AD10: =IF(OR(Q10="N/A", R10="N/A", AC10="N/A"), "N/A", IF(OR(Q10="", R10="", AC10=""), 0, ROUND(MIN(390000, Q10*R10*AC10), 2))) -> 0 | AE10: =IF(OR(I10=1, I10=2), IF(K10=0, "", IF(OR(K10=1, K10=2), IF(OR(M10="N/A", P10="N/A"), "N/A", IF(OR(M10="", P10=""), "", MIN(M10, P10))), "")), "") ->  | AF10: 0.6666666667 | AG10: =IF(E10>F10,E10,F10) -> 2025-05-01 | AH10: =IF(OR(I10=1, I10=2), IF(F10<=E10, DATEDIF(E10, G10, "Y"), DATEDIF(F10, G10, "Y")), "") ->  | AI10: =IF(OR(I10=1, I10=2), IF(F10<=E10, E10, F10), "") ->  | AJ10: =IF(OR(I10=1, I10=2), G10, "") ->  | AK10: =IF(OR(I10=1, I10=2), IF(F10<=E10, G10-DATE(YEAR(E10)+AH10, MONTH(E10), DAY(E10)), G10-DATE(YEAR(F10)+AH10, MONTH(F10), DAY(F10)))+1, "") ->  | AL10: =IF(OR(I10=1, I10=2), IF(F10<=E10, DATE(YEAR(E10)+AH10, MONTH(E10), DAY(E10)), DATE(YEAR(F10)+AH10, MONTH(F10), DAY(F10))), "") ->  | AM10: =IF(OR(I10=1, I10=2), G10, "") ->  | AN10: =IF(OR(I10=1, I10=2), IF(F10<=E10, DATE(YEAR(E10)+AH10+1, MONTH(E10), DAY(E10))-DATE(YEAR(E10)+AH10, MONTH(E10), DAY(E10)), DATE(YEAR(F10)+AH10+1, MONTH(F10), DAY(F10))-DATE(YEAR(F10)+AH10, MONTH(F10), DAY(F10))), "") ->  | AO10: =IF(OR(I10=1, I10=2), IF(F10<=E10, DATE(YEAR(E10)+AH10, MONTH(E10), DAY(E10)), DATE(YEAR(F10)+AH10, MONTH(F10), DAY(F10))), "") ->  | AP10: =IF(OR(I10=1, I10=2), IF(F10<=E10, DATE(YEAR(E10)+AH10+1, MONTH(E10), DAY(E10)), DATE(YEAR(F10)+AH10+1, MONTH(F10), DAY(F10)))-1, "") ->  | AQ10: =IF(OR(AH10="N/A", AK10="N/A", AN10="N/A"), "N/A", IF(OR(AH10="", AK10="", AN10="", AN10=0), "", AK10/AN10)) ->  | AR10: =IF(AQ10="N/A", "N/A", IF(AQ10="", "", AH10 + AQ10)) ->  | AS10: =IF(OR(AE10="N/A", AF10="N/A", AR10="N/A"), "N/A", IF(OR(AE10="", AF10="", AR10=""), 0, ROUND(MIN(390000, AE10*AF10*AR10),2))) -> 0 | AT10: =IF(AD10="N/A", AS10, IFERROR(IF(AD10+AS10>=390000, 390000-AD10, AS10), AS10)) -> 0 | AU10: =IFERROR(ROUNDDOWN(MIN(SUM(AD10, AS10), 390000), 2), 0) -> 0 | AV10: 強積金計劃 | AW10: =IF(AV10="",0,IFERROR(CHOOSE(MATCH(AV10,Pulldown!$B$2:$B$3,0),1,2),0)) -> 1 | AX10: MC -> VC | AY10: =IF(AX10="",0,IFERROR(CHOOSE(MATCH(AX10,Pulldown!$G$1:$G$2,0),1,2),0)) -> 1 | AZ10: 0 | BA10: 0 | BB10: 0 | BC10: =IF(AW10=1, "N/A", IF(BB10="", 0, MIN(30000, BB10))) -> N/A | BD10: =IF(AW10=1,"N/A",(MAX("1/12/2000",F10))) -> N/A | BE10: =IF(AW10=1,"N/A",G10) -> N/A | BF10: =IF(AW10=1, "N/A", IF(AW10=2, IFERROR(IF(OR(NOT(ISNUMBER(BD10)), NOT(ISNUMBER(BE10)), BD10<DATE(1900,1,1), BE10<DATE(1900,1,1), BE10<BD10), "N/A", DATEDIF(BD10, BE10, "Y")), "N/A"), "")) -> N/A | BG10: =IF(AW10=1, "N/A", IF(AW10=2, BD10, "")) -> N/A | BH10: =IF(AW10=1, "N/A", IF(AW10=2, DATE(YEAR(BE10), MONTH(BD10), DAY(BD10)-1), "")) -> N/A | BI10: =IF(AW10=1, "N/A", IF(AW10=2, IFERROR(IF(OR(NOT(ISNUMBER(BD10)), NOT(ISNUMBER(BE10)), BD10<DATE(1900,1,1), BE10<DATE(1900,1,1), BE10<BD10), "N/A", BE10 - DATE(YEAR(BD10) + BF10, MONTH(BD10), DAY(BD10)) + 1), "N/A"), "")) -> N/A | BJ10: =IF(AW10=1, "N/A", IF(AW10=2, IFERROR(IF(OR(NOT(ISNUMBER(BD10)), NOT(ISNUMBER(BE10)), BD10<DATE(1900,1,1), BE10<DATE(1900,1,1), BE10<BD10), "N/A", DATE(YEAR(BD10) +BF10, MONTH(BD10), DAY(BD10))), "N/A"), "")) -> N/A | BK10: =IF(AW10=1, "N/A", IF(AW10=2, BE10, "")) -> N/A | BL10: =IF(AW10=1, "N/A", IF(AW10=2, IF(OR(NOT(ISNUMBER(BD10)), NOT(ISNUMBER(BE10)), BD10<DATE(1900,1,1), BE10<DATE(1900,1,1), BE10<BD10, BF10="N/A", BF10="", NOT(ISNUMBER(BF10))), "N/A", IFERROR( IF(AND(ISNUMBER(DATE(YEAR(BD10)+BF10+1, MONTH(BD10), DAY(BD10)-1)), ISNUMBER(DATE(YEAR(BD10)+BF10, MONTH(BD10), DAY(BD10)))), DATE(YEAR(BD10)+BF10+1, MONTH(BD10), DAY(BD10)-1) - DATE(YEAR(BD10)+BF10, MONTH(BD10), DAY(BD10)) + 1, "N/A"), "N/A")), "")) -> N/A | BM10: =IF(AW10=1, "N/A", IF(AW10=2, IFERROR(IF(OR(NOT(ISNUMBER(BD10)), NOT(ISNUMBER(BE10)), BD10<DATE(1900,1,1), BE10<DATE(1900,1,1), BE10<BD10), "N/A", DATE(YEAR(BD10) + BF10, MONTH(BD10), DAY(BD10))), "N/A"), "")) -> N/A | BN10: =IF(AW10=1, "N/A", IF(AW10=2, IF(OR(NOT(ISNUMBER(BD10)), NOT(ISNUMBER(BE10)), BD10<DATE(1900,1,1), BE10<DATE(1900,1,1), BE10<BD10, BF10="N/A", BF10="", NOT(ISNUMBER(BF10))), "N/A", IFERROR( IF(ISNUMBER(DATE(YEAR(BD10)+BF10+1, MONTH(BD10), DAY(BD10)-1)), DATE(YEAR(BD10)+BF10+1, MONTH(BD10), DAY(BD10)-1), "N/A"), "N/A")), "")) -> N/A | BO10: =IF($AW10=1, "N/A", IF($AW10=2, IF(OR(NOT(ISNUMBER(BD10)), NOT(ISNUMBER(BE10)), BD10<DATE(1900,1,1), BE10<DATE(1900,1,1), BE10<BD10, BF10="N/A", BF10="", NOT(ISNUMBER(BF10)), BI10="N/A", NOT(ISNUMBER(BI10)), BL10="N/A", NOT(ISNUMBER(BL10)), BL10=0), "N/A", IFERROR(BI10/BL10, "N/A")), "")) -> N/A | BP10: =IF($AW10=1, "N/A", IF($AW10=2, IF(OR(NOT(ISNUMBER(BD10)), NOT(ISNUMBER(BE10)), BD10<DATE(1900,1,1), BE10<DATE(1900,1,1), BE10<BD10, BF10="N/A", BF10="", NOT(ISNUMBER(BF10)), BO10="N/A", NOT(ISNUMBER(BO10))), "N/A", IFERROR(BF10+BO10, "N/A")), "")) -> N/A | BQ10: N/A | BR10: N/A | BS10: =IF($AW10=1, "N/A", IF($AW10=2, IF(OR(NOT(ISNUMBER(BD10)), NOT(ISNUMBER(BE10)), BD10<DATE(1900,1,1), BE10<DATE(1900,1,1), BE10<BD10, BF10="N/A", BF10="", NOT(ISNUMBER(BF10)), BP10="N/A", NOT(ISNUMBER(BP10)), NOT(ISNUMBER(BA10)), NOT(ISNUMBER(BC10)), NOT(ISNUMBER(BQ10)), NOT(ISNUMBER(BR10))), "N/A", IFERROR(MIN(ROUND(BA10,2), ROUND(BC10*BP10*BQ10*BR10,2)), "N/A")), "")) -> N/A | BT10: =IF($AW10=1, "N/A", IF($AW10=2, IF(OR(NOT(ISNUMBER(BD10)), NOT(ISNUMBER(BE10)), BD10<DATE(1900,1,1), BE10<DATE(1900,1,1), BE10<BD10, BF10="N/A", BF10="", NOT(ISNUMBER(BF10)), BS10="N/A", NOT(ISNUMBER(BS10)), NOT(ISNUMBER(BA10))), "N/A", IF(BA10="", 0, IFERROR(BA10 - ROUNDDOWN(BS10,2), "N/A"))), "")) -> N/A | BU10: =IF(ISNA(INDIRECT("BT" & ROW())), "N/A", INDIRECT("BT" & ROW())) -> N/A | BV10: 沒有 | BW10: =IF(BV10="",0,IFERROR(CHOOSE(MATCH(BV10,Pulldown!$H$1:$H$2,0),1,2),0)) -> 2 | BX10: =CONCATENATE(K10,AW10,AY10) -> 011 | BY10: 0 | BZ10: 0 | CA10: 0 | CB10: 0 | CC10: 0 | CD10: 0 | CE10: =IF((AD10="N/A"),"N/A",(MIN(390000,AD10))) -> 0 | CF10: 0 | CG10: =IF($AW10=2,(IF((AD10="N/A"),"N/A",(BS10))),"N/A") -> N/A | CH10: =IFERROR( IF(BW10=2, IF(OR(BX10="211",BX10="212",BX10="221",BX10="222"),"N/A", IF(AND(ISTEXT(BX10),BX10="111",AW10=1),MAX(0,CE10-CF10), IF(AND(ISTEXT(BX10),BX10="112",AW10=1),MAX(0,CE10-CF10), IF(AND(ISTEXT(BX10),BX10="121",AW10=2),MAX(0,CE10-CG10), IF(AND(ISTEXT(BX10),BX10="122",AW10=2),MAX(0,CE10-CG10),"N/A"))))), IF(BW10=1, IF(OR(BX10="211",BX10="212",BX10="221",BX10="222"),"N/A", IF(AND(ISTEXT(BX10),BX10="111",AW10=1), MAX(0,CE10-CF10-IF(OR(ISBLANK(BY10),NOT(ISNUMBER(BY10))),0,BY10)-IF(OR(ISBLANK(BZ10),NOT(ISNUMBER(BZ10))),0,BZ10)-IF(OR(ISBLANK(CA10),NOT(ISNUMBER(CA10))),0,CA10)), IF(AND(ISTEXT(BX10),BX10="112",AW10=1), MAX(0,CE10-IF(OR(ISBLANK(BY10),NOT(ISNUMBER(BY10))),0,BY10)-IF(OR(ISBLANK(BZ10),NOT(ISNUMBER(BZ10))),0,BZ10)-IF(OR(ISBLANK(CA10),NOT(ISNUMBER(CA10))),0,CA10)-CF10), IF(AND(ISTEXT(BX10),BX10="121",AW10=2), MAX(0,CE10-CG10-IF(OR(ISBLANK(CB10),NOT(ISNUMBER(CB10))),0,CB10)-IF(OR(ISBLANK(CC10),NOT(ISNUMBER(CC10))),0,CC10)-IF(OR(ISBLANK(CD10),NOT(ISNUMBER(CD10))),0,CD10)), IF(AND(ISTEXT(BX10),BX10="122",AW10=2), MAX(0,CE10-IF(OR(ISBLANK(CB10),NOT(ISNUMBER(CB10))),0,CB10)-IF(OR(ISBLANK(CC10),NOT(ISNUMBER(CC10))),0,CC10)-IF(OR(ISBLANK(CD10),NOT(ISNUMBER(CD10))),0,CD10)-CG10),"N/A"))))), "N/A")),"Calculation error") -> N/A | CI10: =IFERROR( IF(BW10=2, IFERROR( IF(OR(BX10="211", BX10="212", BX10="221", BX10="222"), "N/A", IF(AND(ISTEXT(BX10), BX10="111", AW10=1), 0-MIN(0,MAX(CE10-CF10,0))+0-MIN(0,MAX(CE10-CF10-0,0))+0-MIN(0,MAX(CE10-CF10-0-0,0)), IF(AND(ISTEXT(BX10), BX10="112", AW10=1), 0-MIN(0,MAX(CE10,0))+0-MIN(0,MAX(CE10-0,0))+0-MIN(0,MAX(CE10-0-0,0)), IF(AND(ISTEXT(BX10), BX10="121", AW10=2), 0-MIN(0,MAX(CE10-CG10,0))+0-MIN(0,MAX(CE10-CG10-0,0))+0-MIN(0,MAX(CE10-CG10-0-0,0)), IF(AND(ISTEXT(BX10), BX10="122", AW10=2), 0-MIN(0,MAX(CE10,0))+0-MIN(0,MAX(CE10-0,0))+0-MIN(0,MAX(CE10-0-0,0)), "Invalid case" ) ) ) ) ), "Calculation error" ), IF(BW10=1, IFERROR( IF(OR(BX10="211", BX10="212", BX10="221", BX10="222"), "N/A", IF(AND(ISTEXT(BX10), BX10="111", AW10=1), IF(ISBLANK(BY10), 0, BY10)-MIN(IF(ISBLANK(BY10), 0, BY10),MAX(CE10-CF10,0)) + IF(ISBLANK(BZ10), 0, BZ10)-MIN(IF(ISBLANK(BZ10), 0, BZ10),MAX(CE10-CF10-IF(ISBLANK(BY10), 0, BY10),0)) + IF(ISBLANK(CA10), 0, CA10)-MIN(IF(ISBLANK(CA10), 0, CA10),MAX(CE10-CF10-IF(ISBLANK(BY10), 0, BY10)-IF(ISBLANK(BZ10), 0, BZ10),0)), IF(AND(ISTEXT(BX10), BX10="112", AW10=1), IF(ISBLANK(BY10), 0, BY10)-MIN(IF(ISBLANK(BY10), 0, BY10),MAX(CE10,0)) + IF(ISBLANK(BZ10), 0, BZ10)-MIN(IF(ISBLANK(BZ10), 0, BZ10),MAX(CE10-IF(ISBLANK(BY10), 0, BY10),0)) + IF(ISBLANK(CA10), 0, CA10)-MIN(IF(ISBLANK(CA10), 0, CA10),MAX(CE10-IF(ISBLANK(BY10), 0, BY10)-IF(ISBLANK(BZ10), 0, BZ10),0)), IF(AND(ISTEXT(BX10), BX10="121", AW10=2), IF(ISBLANK(CB10), 0, CB10)-MIN(IF(ISBLANK(CB10), 0, CB10),MAX(CE10-CG10,0)) + IF(ISBLANK(CC10), 0, CC10)-MIN(IF(ISBLANK(CC10), 0, CC10),MAX(CE10-CG10-IF(ISBLANK(CB10), 0, CB10),0)) + IF(ISBLANK(CD10), 0, CD10)-MIN(IF(ISBLANK(CD10), 0, CD10),MAX(CE10-CG10-IF(ISBLANK(CB10), 0, CB10)-IF(ISBLANK(CC10), 0, CC10),0)), IF(AND(ISTEXT(BX10), BX10="122", AW10=2), IF(ISBLANK(CB10), 0, CB10)-MIN(IF(ISBLANK(CB10), 0, CB10),MAX(CE10,0)) + IF(ISBLANK(CC10), 0, CC10)-MIN(IF(ISBLANK(CC10), 0, CC10),MAX(CE10-IF(ISBLANK(CB10), 0, CB10),0)) + IF(ISBLANK(CD10), 0, CD10)-MIN(IF(ISBLANK(CD10), 0, CD10),MAX(CE10-IF(ISBLANK(CB10), 0, CB10)-IF(ISBLANK(CC10), 0, CC10),0)), "Invalid case" ) ) ) ) ), "Calculation error" ), "Invalid BW" ) ), "Calculation error" ) -> Invalid case | CJ10: =IF((CE10="N/A"),AS10,(MIN(AS10,390000-CE10))) -> 0 | CK10: =IFERROR( IF(BW10=2, IFERROR( IF(ISNUMBER(CI10), IF(OR(ISBLANK(CI10), NOT(ISNUMBER(CI10))), 0, CI10), IF(AW10=1, 0+0+0, IF(AW10=2, 0+0+0, "Calculation error" ) ) ), "Calculation error" ), IF(BW10=1, IFERROR( IF(ISNUMBER(CI10), IF(OR(ISBLANK(CI10), NOT(ISNUMBER(CI10))), 0, CI10), IF(AW10=1, IF(ISBLANK(BY10), 0, BY10) + IF(ISBLANK(BZ10), 0, BZ10) + IF(ISBLANK(CA10), 0, CA10), IF(AW10=2, IF(ISBLANK(CB10), 0, CB10) + IF(ISBLANK(CC10), 0, CC10) + IF(ISBLANK(CD10), 0, CD10), "Calculation error" ) ) ), "Calculation error" ), "Invalid BW" ) ), "Calculation error" ) -> 0 | CL10: =IFERROR(IF(CK10>=CJ10,0,IF(CK10<CJ10,CJ10-CK10,0)),"Calculation error") -> 0 | CM10: =IFERROR( IF(OR(I10=1,I10=2), SUM(CH10,CL10), "N/A"), "Calculation error") -> N/A | CN10: =IF(AND(ISNUMBER(CM10), CM10>0), 1, 0) -> 0 | CO10: 不超過50萬元 | CP10: =IF(CO10=Pulldown!$A$1,1,IF(CO10=Pulldown!$A$2,2,0)) -> 1 | CQ10: =IF(G10="", 0, IF(OR(E10="", G10<E10), "Invalid", DATEDIF(E10, G10, "Y") + 1)) -> 0 | CR10: =IFERROR( IF(NOT(OR(CP10=1,CP10=2)),0%, IF(ISERROR(MATCH(CQ10,Subsidy!$A$2:$A$26,0)),0%, IF(CP10=1,VLOOKUP(CQ10,Subsidy!$A$2:$G$26,6,FALSE), IF(CP10=2,VLOOKUP(CQ10,Subsidy!$A$2:$G$26,7,FALSE),0%)))), "Calculation error") -> 0 | CS10: =IFERROR( IF(NOT(OR(CP10=1,CP10=2)),0%, IF(ISERROR(MATCH(CQ10,Subsidy!$A$2:$A$26,0)),0%, IF(CP10=1,VLOOKUP(CQ10,Subsidy!$A$2:$D$26,2,FALSE), IF(CP10=2,VLOOKUP(CQ10,Subsidy!$A$2:$D$26,4,FALSE),0%)))), "Calculation error") -> 0 | CT10: =IFERROR(ROUNDDOWN((CL10*CS10),2), 0) -> 0 | CU10: =IFERROR( IF(NOT(OR(CP10=1,CP10=2)),0, IF(ISERROR(MATCH(CQ10,Subsidy!$A$2:$A$26,0)),0, IF(CP10=2,"N/A", IF(AND(CP10=1,CQ10<=9),VLOOKUP(CQ10,Subsidy!$A$2:$D$26,3,FALSE),0)))), "Calculation error") -> 0 | CV10: =IF(AND(CP10=1, CQ10<=9, NOT(ISERROR(MATCH(CQ10, Subsidy!$A$2:$A$26, 0)))), IFERROR(IF(CL10-CU10<0, "Invalid Case", CL10-CU10), 0), 0) -> 0 | CW10: =MAX(CT10, CV10) -> 0 | CX10: =IFERROR(CL10-CW10, 0) -> 0 | CY10: =IFERROR(ROUNDDOWN(MIN(SUM(AD10, AS10), 390000), 2), 0) -> 0 | CZ10: =CY10-DA10 -> 0 | DA10: =SUM(CH10,CL10) -> 0 | DB10: =CW10 -> 0 | DC10: =DA10-DB10 -> 0
A11: 2 | C11: 請選擇 | D11: =IF(OR(C11="", C11="Pls select"), 0, IF(C11=Pulldown!$F$2, 1, IF(C11=Pulldown!$F$3, 2, 0))) -> 0 | E11: 2025-05-01 | H11: =IF(OR(F11="",G11=""),"Input Required", IF(G11<F11,"Invalid Date Order", IF(G11<E11,"Date Before Transition", IF(D11=1,IF(DATEDIF(F11,G11+1,"y")>=2,"1-valid","1-invalid"), IF(D11=2,IF(DATEDIF(F11,G11+1,"y")>=5,"2-valid","2-invalid"),"Invalid Category"))))) -> Input Required | I11: =IFERROR(CHOOSE(MATCH($H11,{"1-valid","2-valid","Input Required","Date Before Transition"},0),1,2,3,4),0) -> 3 | J11: =IF(OR(F11="",G11=""),"Input Required",IF(F11>=E11,"轉制日後開始受僱",IF(E11>F11,"轉制日前開始受僱","Invalid Category"))) -> Input Required | K11: =IFERROR(CHOOSE(MATCH($J11,{"轉制日前開始受僱","轉制日後開始受僱"},0),1,2),0) -> 0 | L11: 月薪僱員 | M11: =IFERROR(CHOOSE(MATCH($L11,Pulldown!$C$1:$C$2,0),22500,15000),0) -> 22500 | N11: =IFERROR(CHOOSE(MATCH($L11,Pulldown!$C$1:$C$2,0),2/3,1),0) -> 0.6666666667 | O11: 0 | P11: 0 | R11: 0.6666666667 | AD11: =IF(OR(Q11="N/A", R11="N/A", AC11="N/A"), "N/A", IF(OR(Q11="", R11="", AC11=""), 0, ROUND(MIN(390000, Q11*R11*AC11), 2))) -> 0 | AF11: 0.6666666667 | AG11: 2025-05-01 | AS11: =IF(OR(AE11="N/A", AF11="N/A", AR11="N/A"), "N/A", IF(OR(AE11="", AF11="", AR11=""), 0, ROUND(MIN(390000, AE11*AF11*AR11),2))) -> 0 | AT11: 0 | AU11: 0 | AV11: 強積金計劃 | AW11: =IF(AV11="",0,IFERROR(CHOOSE(MATCH(AV11,Pulldown!$B$2:$B$3,0),1,2),0)) -> 1 | AX11: MC -> VC | AY11: =IF(AX11="",0,IFERROR(CHOOSE(MATCH(AX11,Pulldown!$G$1:$G$2,0),1,2),0)) -> 1 | AZ11: 0 | BA11: 0 | BB11: 0 | BC11: N/A | BD11: N/A | BE11: N/A | BF11: N/A | BG11: N/A | BH11: N/A | BI11: N/A | BJ11: N/A | BK11: N/A | BL11: N/A | BM11: N/A | BN11: N/A | BO11: N/A | BP11: N/A | BQ11: N/A | BR11: N/A | BS11: =IF($AW11=1, "N/A", IF($AW11=2, IF(OR(NOT(ISNUMBER(BD11)), NOT(ISNUMBER(BE11)), BD11<DATE(1900,1,1), BE11<DATE(1900,1,1), BE11<BD11, BF11="N/A", BF11="", NOT(ISNUMBER(BF11)), BP11="N/A", NOT(ISNUMBER(BP11)), NOT(ISNUMBER(BA11)), NOT(ISNUMBER(BC11)), NOT(ISNUMBER(BQ11)), NOT(ISNUMBER(BR11))), "N/A", IFERROR(MIN(ROUND(BA11,2), ROUND(BC11*BP11*BQ11*BR11,2)), "N/A")), "")) -> N/A | BT11: N/A | BU11: =IF(ISNA(INDIRECT("BT" & ROW())), "N/A", INDIRECT("BT" & ROW())) -> N/A | BV11: 沒有 | BW11: =IF(BV11="",0,IFERROR(CHOOSE(MATCH(BV11,Pulldown!$H$1:$H$2,0),1,2),0)) -> 2 | BX11: 011 | BY11: 0 | BZ11: 0 | CA11: 0 | CB11: 0 | CC11: 0 | CD11: 0 | CE11: 0 | CF11: 0 | CG11: N/A | CH11: =IFERROR( IF(BW11=2, IF(OR(BX11="211",BX11="212",BX11="221",BX11="222"),"N/A", IF(AND(ISTEXT(BX11),BX11="111",AW11=1),MAX(0,CE11-CF11), IF(AND(ISTEXT(BX11),BX11="112",AW11=1),MAX(0,CE11-CF11), IF(AND(ISTEXT(BX11),BX11="121",AW11=2),MAX(0,CE11-CG11), IF(AND(ISTEXT(BX11),BX11="122",AW11=2),MAX(0,CE11-CG11),"N/A"))))), IF(BW11=1, IF(OR(BX11="211",BX11="212",BX11="221",BX11="222"),"N/A", IF(AND(ISTEXT(BX11),BX11="111",AW11=1), MAX(0,CE11-CF11-IF(OR(ISBLANK(BY11),NOT(ISNUMBER(BY11))),0,BY11)-IF(OR(ISBLANK(BZ11),NOT(ISNUMBER(BZ11))),0,BZ11)-IF(OR(ISBLANK(CA11),NOT(ISNUMBER(CA11))),0,CA11)), IF(AND(ISTEXT(BX11),BX11="112",AW11=1), MAX(0,CE11-IF(OR(ISBLANK(BY11),NOT(ISNUMBER(BY11))),0,BY11)-IF(OR(ISBLANK(BZ11),NOT(ISNUMBER(BZ11))),0,BZ11)-IF(OR(ISBLANK(CA11),NOT(ISNUMBER(CA11))),0,CA11)-CF11), IF(AND(ISTEXT(BX11),BX11="121",AW11=2), MAX(0,CE11-CG11-IF(OR(ISBLANK(CB11),NOT(ISNUMBER(CB11))),0,CB11)-IF(OR(ISBLANK(CC11),NOT(ISNUMBER(CC11))),0,CC11)-IF(OR(ISBLANK(CD11),NOT(ISNUMBER(CD11))),0,CD11)), IF(AND(ISTEXT(BX11),BX11="122",AW11=2), MAX(0,CE11-IF(OR(ISBLANK(CB11),NOT(ISNUMBER(CB11))),0,CB11)-IF(OR(ISBLANK(CC11),NOT(ISNUMBER(CC11))),0,CC11)-IF(OR(ISBLANK(CD11),NOT(ISNUMBER(CD11))),0,CD11)-CG11),"N/A"))))), "N/A")),"Calculation error") -> N/A | CI11: =IFERROR( IF(BW11=2, IFERROR( IF(OR(BX11="211", BX11="212", BX11="221", BX11="222"), "N/A", IF(AND(ISTEXT(BX11), BX11="111", AW11=1), 0-MIN(0,MAX(CE11-CF11,0))+0-MIN(0,MAX(CE11-CF11-0,0))+0-MIN(0,MAX(CE11-CF11-0-0,0)), IF(AND(ISTEXT(BX11), BX11="112", AW11=1), 0-MIN(0,MAX(CE11,0))+0-MIN(0,MAX(CE11-0,0))+0-MIN(0,MAX(CE11-0-0,0)), IF(AND(ISTEXT(BX11), BX11="121", AW11=2), 0-MIN(0,MAX(CE11-CG11,0))+0-MIN(0,MAX(CE11-CG11-0,0))+0-MIN(0,MAX(CE11-CG11-0-0,0)), IF(AND(ISTEXT(BX11), BX11="122", AW11=2), 0-MIN(0,MAX(CE11,0))+0-MIN(0,MAX(CE11-0,0))+0-MIN(0,MAX(CE11-0-0,0)), "Invalid case" ) ) ) ) ), "Calculation error" ), IF(BW11=1, IFERROR( IF(OR(BX11="211", BX11="212", BX11="221", BX11="222"), "N/A", IF(AND(ISTEXT(BX11), BX11="111", AW11=1), IF(ISBLANK(BY11), 0, BY11)-MIN(IF(ISBLANK(BY11), 0, BY11),MAX(CE11-CF11,0)) + IF(ISBLANK(BZ11), 0, BZ11)-MIN(IF(ISBLANK(BZ11), 0, BZ11),MAX(CE11-CF11-IF(ISBLANK(BY11), 0, BY11),0)) + IF(ISBLANK(CA11), 0, CA11)-MIN(IF(ISBLANK(CA11), 0, CA11),MAX(CE11-CF11-IF(ISBLANK(BY11), 0, BY11)-IF(ISBLANK(BZ11), 0, BZ11),0)), IF(AND(ISTEXT(BX11), BX11="112", AW11=1), IF(ISBLANK(BY11), 0, BY11)-MIN(IF(ISBLANK(BY11), 0, BY11),MAX(CE11,0)) + IF(ISBLANK(BZ11), 0, BZ11)-MIN(IF(ISBLANK(BZ11), 0, BZ11),MAX(CE11-IF(ISBLANK(BY11), 0, BY11),0)) + IF(ISBLANK(CA11), 0, CA11)-MIN(IF(ISBLANK(CA11), 0, CA11),MAX(CE11-IF(ISBLANK(BY11), 0, BY11)-IF(ISBLANK(BZ11), 0, BZ11),0)), IF(AND(ISTEXT(BX11), BX11="121", AW11=2), IF(ISBLANK(CB11), 0, CB11)-MIN(IF(ISBLANK(CB11), 0, CB11),MAX(CE11-CG11,0)) + IF(ISBLANK(CC11), 0, CC11)-MIN(IF(ISBLANK(CC11), 0, CC11),MAX(CE11-CG11-IF(ISBLANK(CB11), 0, CB11),0)) + IF(ISBLANK(CD11), 0, CD11)-MIN(IF(ISBLANK(CD11), 0, CD11),MAX(CE11-CG11-IF(ISBLANK(CB11), 0, CB11)-IF(ISBLANK(CC11), 0, CC11),0)), IF(AND(ISTEXT(BX11), BX11="122", AW11=2), IF(ISBLANK(CB11), 0, CB11)-MIN(IF(ISBLANK(CB11), 0, CB11),MAX(CE11,0)) + IF(ISBLANK(CC11), 0, CC11)-MIN(IF(ISBLANK(CC11), 0, CC11),MAX(CE11-IF(ISBLANK(CB11), 0, CB11),0)) + IF(ISBLANK(CD11), 0, CD11)-MIN(IF(ISBLANK(CD11), 0, CD11),MAX(CE11-IF(ISBLANK(CB11), 0, CB11)-IF(ISBLANK(CC11), 0, CC11),0)), "Invalid case" ) ) ) ) ), "Calculation error" ), "Invalid BW" ) ), "Calculation error" ) -> Invalid case | CJ11: 0 | CK11: =IFERROR( IF(BW11=2, IFERROR( IF(ISNUMBER(CI11), IF(OR(ISBLANK(CI11), NOT(ISNUMBER(CI11))), 0, CI11), IF(AW11=1, 0+0+0, IF(AW11=2, 0+0+0, "Calculation error" ) ) ), "Calculation error" ), IF(BW11=1, IFERROR( IF(ISNUMBER(CI11), IF(OR(ISBLANK(CI11), NOT(ISNUMBER(CI11))), 0, CI11), IF(AW11=1, IF(ISBLANK(BY11), 0, BY11) + IF(ISBLANK(BZ11), 0, BZ11) + IF(ISBLANK(CA11), 0, CA11), IF(AW11=2, IF(ISBLANK(CB11), 0, CB11) + IF(ISBLANK(CC11), 0, CC11) + IF(ISBLANK(CD11), 0, CD11), "Calculation error" ) ) ), "Calculation error" ), "Invalid BW" ) ), "Calculation error" ) -> 0 | CL11: =IFERROR(IF(CK11>=CJ11,0,IF(CK11<CJ11,CJ11-CK11,0)),"Calculation error") -> 0 | CM11: N/A | CN11: 0 | CO11: 不超過50萬元 | CP11: =IF(CO11=Pulldown!$A$1,1,IF(CO11=Pulldown!$A$2,2,0)) -> 1 | CQ11: 0 | CR11: =IFERROR( IF(NOT(OR(CP11=1,CP11=2)),0%, IF(ISERROR(MATCH(CQ11,Subsidy!$A$2:$A$26,0)),0%, IF(CP11=1,VLOOKUP(CQ11,Subsidy!$A$2:$G$26,6,FALSE), IF(CP11=2,VLOOKUP(CQ11,Subsidy!$A$2:$G$26,7,FALSE),0%)))), "Calculation error") -> 0 | CS11: =IFERROR( IF(NOT(OR(CP11=1,CP11=2)),0%, IF(ISERROR(MATCH(CQ11,Subsidy!$A$2:$A$26,0)),0%, IF(CP11=1,VLOOKUP(CQ11,Subsidy!$A$2:$D$26,2,FALSE), IF(CP11=2,VLOOKUP(CQ11,Subsidy!$A$2:$D$26,4,FALSE),0%)))), "Calculation error") -> 0 | CT11: 0 | CU11: =IFERROR( IF(NOT(OR(CP11=1,CP11=2)),0, IF(ISERROR(MATCH(CQ11,Subsidy!$A$2:$A$26,0)),0, IF(CP11=2,"N/A", IF(AND(CP11=1,CQ11<=9),VLOOKUP(CQ11,Subsidy!$A$2:$D$26,3,FALSE),0)))), "Calculation error") -> 0 | CV11: =IF(AND(CP11=1, CQ11<=9, NOT(ISERROR(MATCH(CQ11, Subsidy!$A$2:$A$26, 0)))), IFERROR(IF(CL11-CU11<0, "Invalid Case", CL11-CU11), 0), 0) -> 0 | CW11: 0 | CX11: 0 | CY11: 0 | CZ11: 0 | DA11: 0 | DB11: 0 | DC11: 0
A12: 3 | C12: 請選擇 | D12: =IF(OR(C12="", C12="Pls select"), 0, IF(C12=Pulldown!$F$2, 1, IF(C12=Pulldown!$F$3, 2, 0))) -> 0 | E12: 2025-05-01 | H12: Input Required | I12: =IFERROR(CHOOSE(MATCH($H12,{"1-valid","2-valid","Input Required","Date Before Transition"},0),1,2,3,4),0) -> 3 | J12: Input Required | K12: =IFERROR(CHOOSE(MATCH($J12,{"轉制日前開始受僱","轉制日後開始受僱"},0),1,2),0) -> 0 | L12: 月薪僱員 | M12: =IFERROR(CHOOSE(MATCH($L12,Pulldown!$C$1:$C$2,0),22500,15000),0) -> 22500 | N12: =IFERROR(CHOOSE(MATCH($L12,Pulldown!$C$1:$C$2,0),2/3,1),0) -> 0.6666666667 | O12: 0 | P12: 0 | Q12: =IF(OR(I12=1, I12=2), IF(K12=0, "", IF(K12=1, IF(OR(M12="N/A", O12="N/A"), "N/A", IF(OR(M12="", O12=""), "", MIN(M12, O12))), IF(K12=2, "N/A", ""))), "") ->  | R12: 0.6666666667 | S12: =IF(OR(I12=1, I12=2), IF((F12<=E12),(DATEDIF(F12,E12,"Y")),"N/A"), "") ->  | T12: =IF(OR(I12=1, I12=2), IF(F12>E12, F12, F12), "") ->  | U12: =IF(OR(I12=1, I12=2), IF(F12>E12, E12-1, E12-1), "") ->  | V12: =IF(OR(I12=1, I12=2), IF(F12>E12, "N/A", E12-DATE(YEAR(F12)+S12, MONTH(F12), DAY(F12))), "") ->  | W12: =IF(OR(I12=1, I12=2), IF(F12>E12, DATE(YEAR(E12), MONTH(F12), DAY(F12)), DATE(YEAR(F12)+S12, MONTH(F12), DAY(F12))), "") ->  | X12: =IF(OR(I12=1, I12=2), IF(F12>E12, E12-1, E12-1), "") ->  | Y12: =IF(OR(I12=1, I12=2), IF(F12>E12, "N/A", DATE(YEAR(W12)+1, MONTH(W12), DAY(W12))-W12), "") ->  | Z12: =IF(OR(I12=1, I12=2), IF(F12>E12, DATE(YEAR(E12), MONTH(F12), DAY(F12)), DATE(YEAR(F12)+S12, MONTH(F12), DAY(F12))), "") ->  | AA12: =IF(OR(I12=1, I12=2), IF(F12>E12, DATE(YEAR(W12)+1, MONTH(W12), DAY(W12))-1, DATE(YEAR(W12)+1, MONTH(W12), DAY(W12))-1), "") ->  | AB12: =IF(OR(S12="N/A", V12="N/A", Y12="N/A"), "N/A", IF(OR(S12="", V12="", Y12="", Y12=0), "", V12/Y12)) ->  | AC12: =IF(AB12="N/A", "N/A", IF(AB12="", "", S12 + AB12)) ->  | AD12: 0 | AE12: =IF(OR(I12=1, I12=2), IF(K12=0, "", IF(OR(K12=1, K12=2), IF(OR(M12="N/A", P12="N/A"), "N/A", IF(OR(M12="", P12=""), "", MIN(M12, P12))), "")), "") ->  | AF12: 0.6666666667 | AG12: =IF(E12>F12,E12,F12) -> 2025-05-01 | AH12: =IF(OR(I12=1, I12=2), IF(F12<=E12, DATEDIF(E12, G12, "Y"), DATEDIF(F12, G12, "Y")), "") ->  | AI12: =IF(OR(I12=1, I12=2), IF(F12<=E12, E12, F12), "") ->  | AJ12: =IF(OR(I12=1, I12=2), G12, "") ->  | AK12: =IF(OR(I12=1, I12=2), IF(F12<=E12, G12-DATE(YEAR(E12)+AH12, MONTH(E12), DAY(E12)), G12-DATE(YEAR(F12)+AH12, MONTH(F12), DAY(F12)))+1, "") ->  | AL12: =IF(OR(I12=1, I12=2), IF(F12<=E12, DATE(YEAR(E12)+AH12, MONTH(E12), DAY(E12)), DATE(YEAR(F12)+AH12, MONTH(F12), DAY(F12))), "") ->  | AM12: =IF(OR(I12=1, I12=2), G12, "") ->  | AN12: =IF(OR(I12=1, I12=2), IF(F12<=E12, DATE(YEAR(E12)+AH12+1, MONTH(E12), DAY(E12))-DATE(YEAR(E12)+AH12, MONTH(E12), DAY(E12)), DATE(YEAR(F12)+AH12+1, MONTH(F12), DAY(F12))-DATE(YEAR(F12)+AH12, MONTH(F12), DAY(F12))), "") ->  | AO12: =IF(OR(I12=1, I12=2), IF(F12<=E12, DATE(YEAR(E12)+AH12, MONTH(E12), DAY(E12)), DATE(YEAR(F12)+AH12, MONTH(F12), DAY(F12))), "") ->  | AP12: =IF(OR(I12=1, I12=2), IF(F12<=E12, DATE(YEAR(E12)+AH12+1, MONTH(E12), DAY(E12)), DATE(YEAR(F12)+AH12+1, MONTH(F12), DAY(F12)))-1, "") ->  | AQ12: =IF(OR(AH12="N/A", AK12="N/A", AN12="N/A"), "N/A", IF(OR(AH12="", AK12="", AN12="", AN12=0), "", AK12/AN12)) ->  | AR12: =IF(AQ12="N/A", "N/A", IF(AQ12="", "", AH12 + AQ12)) ->  | AS12: 0 | AT12: =IF(AD12="N/A", AS12, IFERROR(IF(AD12+AS12>=390000, 390000-AD12, AS12), AS12)) -> 0 | AU12: =IFERROR(ROUNDDOWN(MIN(SUM(AD12, AS12), 390000), 2), 0) -> 0 | AV12: 強積金計劃 | AW12: =IF(AV12="",0,IFERROR(CHOOSE(MATCH(AV12,Pulldown!$B$2:$B$3,0),1,2),0)) -> 1 | AX12: MC -> VC | AY12: =IF(AX12="",0,IFERROR(CHOOSE(MATCH(AX12,Pulldown!$G$1:$G$2,0),1,2),0)) -> 1 | AZ12: 0 | BA12: 0 | BB12: 0 | BC12: =IF(AW12=1, "N/A", IF(BB12="", 0, MIN(30000, BB12))) -> N/A | BD12: =IF(AW12=1,"N/A",(MAX("1/12/2000",F12))) -> N/A | BE12: =IF(AW12=1,"N/A",G12) -> N/A | BF12: =IF(AW12=1, "N/A", IF(AW12=2, IFERROR(IF(OR(NOT(ISNUMBER(BD12)), NOT(ISNUMBER(BE12)), BD12<DATE(1900,1,1), BE12<DATE(1900,1,1), BE12<BD12), "N/A", DATEDIF(BD12, BE12, "Y")), "N/A"), "")) -> N/A | BG12: =IF(AW12=1, "N/A", IF(AW12=2, BD12, "")) -> N/A | BH12: =IF(AW12=1, "N/A", IF(AW12=2, DATE(YEAR(BE12), MONTH(BD12), DAY(BD12)-1), "")) -> N/A | BI12: =IF(AW12=1, "N/A", IF(AW12=2, IFERROR(IF(OR(NOT(ISNUMBER(BD12)), NOT(ISNUMBER(BE12)), BD12<DATE(1900,1,1), BE12<DATE(1900,1,1), BE12<BD12), "N/A", BE12 - DATE(YEAR(BD12) + BF12, MONTH(BD12), DAY(BD12)) + 1), "N/A"), "")) -> N/A | BJ12: =IF(AW12=1, "N/A", IF(AW12=2, IFERROR(IF(OR(NOT(ISNUMBER(BD12)), NOT(ISNUMBER(BE12)), BD12<DATE(1900,1,1), BE12<DATE(1900,1,1), BE12<BD12), "N/A", DATE(YEAR(BD12) +BF12, MONTH(BD12), DAY(BD12))), "N/A"), "")) -> N/A | BK12: =IF(AW12=1, "N/A", IF(AW12=2, BE12, "")) -> N/A | BL12: =IF(AW12=1, "N/A", IF(AW12=2, IF(OR(NOT(ISNUMBER(BD12)), NOT(ISNUMBER(BE12)), BD12<DATE(1900,1,1), BE12<DATE(1900,1,1), BE12<BD12, BF12="N/A", BF12="", NOT(ISNUMBER(BF12))), "N/A", IFERROR( IF(AND(ISNUMBER(DATE(YEAR(BD12)+BF12+1, MONTH(BD12), DAY(BD12)-1)), ISNUMBER(DATE(YEAR(BD12)+BF12, MONTH(BD12), DAY(BD12)))), DATE(YEAR(BD12)+BF12+1, MONTH(BD12), DAY(BD12)-1) - DATE(YEAR(BD12)+BF12, MONTH(BD12), DAY(BD12)) + 1, "N/A"), "N/A")), "")) -> N/A | BM12: =IF(AW12=1, "N/A", IF(AW12=2, IFERROR(IF(OR(NOT(ISNUMBER(BD12)), NOT(ISNUMBER(BE12)), BD12<DATE(1900,1,1), BE12<DATE(1900,1,1), BE12<BD12), "N/A", DATE(YEAR(BD12) + BF12, MONTH(BD12), DAY(BD12))), "N/A"), "")) -> N/A | BN12: =IF(AW12=1, "N/A", IF(AW12=2, IF(OR(NOT(ISNUMBER(BD12)), NOT(ISNUMBER(BE12)), BD12<DATE(1900,1,1), BE12<DATE(1900,1,1), BE12<BD12, BF12="N/A", BF12="", NOT(ISNUMBER(BF12))), "N/A", IFERROR( IF(ISNUMBER(DATE(YEAR(BD12)+BF12+1, MONTH(BD12), DAY(BD12)-1)), DATE(YEAR(BD12)+BF12+1, MONTH(BD12), DAY(BD12)-1), "N/A"), "N/A")), "")) -> N/A | BO12: =IF($AW12=1, "N/A", IF($AW12=2, IF(OR(NOT(ISNUMBER(BD12)), NOT(ISNUMBER(BE12)), BD12<DATE(1900,1,1), BE12<DATE(1900,1,1), BE12<BD12, BF12="N/A", BF12="", NOT(ISNUMBER(BF12)), BI12="N/A", NOT(ISNUMBER(BI12)), BL12="N/A", NOT(ISNUMBER(BL12)), BL12=0), "N/A", IFERROR(BI12/BL12, "N/A")), "")) -> N/A | BP12: =IF($AW12=1, "N/A", IF($AW12=2, IF(OR(NOT(ISNUMBER(BD12)), NOT(ISNUMBER(BE12)), BD12<DATE(1900,1,1), BE12<DATE(1900,1,1), BE12<BD12, BF12="N/A", BF12="", NOT(ISNUMBER(BF12)), BO12="N/A", NOT(ISNUMBER(BO12))), "N/A", IFERROR(BF12+BO12, "N/A")), "")) -> N/A | BQ12: N/A | BR12: N/A | BS12: N/A | BT12: =IF($AW12=1, "N/A", IF($AW12=2, IF(OR(NOT(ISNUMBER(BD12)), NOT(ISNUMBER(BE12)), BD12<DATE(1900,1,1), BE12<DATE(1900,1,1), BE12<BD12, BF12="N/A", BF12="", NOT(ISNUMBER(BF12)), BS12="N/A", NOT(ISNUMBER(BS12)), NOT(ISNUMBER(BA12))), "N/A", IF(BA12="", 0, IFERROR(BA12 - ROUNDDOWN(BS12,2), "N/A"))), "")) -> N/A | BU12: =IF(ISNA(INDIRECT("BT" & ROW())), "N/A", INDIRECT("BT" & ROW())) -> N/A | BV12: 沒有 | BW12: =IF(BV12="",0,IFERROR(CHOOSE(MATCH(BV12,Pulldown!$H$1:$H$2,0),1,2),0)) -> 2 | BX12: =CONCATENATE(K12,AW12,AY12) -> 011 | BY12: 0 | BZ12: 0 | CA12: 0 | CB12: 0 | CC12: 0 | CD12: 0 | CE12: =IF((AD12="N/A"),"N/A",(MIN(390000,AD12))) -> 0 | CF12: 0 | CG12: =IF($AW12=2,(IF((AD12="N/A"),"N/A",(BS12))),"N/A") -> N/A | CH12: N/A | CI12: Invalid case | CJ12: =IF((CE12="N/A"),AS12,(MIN(AS12,390000-CE12))) -> 0 | CK12: 0 | CL12: 0 | CM12: =IFERROR( IF(OR(I12=1,I12=2), SUM(CH12,CL12), "N/A"), "Calculation error") -> N/A | CN12: =IF(AND(ISNUMBER(CM12), CM12>0), 1, 0) -> 0 | CO12: 不超過50萬元 | CP12: =IF(CO12=Pulldown!$A$1,1,IF(CO12=Pulldown!$A$2,2,0)) -> 1 | CQ12: =IF(G12="", 0, IF(OR(E12="", G12<E12), "Invalid", DATEDIF(E12, G12, "Y") + 1)) -> 0 | CR12: =IFERROR( IF(NOT(OR(CP12=1,CP12=2)),0%, IF(ISERROR(MATCH(CQ12,Subsidy!$A$2:$A$26,0)),0%, IF(CP12=1,VLOOKUP(CQ12,Subsidy!$A$2:$G$26,6,FALSE), IF(CP12=2,VLOOKUP(CQ12,Subsidy!$A$2:$G$26,7,FALSE),0%)))), "Calculation error") -> 0 | CS12: =IFERROR( IF(NOT(OR(CP12=1,CP12=2)),0%, IF(ISERROR(MATCH(CQ12,Subsidy!$A$2:$A$26,0)),0%, IF(CP12=1,VLOOKUP(CQ12,Subsidy!$A$2:$D$26,2,FALSE), IF(CP12=2,VLOOKUP(CQ12,Subsidy!$A$2:$D$26,4,FALSE),0%)))), "Calculation error") -> 0 | CT12: =IFERROR(ROUNDDOWN((CL12*CS12),2), 0) -> 0 | CU12: =IFERROR( IF(NOT(OR(CP12=1,CP12=2)),0, IF(ISERROR(MATCH(CQ12,Subsidy!$A$2:$A$26,0)),0, IF(CP12=2,"N/A", IF(AND(CP12=1,CQ12<=9),VLOOKUP(CQ12,Subsidy!$A$2:$D$26,3,FALSE),0)))), "Calculation error") -> 0 | CV12: =IF(AND(CP12=1, CQ12<=9, NOT(ISERROR(MATCH(CQ12, Subsidy!$A$2:$A$26, 0)))), IFERROR(IF(CL12-CU12<0, "Invalid Case", CL12-CU12), 0), 0) -> 0 | CW12: =MAX(CT12, CV12) -> 0 | CX12: =IFERROR(CL12-CW12, 0) -> 0 | CY12: =IFERROR(ROUNDDOWN(MIN(SUM(AD12, AS12), 390000), 2), 0) -> 0 | CZ12: =CY12-DA12 -> 0 | DA12: =SUM(CH12,CL12) -> 0 | DB12: =CW12 -> 0 | DC12: =DA12-DB12 -> 0
A13: 4 | C13: 請選擇 | D13: =IF(OR(C13="", C13="Pls select"), 0, IF(C13=Pulldown!$F$2, 1, IF(C13=Pulldown!$F$3, 2, 0))) -> 0 | E13: 2025-05-01 | H13: Input Required | I13: =IFERROR(CHOOSE(MATCH($H13,{"1-valid","2-valid","Input Required","Date Before Transition"},0),1,2,3,4),0) -> 3 | J13: Input Required | K13: =IFERROR(CHOOSE(MATCH($J13,{"轉制日前開始受僱","轉制日後開始受僱"},0),1,2),0) -> 0 | L13: 月薪僱員 | M13: =IFERROR(CHOOSE(MATCH($L13,Pulldown!$C$1:$C$2,0),22500,15000),0) -> 22500 | N13: =IFERROR(CHOOSE(MATCH($L13,Pulldown!$C$1:$C$2,0),2/3,1),0) -> 0.6666666667 | O13: 0 | P13: 0 | R13: 0.6666666667 | AD13: 0 | AF13: 0.6666666667 | AG13: 2025-05-01 | AS13: 0 | AT13: 0 | AU13: 0 | AV13: 強積金計劃 | AW13: =IF(AV13="",0,IFERROR(CHOOSE(MATCH(AV13,Pulldown!$B$2:$B$3,0),1,2),0)) -> 1 | AX13: MC -> VC | AY13: =IF(AX13="",0,IFERROR(CHOOSE(MATCH(AX13,Pulldown!$G$1:$G$2,0),1,2),0)) -> 1 | AZ13: 0 | BA13: 0 | BB13: 0 | BC13: N/A | BD13: N/A | BE13: N/A | BF13: N/A | BG13: N/A | BH13: N/A | BI13: N/A | BJ13: N/A | BK13: N/A | BL13: N/A | BM13: N/A | BN13: N/A | BO13: N/A | BP13: N/A | BQ13: N/A | BR13: N/A | BS13: N/A | BT13: N/A | BU13: =IF(ISNA(INDIRECT("BT" & ROW())), "N/A", INDIRECT("BT" & ROW())) -> N/A | BV13: 沒有 | BW13: =IF(BV13="",0,IFERROR(CHOOSE(MATCH(BV13,Pulldown!$H$1:$H$2,0),1,2),0)) -> 2 | BX13: 011 | BY13: 0 | BZ13: 0 | CA13: 0 | CB13: 0 | CC13: 0 | CD13: 0 | CE13: 0 | CF13: 0 | CG13: N/A | CH13: N/A | CI13: Invalid case | CJ13: 0 | CK13: 0 | CL13: 0 | CM13: N/A | CN13: 0 | CO13: 不超過50萬元 | CP13: =IF(CO13=Pulldown!$A$1,1,IF(CO13=Pulldown!$A$2,2,0)) -> 1 | CQ13: 0 | CR13: =IFERROR( IF(NOT(OR(CP13=1,CP13=2)),0%, IF(ISERROR(MATCH(CQ13,Subsidy!$A$2:$A$26,0)),0%, IF(CP13=1,VLOOKUP(CQ13,Subsidy!$A$2:$G$26,6,FALSE), IF(CP13=2,VLOOKUP(CQ13,Subsidy!$A$2:$G$26,7,FALSE),0%)))), "Calculation error") -> 0 | CS13: =IFERROR( IF(NOT(OR(CP13=1,CP13=2)),0%, IF(ISERROR(MATCH(CQ13,Subsidy!$A$2:$A$26,0)),0%, IF(CP13=1,VLOOKUP(CQ13,Subsidy!$A$2:$D$26,2,FALSE), IF(CP13=2,VLOOKUP(CQ13,Subsidy!$A$2:$D$26,4,FALSE),0%)))), "Calculation error") -> 0 | CT13: 0 | CU13: =IFERROR( IF(NOT(OR(CP13=1,CP13=2)),0, IF(ISERROR(MATCH(CQ13,Subsidy!$A$2:$A$26,0)),0, IF(CP13=2,"N/A", IF(AND(CP13=1,CQ13<=9),VLOOKUP(CQ13,Subsidy!$A$2:$D$26,3,FALSE),0)))), "Calculation error") -> 0 | CV13: =IF(AND(CP13=1, CQ13<=9, NOT(ISERROR(MATCH(CQ13, Subsidy!$A$2:$A$26, 0)))), IFERROR(IF(CL13-CU13<0, "Invalid Case", CL13-CU13), 0), 0) -> 0 | CW13: 0 | CX13: 0 | CY13: 0 | CZ13: 0 | DA13: 0 | DB13: 0 | DC13: 0
A14: 5 | C14: 請選擇 | D14: =IF(OR(C14="", C14="Pls select"), 0, IF(C14=Pulldown!$F$2, 1, IF(C14=Pulldown!$F$3, 2, 0))) -> 0 | E14: 2025-05-01 | H14: Input Required | I14: =IFERROR(CHOOSE(MATCH($H14,{"1-valid","2-valid","Input Required","Date Before Transition"},0),1,2,3,4),0) -> 3 | J14: Input Required | K14: =IFERROR(CHOOSE(MATCH($J14,{"轉制日前開始受僱","轉制日後開始受僱"},0),1,2),0) -> 0 | L14: 月薪僱員 | M14: =IFERROR(CHOOSE(MATCH($L14,Pulldown!$C$1:$C$2,0),22500,15000),0) -> 22500 | N14: =IFERROR(CHOOSE(MATCH($L14,Pulldown!$C$1:$C$2,0),2/3,1),0) -> 0.6666666667 | O14: 0 | P14: 0 | R14: 0.6666666667 | AD14: 0 | AF14: 0.6666666667 | AG14: 2025-05-01 | AS14: 0 | AT14: 0 | AU14: 0 | AV14: 強積金計劃 | AW14: =IF(AV14="",0,IFERROR(CHOOSE(MATCH(AV14,Pulldown!$B$2:$B$3,0),1,2),0)) -> 1 | AX14: MC -> VC | AY14: =IF(AX14="",0,IFERROR(CHOOSE(MATCH(AX14,Pulldown!$G$1:$G$2,0),1,2),0)) -> 1 | AZ14: 0 | BA14: 0 | BB14: 0 | BC14: N/A | BD14: N/A | BE14: N/A | BF14: N/A | BG14: N/A | BH14: N/A | BI14: N/A | BJ14: N/A | BK14: N/A | BL14: N/A | BM14: N/A | BN14: N/A | BO14: N/A | BP14: N/A | BQ14: N/A | BR14: N/A | BS14: N/A | BT14: N/A | BU14: =IF(ISNA(INDIRECT("BT" & ROW())), "N/A", INDIRECT("BT" & ROW())) -> N/A | BV14: 沒有 | BW14: =IF(BV14="",0,IFERROR(CHOOSE(MATCH(BV14,Pulldown!$H$1:$H$2,0),1,2),0)) -> 2 | BX14: 011 | BY14: 0 | BZ14: 0 | CA14: 0 | CB14: 0 | CC14: 0 | CD14: 0 | CE14: 0 | CF14: 0 | CG14: N/A | CH14: N/A | CI14: Invalid case | CJ14: 0 | CK14: 0 | CL14: 0 | CM14: N/A | CN14: 0 | CO14: 不超過50萬元 | CP14: =IF(CO14=Pulldown!$A$1,1,IF(CO14=Pulldown!$A$2,2,0)) -> 1 | CQ14: 0 | CR14: =IFERROR( IF(NOT(OR(CP14=1,CP14=2)),0%, IF(ISERROR(MATCH(CQ14,Subsidy!$A$2:$A$26,0)),0%, IF(CP14=1,VLOOKUP(CQ14,Subsidy!$A$2:$G$26,6,FALSE), IF(CP14=2,VLOOKUP(CQ14,Subsidy!$A$2:$G$26,7,FALSE),0%)))), "Calculation error") -> 0 | CS14: =IFERROR( IF(NOT(OR(CP14=1,CP14=2)),0%, IF(ISERROR(MATCH(CQ14,Subsidy!$A$2:$A$26,0)),0%, IF(CP14=1,VLOOKUP(CQ14,Subsidy!$A$2:$D$26,2,FALSE), IF(CP14=2,VLOOKUP(CQ14,Subsidy!$A$2:$D$26,4,FALSE),0%)))), "Calculation error") -> 0 | CT14: 0 | CU14: =IFERROR( IF(NOT(OR(CP14=1,CP14=2)),0, IF(ISERROR(MATCH(CQ14,Subsidy!$A$2:$A$26,0)),0, IF(CP14=2,"N/A", IF(AND(CP14=1,CQ14<=9),VLOOKUP(CQ14,Subsidy!$A$2:$D$26,3,FALSE),0)))), "Calculation error") -> 0 | CV14: =IF(AND(CP14=1, CQ14<=9, NOT(ISERROR(MATCH(CQ14, Subsidy!$A$2:$A$26, 0)))), IFERROR(IF(CL14-CU14<0, "Invalid Case", CL14-CU14), 0), 0) -> 0 | CW14: 0 | CX14: 0 | CY14: 0 | CZ14: 0 | DA14: 0 | DB14: 0 | DC14: 0
A15: 6 | C15: 請選擇 | D15: =IF(OR(C15="", C15="Pls select"), 0, IF(C15=Pulldown!$F$2, 1, IF(C15=Pulldown!$F$3, 2, 0))) -> 0 | E15: 2025-05-01 | H15: Input Required | I15: =IFERROR(CHOOSE(MATCH($H15,{"1-valid","2-valid","Input Required","Date Before Transition"},0),1,2,3,4),0) -> 3 | J15: Input Required | K15: =IFERROR(CHOOSE(MATCH($J15,{"轉制日前開始受僱","轉制日後開始受僱"},0),1,2),0) -> 0 | L15: 月薪僱員 | M15: =IFERROR(CHOOSE(MATCH($L15,Pulldown!$C$1:$C$2,0),22500,15000),0) -> 22500 | N15: =IFERROR(CHOOSE(MATCH($L15,Pulldown!$C$1:$C$2,0),2/3,1),0) -> 0.6666666667 | O15: 0 | P15: 0 | R15: 0.6666666667 | AD15: 0 | AF15: 0.6666666667 | AG15: 2025-05-01 | AS15: 0 | AT15: 0 | AU15: 0 | AV15: 強積金計劃 | AW15: =IF(AV15="",0,IFERROR(CHOOSE(MATCH(AV15,Pulldown!$B$2:$B$3,0),1,2),0)) -> 1 | AX15: MC -> VC | AY15: =IF(AX15="",0,IFERROR(CHOOSE(MATCH(AX15,Pulldown!$G$1:$G$2,0),1,2),0)) -> 1 | AZ15: 0 | BA15: 0 | BB15: 0 | BC15: N/A | BD15: N/A | BE15: N/A | BF15: N/A | BG15: N/A | BH15: N/A | BI15: N/A | BJ15: N/A | BK15: N/A | BL15: N/A | BM15: N/A | BN15: N/A | BO15: N/A | BP15: N/A | BQ15: N/A | BR15: N/A | BS15: N/A | BT15: N/A | BU15: =IF(ISNA(INDIRECT("BT" & ROW())), "N/A", INDIRECT("BT" & ROW())) -> N/A | BV15: 沒有 | BW15: =IF(BV15="",0,IFERROR(CHOOSE(MATCH(BV15,Pulldown!$H$1:$H$2,0),1,2),0)) -> 2 | BX15: 011 | BY15: 0 | BZ15: 0 | CA15: 0 | CB15: 0 | CC15: 0 | CD15: 0 | CE15: 0 | CF15: 0 | CG15: N/A | CH15: N/A | CI15: Invalid case | CJ15: 0 | CK15: 0 | CL15: 0 | CM15: N/A | CN15: 0 | CO15: 不超過50萬元 | CP15: =IF(CO15=Pulldown!$A$1,1,IF(CO15=Pulldown!$A$2,2,0)) -> 1 | CQ15: 0 | CR15: =IFERROR( IF(NOT(OR(CP15=1,CP15=2)),0%, IF(ISERROR(MATCH(CQ15,Subsidy!$A$2:$A$26,0)),0%, IF(CP15=1,VLOOKUP(CQ15,Subsidy!$A$2:$G$26,6,FALSE), IF(CP15=2,VLOOKUP(CQ15,Subsidy!$A$2:$G$26,7,FALSE),0%)))), "Calculation error") -> 0 | CS15: =IFERROR( IF(NOT(OR(CP15=1,CP15=2)),0%, IF(ISERROR(MATCH(CQ15,Subsidy!$A$2:$A$26,0)),0%, IF(CP15=1,VLOOKUP(CQ15,Subsidy!$A$2:$D$26,2,FALSE), IF(CP15=2,VLOOKUP(CQ15,Subsidy!$A$2:$D$26,4,FALSE),0%)))), "Calculation error") -> 0 | CT15: 0 | CU15: =IFERROR( IF(NOT(OR(CP15=1,CP15=2)),0, IF(ISERROR(MATCH(CQ15,Subsidy!$A$2:$A$26,0)),0, IF(CP15=2,"N/A", IF(AND(CP15=1,CQ15<=9),VLOOKUP(CQ15,Subsidy!$A$2:$D$26,3,FALSE),0)))), "Calculation error") -> 0 | CV15: =IF(AND(CP15=1, CQ15<=9, NOT(ISERROR(MATCH(CQ15, Subsidy!$A$2:$A$26, 0)))), IFERROR(IF(CL15-CU15<0, "Invalid Case", CL15-CU15), 0), 0) -> 0 | CW15: 0 | CX15: 0 | CY15: 0 | CZ15: 0 | DA15: 0 | DB15: 0 | DC15: 0
A16: 7 | C16: 請選擇 | D16: =IF(OR(C16="", C16="Pls select"), 0, IF(C16=Pulldown!$F$2, 1, IF(C16=Pulldown!$F$3, 2, 0))) -> 0 | E16: 2025-05-01 | H16: Input Required | I16: =IFERROR(CHOOSE(MATCH($H16,{"1-valid","2-valid","Input Required","Date Before Transition"},0),1,2,3,4),0) -> 3 | J16: Input Required | K16: =IFERROR(CHOOSE(MATCH($J16,{"轉制日前開始受僱","轉制日後開始受僱"},0),1,2),0) -> 0 | L16: 月薪僱員 | M16: =IFERROR(CHOOSE(MATCH($L16,Pulldown!$C$1:$C$2,0),22500,15000),0) -> 22500 | N16: =IFERROR(CHOOSE(MATCH($L16,Pulldown!$C$1:$C$2,0),2/3,1),0) -> 0.6666666667 | O16: 0 | P16: 0 | R16: 0.6666666667 | AD16: 0 | AF16: 0.6666666667 | AG16: 2025-05-01 | AS16: 0 | AT16: 0 | AU16: 0 | AV16: 強積金計劃 | AW16: =IF(AV16="",0,IFERROR(CHOOSE(MATCH(AV16,Pulldown!$B$2:$B$3,0),1,2),0)) -> 1 | AX16: MC -> VC | AY16: =IF(AX16="",0,IFERROR(CHOOSE(MATCH(AX16,Pulldown!$G$1:$G$2,0),1,2),0)) -> 1 | AZ16: 0 | BA16: 0 | BB16: 0 | BC16: N/A | BD16: N/A | BE16: N/A | BF16: N/A | BG16: N/A | BH16: N/A | BI16: N/A | BJ16: N/A | BK16: N/A | BL16: N/A | BM16: N/A | BN16: N/A | BO16: N/A | BP16: N/A | BQ16: N/A | BR16: N/A | BS16: N/A | BT16: N/A | BU16: =IF(ISNA(INDIRECT("BT" & ROW())), "N/A", INDIRECT("BT" & ROW())) -> N/A | BV16: 沒有 | BW16: =IF(BV16="",0,IFERROR(CHOOSE(MATCH(BV16,Pulldown!$H$1:$H$2,0),1,2),0)) -> 2 | BX16: 011 | BY16: 0 | BZ16: 0 | CA16: 0 | CB16: 0 | CC16: 0 | CD16: 0 | CE16: 0 | CF16: 0 | CG16: N/A | CH16: N/A | CI16: Invalid case | CJ16: 0 | CK16: 0 | CL16: 0 | CM16: N/A | CN16: 0 | CO16: 不超過50萬元 | CP16: =IF(CO16=Pulldown!$A$1,1,IF(CO16=Pulldown!$A$2,2,0)) -> 1 | CQ16: 0 | CR16: =IFERROR( IF(NOT(OR(CP16=1,CP16=2)),0%, IF(ISERROR(MATCH(CQ16,Subsidy!$A$2:$A$26,0)),0%, IF(CP16=1,VLOOKUP(CQ16,Subsidy!$A$2:$G$26,6,FALSE), IF(CP16=2,VLOOKUP(CQ16,Subsidy!$A$2:$G$26,7,FALSE),0%)))), "Calculation error") -> 0 | CS16: =IFERROR( IF(NOT(OR(CP16=1,CP16=2)),0%, IF(ISERROR(MATCH(CQ16,Subsidy!$A$2:$A$26,0)),0%, IF(CP16=1,VLOOKUP(CQ16,Subsidy!$A$2:$D$26,2,FALSE), IF(CP16=2,VLOOKUP(CQ16,Subsidy!$A$2:$D$26,4,FALSE),0%)))), "Calculation error") -> 0 | CT16: 0 | CU16: =IFERROR( IF(NOT(OR(CP16=1,CP16=2)),0, IF(ISERROR(MATCH(CQ16,Subsidy!$A$2:$A$26,0)),0, IF(CP16=2,"N/A", IF(AND(CP16=1,CQ16<=9),VLOOKUP(CQ16,Subsidy!$A$2:$D$26,3,FALSE),0)))), "Calculation error") -> 0 | CV16: =IF(AND(CP16=1, CQ16<=9, NOT(ISERROR(MATCH(CQ16, Subsidy!$A$2:$A$26, 0)))), IFERROR(IF(CL16-CU16<0, "Invalid Case", CL16-CU16), 0), 0) -> 0 | CW16: 0 | CX16: 0 | CY16: 0 | CZ16: 0 | DA16: 0 | DB16: 0 | DC16: 0
A17: 8 | C17: 請選擇 | D17: =IF(OR(C17="", C17="Pls select"), 0, IF(C17=Pulldown!$F$2, 1, IF(C17=Pulldown!$F$3, 2, 0))) -> 0 | E17: 2025-05-01 | H17: Input Required | I17: =IFERROR(CHOOSE(MATCH($H17,{"1-valid","2-valid","Input Required","Date Before Transition"},0),1,2,3,4),0) -> 3 | J17: Input Required | K17: =IFERROR(CHOOSE(MATCH($J17,{"轉制日前開始受僱","轉制日後開始受僱"},0),1,2),0) -> 0 | L17: 月薪僱員 | M17: =IFERROR(CHOOSE(MATCH($L17,Pulldown!$C$1:$C$2,0),22500,15000),0) -> 22500 | N17: =IFERROR(CHOOSE(MATCH($L17,Pulldown!$C$1:$C$2,0),2/3,1),0) -> 0.6666666667 | O17: 0 | P17: 0 | R17: 0.6666666667 | AD17: 0 | AF17: 0.6666666667 | AG17: 2025-05-01 | AS17: 0 | AT17: 0 | AU17: 0 | AV17: 強積金計劃 | AW17: =IF(AV17="",0,IFERROR(CHOOSE(MATCH(AV17,Pulldown!$B$2:$B$3,0),1,2),0)) -> 1 | AX17: MC -> VC | AY17: =IF(AX17="",0,IFERROR(CHOOSE(MATCH(AX17,Pulldown!$G$1:$G$2,0),1,2),0)) -> 1 | AZ17: 0 | BA17: 0 | BB17: 0 | BC17: N/A | BD17: N/A | BE17: N/A | BF17: N/A | BG17: N/A | BH17: N/A | BI17: N/A | BJ17: N/A | BK17: N/A | BL17: N/A | BM17: N/A | BN17: N/A | BO17: N/A | BP17: N/A | BQ17: N/A | BR17: N/A | BS17: N/A | BT17: N/A | BU17: =IF(ISNA(INDIRECT("BT" & ROW())), "N/A", INDIRECT("BT" & ROW())) -> N/A | BV17: 沒有 | BW17: =IF(BV17="",0,IFERROR(CHOOSE(MATCH(BV17,Pulldown!$H$1:$H$2,0),1,2),0)) -> 2 | BX17: 011 | BY17: 0 | BZ17: 0 | CA17: 0 | CB17: 0 | CC17: 0 | CD17: 0 | CE17: 0 | CF17: 0 | CG17: N/A | CH17: N/A | CI17: Invalid case | CJ17: 0 | CK17: 0 | CL17: 0 | CM17: N/A | CN17: 0 | CO17: 不超過50萬元 | CP17: =IF(CO17=Pulldown!$A$1,1,IF(CO17=Pulldown!$A$2,2,0)) -> 1 | CQ17: 0 | CR17: =IFERROR( IF(NOT(OR(CP17=1,CP17=2)),0%, IF(ISERROR(MATCH(CQ17,Subsidy!$A$2:$A$26,0)),0%, IF(CP17=1,VLOOKUP(CQ17,Subsidy!$A$2:$G$26,6,FALSE), IF(CP17=2,VLOOKUP(CQ17,Subsidy!$A$2:$G$26,7,FALSE),0%)))), "Calculation error") -> 0 | CS17: =IFERROR( IF(NOT(OR(CP17=1,CP17=2)),0%, IF(ISERROR(MATCH(CQ17,Subsidy!$A$2:$A$26,0)),0%, IF(CP17=1,VLOOKUP(CQ17,Subsidy!$A$2:$D$26,2,FALSE), IF(CP17=2,VLOOKUP(CQ17,Subsidy!$A$2:$D$26,4,FALSE),0%)))), "Calculation error") -> 0 | CT17: 0 | CU17: =IFERROR( IF(NOT(OR(CP17=1,CP17=2)),0, IF(ISERROR(MATCH(CQ17,Subsidy!$A$2:$A$26,0)),0, IF(CP17=2,"N/A", IF(AND(CP17=1,CQ17<=9),VLOOKUP(CQ17,Subsidy!$A$2:$D$26,3,FALSE),0)))), "Calculation error") -> 0 | CV17: =IF(AND(CP17=1, CQ17<=9, NOT(ISERROR(MATCH(CQ17, Subsidy!$A$2:$A$26, 0)))), IFERROR(CL17-CU17, 0), 0) -> 0 | CW17: 0 | CX17: 0 | CY17: 0 | CZ17: 0 | DA17: 0 | DB17: 0 | DC17: 0
A18: 9 | C18: 請選擇 | D18: =IF(OR(C18="", C18="Pls select"), 0, IF(C18=Pulldown!$F$2, 1, IF(C18=Pulldown!$F$3, 2, 0))) -> 0 | E18: 2025-05-01 | H18: Input Required | I18: =IFERROR(CHOOSE(MATCH($H18,{"1-valid","2-valid","Input Required","Date Before Transition"},0),1,2,3,4),0) -> 3 | J18: Input Required | K18: =IFERROR(CHOOSE(MATCH($J18,{"轉制日前開始受僱","轉制日後開始受僱"},0),1,2),0) -> 0 | L18: 月薪僱員 | M18: =IFERROR(CHOOSE(MATCH($L18,Pulldown!$C$1:$C$2,0),22500,15000),0) -> 22500 | N18: =IFERROR(CHOOSE(MATCH($L18,Pulldown!$C$1:$C$2,0),2/3,1),0) -> 0.6666666667 | O18: 0 | P18: 0 | R18: 0.6666666667 | AD18: 0 | AF18: 0.6666666667 | AG18: 2025-05-01 | AS18: 0 | AT18: 0 | AU18: 0 | AV18: 強積金計劃 | AW18: =IF(AV18="",0,IFERROR(CHOOSE(MATCH(AV18,Pulldown!$B$2:$B$3,0),1,2),0)) -> 1 | AX18: MC -> VC | AY18: =IF(AX18="",0,IFERROR(CHOOSE(MATCH(AX18,Pulldown!$G$1:$G$2,0),1,2),0)) -> 1 | AZ18: 0 | BA18: 0 | BB18: 0 | BC18: N/A | BD18: N/A | BE18: N/A | BF18: N/A | BG18: N/A | BH18: N/A | BI18: N/A | BJ18: N/A | BK18: N/A | BL18: N/A | BM18: N/A | BN18: N/A | BO18: N/A | BP18: N/A | BQ18: N/A | BR18: N/A | BS18: N/A | BT18: N/A | BU18: =IF(ISNA(INDIRECT("BT" & ROW())), "N/A", INDIRECT("BT" & ROW())) -> N/A | BV18: 沒有 | BW18: =IF(BV18="",0,IFERROR(CHOOSE(MATCH(BV18,Pulldown!$H$1:$H$2,0),1,2),0)) -> 2 | BX18: 011 | BY18: 0 | BZ18: 0 | CA18: 0 | CB18: 0 | CC18: 0 | CD18: 0 | CE18: 0 | CF18: 0 | CG18: N/A | CH18: N/A | CI18: Invalid case | CJ18: 0 | CK18: 0 | CL18: 0 | CM18: N/A | CN18: 0 | CO18: 不超過50萬元 | CP18: =IF(CO18=Pulldown!$A$1,1,IF(CO18=Pulldown!$A$2,2,0)) -> 1 | CQ18: 0 | CR18: =IFERROR( IF(NOT(OR(CP18=1,CP18=2)),0%, IF(ISERROR(MATCH(CQ18,Subsidy!$A$2:$A$26,0)),0%, IF(CP18=1,VLOOKUP(CQ18,Subsidy!$A$2:$G$26,6,FALSE), IF(CP18=2,VLOOKUP(CQ18,Subsidy!$A$2:$G$26,7,FALSE),0%)))), "Calculation error") -> 0 | CS18: =IFERROR( IF(NOT(OR(CP18=1,CP18=2)),0%, IF(ISERROR(MATCH(CQ18,Subsidy!$A$2:$A$26,0)),0%, IF(CP18=1,VLOOKUP(CQ18,Subsidy!$A$2:$D$26,2,FALSE), IF(CP18=2,VLOOKUP(CQ18,Subsidy!$A$2:$D$26,4,FALSE),0%)))), "Calculation error") -> 0 | CT18: 0 | CU18: =IFERROR( IF(NOT(OR(CP18=1,CP18=2)),0, IF(ISERROR(MATCH(CQ18,Subsidy!$A$2:$A$26,0)),0, IF(CP18=2,"N/A", IF(AND(CP18=1,CQ18<=9),VLOOKUP(CQ18,Subsidy!$A$2:$D$26,3,FALSE),0)))), "Calculation error") -> 0 | CV18: =IF(AND(CP18=1, CQ18<=9, NOT(ISERROR(MATCH(CQ18, Subsidy!$A$2:$A$26, 0)))), IFERROR(CL18-CU18, 0), 0) -> 0 | CW18: 0 | CX18: 0 | CY18: 0 | CZ18: 0 | DA18: 0 | DB18: 0 | DC18: 0
A19: 10 | C19: 請選擇 | D19: =IF(OR(C19="", C19="Pls select"), 0, IF(C19=Pulldown!$F$2, 1, IF(C19=Pulldown!$F$3, 2, 0))) -> 0 | E19: 2025-05-01 | H19: Input Required | I19: =IFERROR(CHOOSE(MATCH($H19,{"1-valid","2-valid","Input Required","Date Before Transition"},0),1,2,3,4),0) -> 3 | J19: Input Required | K19: =IFERROR(CHOOSE(MATCH($J19,{"轉制日前開始受僱","轉制日後開始受僱"},0),1,2),0) -> 0 | L19: 月薪僱員 | M19: =IFERROR(CHOOSE(MATCH($L19,Pulldown!$C$1:$C$2,0),22500,15000),0) -> 22500 | N19: =IFERROR(CHOOSE(MATCH($L19,Pulldown!$C$1:$C$2,0),2/3,1),0) -> 0.6666666667 | O19: 0 | P19: 0 | R19: 0.6666666667 | AD19: 0 | AF19: 0.6666666667 | AG19: 2025-05-01 | AN19: =IF(OR(I19=1, I19=2), IF(F19<=E19, DATE(YEAR(E19)+AH19+1, MONTH(E19), DAY(E19))-DATE(YEAR(E19)+AH19, MONTH(E19), DAY(E19)), DATE(YEAR(F19)+AH19+1, MONTH(F19), DAY(F19))-DATE(YEAR(F19)+AH19, MONTH(F19), DAY(F19))), "") ->  | AS19: 0 | AT19: 0 | AU19: 0 | AV19: 強積金計劃 | AW19: =IF(AV19="",0,IFERROR(CHOOSE(MATCH(AV19,Pulldown!$B$2:$B$3,0),1,2),0)) -> 1 | AX19: MC -> VC | AY19: =IF(AX19="",0,IFERROR(CHOOSE(MATCH(AX19,Pulldown!$G$1:$G$2,0),1,2),0)) -> 1 | AZ19: 0 | BA19: 0 | BB19: 0 | BC19: N/A | BD19: N/A | BE19: N/A | BF19: N/A | BG19: N/A | BH19: N/A | BI19: N/A | BJ19: N/A | BK19: N/A | BL19: N/A | BM19: N/A | BN19: N/A | BO19: N/A | BP19: N/A | BQ19: N/A | BR19: N/A | BS19: N/A | BT19: N/A | BU19: =IF(ISNA(INDIRECT("BT" & ROW())), "N/A", INDIRECT("BT" & ROW())) -> N/A | BV19: 沒有 | BW19: =IF(BV19="",0,IFERROR(CHOOSE(MATCH(BV19,Pulldown!$H$1:$H$2,0),1,2),0)) -> 2 | BX19: 011 | BY19: 0 | BZ19: 0 | CA19: 0 | CB19: 0 | CC19: 0 | CD19: 0 | CE19: 0 | CF19: 0 | CG19: N/A | CH19: N/A | CI19: Invalid case | CJ19: 0 | CK19: 0 | CL19: 0 | CM19: N/A | CN19: 0 | CO19: 不超過50萬元 | CP19: =IF(CO19=Pulldown!$A$1,1,IF(CO19=Pulldown!$A$2,2,0)) -> 1 | CQ19: 0 | CR19: =IFERROR( IF(NOT(OR(CP19=1,CP19=2)),0%, IF(ISERROR(MATCH(CQ19,Subsidy!$A$2:$A$26,0)),0%, IF(CP19=1,VLOOKUP(CQ19,Subsidy!$A$2:$G$26,6,FALSE), IF(CP19=2,VLOOKUP(CQ19,Subsidy!$A$2:$G$26,7,FALSE),0%)))), "Calculation error") -> 0 | CS19: =IFERROR( IF(NOT(OR(CP19=1,CP19=2)),0%, IF(ISERROR(MATCH(CQ19,Subsidy!$A$2:$A$26,0)),0%, IF(CP19=1,VLOOKUP(CQ19,Subsidy!$A$2:$D$26,2,FALSE), IF(CP19=2,VLOOKUP(CQ19,Subsidy!$A$2:$D$26,4,FALSE),0%)))), "Calculation error") -> 0 | CT19: 0 | CU19: =IFERROR( IF(NOT(OR(CP19=1,CP19=2)),0, IF(ISERROR(MATCH(CQ19,Subsidy!$A$2:$A$26,0)),0, IF(CP19=2,"N/A", IF(AND(CP19=1,CQ19<=9),VLOOKUP(CQ19,Subsidy!$A$2:$D$26,3,FALSE),0)))), "Calculation error") -> 0 | CV19: =IF(AND(CP19=1, CQ19<=9, NOT(ISERROR(MATCH(CQ19, Subsidy!$A$2:$A$26, 0)))), IFERROR(CL19-CU19, 0), 0) -> 0 | CW19: 0 | CX19: 0 | CY19: 0 | CZ19: 0 | DA19: 0 | DB19: 0 | DC19: 0
A20: 11 | C20: 請選擇 | D20: =IF(OR(C20="", C20="Pls select"), 0, IF(C20=Pulldown!$F$2, 1, IF(C20=Pulldown!$F$3, 2, 0))) -> 0 | E20: 2025-05-01 | H20: Input Required | I20: =IFERROR(CHOOSE(MATCH($H20,{"1-valid","2-valid","Input Required","Date Before Transition"},0),1,2,3,4),0) -> 3 | J20: Input Required | K20: =IFERROR(CHOOSE(MATCH($J20,{"轉制日前開始受僱","轉制日後開始受僱"},0),1,2),0) -> 0 | L20: 月薪僱員 | M20: =IFERROR(CHOOSE(MATCH($L20,Pulldown!$C$1:$C$2,0),22500,15000),0) -> 22500 | N20: =IFERROR(CHOOSE(MATCH($L20,Pulldown!$C$1:$C$2,0),2/3,1),0) -> 0.6666666667 | O20: 0 | P20: 0 | R20: 0.6666666667 | AD20: 0 | AF20: 0.6666666667 | AG20: 2025-05-01 | AN20: =IF(OR(I20=1, I20=2), IF(F20<=E20, DATE(YEAR(E20)+AH20+1, MONTH(E20), DAY(E20))-DATE(YEAR(E20)+AH20, MONTH(E20), DAY(E20)), DATE(YEAR(F20)+AH20+1, MONTH(F20), DAY(F20))-DATE(YEAR(F20)+AH20, MONTH(F20), DAY(F20))), "") ->  | AS20: 0 | AT20: 0 | AU20: 0 | AV20: 強積金計劃 | AW20: =IF(AV20="",0,IFERROR(CHOOSE(MATCH(AV20,Pulldown!$B$2:$B$3,0),1,2),0)) -> 1 | AX20: MC -> VC | AY20: =IF(AX20="",0,IFERROR(CHOOSE(MATCH(AX20,Pulldown!$G$1:$G$2,0),1,2),0)) -> 1 | AZ20: 0 | BA20: 0 | BB20: 0 | BC20: N/A | BD20: N/A | BE20: N/A | BF20: N/A | BG20: N/A | BH20: N/A | BI20: N/A | BJ20: N/A | BK20: N/A | BL20: N/A | BM20: N/A | BN20: N/A | BO20: N/A | BP20: N/A | BQ20: N/A | BR20: N/A | BS20: N/A | BT20: N/A | BU20: =IF(ISNA(INDIRECT("BT" & ROW())), "N/A", INDIRECT("BT" & ROW())) -> N/A | BV20: 沒有 | BW20: =IF(BV20="",0,IFERROR(CHOOSE(MATCH(BV20,Pulldown!$H$1:$H$2,0),1,2),0)) -> 2 | BX20: 011 | BY20: 0 | BZ20: 0 | CA20: 0 | CB20: 0 | CC20: 0 | CD20: 0 | CE20: 0 | CF20: 0 | CG20: N/A | CH20: N/A | CI20: Invalid case | CJ20: 0 | CK20: 0 | CL20: 0 | CM20: N/A | CN20: 0 | CO20: 不超過50萬元 | CP20: =IF(CO20=Pulldown!$A$1,1,IF(CO20=Pulldown!$A$2,2,0)) -> 1 | CQ20: 0 | CR20: =IFERROR( IF(NOT(OR(CP20=1,CP20=2)),0%, IF(ISERROR(MATCH(CQ20,Subsidy!$A$2:$A$26,0)),0%, IF(CP20=1,VLOOKUP(CQ20,Subsidy!$A$2:$G$26,6,FALSE), IF(CP20=2,VLOOKUP(CQ20,Subsidy!$A$2:$G$26,7,FALSE),0%)))), "Calculation error") -> 0 | CS20: =IFERROR( IF(NOT(OR(CP20=1,CP20=2)),0%, IF(ISERROR(MATCH(CQ20,Subsidy!$A$2:$A$26,0)),0%, IF(CP20=1,VLOOKUP(CQ20,Subsidy!$A$2:$D$26,2,FALSE), IF(CP20=2,VLOOKUP(CQ20,Subsidy!$A$2:$D$26,4,FALSE),0%)))), "Calculation error") -> 0 | CT20: 0 | CU20: =IFERROR( IF(NOT(OR(CP20=1,CP20=2)),0, IF(ISERROR(MATCH(CQ20,Subsidy!$A$2:$A$26,0)),0, IF(CP20=2,"N/A", IF(AND(CP20=1,CQ20<=9),VLOOKUP(CQ20,Subsidy!$A$2:$D$26,3,FALSE),0)))), "Calculation error") -> 0 | CV20: =IF(AND(CP20=1, CQ20<=9, NOT(ISERROR(MATCH(CQ20, Subsidy!$A$2:$A$26, 0)))), IFERROR(CL20-CU20, 0), 0) -> 0 | CW20: 0 | CX20: 0 | CY20: 0 | CZ20: 0 | DA20: 0 | DB20: 0 | DC20: 0
A21: 12 | C21: 請選擇 | D21: =IF(OR(C21="", C21="Pls select"), 0, IF(C21=Pulldown!$F$2, 1, IF(C21=Pulldown!$F$3, 2, 0))) -> 0 | E21: 2025-05-01 | H21: Input Required | I21: =IFERROR(CHOOSE(MATCH($H21,{"1-valid","2-valid","Input Required","Date Before Transition"},0),1,2,3,4),0) -> 3 | J21: Input Required | K21: =IFERROR(CHOOSE(MATCH($J21,{"轉制日前開始受僱","轉制日後開始受僱"},0),1,2),0) -> 0 | L21: 月薪僱員 | M21: =IFERROR(CHOOSE(MATCH($L21,Pulldown!$C$1:$C$2,0),22500,15000),0) -> 22500 | N21: =IFERROR(CHOOSE(MATCH($L21,Pulldown!$C$1:$C$2,0),2/3,1),0) -> 0.6666666667 | O21: 0 | P21: 0 | R21: 0.6666666667 | AD21: 0 | AF21: 0.6666666667 | AG21: 2025-05-01 | AS21: 0 | AT21: 0 | AU21: 0 | AV21: 強積金計劃 | AW21: =IF(AV21="",0,IFERROR(CHOOSE(MATCH(AV21,Pulldown!$B$2:$B$3,0),1,2),0)) -> 1 | AX21: MC -> VC | AY21: =IF(AX21="",0,IFERROR(CHOOSE(MATCH(AX21,Pulldown!$G$1:$G$2,0),1,2),0)) -> 1 | AZ21: 0 | BA21: 0 | BB21: 0 | BC21: N/A | BD21: N/A | BE21: N/A | BF21: N/A | BG21: N/A | BH21: N/A | BI21: N/A | BJ21: N/A | BK21: N/A | BL21: N/A | BM21: N/A | BN21: N/A | BO21: N/A | BP21: N/A | BQ21: N/A | BR21: N/A | BS21: N/A | BT21: N/A | BU21: =IF(ISNA(INDIRECT("BT" & ROW())), "N/A", INDIRECT("BT" & ROW())) -> N/A | BV21: 沒有 | BW21: =IF(BV21="",0,IFERROR(CHOOSE(MATCH(BV21,Pulldown!$H$1:$H$2,0),1,2),0)) -> 2 | BX21: 011 | BY21: 0 | BZ21: 0 | CA21: 0 | CB21: 0 | CC21: 0 | CD21: 0 | CE21: 0 | CF21: 0 | CG21: N/A | CH21: N/A | CI21: Invalid case | CJ21: 0 | CK21: 0 | CL21: 0 | CM21: N/A | CN21: 0 | CO21: 不超過50萬元 | CP21: =IF(CO21=Pulldown!$A$1,1,IF(CO21=Pulldown!$A$2,2,0)) -> 1 | CQ21: 0 | CR21: =IFERROR( IF(NOT(OR(CP21=1,CP21=2)),0%, IF(ISERROR(MATCH(CQ21,Subsidy!$A$2:$A$26,0)),0%, IF(CP21=1,VLOOKUP(CQ21,Subsidy!$A$2:$G$26,6,FALSE), IF(CP21=2,VLOOKUP(CQ21,Subsidy!$A$2:$G$26,7,FALSE),0%)))), "Calculation error") -> 0 | CS21: =IFERROR( IF(NOT(OR(CP21=1,CP21=2)),0%, IF(ISERROR(MATCH(CQ21,Subsidy!$A$2:$A$26,0)),0%, IF(CP21=1,VLOOKUP(CQ21,Subsidy!$A$2:$D$26,2,FALSE), IF(CP21=2,VLOOKUP(CQ21,Subsidy!$A$2:$D$26,4,FALSE),0%)))), "Calculation error") -> 0 | CT21: 0 | CU21: =IFERROR( IF(NOT(OR(CP21=1,CP21=2)),0, IF(ISERROR(MATCH(CQ21,Subsidy!$A$2:$A$26,0)),0, IF(CP21=2,"N/A", IF(AND(CP21=1,CQ21<=9),VLOOKUP(CQ21,Subsidy!$A$2:$D$26,3,FALSE),0)))), "Calculation error") -> 0 | CV21: =IF(AND(CP21=1, CQ21<=9, NOT(ISERROR(MATCH(CQ21, Subsidy!$A$2:$A$26, 0)))), IFERROR(CL21-CU21, 0), 0) -> 0 | CW21: 0 | CX21: 0 | CY21: 0 | CZ21: 0 | DA21: 0 | DB21: 0 | DC21: 0
A22: 13 | C22: 請選擇 | D22: =IF(OR(C22="", C22="Pls select"), 0, IF(C22=Pulldown!$F$2, 1, IF(C22=Pulldown!$F$3, 2, 0))) -> 0 | E22: 2025-05-01 | H22: Input Required | I22: =IFERROR(CHOOSE(MATCH($H22,{"1-valid","2-valid","Input Required","Date Before Transition"},0),1,2,3,4),0) -> 3 | J22: Input Required | K22: =IFERROR(CHOOSE(MATCH($J22,{"轉制日前開始受僱","轉制日後開始受僱"},0),1,2),0) -> 0 | L22: 月薪僱員 | M22: =IFERROR(CHOOSE(MATCH($L22,Pulldown!$C$1:$C$2,0),22500,15000),0) -> 22500 | N22: =IFERROR(CHOOSE(MATCH($L22,Pulldown!$C$1:$C$2,0),2/3,1),0) -> 0.6666666667 | O22: 0 | P22: 0 | R22: 0.6666666667 | AD22: 0 | AF22: 0.6666666667 | AG22: 2025-05-01 | AS22: 0 | AT22: 0 | AU22: 0 | AV22: 強積金計劃 | AW22: =IF(AV22="",0,IFERROR(CHOOSE(MATCH(AV22,Pulldown!$B$2:$B$3,0),1,2),0)) -> 1 | AX22: MC -> VC | AY22: =IF(AX22="",0,IFERROR(CHOOSE(MATCH(AX22,Pulldown!$G$1:$G$2,0),1,2),0)) -> 1 | AZ22: 0 | BA22: 0 | BB22: 0 | BC22: N/A | BD22: N/A | BE22: N/A | BF22: N/A | BG22: N/A | BH22: N/A | BI22: N/A | BJ22: N/A | BK22: N/A | BL22: N/A | BM22: N/A | BN22: N/A | BO22: N/A | BP22: N/A | BQ22: N/A | BR22: N/A | BS22: N/A | BT22: N/A | BU22: =IF(ISNA(INDIRECT("BT" & ROW())), "N/A", INDIRECT("BT" & ROW())) -> N/A | BV22: 沒有 | BW22: =IF(BV22="",0,IFERROR(CHOOSE(MATCH(BV22,Pulldown!$H$1:$H$2,0),1,2),0)) -> 2 | BX22: 011 | BY22: 0 | BZ22: 0 | CA22: 0 | CB22: 0 | CC22: 0 | CD22: 0 | CE22: 0 | CF22: 0 | CG22: N/A | CH22: N/A | CI22: Invalid case | CJ22: 0 | CK22: 0 | CL22: 0 | CM22: N/A | CN22: 0 | CO22: 不超過50萬元 | CP22: =IF(CO22=Pulldown!$A$1,1,IF(CO22=Pulldown!$A$2,2,0)) -> 1 | CQ22: 0 | CR22: =IFERROR( IF(NOT(OR(CP22=1,CP22=2)),0%, IF(ISERROR(MATCH(CQ22,Subsidy!$A$2:$A$26,0)),0%, IF(CP22=1,VLOOKUP(CQ22,Subsidy!$A$2:$G$26,6,FALSE), IF(CP22=2,VLOOKUP(CQ22,Subsidy!$A$2:$G$26,7,FALSE),0%)))), "Calculation error") -> 0 | CS22: =IFERROR( IF(NOT(OR(CP22=1,CP22=2)),0%, IF(ISERROR(MATCH(CQ22,Subsidy!$A$2:$A$26,0)),0%, IF(CP22=1,VLOOKUP(CQ22,Subsidy!$A$2:$D$26,2,FALSE), IF(CP22=2,VLOOKUP(CQ22,Subsidy!$A$2:$D$26,4,FALSE),0%)))), "Calculation error") -> 0 | CT22: 0 | CU22: =IFERROR( IF(NOT(OR(CP22=1,CP22=2)),0, IF(ISERROR(MATCH(CQ22,Subsidy!$A$2:$A$26,0)),0, IF(CP22=2,"N/A", IF(AND(CP22=1,CQ22<=9),VLOOKUP(CQ22,Subsidy!$A$2:$D$26,3,FALSE),0)))), "Calculation error") -> 0 | CV22: =IF(AND(CP22=1, CQ22<=9, NOT(ISERROR(MATCH(CQ22, Subsidy!$A$2:$A$26, 0)))), IFERROR(CL22-CU22, 0), 0) -> 0 | CW22: 0 | CX22: 0 | CY22: 0 | CZ22: 0 | DA22: 0 | DB22: 0 | DC22: 0
A23: 14 | C23: 請選擇 | D23: =IF(OR(C23="", C23="Pls select"), 0, IF(C23=Pulldown!$F$2, 1, IF(C23=Pulldown!$F$3, 2, 0))) -> 0 | E23: 2025-05-01 | H23: Input Required | I23: =IFERROR(CHOOSE(MATCH($H23,{"1-valid","2-valid","Input Required","Date Before Transition"},0),1,2,3,4),0) -> 3 | J23: Input Required | K23: =IFERROR(CHOOSE(MATCH($J23,{"轉制日前開始受僱","轉制日後開始受僱"},0),1,2),0) -> 0 | L23: 月薪僱員 | M23: =IFERROR(CHOOSE(MATCH($L23,Pulldown!$C$1:$C$2,0),22500,15000),0) -> 22500 | N23: =IFERROR(CHOOSE(MATCH($L23,Pulldown!$C$1:$C$2,0),2/3,1),0) -> 0.6666666667 | O23: 0 | P23: 0 | R23: 0.6666666667 | AD23: 0 | AF23: 0.6666666667 | AG23: 2025-05-01 | AS23: 0 | AT23: 0 | AU23: 0 | AV23: 強積金計劃 | AW23: =IF(AV23="",0,IFERROR(CHOOSE(MATCH(AV23,Pulldown!$B$2:$B$3,0),1,2),0)) -> 1 | AX23: MC -> VC | AY23: =IF(AX23="",0,IFERROR(CHOOSE(MATCH(AX23,Pulldown!$G$1:$G$2,0),1,2),0)) -> 1 | AZ23: 0 | BA23: 0 | BB23: 0 | BC23: N/A | BD23: N/A | BE23: N/A | BF23: N/A | BG23: N/A | BH23: N/A | BI23: N/A | BJ23: N/A | BK23: N/A | BL23: N/A | BM23: N/A | BN23: N/A | BO23: N/A | BP23: N/A | BQ23: N/A | BR23: N/A | BS23: N/A | BT23: =IF($AW23=1, "N/A", IF($AW23=2, IF(OR(NOT(ISNUMBER(BD23)), NOT(ISNUMBER(BE23)), BD23<DATE(1900,1,1), BE23<DATE(1900,1,1), BE23<BD23, BF23="N/A", BF23="", NOT(ISNUMBER(BF23)), BS23="N/A", NOT(ISNUMBER(BS23)), NOT(ISNUMBER(BA23))), "N/A", IF(BA23="", 0, IFERROR(BA23 - ROUNDDOWN(BS23,2), "N/A"))), "")) -> N/A | BU23: =IF(ISNA(INDIRECT("BT" & ROW())), "N/A", INDIRECT("BT" & ROW())) -> N/A | BV23: 沒有 | BW23: =IF(BV23="",0,IFERROR(CHOOSE(MATCH(BV23,Pulldown!$H$1:$H$2,0),1,2),0)) -> 2 | BX23: 011 | BY23: 0 | BZ23: 0 | CA23: 0 | CB23: 0 | CC23: 0 | CD23: 0 | CE23: 0 | CF23: 0 | CG23: N/A | CH23: N/A | CI23: Invalid case | CJ23: 0 | CK23: 0 | CL23: 0 | CM23: N/A | CN23: 0 | CO23: 不超過50萬元 | CP23: =IF(CO23=Pulldown!$A$1,1,IF(CO23=Pulldown!$A$2,2,0)) -> 1 | CQ23: 0 | CR23: =IFERROR( IF(NOT(OR(CP23=1,CP23=2)),0%, IF(ISERROR(MATCH(CQ23,Subsidy!$A$2:$A$26,0)),0%, IF(CP23=1,VLOOKUP(CQ23,Subsidy!$A$2:$G$26,6,FALSE), IF(CP23=2,VLOOKUP(CQ23,Subsidy!$A$2:$G$26,7,FALSE),0%)))), "Calculation error") -> 0 | CS23: =IFERROR( IF(NOT(OR(CP23=1,CP23=2)),0%, IF(ISERROR(MATCH(CQ23,Subsidy!$A$2:$A$26,0)),0%, IF(CP23=1,VLOOKUP(CQ23,Subsidy!$A$2:$D$26,2,FALSE), IF(CP23=2,VLOOKUP(CQ23,Subsidy!$A$2:$D$26,4,FALSE),0%)))), "Calculation error") -> 0 | CT23: 0 | CU23: =IFERROR( IF(NOT(OR(CP23=1,CP23=2)),0, IF(ISERROR(MATCH(CQ23,Subsidy!$A$2:$A$26,0)),0, IF(CP23=2,"N/A", IF(AND(CP23=1,CQ23<=9),VLOOKUP(CQ23,Subsidy!$A$2:$D$26,3,FALSE),0)))), "Calculation error") -> 0 | CV23: =IF(AND(CP23=1, CQ23<=9, NOT(ISERROR(MATCH(CQ23, Subsidy!$A$2:$A$26, 0)))), IFERROR(CL23-CU23, 0), 0) -> 0 | CW23: 0 | CX23: 0 | CY23: 0 | CZ23: 0 | DA23: 0 | DB23: 0 | DC23: 0
A24: 15 | C24: 請選擇 | D24: =IF(OR(C24="", C24="Pls select"), 0, IF(C24=Pulldown!$F$2, 1, IF(C24=Pulldown!$F$3, 2, 0))) -> 0 | E24: 2025-05-01 | H24: Input Required | I24: =IFERROR(CHOOSE(MATCH($H24,{"1-valid","2-valid","Input Required","Date Before Transition"},0),1,2,3,4),0) -> 3 | J24: Input Required | K24: =IFERROR(CHOOSE(MATCH($J24,{"轉制日前開始受僱","轉制日後開始受僱"},0),1,2),0) -> 0 | L24: 月薪僱員 | M24: =IFERROR(CHOOSE(MATCH($L24,Pulldown!$C$1:$C$2,0),22500,15000),0) -> 22500 | N24: =IFERROR(CHOOSE(MATCH($L24,Pulldown!$C$1:$C$2,0),2/3,1),0) -> 0.6666666667 | O24: 0 | P24: 0 | R24: 0.6666666667 | AD24: 0 | AF24: 0.6666666667 | AG24: 2025-05-01 | AS24: 0 | AT24: 0 | AU24: 0 | AV24: 強積金計劃 | AW24: =IF(AV24="",0,IFERROR(CHOOSE(MATCH(AV24,Pulldown!$B$2:$B$3,0),1,2),0)) -> 1 | AX24: MC -> VC | AY24: =IF(AX24="",0,IFERROR(CHOOSE(MATCH(AX24,Pulldown!$G$1:$G$2,0),1,2),0)) -> 1 | AZ24: 0 | BA24: 0 | BB24: 0 | BC24: N/A | BD24: N/A | BE24: N/A | BF24: N/A | BG24: N/A | BH24: N/A | BI24: N/A | BJ24: N/A | BK24: N/A | BL24: N/A | BM24: N/A | BN24: N/A | BO24: N/A | BP24: N/A | BQ24: N/A | BR24: N/A | BS24: N/A | BT24: =IF($AW24=1, "N/A", IF($AW24=2, IF(OR(NOT(ISNUMBER(BD24)), NOT(ISNUMBER(BE24)), BD24<DATE(1900,1,1), BE24<DATE(1900,1,1), BE24<BD24, BF24="N/A", BF24="", NOT(ISNUMBER(BF24)), BS24="N/A", NOT(ISNUMBER(BS24)), NOT(ISNUMBER(BA24))), "N/A", IF(BA24="", 0, IFERROR(BA24 - ROUNDDOWN(BS24,2), "N/A"))), "")) -> N/A | BU24: =IF(ISNA(INDIRECT("BT" & ROW())), "N/A", INDIRECT("BT" & ROW())) -> N/A | BV24: 沒有 | BW24: =IF(BV24="",0,IFERROR(CHOOSE(MATCH(BV24,Pulldown!$H$1:$H$2,0),1,2),0)) -> 2 | BX24: 011 | BY24: 0 | BZ24: 0 | CA24: 0 | CB24: 0 | CC24: 0 | CD24: 0 | CE24: 0 | CF24: 0 | CG24: N/A | CH24: N/A | CI24: Invalid case | CJ24: 0 | CK24: 0 | CL24: 0 | CM24: N/A | CN24: 0 | CO24: 不超過50萬元 | CP24: =IF(CO24=Pulldown!$A$1,1,IF(CO24=Pulldown!$A$2,2,0)) -> 1 | CQ24: 0 | CR24: =IFERROR( IF(NOT(OR(CP24=1,CP24=2)),0%, IF(ISERROR(MATCH(CQ24,Subsidy!$A$2:$A$26,0)),0%, IF(CP24=1,VLOOKUP(CQ24,Subsidy!$A$2:$G$26,6,FALSE), IF(CP24=2,VLOOKUP(CQ24,Subsidy!$A$2:$G$26,7,FALSE),0%)))), "Calculation error") -> 0 | CS24: =IFERROR( IF(NOT(OR(CP24=1,CP24=2)),0%, IF(ISERROR(MATCH(CQ24,Subsidy!$A$2:$A$26,0)),0%, IF(CP24=1,VLOOKUP(CQ24,Subsidy!$A$2:$D$26,2,FALSE), IF(CP24=2,VLOOKUP(CQ24,Subsidy!$A$2:$D$26,4,FALSE),0%)))), "Calculation error") -> 0 | CT24: 0 | CU24: =IFERROR( IF(NOT(OR(CP24=1,CP24=2)),0, IF(ISERROR(MATCH(CQ24,Subsidy!$A$2:$A$26,0)),0, IF(CP24=2,"N/A", IF(AND(CP24=1,CQ24<=9),VLOOKUP(CQ24,Subsidy!$A$2:$D$26,3,FALSE),0)))), "Calculation error") -> 0 | CV24: =IF(AND(CP24=1, CQ24<=9, NOT(ISERROR(MATCH(CQ24, Subsidy!$A$2:$A$26, 0)))), IFERROR(CL24-CU24, 0), 0) -> 0 | CW24: 0 | CX24: 0 | CY24: 0 | CZ24: 0 | DA24: 0 | DB24: 0 | DC24: 0
A25: 16 | C25: 請選擇 | D25: =IF(OR(C25="", C25="Pls select"), 0, IF(C25=Pulldown!$F$2, 1, IF(C25=Pulldown!$F$3, 2, 0))) -> 0 | E25: 2025-05-01 | H25: Input Required | I25: =IFERROR(CHOOSE(MATCH($H25,{"1-valid","2-valid","Input Required","Date Before Transition"},0),1,2,3,4),0) -> 3 | J25: Input Required | K25: =IFERROR(CHOOSE(MATCH($J25,{"轉制日前開始受僱","轉制日後開始受僱"},0),1,2),0) -> 0 | L25: 月薪僱員 | M25: =IFERROR(CHOOSE(MATCH($L25,Pulldown!$C$1:$C$2,0),22500,15000),0) -> 22500 | N25: =IFERROR(CHOOSE(MATCH($L25,Pulldown!$C$1:$C$2,0),2/3,1),0) -> 0.6666666667 | O25: 0 | P25: 0 | R25: 0.6666666667 | AD25: 0 | AF25: 0.6666666667 | AG25: 2025-05-01 | AS25: 0 | AT25: 0 | AU25: 0 | AV25: 強積金計劃 | AW25: =IF(AV25="",0,IFERROR(CHOOSE(MATCH(AV25,Pulldown!$B$2:$B$3,0),1,2),0)) -> 1 | AX25: MC -> VC | AY25: =IF(AX25="",0,IFERROR(CHOOSE(MATCH(AX25,Pulldown!$G$1:$G$2,0),1,2),0)) -> 1 | AZ25: 0 | BA25: 0 | BB25: 0 | BC25: N/A | BD25: N/A | BE25: N/A | BF25: N/A | BG25: N/A | BH25: N/A | BI25: N/A | BJ25: N/A | BK25: N/A | BL25: N/A | BM25: N/A | BN25: N/A | BO25: N/A | BP25: N/A | BQ25: N/A | BR25: N/A | BS25: N/A | BT25: N/A | BU25: =IF(ISNA(INDIRECT("BT" & ROW())), "N/A", INDIRECT("BT" & ROW())) -> N/A | BV25: 沒有 | BW25: =IF(BV25="",0,IFERROR(CHOOSE(MATCH(BV25,Pulldown!$H$1:$H$2,0),1,2),0)) -> 2 | BX25: 011 | BY25: 0 | BZ25: 0 | CA25: 0 | CB25: 0 | CC25: 0 | CD25: 0 | CE25: 0 | CF25: 0 | CG25: N/A | CH25: N/A | CI25: Invalid case | CJ25: 0 | CK25: 0 | CL25: 0 | CM25: N/A | CN25: 0 | CO25: 不超過50萬元 | CP25: =IF(CO25=Pulldown!$A$1,1,IF(CO25=Pulldown!$A$2,2,0)) -> 1 | CQ25: 0 | CR25: =IFERROR( IF(NOT(OR(CP25=1,CP25=2)),0%, IF(ISERROR(MATCH(CQ25,Subsidy!$A$2:$A$26,0)),0%, IF(CP25=1,VLOOKUP(CQ25,Subsidy!$A$2:$G$26,6,FALSE), IF(CP25=2,VLOOKUP(CQ25,Subsidy!$A$2:$G$26,7,FALSE),0%)))), "Calculation error") -> 0 | CS25: =IFERROR( IF(NOT(OR(CP25=1,CP25=2)),0%, IF(ISERROR(MATCH(CQ25,Subsidy!$A$2:$A$26,0)),0%, IF(CP25=1,VLOOKUP(CQ25,Subsidy!$A$2:$D$26,2,FALSE), IF(CP25=2,VLOOKUP(CQ25,Subsidy!$A$2:$D$26,4,FALSE),0%)))), "Calculation error") -> 0 | CT25: 0 | CU25: =IFERROR( IF(NOT(OR(CP25=1,CP25=2)),0, IF(ISERROR(MATCH(CQ25,Subsidy!$A$2:$A$26,0)),0, IF(CP25=2,"N/A", IF(AND(CP25=1,CQ25<=9),VLOOKUP(CQ25,Subsidy!$A$2:$D$26,3,FALSE),0)))), "Calculation error") -> 0 | CV25: =IF(AND(CP25=1, CQ25<=9, NOT(ISERROR(MATCH(CQ25, Subsidy!$A$2:$A$26, 0)))), IFERROR(CL25-CU25, 0), 0) -> 0 | CW25: 0 | CX25: 0 | CY25: 0 | CZ25: 0 | DA25: 0 | DB25: 0 | DC25: 0
A26: 17 | C26: 請選擇 | D26: =IF(OR(C26="", C26="Pls select"), 0, IF(C26=Pulldown!$F$2, 1, IF(C26=Pulldown!$F$3, 2, 0))) -> 0 | E26: 2025-05-01 | H26: Input Required | I26: =IFERROR(CHOOSE(MATCH($H26,{"1-valid","2-valid","Input Required","Date Before Transition"},0),1,2,3,4),0) -> 3 | J26: Input Required | K26: =IFERROR(CHOOSE(MATCH($J26,{"轉制日前開始受僱","轉制日後開始受僱"},0),1,2),0) -> 0 | L26: 月薪僱員 | M26: =IFERROR(CHOOSE(MATCH($L26,Pulldown!$C$1:$C$2,0),22500,15000),0) -> 22500 | N26: =IFERROR(CHOOSE(MATCH($L26,Pulldown!$C$1:$C$2,0),2/3,1),0) -> 0.6666666667 | O26: 0 | P26: 0 | R26: 0.6666666667 | AD26: 0 | AF26: 0.6666666667 | AG26: 2025-05-01 | AS26: 0 | AT26: 0 | AU26: 0 | AV26: 強積金計劃 | AW26: =IF(AV26="",0,IFERROR(CHOOSE(MATCH(AV26,Pulldown!$B$2:$B$3,0),1,2),0)) -> 1 | AX26: MC -> VC | AY26: =IF(AX26="",0,IFERROR(CHOOSE(MATCH(AX26,Pulldown!$G$1:$G$2,0),1,2),0)) -> 1 | AZ26: 0 | BA26: 0 | BB26: 0 | BC26: N/A | BD26: N/A | BE26: N/A | BF26: N/A | BG26: N/A | BH26: N/A | BI26: N/A | BJ26: N/A | BK26: N/A | BL26: N/A | BM26: N/A | BN26: N/A | BO26: N/A | BP26: N/A | BQ26: N/A | BR26: N/A | BS26: N/A | BT26: N/A | BU26: =IF(ISNA(INDIRECT("BT" & ROW())), "N/A", INDIRECT("BT" & ROW())) -> N/A | BV26: 沒有 | BW26: =IF(BV26="",0,IFERROR(CHOOSE(MATCH(BV26,Pulldown!$H$1:$H$2,0),1,2),0)) -> 2 | BX26: 011 | BY26: 0 | BZ26: 0 | CA26: 0 | CB26: 0 | CC26: 0 | CD26: 0 | CE26: 0 | CF26: 0 | CG26: N/A | CH26: N/A | CI26: Invalid case | CJ26: 0 | CK26: 0 | CL26: 0 | CM26: N/A | CN26: 0 | CO26: 不超過50萬元 | CP26: =IF(CO26=Pulldown!$A$1,1,IF(CO26=Pulldown!$A$2,2,0)) -> 1 | CQ26: 0 | CR26: =IFERROR( IF(NOT(OR(CP26=1,CP26=2)),0%, IF(ISERROR(MATCH(CQ26,Subsidy!$A$2:$A$26,0)),0%, IF(CP26=1,VLOOKUP(CQ26,Subsidy!$A$2:$G$26,6,FALSE), IF(CP26=2,VLOOKUP(CQ26,Subsidy!$A$2:$G$26,7,FALSE),0%)))), "Calculation error") -> 0 | CS26: =IFERROR( IF(NOT(OR(CP26=1,CP26=2)),0%, IF(ISERROR(MATCH(CQ26,Subsidy!$A$2:$A$26,0)),0%, IF(CP26=1,VLOOKUP(CQ26,Subsidy!$A$2:$D$26,2,FALSE), IF(CP26=2,VLOOKUP(CQ26,Subsidy!$A$2:$D$26,4,FALSE),0%)))), "Calculation error") -> 0 | CT26: 0 | CU26: =IFERROR( IF(NOT(OR(CP26=1,CP26=2)),0, IF(ISERROR(MATCH(CQ26,Subsidy!$A$2:$A$26,0)),0, IF(CP26=2,"N/A", IF(AND(CP26=1,CQ26<=9),VLOOKUP(CQ26,Subsidy!$A$2:$D$26,3,FALSE),0)))), "Calculation error") -> 0 | CV26: =IF(AND(CP26=1, CQ26<=9, NOT(ISERROR(MATCH(CQ26, Subsidy!$A$2:$A$26, 0)))), IFERROR(CL26-CU26, 0), 0) -> 0 | CW26: 0 | CX26: 0 | CY26: 0 | CZ26: 0 | DA26: 0 | DB26: 0 | DC26: 0
A27: 18 | C27: 請選擇 | D27: =IF(OR(C27="", C27="Pls select"), 0, IF(C27=Pulldown!$F$2, 1, IF(C27=Pulldown!$F$3, 2, 0))) -> 0 | E27: 2025-05-01 | H27: Input Required | I27: =IFERROR(CHOOSE(MATCH($H27,{"1-valid","2-valid","Input Required","Date Before Transition"},0),1,2,3,4),0) -> 3 | J27: Input Required | K27: =IFERROR(CHOOSE(MATCH($J27,{"轉制日前開始受僱","轉制日後開始受僱"},0),1,2),0) -> 0 | L27: 月薪僱員 | M27: =IFERROR(CHOOSE(MATCH($L27,Pulldown!$C$1:$C$2,0),22500,15000),0) -> 22500 | N27: =IFERROR(CHOOSE(MATCH($L27,Pulldown!$C$1:$C$2,0),2/3,1),0) -> 0.6666666667 | O27: 0 | P27: 0 | R27: 0.6666666667 | AD27: 0 | AF27: 0.6666666667 | AG27: 2025-05-01 | AS27: 0 | AT27: 0 | AU27: 0 | AV27: 強積金計劃 | AW27: =IF(AV27="",0,IFERROR(CHOOSE(MATCH(AV27,Pulldown!$B$2:$B$3,0),1,2),0)) -> 1 | AX27: MC -> VC | AY27: =IF(AX27="",0,IFERROR(CHOOSE(MATCH(AX27,Pulldown!$G$1:$G$2,0),1,2),0)) -> 1 | AZ27: 0 | BA27: 0 | BB27: 0 | BC27: N/A | BD27: N/A | BE27: N/A | BF27: N/A | BG27: N/A | BH27: N/A | BI27: N/A | BJ27: N/A | BK27: N/A | BL27: N/A | BM27: N/A | BN27: N/A | BO27: N/A | BP27: N/A | BQ27: N/A | BR27: N/A | BS27: N/A | BT27: N/A | BU27: =IF(ISNA(INDIRECT("BT" & ROW())), "N/A", INDIRECT("BT" & ROW())) -> N/A | BV27: 沒有 | BW27: =IF(BV27="",0,IFERROR(CHOOSE(MATCH(BV27,Pulldown!$H$1:$H$2,0),1,2),0)) -> 2 | BX27: 011 | BY27: 0 | BZ27: 0 | CA27: 0 | CB27: 0 | CC27: 0 | CD27: 0 | CE27: 0 | CF27: 0 | CG27: N/A | CH27: N/A | CI27: Invalid case | CJ27: 0 | CK27: 0 | CL27: 0 | CM27: N/A | CN27: 0 | CO27: 不超過50萬元 | CP27: =IF(CO27=Pulldown!$A$1,1,IF(CO27=Pulldown!$A$2,2,0)) -> 1 | CQ27: 0 | CR27: =IFERROR( IF(NOT(OR(CP27=1,CP27=2)),0%, IF(ISERROR(MATCH(CQ27,Subsidy!$A$2:$A$26,0)),0%, IF(CP27=1,VLOOKUP(CQ27,Subsidy!$A$2:$G$26,6,FALSE), IF(CP27=2,VLOOKUP(CQ27,Subsidy!$A$2:$G$26,7,FALSE),0%)))), "Calculation error") -> 0 | CS27: =IFERROR( IF(NOT(OR(CP27=1,CP27=2)),0%, IF(ISERROR(MATCH(CQ27,Subsidy!$A$2:$A$26,0)),0%, IF(CP27=1,VLOOKUP(CQ27,Subsidy!$A$2:$D$26,2,FALSE), IF(CP27=2,VLOOKUP(CQ27,Subsidy!$A$2:$D$26,4,FALSE),0%)))), "Calculation error") -> 0 | CT27: 0 | CU27: =IFERROR( IF(NOT(OR(CP27=1,CP27=2)),0, IF(ISERROR(MATCH(CQ27,Subsidy!$A$2:$A$26,0)),0, IF(CP27=2,"N/A", IF(AND(CP27=1,CQ27<=9),VLOOKUP(CQ27,Subsidy!$A$2:$D$26,3,FALSE),0)))), "Calculation error") -> 0 | CV27: =IF(AND(CP27=1, CQ27<=9, NOT(ISERROR(MATCH(CQ27, Subsidy!$A$2:$A$26, 0)))), IFERROR(CL27-CU27, 0), 0) -> 0 | CW27: 0 | CX27: 0 | CY27: 0 | CZ27: 0 | DA27: 0 | DB27: 0 | DC27: 0
A28: 19 | C28: 請選擇 | D28: =IF(OR(C28="", C28="Pls select"), 0, IF(C28=Pulldown!$F$2, 1, IF(C28=Pulldown!$F$3, 2, 0))) -> 0 | E28: 2025-05-01 | H28: Input Required | I28: =IFERROR(CHOOSE(MATCH($H28,{"1-valid","2-valid","Input Required","Date Before Transition"},0),1,2,3,4),0) -> 3 | J28: Input Required | K28: =IFERROR(CHOOSE(MATCH($J28,{"轉制日前開始受僱","轉制日後開始受僱"},0),1,2),0) -> 0 | L28: 月薪僱員 | M28: =IFERROR(CHOOSE(MATCH($L28,Pulldown!$C$1:$C$2,0),22500,15000),0) -> 22500 | N28: =IFERROR(CHOOSE(MATCH($L28,Pulldown!$C$1:$C$2,0),2/3,1),0) -> 0.6666666667 | O28: 0 | P28: 0 | R28: 0.6666666667 | AD28: 0 | AF28: 0.6666666667 | AG28: 2025-05-01 | AS28: 0 | AT28: 0 | AU28: 0 | AV28: 強積金計劃 | AW28: =IF(AV28="",0,IFERROR(CHOOSE(MATCH(AV28,Pulldown!$B$2:$B$3,0),1,2),0)) -> 1 | AX28: MC -> VC | AY28: =IF(AX28="",0,IFERROR(CHOOSE(MATCH(AX28,Pulldown!$G$1:$G$2,0),1,2),0)) -> 1 | AZ28: 0 | BA28: 0 | BB28: 0 | BC28: N/A | BD28: N/A | BE28: N/A | BF28: N/A | BG28: N/A | BH28: N/A | BI28: N/A | BJ28: N/A | BK28: N/A | BL28: N/A | BM28: N/A | BN28: N/A | BO28: N/A | BP28: N/A | BQ28: N/A | BR28: N/A | BS28: N/A | BT28: N/A | BU28: =IF(ISNA(INDIRECT("BT" & ROW())), "N/A", INDIRECT("BT" & ROW())) -> N/A | BV28: 沒有 | BW28: =IF(BV28="",0,IFERROR(CHOOSE(MATCH(BV28,Pulldown!$H$1:$H$2,0),1,2),0)) -> 2 | BX28: 011 | BY28: 0 | BZ28: 0 | CA28: 0 | CB28: 0 | CC28: 0 | CD28: 0 | CE28: 0 | CF28: 0 | CG28: N/A | CH28: N/A | CI28: Invalid case | CJ28: 0 | CK28: 0 | CL28: 0 | CM28: N/A | CN28: 0 | CO28: 不超過50萬元 | CP28: =IF(CO28=Pulldown!$A$1,1,IF(CO28=Pulldown!$A$2,2,0)) -> 1 | CQ28: 0 | CR28: =IFERROR( IF(NOT(OR(CP28=1,CP28=2)),0%, IF(ISERROR(MATCH(CQ28,Subsidy!$A$2:$A$26,0)),0%, IF(CP28=1,VLOOKUP(CQ28,Subsidy!$A$2:$G$26,6,FALSE), IF(CP28=2,VLOOKUP(CQ28,Subsidy!$A$2:$G$26,7,FALSE),0%)))), "Calculation error") -> 0 | CS28: =IFERROR( IF(NOT(OR(CP28=1,CP28=2)),0%, IF(ISERROR(MATCH(CQ28,Subsidy!$A$2:$A$26,0)),0%, IF(CP28=1,VLOOKUP(CQ28,Subsidy!$A$2:$D$26,2,FALSE), IF(CP28=2,VLOOKUP(CQ28,Subsidy!$A$2:$D$26,4,FALSE),0%)))), "Calculation error") -> 0 | CT28: 0 | CU28: =IFERROR( IF(NOT(OR(CP28=1,CP28=2)),0, IF(ISERROR(MATCH(CQ28,Subsidy!$A$2:$A$26,0)),0, IF(CP28=2,"N/A", IF(AND(CP28=1,CQ28<=9),VLOOKUP(CQ28,Subsidy!$A$2:$D$26,3,FALSE),0)))), "Calculation error") -> 0 | CV28: =IF(AND(CP28=1, CQ28<=9, NOT(ISERROR(MATCH(CQ28, Subsidy!$A$2:$A$26, 0)))), IFERROR(CL28-CU28, 0), 0) -> 0 | CW28: 0 | CX28: 0 | CY28: 0 | CZ28: 0 | DA28: 0 | DB28: 0 | DC28: 0
A29: 20 | C29: 請選擇 | D29: =IF(OR(C29="", C29="Pls select"), 0, IF(C29=Pulldown!$F$2, 1, IF(C29=Pulldown!$F$3, 2, 0))) -> 0 | E29: 2025-05-01 | H29: Input Required | I29: =IFERROR(CHOOSE(MATCH($H29,{"1-valid","2-valid","Input Required","Date Before Transition"},0),1,2,3,4),0) -> 3 | J29: Input Required | K29: =IFERROR(CHOOSE(MATCH($J29,{"轉制日前開始受僱","轉制日後開始受僱"},0),1,2),0) -> 0 | L29: 月薪僱員 | M29: =IFERROR(CHOOSE(MATCH($L29,Pulldown!$C$1:$C$2,0),22500,15000),0) -> 22500 | N29: =IFERROR(CHOOSE(MATCH($L29,Pulldown!$C$1:$C$2,0),2/3,1),0) -> 0.6666666667 | O29: 0 | P29: 0 | R29: 0.6666666667 | AD29: 0 | AF29: 0.6666666667 | AG29: 2025-05-01 | AS29: 0 | AT29: 0 | AU29: 0 | AV29: 強積金計劃 | AW29: =IF(AV29="",0,IFERROR(CHOOSE(MATCH(AV29,Pulldown!$B$2:$B$3,0),1,2),0)) -> 1 | AX29: MC -> VC | AY29: =IF(AX29="",0,IFERROR(CHOOSE(MATCH(AX29,Pulldown!$G$1:$G$2,0),1,2),0)) -> 1 | AZ29: 0 | BA29: 0 | BB29: 0 | BC29: N/A | BD29: N/A | BE29: N/A | BF29: N/A | BG29: N/A | BH29: N/A | BI29: N/A | BJ29: N/A | BK29: N/A | BL29: N/A | BM29: N/A | BN29: N/A | BO29: N/A | BP29: N/A | BQ29: N/A | BR29: N/A | BS29: N/A | BT29: N/A | BU29: =IF(ISNA(INDIRECT("BT" & ROW())), "N/A", INDIRECT("BT" & ROW())) -> N/A | BV29: 沒有 | BW29: =IF(BV29="",0,IFERROR(CHOOSE(MATCH(BV29,Pulldown!$H$1:$H$2,0),1,2),0)) -> 2 | BX29: 011 | BY29: 0 | BZ29: 0 | CA29: 0 | CB29: 0 | CC29: 0 | CD29: 0 | CE29: 0 | CF29: 0 | CG29: N/A | CH29: N/A | CI29: Invalid case | CJ29: 0 | CK29: 0 | CL29: 0 | CM29: N/A | CN29: 0 | CO29: 不超過50萬元 | CP29: =IF(CO29=Pulldown!$A$1,1,IF(CO29=Pulldown!$A$2,2,0)) -> 1 | CQ29: 0 | CR29: =IFERROR( IF(NOT(OR(CP29=1,CP29=2)),0%, IF(ISERROR(MATCH(CQ29,Subsidy!$A$2:$A$26,0)),0%, IF(CP29=1,VLOOKUP(CQ29,Subsidy!$A$2:$G$26,6,FALSE), IF(CP29=2,VLOOKUP(CQ29,Subsidy!$A$2:$G$26,7,FALSE),0%)))), "Calculation error") -> 0 | CS29: =IFERROR( IF(NOT(OR(CP29=1,CP29=2)),0%, IF(ISERROR(MATCH(CQ29,Subsidy!$A$2:$A$26,0)),0%, IF(CP29=1,VLOOKUP(CQ29,Subsidy!$A$2:$D$26,2,FALSE), IF(CP29=2,VLOOKUP(CQ29,Subsidy!$A$2:$D$26,4,FALSE),0%)))), "Calculation error") -> 0 | CT29: 0 | CU29: =IFERROR( IF(NOT(OR(CP29=1,CP29=2)),0, IF(ISERROR(MATCH(CQ29,Subsidy!$A$2:$A$26,0)),0, IF(CP29=2,"N/A", IF(AND(CP29=1,CQ29<=9),VLOOKUP(CQ29,Subsidy!$A$2:$D$26,3,FALSE),0)))), "Calculation error") -> 0 | CV29: =IF(AND(CP29=1, CQ29<=9, NOT(ISERROR(MATCH(CQ29, Subsidy!$A$2:$A$26, 0)))), IFERROR(CL29-CU29, 0), 0) -> 0 | CW29: 0 | CX29: 0 | CY29: 0 | CZ29: 0 | DA29: 0 | DB29: 0 | DC29: 0
A30: 21 | C30: 請選擇 | D30: =IF(OR(C30="", C30="Pls select"), 0, IF(C30=Pulldown!$F$2, 1, IF(C30=Pulldown!$F$3, 2, 0))) -> 0 | E30: 2025-05-01 | H30: Input Required | I30: =IFERROR(CHOOSE(MATCH($H30,{"1-valid","2-valid","Input Required","Date Before Transition"},0),1,2,3,4),0) -> 3 | J30: Input Required | K30: =IFERROR(CHOOSE(MATCH($J30,{"轉制日前開始受僱","轉制日後開始受僱"},0),1,2),0) -> 0 | L30: 月薪僱員 | M30: =IFERROR(CHOOSE(MATCH($L30,Pulldown!$C$1:$C$2,0),22500,15000),0) -> 22500 | N30: =IFERROR(CHOOSE(MATCH($L30,Pulldown!$C$1:$C$2,0),2/3,1),0) -> 0.6666666667 | O30: 0 | P30: 0 | R30: 0.6666666667 | AD30: 0 | AF30: 0.6666666667 | AG30: 2025-05-01 | AS30: 0 | AT30: 0 | AU30: 0 | AV30: 強積金計劃 | AW30: =IF(AV30="",0,IFERROR(CHOOSE(MATCH(AV30,Pulldown!$B$2:$B$3,0),1,2),0)) -> 1 | AX30: MC -> VC | AY30: =IF(AX30="",0,IFERROR(CHOOSE(MATCH(AX30,Pulldown!$G$1:$G$2,0),1,2),0)) -> 1 | AZ30: 0 | BA30: 0 | BB30: 0 | BC30: N/A | BD30: N/A | BE30: N/A | BF30: N/A | BG30: N/A | BH30: N/A | BI30: N/A | BJ30: N/A | BK30: N/A | BL30: N/A | BM30: N/A | BN30: N/A | BO30: N/A | BP30: N/A | BQ30: N/A | BR30: N/A | BS30: N/A | BT30: N/A | BU30: =IF(ISNA(INDIRECT("BT" & ROW())), "N/A", INDIRECT("BT" & ROW())) -> N/A | BV30: 沒有 | BW30: =IF(BV30="",0,IFERROR(CHOOSE(MATCH(BV30,Pulldown!$H$1:$H$2,0),1,2),0)) -> 2 | BX30: 011 | BY30: 0 | BZ30: 0 | CA30: 0 | CB30: 0 | CC30: 0 | CD30: 0 | CE30: 0 | CF30: 0 | CG30: N/A | CH30: N/A | CI30: Invalid case | CJ30: 0 | CK30: 0 | CL30: 0 | CM30: N/A | CN30: 0 | CO30: 不超過50萬元 | CP30: =IF(CO30=Pulldown!$A$1,1,IF(CO30=Pulldown!$A$2,2,0)) -> 1 | CQ30: 0 | CR30: =IFERROR( IF(NOT(OR(CP30=1,CP30=2)),0%, IF(ISERROR(MATCH(CQ30,Subsidy!$A$2:$A$26,0)),0%, IF(CP30=1,VLOOKUP(CQ30,Subsidy!$A$2:$G$26,6,FALSE), IF(CP30=2,VLOOKUP(CQ30,Subsidy!$A$2:$G$26,7,FALSE),0%)))), "Calculation error") -> 0 | CS30: =IFERROR( IF(NOT(OR(CP30=1,CP30=2)),0%, IF(ISERROR(MATCH(CQ30,Subsidy!$A$2:$A$26,0)),0%, IF(CP30=1,VLOOKUP(CQ30,Subsidy!$A$2:$D$26,2,FALSE), IF(CP30=2,VLOOKUP(CQ30,Subsidy!$A$2:$D$26,4,FALSE),0%)))), "Calculation error") -> 0 | CT30: 0 | CU30: =IFERROR( IF(NOT(OR(CP30=1,CP30=2)),0, IF(ISERROR(MATCH(CQ30,Subsidy!$A$2:$A$26,0)),0, IF(CP30=2,"N/A", IF(AND(CP30=1,CQ30<=9),VLOOKUP(CQ30,Subsidy!$A$2:$D$26,3,FALSE),0)))), "Calculation error") -> 0 | CV30: =IF(AND(CP30=1, CQ30<=9, NOT(ISERROR(MATCH(CQ30, Subsidy!$A$2:$A$26, 0)))), IFERROR(CL30-CU30, 0), 0) -> 0 | CW30: 0 | CX30: 0 | CY30: 0 | CZ30: 0 | DA30: 0 | DB30: 0 | DC30: 0
A31: 22 | C31: 請選擇 | D31: =IF(OR(C31="", C31="Pls select"), 0, IF(C31=Pulldown!$F$2, 1, IF(C31=Pulldown!$F$3, 2, 0))) -> 0 | E31: 2025-05-01 | H31: Input Required | I31: =IFERROR(CHOOSE(MATCH($H31,{"1-valid","2-valid","Input Required","Date Before Transition"},0),1,2,3,4),0) -> 3 | J31: Input Required | K31: =IFERROR(CHOOSE(MATCH($J31,{"轉制日前開始受僱","轉制日後開始受僱"},0),1,2),0) -> 0 | L31: 月薪僱員 | M31: =IFERROR(CHOOSE(MATCH($L31,Pulldown!$C$1:$C$2,0),22500,15000),0) -> 22500 | N31: =IFERROR(CHOOSE(MATCH($L31,Pulldown!$C$1:$C$2,0),2/3,1),0) -> 0.6666666667 | O31: 0 | P31: 0 | R31: 0.6666666667 | AD31: 0 | AF31: 0.6666666667 | AG31: 2025-05-01 | AS31: 0 | AT31: 0 | AU31: 0 | AV31: 強積金計劃 | AW31: =IF(AV31="",0,IFERROR(CHOOSE(MATCH(AV31,Pulldown!$B$2:$B$3,0),1,2),0)) -> 1 | AX31: MC -> VC | AY31: =IF(AX31="",0,IFERROR(CHOOSE(MATCH(AX31,Pulldown!$G$1:$G$2,0),1,2),0)) -> 1 | AZ31: 0 | BA31: 0 | BB31: 0 | BC31: N/A | BD31: N/A | BE31: N/A | BF31: N/A | BG31: N/A | BH31: N/A | BI31: N/A | BJ31: N/A | BK31: N/A | BL31: N/A | BM31: N/A | BN31: N/A | BO31: N/A | BP31: N/A | BQ31: N/A | BR31: N/A | BS31: N/A | BT31: N/A | BU31: =IF(ISNA(INDIRECT("BT" & ROW())), "N/A", INDIRECT("BT" & ROW())) -> N/A | BV31: 沒有 | BW31: =IF(BV31="",0,IFERROR(CHOOSE(MATCH(BV31,Pulldown!$H$1:$H$2,0),1,2),0)) -> 2 | BX31: 011 | BY31: 0 | BZ31: 0 | CA31: 0 | CB31: 0 | CC31: 0 | CD31: 0 | CE31: 0 | CF31: 0 | CG31: N/A | CH31: N/A | CI31: Invalid case | CJ31: 0 | CK31: 0 | CL31: 0 | CM31: N/A | CN31: 0 | CO31: 不超過50萬元 | CP31: =IF(CO31=Pulldown!$A$1,1,IF(CO31=Pulldown!$A$2,2,0)) -> 1 | CQ31: 0 | CR31: =IFERROR( IF(NOT(OR(CP31=1,CP31=2)),0%, IF(ISERROR(MATCH(CQ31,Subsidy!$A$2:$A$26,0)),0%, IF(CP31=1,VLOOKUP(CQ31,Subsidy!$A$2:$G$26,6,FALSE), IF(CP31=2,VLOOKUP(CQ31,Subsidy!$A$2:$G$26,7,FALSE),0%)))), "Calculation error") -> 0 | CS31: =IFERROR( IF(NOT(OR(CP31=1,CP31=2)),0%, IF(ISERROR(MATCH(CQ31,Subsidy!$A$2:$A$26,0)),0%, IF(CP31=1,VLOOKUP(CQ31,Subsidy!$A$2:$D$26,2,FALSE), IF(CP31=2,VLOOKUP(CQ31,Subsidy!$A$2:$D$26,4,FALSE),0%)))), "Calculation error") -> 0 | CT31: 0 | CU31: =IFERROR( IF(NOT(OR(CP31=1,CP31=2)),0, IF(ISERROR(MATCH(CQ31,Subsidy!$A$2:$A$26,0)),0, IF(CP31=2,"N/A", IF(AND(CP31=1,CQ31<=9),VLOOKUP(CQ31,Subsidy!$A$2:$D$26,3,FALSE),0)))), "Calculation error") -> 0 | CV31: =IF(AND(CP31=1, CQ31<=9, NOT(ISERROR(MATCH(CQ31, Subsidy!$A$2:$A$26, 0)))), IFERROR(CL31-CU31, 0), 0) -> 0 | CW31: 0 | CX31: 0 | CY31: 0 | CZ31: 0 | DA31: 0 | DB31: 0 | DC31: 0
A32: 23 | C32: 請選擇 | D32: =IF(OR(C32="", C32="Pls select"), 0, IF(C32=Pulldown!$F$2, 1, IF(C32=Pulldown!$F$3, 2, 0))) -> 0 | E32: 2025-05-01 | H32: Input Required | I32: =IFERROR(CHOOSE(MATCH($H32,{"1-valid","2-valid","Input Required","Date Before Transition"},0),1,2,3,4),0) -> 3 | J32: Input Required | K32: =IFERROR(CHOOSE(MATCH($J32,{"轉制日前開始受僱","轉制日後開始受僱"},0),1,2),0) -> 0 | L32: 月薪僱員 | M32: =IFERROR(CHOOSE(MATCH($L32,Pulldown!$C$1:$C$2,0),22500,15000),0) -> 22500 | N32: =IFERROR(CHOOSE(MATCH($L32,Pulldown!$C$1:$C$2,0),2/3,1),0) -> 0.6666666667 | O32: 0 | P32: 0 | R32: 0.6666666667 | AD32: 0 | AF32: 0.6666666667 | AG32: 2025-05-01 | AS32: 0 | AT32: 0 | AU32: 0 | AV32: 強積金計劃 | AW32: =IF(AV32="",0,IFERROR(CHOOSE(MATCH(AV32,Pulldown!$B$2:$B$3,0),1,2),0)) -> 1 | AX32: MC -> VC | AY32: =IF(AX32="",0,IFERROR(CHOOSE(MATCH(AX32,Pulldown!$G$1:$G$2,0),1,2),0)) -> 1 | AZ32: 0 | BA32: 0 | BB32: 0 | BC32: N/A | BD32: N/A | BE32: N/A | BF32: N/A | BG32: N/A | BH32: N/A | BI32: N/A | BJ32: N/A | BK32: N/A | BL32: N/A | BM32: N/A | BN32: N/A | BO32: N/A | BP32: N/A | BQ32: N/A | BR32: N/A | BS32: N/A | BT32: N/A | BU32: =IF(ISNA(INDIRECT("BT" & ROW())), "N/A", INDIRECT("BT" & ROW())) -> N/A | BV32: 沒有 | BW32: =IF(BV32="",0,IFERROR(CHOOSE(MATCH(BV32,Pulldown!$H$1:$H$2,0),1,2),0)) -> 2 | BX32: 011 | BY32: 0 | BZ32: 0 | CA32: 0 | CB32: 0 | CC32: 0 | CD32: 0 | CE32: 0 | CF32: 0 | CG32: N/A | CH32: N/A | CI32: Invalid case | CJ32: 0 | CK32: 0 | CL32: 0 | CM32: N/A | CN32: 0 | CO32: 不超過50萬元 | CP32: =IF(CO32=Pulldown!$A$1,1,IF(CO32=Pulldown!$A$2,2,0)) -> 1 | CQ32: 0 | CR32: =IFERROR( IF(NOT(OR(CP32=1,CP32=2)),0%, IF(ISERROR(MATCH(CQ32,Subsidy!$A$2:$A$26,0)),0%, IF(CP32=1,VLOOKUP(CQ32,Subsidy!$A$2:$G$26,6,FALSE), IF(CP32=2,VLOOKUP(CQ32,Subsidy!$A$2:$G$26,7,FALSE),0%)))), "Calculation error") -> 0 | CS32: =IFERROR( IF(NOT(OR(CP32=1,CP32=2)),0%, IF(ISERROR(MATCH(CQ32,Subsidy!$A$2:$A$26,0)),0%, IF(CP32=1,VLOOKUP(CQ32,Subsidy!$A$2:$D$26,2,FALSE), IF(CP32=2,VLOOKUP(CQ32,Subsidy!$A$2:$D$26,4,FALSE),0%)))), "Calculation error") -> 0 | CT32: 0 | CU32: =IFERROR( IF(NOT(OR(CP32=1,CP32=2)),0, IF(ISERROR(MATCH(CQ32,Subsidy!$A$2:$A$26,0)),0, IF(CP32=2,"N/A", IF(AND(CP32=1,CQ32<=9),VLOOKUP(CQ32,Subsidy!$A$2:$D$26,3,FALSE),0)))), "Calculation error") -> 0 | CV32: =IF(AND(CP32=1, CQ32<=9, NOT(ISERROR(MATCH(CQ32, Subsidy!$A$2:$A$26, 0)))), IFERROR(CL32-CU32, 0), 0) -> 0 | CW32: 0 | CX32: 0 | CY32: 0 | CZ32: 0 | DA32: 0 | DB32: 0 | DC32: 0
A33: 24 | C33: 請選擇 | D33: =IF(OR(C33="", C33="Pls select"), 0, IF(C33=Pulldown!$F$2, 1, IF(C33=Pulldown!$F$3, 2, 0))) -> 0 | E33: 2025-05-01 | H33: Input Required | I33: =IFERROR(CHOOSE(MATCH($H33,{"1-valid","2-valid","Input Required","Date Before Transition"},0),1,2,3,4),0) -> 3 | J33: Input Required | K33: =IFERROR(CHOOSE(MATCH($J33,{"轉制日前開始受僱","轉制日後開始受僱"},0),1,2),0) -> 0 | L33: 月薪僱員 | M33: =IFERROR(CHOOSE(MATCH($L33,Pulldown!$C$1:$C$2,0),22500,15000),0) -> 22500 | N33: =IFERROR(CHOOSE(MATCH($L33,Pulldown!$C$1:$C$2,0),2/3,1),0) -> 0.6666666667 | O33: 0 | P33: 0 | R33: 0.6666666667 | AD33: 0 | AF33: 0.6666666667 | AG33: 2025-05-01 | AS33: 0 | AT33: 0 | AU33: 0 | AV33: 強積金計劃 | AW33: =IF(AV33="",0,IFERROR(CHOOSE(MATCH(AV33,Pulldown!$B$2:$B$3,0),1,2),0)) -> 1 | AX33: MC -> VC | AY33: =IF(AX33="",0,IFERROR(CHOOSE(MATCH(AX33,Pulldown!$G$1:$G$2,0),1,2),0)) -> 1 | AZ33: 0 | BA33: 0 | BB33: 0 | BC33: N/A | BD33: N/A | BE33: N/A | BF33: N/A | BG33: N/A | BH33: N/A | BI33: N/A | BJ33: N/A | BK33: N/A | BL33: N/A | BM33: N/A | BN33: N/A | BO33: N/A | BP33: N/A | BQ33: N/A | BR33: N/A | BS33: N/A | BT33: N/A | BU33: =IF(ISNA(INDIRECT("BT" & ROW())), "N/A", INDIRECT("BT" & ROW())) -> N/A | BV33: 沒有 | BW33: =IF(BV33="",0,IFERROR(CHOOSE(MATCH(BV33,Pulldown!$H$1:$H$2,0),1,2),0)) -> 2 | BX33: 011 | BY33: 0 | BZ33: 0 | CA33: 0 | CB33: 0 | CC33: 0 | CD33: 0 | CE33: 0 | CF33: 0 | CG33: N/A | CH33: N/A | CI33: Invalid case | CJ33: 0 | CK33: 0 | CL33: 0 | CM33: N/A | CN33: 0 | CO33: 不超過50萬元 | CP33: =IF(CO33=Pulldown!$A$1,1,IF(CO33=Pulldown!$A$2,2,0)) -> 1 | CQ33: 0 | CR33: =IFERROR( IF(NOT(OR(CP33=1,CP33=2)),0%, IF(ISERROR(MATCH(CQ33,Subsidy!$A$2:$A$26,0)),0%, IF(CP33=1,VLOOKUP(CQ33,Subsidy!$A$2:$G$26,6,FALSE), IF(CP33=2,VLOOKUP(CQ33,Subsidy!$A$2:$G$26,7,FALSE),0%)))), "Calculation error") -> 0 | CS33: =IFERROR( IF(NOT(OR(CP33=1,CP33=2)),0%, IF(ISERROR(MATCH(CQ33,Subsidy!$A$2:$A$26,0)),0%, IF(CP33=1,VLOOKUP(CQ33,Subsidy!$A$2:$D$26,2,FALSE), IF(CP33=2,VLOOKUP(CQ33,Subsidy!$A$2:$D$26,4,FALSE),0%)))), "Calculation error") -> 0 | CT33: 0 | CU33: =IFERROR( IF(NOT(OR(CP33=1,CP33=2)),0, IF(ISERROR(MATCH(CQ33,Subsidy!$A$2:$A$26,0)),0, IF(CP33=2,"N/A", IF(AND(CP33=1,CQ33<=9),VLOOKUP(CQ33,Subsidy!$A$2:$D$26,3,FALSE),0)))), "Calculation error") -> 0 | CV33: =IF(AND(CP33=1, CQ33<=9, NOT(ISERROR(MATCH(CQ33, Subsidy!$A$2:$A$26, 0)))), IFERROR(CL33-CU33, 0), 0) -> 0 | CW33: 0 | CX33: 0 | CY33: 0 | CZ33: 0 | DA33: 0 | DB33: 0 | DC33: 0
A34: 25 | C34: 請選擇 | D34: =IF(OR(C34="", C34="Pls select"), 0, IF(C34=Pulldown!$F$2, 1, IF(C34=Pulldown!$F$3, 2, 0))) -> 0 | E34: 2025-05-01 | H34: Input Required | I34: =IFERROR(CHOOSE(MATCH($H34,{"1-valid","2-valid","Input Required","Date Before Transition"},0),1,2,3,4),0) -> 3 | J34: Input Required | K34: =IFERROR(CHOOSE(MATCH($J34,{"轉制日前開始受僱","轉制日後開始受僱"},0),1,2),0) -> 0 | L34: 月薪僱員 | M34: =IFERROR(CHOOSE(MATCH($L34,Pulldown!$C$1:$C$2,0),22500,15000),0) -> 22500 | N34: =IFERROR(CHOOSE(MATCH($L34,Pulldown!$C$1:$C$2,0),2/3,1),0) -> 0.6666666667 | O34: 0 | P34: 0 | R34: 0.6666666667 | AD34: 0 | AF34: 0.6666666667 | AG34: 2025-05-01 | AS34: 0 | AT34: 0 | AU34: 0 | AV34: 強積金計劃 | AW34: =IF(AV34="",0,IFERROR(CHOOSE(MATCH(AV34,Pulldown!$B$2:$B$3,0),1,2),0)) -> 1 | AX34: MC -> VC | AY34: =IF(AX34="",0,IFERROR(CHOOSE(MATCH(AX34,Pulldown!$G$1:$G$2,0),1,2),0)) -> 1 | AZ34: 0 | BA34: 0 | BB34: 0 | BC34: N/A | BD34: N/A | BE34: N/A | BF34: N/A | BG34: N/A | BH34: N/A | BI34: N/A | BJ34: N/A | BK34: N/A | BL34: N/A | BM34: N/A | BN34: N/A | BO34: N/A | BP34: N/A | BQ34: N/A | BR34: N/A | BS34: N/A | BT34: N/A | BU34: =IF(ISNA(INDIRECT("BT" & ROW())), "N/A", INDIRECT("BT" & ROW())) -> N/A | BV34: 沒有 | BW34: =IF(BV34="",0,IFERROR(CHOOSE(MATCH(BV34,Pulldown!$H$1:$H$2,0),1,2),0)) -> 2 | BX34: 011 | BY34: 0 | BZ34: 0 | CA34: 0 | CB34: 0 | CC34: 0 | CD34: 0 | CE34: 0 | CF34: 0 | CG34: N/A | CH34: N/A | CI34: Invalid case | CJ34: 0 | CK34: 0 | CL34: 0 | CM34: N/A | CN34: 0 | CO34: 不超過50萬元 | CP34: =IF(CO34=Pulldown!$A$1,1,IF(CO34=Pulldown!$A$2,2,0)) -> 1 | CQ34: 0 | CR34: =IFERROR( IF(NOT(OR(CP34=1,CP34=2)),0%, IF(ISERROR(MATCH(CQ34,Subsidy!$A$2:$A$26,0)),0%, IF(CP34=1,VLOOKUP(CQ34,Subsidy!$A$2:$G$26,6,FALSE), IF(CP34=2,VLOOKUP(CQ34,Subsidy!$A$2:$G$26,7,FALSE),0%)))), "Calculation error") -> 0 | CS34: =IFERROR( IF(NOT(OR(CP34=1,CP34=2)),0%, IF(ISERROR(MATCH(CQ34,Subsidy!$A$2:$A$26,0)),0%, IF(CP34=1,VLOOKUP(CQ34,Subsidy!$A$2:$D$26,2,FALSE), IF(CP34=2,VLOOKUP(CQ34,Subsidy!$A$2:$D$26,4,FALSE),0%)))), "Calculation error") -> 0 | CT34: 0 | CU34: =IFERROR( IF(NOT(OR(CP34=1,CP34=2)),0, IF(ISERROR(MATCH(CQ34,Subsidy!$A$2:$A$26,0)),0, IF(CP34=2,"N/A", IF(AND(CP34=1,CQ34<=9),VLOOKUP(CQ34,Subsidy!$A$2:$D$26,3,FALSE),0)))), "Calculation error") -> 0 | CV34: =IF(AND(CP34=1, CQ34<=9, NOT(ISERROR(MATCH(CQ34, Subsidy!$A$2:$A$26, 0)))), IFERROR(CL34-CU34, 0), 0) -> 0 | CW34: 0 | CX34: 0 | CY34: 0 | CZ34: 0 | DA34: 0 | DB34: 0 | DC34: 0
A35: 26 | C35: 請選擇 | D35: =IF(OR(C35="", C35="Pls select"), 0, IF(C35=Pulldown!$F$2, 1, IF(C35=Pulldown!$F$3, 2, 0))) -> 0 | E35: 2025-05-01 | H35: Input Required | I35: =IFERROR(CHOOSE(MATCH($H35,{"1-valid","2-valid","Input Required","Date Before Transition"},0),1,2,3,4),0) -> 3 | J35: Input Required | K35: =IFERROR(CHOOSE(MATCH($J35,{"轉制日前開始受僱","轉制日後開始受僱"},0),1,2),0) -> 0 | L35: 月薪僱員 | M35: =IFERROR(CHOOSE(MATCH($L35,Pulldown!$C$1:$C$2,0),22500,15000),0) -> 22500 | N35: =IFERROR(CHOOSE(MATCH($L35,Pulldown!$C$1:$C$2,0),2/3,1),0) -> 0.6666666667 | O35: 0 | P35: 0 | R35: 0.6666666667 | AD35: 0 | AF35: 0.6666666667 | AG35: 2025-05-01 | AS35: 0 | AT35: 0 | AU35: 0 | AV35: 強積金計劃 | AW35: =IF(AV35="",0,IFERROR(CHOOSE(MATCH(AV35,Pulldown!$B$2:$B$3,0),1,2),0)) -> 1 | AX35: MC -> VC | AY35: =IF(AX35="",0,IFERROR(CHOOSE(MATCH(AX35,Pulldown!$G$1:$G$2,0),1,2),0)) -> 1 | AZ35: 0 | BA35: 0 | BB35: 0 | BC35: N/A | BD35: N/A | BE35: N/A | BF35: N/A | BG35: N/A | BH35: N/A | BI35: N/A | BJ35: N/A | BK35: N/A | BL35: N/A | BM35: N/A | BN35: N/A | BO35: N/A | BP35: N/A | BQ35: N/A | BR35: N/A | BS35: N/A | BT35: N/A | BU35: =IF(ISNA(INDIRECT("BT" & ROW())), "N/A", INDIRECT("BT" & ROW())) -> N/A | BV35: 沒有 | BW35: =IF(BV35="",0,IFERROR(CHOOSE(MATCH(BV35,Pulldown!$H$1:$H$2,0),1,2),0)) -> 2 | BX35: 011 | BY35: 0 | BZ35: 0 | CA35: 0 | CB35: 0 | CC35: 0 | CD35: 0 | CE35: 0 | CF35: 0 | CG35: N/A | CH35: N/A | CI35: Invalid case | CJ35: 0 | CK35: 0 | CL35: 0 | CM35: N/A | CN35: 0 | CO35: 不超過50萬元 | CP35: =IF(CO35=Pulldown!$A$1,1,IF(CO35=Pulldown!$A$2,2,0)) -> 1 | CQ35: 0 | CR35: =IFERROR( IF(NOT(OR(CP35=1,CP35=2)),0%, IF(ISERROR(MATCH(CQ35,Subsidy!$A$2:$A$26,0)),0%, IF(CP35=1,VLOOKUP(CQ35,Subsidy!$A$2:$G$26,6,FALSE), IF(CP35=2,VLOOKUP(CQ35,Subsidy!$A$2:$G$26,7,FALSE),0%)))), "Calculation error") -> 0 | CS35: =IFERROR( IF(NOT(OR(CP35=1,CP35=2)),0%, IF(ISERROR(MATCH(CQ35,Subsidy!$A$2:$A$26,0)),0%, IF(CP35=1,VLOOKUP(CQ35,Subsidy!$A$2:$D$26,2,FALSE), IF(CP35=2,VLOOKUP(CQ35,Subsidy!$A$2:$D$26,4,FALSE),0%)))), "Calculation error") -> 0 | CT35: 0 | CU35: =IFERROR( IF(NOT(OR(CP35=1,CP35=2)),0, IF(ISERROR(MATCH(CQ35,Subsidy!$A$2:$A$26,0)),0, IF(CP35=2,"N/A", IF(AND(CP35=1,CQ35<=9),VLOOKUP(CQ35,Subsidy!$A$2:$D$26,3,FALSE),0)))), "Calculation error") -> 0 | CV35: =IF(AND(CP35=1, CQ35<=9, NOT(ISERROR(MATCH(CQ35, Subsidy!$A$2:$A$26, 0)))), IFERROR(CL35-CU35, 0), 0) -> 0 | CW35: 0 | CX35: 0 | CY35: 0 | CZ35: 0 | DA35: 0 | DB35: 0 | DC35: 0
A36: 27 | C36: 請選擇 | D36: =IF(OR(C36="", C36="Pls select"), 0, IF(C36=Pulldown!$F$2, 1, IF(C36=Pulldown!$F$3, 2, 0))) -> 0 | E36: 2025-05-01 | H36: Input Required | I36: =IFERROR(CHOOSE(MATCH($H36,{"1-valid","2-valid","Input Required","Date Before Transition"},0),1,2,3,4),0) -> 3 | J36: Input Required | K36: =IFERROR(CHOOSE(MATCH($J36,{"轉制日前開始受僱","轉制日後開始受僱"},0),1,2),0) -> 0 | L36: 月薪僱員 | M36: =IFERROR(CHOOSE(MATCH($L36,Pulldown!$C$1:$C$2,0),22500,15000),0) -> 22500 | N36: =IFERROR(CHOOSE(MATCH($L36,Pulldown!$C$1:$C$2,0),2/3,1),0) -> 0.6666666667 | O36: 0 | P36: 0 | R36: 0.6666666667 | AD36: 0 | AF36: 0.6666666667 | AG36: 2025-05-01 | AS36: 0 | AT36: 0 | AU36: 0 | AV36: 強積金計劃 | AW36: =IF(AV36="",0,IFERROR(CHOOSE(MATCH(AV36,Pulldown!$B$2:$B$3,0),1,2),0)) -> 1 | AX36: MC -> VC | AY36: =IF(AX36="",0,IFERROR(CHOOSE(MATCH(AX36,Pulldown!$G$1:$G$2,0),1,2),0)) -> 1 | AZ36: 0 | BA36: 0 | BB36: 0 | BC36: N/A | BD36: N/A | BE36: N/A | BF36: N/A | BG36: N/A | BH36: N/A | BI36: N/A | BJ36: N/A | BK36: N/A | BL36: N/A | BM36: N/A | BN36: N/A | BO36: N/A | BP36: N/A | BQ36: N/A | BR36: N/A | BS36: N/A | BT36: N/A | BU36: =IF(ISNA(INDIRECT("BT" & ROW())), "N/A", INDIRECT("BT" & ROW())) -> N/A | BV36: 沒有 | BW36: =IF(BV36="",0,IFERROR(CHOOSE(MATCH(BV36,Pulldown!$H$1:$H$2,0),1,2),0)) -> 2 | BX36: 011 | BY36: 0 | BZ36: 0 | CA36: 0 | CB36: 0 | CC36: 0 | CD36: 0 | CE36: 0 | CF36: 0 | CG36: N/A | CH36: N/A | CI36: Invalid case | CJ36: 0 | CK36: 0 | CL36: 0 | CM36: N/A | CN36: 0 | CO36: 不超過50萬元 | CP36: =IF(CO36=Pulldown!$A$1,1,IF(CO36=Pulldown!$A$2,2,0)) -> 1 | CQ36: 0 | CR36: =IFERROR( IF(NOT(OR(CP36=1,CP36=2)),0%, IF(ISERROR(MATCH(CQ36,Subsidy!$A$2:$A$26,0)),0%, IF(CP36=1,VLOOKUP(CQ36,Subsidy!$A$2:$G$26,6,FALSE), IF(CP36=2,VLOOKUP(CQ36,Subsidy!$A$2:$G$26,7,FALSE),0%)))), "Calculation error") -> 0 | CS36: =IFERROR( IF(NOT(OR(CP36=1,CP36=2)),0%, IF(ISERROR(MATCH(CQ36,Subsidy!$A$2:$A$26,0)),0%, IF(CP36=1,VLOOKUP(CQ36,Subsidy!$A$2:$D$26,2,FALSE), IF(CP36=2,VLOOKUP(CQ36,Subsidy!$A$2:$D$26,4,FALSE),0%)))), "Calculation error") -> 0 | CT36: 0 | CU36: =IFERROR( IF(NOT(OR(CP36=1,CP36=2)),0, IF(ISERROR(MATCH(CQ36,Subsidy!$A$2:$A$26,0)),0, IF(CP36=2,"N/A", IF(AND(CP36=1,CQ36<=9),VLOOKUP(CQ36,Subsidy!$A$2:$D$26,3,FALSE),0)))), "Calculation error") -> 0 | CV36: =IF(AND(CP36=1, CQ36<=9, NOT(ISERROR(MATCH(CQ36, Subsidy!$A$2:$A$26, 0)))), IFERROR(CL36-CU36, 0), 0) -> 0 | CW36: 0 | CX36: 0 | CY36: 0 | CZ36: 0 | DA36: 0 | DB36: 0 | DC36: 0
A37: 28 | C37: 請選擇 | D37: =IF(OR(C37="", C37="Pls select"), 0, IF(C37=Pulldown!$F$2, 1, IF(C37=Pulldown!$F$3, 2, 0))) -> 0 | E37: 2025-05-01 | H37: Input Required | I37: =IFERROR(CHOOSE(MATCH($H37,{"1-valid","2-valid","Input Required","Date Before Transition"},0),1,2,3,4),0) -> 3 | J37: Input Required | K37: =IFERROR(CHOOSE(MATCH($J37,{"轉制日前開始受僱","轉制日後開始受僱"},0),1,2),0) -> 0 | L37: 月薪僱員 | M37: =IFERROR(CHOOSE(MATCH($L37,Pulldown!$C$1:$C$2,0),22500,15000),0) -> 22500 | N37: =IFERROR(CHOOSE(MATCH($L37,Pulldown!$C$1:$C$2,0),2/3,1),0) -> 0.6666666667 | O37: 0 | P37: 0 | R37: 0.6666666667 | AD37: 0 | AF37: 0.6666666667 | AG37: 2025-05-01 | AS37: 0 | AT37: 0 | AU37: 0 | AV37: 強積金計劃 | AW37: =IF(AV37="",0,IFERROR(CHOOSE(MATCH(AV37,Pulldown!$B$2:$B$3,0),1,2),0)) -> 1 | AX37: MC -> VC | AY37: =IF(AX37="",0,IFERROR(CHOOSE(MATCH(AX37,Pulldown!$G$1:$G$2,0),1,2),0)) -> 1 | AZ37: 0 | BA37: 0 | BB37: 0 | BC37: N/A | BD37: N/A | BE37: N/A | BF37: N/A | BG37: N/A | BH37: N/A | BI37: N/A | BJ37: N/A | BK37: N/A | BL37: N/A | BM37: N/A | BN37: N/A | BO37: N/A | BP37: N/A | BQ37: N/A | BR37: N/A | BS37: N/A | BT37: N/A | BU37: =IF(ISNA(INDIRECT("BT" & ROW())), "N/A", INDIRECT("BT" & ROW())) -> N/A | BV37: 沒有 | BW37: =IF(BV37="",0,IFERROR(CHOOSE(MATCH(BV37,Pulldown!$H$1:$H$2,0),1,2),0)) -> 2 | BX37: 011 | BY37: 0 | BZ37: 0 | CA37: 0 | CB37: 0 | CC37: 0 | CD37: 0 | CE37: 0 | CF37: 0 | CG37: N/A | CH37: N/A | CI37: Invalid case | CJ37: 0 | CK37: 0 | CL37: 0 | CM37: N/A | CN37: 0 | CO37: 不超過50萬元 | CP37: =IF(CO37=Pulldown!$A$1,1,IF(CO37=Pulldown!$A$2,2,0)) -> 1 | CQ37: 0 | CR37: =IFERROR( IF(NOT(OR(CP37=1,CP37=2)),0%, IF(ISERROR(MATCH(CQ37,Subsidy!$A$2:$A$26,0)),0%, IF(CP37=1,VLOOKUP(CQ37,Subsidy!$A$2:$G$26,6,FALSE), IF(CP37=2,VLOOKUP(CQ37,Subsidy!$A$2:$G$26,7,FALSE),0%)))), "Calculation error") -> 0 | CS37: =IFERROR( IF(NOT(OR(CP37=1,CP37=2)),0%, IF(ISERROR(MATCH(CQ37,Subsidy!$A$2:$A$26,0)),0%, IF(CP37=1,VLOOKUP(CQ37,Subsidy!$A$2:$D$26,2,FALSE), IF(CP37=2,VLOOKUP(CQ37,Subsidy!$A$2:$D$26,4,FALSE),0%)))), "Calculation error") -> 0 | CT37: 0 | CU37: =IFERROR( IF(NOT(OR(CP37=1,CP37=2)),0, IF(ISERROR(MATCH(CQ37,Subsidy!$A$2:$A$26,0)),0, IF(CP37=2,"N/A", IF(AND(CP37=1,CQ37<=9),VLOOKUP(CQ37,Subsidy!$A$2:$D$26,3,FALSE),0)))), "Calculation error") -> 0 | CV37: =IF(AND(CP37=1, CQ37<=9, NOT(ISERROR(MATCH(CQ37, Subsidy!$A$2:$A$26, 0)))), IFERROR(CL37-CU37, 0), 0) -> 0 | CW37: 0 | CX37: 0 | CY37: 0 | CZ37: 0 | DA37: 0 | DB37: 0 | DC37: 0
A38: 29 | C38: 請選擇 | D38: =IF(OR(C38="", C38="Pls select"), 0, IF(C38=Pulldown!$F$2, 1, IF(C38=Pulldown!$F$3, 2, 0))) -> 0 | E38: 2025-05-01 | H38: Input Required | I38: =IFERROR(CHOOSE(MATCH($H38,{"1-valid","2-valid","Input Required","Date Before Transition"},0),1,2,3,4),0) -> 3 | J38: Input Required | K38: =IFERROR(CHOOSE(MATCH($J38,{"轉制日前開始受僱","轉制日後開始受僱"},0),1,2),0) -> 0 | L38: 月薪僱員 | M38: =IFERROR(CHOOSE(MATCH($L38,Pulldown!$C$1:$C$2,0),22500,15000),0) -> 22500 | N38: =IFERROR(CHOOSE(MATCH($L38,Pulldown!$C$1:$C$2,0),2/3,1),0) -> 0.6666666667 | O38: 0 | P38: 0 | R38: 0.6666666667 | AD38: 0 | AF38: 0.6666666667 | AG38: 2025-05-01 | AS38: 0 | AT38: 0 | AU38: 0 | AV38: 強積金計劃 | AW38: =IF(AV38="",0,IFERROR(CHOOSE(MATCH(AV38,Pulldown!$B$2:$B$3,0),1,2),0)) -> 1 | AX38: MC -> VC | AY38: =IF(AX38="",0,IFERROR(CHOOSE(MATCH(AX38,Pulldown!$G$1:$G$2,0),1,2),0)) -> 1 | AZ38: 0 | BA38: 0 | BB38: 0 | BC38: N/A | BD38: N/A | BE38: N/A | BF38: N/A | BG38: N/A | BH38: N/A | BI38: N/A | BJ38: N/A | BK38: N/A | BL38: N/A | BM38: N/A | BN38: N/A | BO38: N/A | BP38: N/A | BQ38: N/A | BR38: N/A | BS38: N/A | BT38: N/A | BU38: =IF(ISNA(INDIRECT("BT" & ROW())), "N/A", INDIRECT("BT" & ROW())) -> N/A | BV38: 沒有 | BW38: =IF(BV38="",0,IFERROR(CHOOSE(MATCH(BV38,Pulldown!$H$1:$H$2,0),1,2),0)) -> 2 | BX38: 011 | BY38: 0 | BZ38: 0 | CA38: 0 | CB38: 0 | CC38: 0 | CD38: 0 | CE38: 0 | CF38: 0 | CG38: N/A | CH38: N/A | CI38: Invalid case | CJ38: 0 | CK38: 0 | CL38: 0 | CM38: N/A | CN38: 0 | CO38: 不超過50萬元 | CP38: =IF(CO38=Pulldown!$A$1,1,IF(CO38=Pulldown!$A$2,2,0)) -> 1 | CQ38: 0 | CR38: =IFERROR( IF(NOT(OR(CP38=1,CP38=2)),0%, IF(ISERROR(MATCH(CQ38,Subsidy!$A$2:$A$26,0)),0%, IF(CP38=1,VLOOKUP(CQ38,Subsidy!$A$2:$G$26,6,FALSE), IF(CP38=2,VLOOKUP(CQ38,Subsidy!$A$2:$G$26,7,FALSE),0%)))), "Calculation error") -> 0 | CS38: =IFERROR( IF(NOT(OR(CP38=1,CP38=2)),0%, IF(ISERROR(MATCH(CQ38,Subsidy!$A$2:$A$26,0)),0%, IF(CP38=1,VLOOKUP(CQ38,Subsidy!$A$2:$D$26,2,FALSE), IF(CP38=2,VLOOKUP(CQ38,Subsidy!$A$2:$D$26,4,FALSE),0%)))), "Calculation error") -> 0 | CT38: 0 | CU38: =IFERROR( IF(NOT(OR(CP38=1,CP38=2)),0, IF(ISERROR(MATCH(CQ38,Subsidy!$A$2:$A$26,0)),0, IF(CP38=2,"N/A", IF(AND(CP38=1,CQ38<=9),VLOOKUP(CQ38,Subsidy!$A$2:$D$26,3,FALSE),0)))), "Calculation error") -> 0 | CV38: =IF(AND(CP38=1, CQ38<=9, NOT(ISERROR(MATCH(CQ38, Subsidy!$A$2:$A$26, 0)))), IFERROR(CL38-CU38, 0), 0) -> 0 | CW38: 0 | CX38: 0 | CY38: 0 | CZ38: 0 | DA38: 0 | DB38: 0 | DC38: 0
A39: 30 | C39: 請選擇 | D39: =IF(OR(C39="", C39="Pls select"), 0, IF(C39=Pulldown!$F$2, 1, IF(C39=Pulldown!$F$3, 2, 0))) -> 0 | E39: 2025-05-01 | H39: Input Required | I39: =IFERROR(CHOOSE(MATCH($H39,{"1-valid","2-valid","Input Required","Date Before Transition"},0),1,2,3,4),0) -> 3 | J39: Input Required | K39: =IFERROR(CHOOSE(MATCH($J39,{"轉制日前開始受僱","轉制日後開始受僱"},0),1,2),0) -> 0 | L39: 月薪僱員 | M39: =IFERROR(CHOOSE(MATCH($L39,Pulldown!$C$1:$C$2,0),22500,15000),0) -> 22500 | N39: =IFERROR(CHOOSE(MATCH($L39,Pulldown!$C$1:$C$2,0),2/3,1),0) -> 0.6666666667 | O39: 0 | P39: 0 | R39: 0.6666666667 | AD39: 0 | AF39: 0.6666666667 | AG39: 2025-05-01 | AS39: 0 | AT39: 0 | AU39: 0 | AV39: 強積金計劃 | AW39: =IF(AV39="",0,IFERROR(CHOOSE(MATCH(AV39,Pulldown!$B$2:$B$3,0),1,2),0)) -> 1 | AX39: MC -> VC | AY39: =IF(AX39="",0,IFERROR(CHOOSE(MATCH(AX39,Pulldown!$G$1:$G$2,0),1,2),0)) -> 1 | AZ39: 0 | BA39: 0 | BB39: 0 | BC39: N/A | BD39: N/A | BE39: N/A | BF39: N/A | BG39: N/A | BH39: N/A | BI39: N/A | BJ39: N/A | BK39: N/A | BL39: N/A | BM39: N/A | BN39: N/A | BO39: N/A | BP39: N/A | BQ39: N/A | BR39: N/A | BS39: N/A | BT39: N/A | BU39: =IF(ISNA(INDIRECT("BT" & ROW())), "N/A", INDIRECT("BT" & ROW())) -> N/A | BV39: 沒有 | BW39: =IF(BV39="",0,IFERROR(CHOOSE(MATCH(BV39,Pulldown!$H$1:$H$2,0),1,2),0)) -> 2 | BX39: 011 | BY39: 0 | BZ39: 0 | CA39: 0 | CB39: 0 | CC39: 0 | CD39: 0 | CE39: 0 | CF39: 0 | CG39: N/A | CH39: N/A | CI39: Invalid case | CJ39: 0 | CK39: 0 | CL39: 0 | CM39: N/A | CN39: 0 | CO39: 不超過50萬元 | CP39: =IF(CO39=Pulldown!$A$1,1,IF(CO39=Pulldown!$A$2,2,0)) -> 1 | CQ39: 0 | CR39: =IFERROR( IF(NOT(OR(CP39=1,CP39=2)),0%, IF(ISERROR(MATCH(CQ39,Subsidy!$A$2:$A$26,0)),0%, IF(CP39=1,VLOOKUP(CQ39,Subsidy!$A$2:$G$26,6,FALSE), IF(CP39=2,VLOOKUP(CQ39,Subsidy!$A$2:$G$26,7,FALSE),0%)))), "Calculation error") -> 0 | CS39: =IFERROR( IF(NOT(OR(CP39=1,CP39=2)),0%, IF(ISERROR(MATCH(CQ39,Subsidy!$A$2:$A$26,0)),0%, IF(CP39=1,VLOOKUP(CQ39,Subsidy!$A$2:$D$26,2,FALSE), IF(CP39=2,VLOOKUP(CQ39,Subsidy!$A$2:$D$26,4,FALSE),0%)))), "Calculation error") -> 0 | CT39: 0 | CU39: =IFERROR( IF(NOT(OR(CP39=1,CP39=2)),0, IF(ISERROR(MATCH(CQ39,Subsidy!$A$2:$A$26,0)),0, IF(CP39=2,"N/A", IF(AND(CP39=1,CQ39<=9),VLOOKUP(CQ39,Subsidy!$A$2:$D$26,3,FALSE),0)))), "Calculation error") -> 0 | CV39: =IF(AND(CP39=1, CQ39<=9, NOT(ISERROR(MATCH(CQ39, Subsidy!$A$2:$A$26, 0)))), IFERROR(CL39-CU39, 0), 0) -> 0 | CW39: 0 | CX39: 0 | CY39: 0 | CZ39: 0 | DA39: 0 | DB39: 0 | DC39: 0
A40: 31 | C40: 請選擇 | D40: =IF(OR(C40="", C40="Pls select"), 0, IF(C40=Pulldown!$F$2, 1, IF(C40=Pulldown!$F$3, 2, 0))) -> 0 | E40: 2025-05-01 | H40: Input Required | I40: =IFERROR(CHOOSE(MATCH($H40,{"1-valid","2-valid","Input Required","Date Before Transition"},0),1,2,3,4),0) -> 3 | J40: Input Required | K40: =IFERROR(CHOOSE(MATCH($J40,{"轉制日前開始受僱","轉制日後開始受僱"},0),1,2),0) -> 0 | L40: 月薪僱員 | M40: =IFERROR(CHOOSE(MATCH($L40,Pulldown!$C$1:$C$2,0),22500,15000),0) -> 22500 | N40: =IFERROR(CHOOSE(MATCH($L40,Pulldown!$C$1:$C$2,0),2/3,1),0) -> 0.6666666667 | O40: 0 | P40: 0 | R40: 0.6666666667 | AD40: 0 | AF40: 0.6666666667 | AG40: 2025-05-01 | AS40: 0 | AT40: 0 | AU40: 0 | AV40: 強積金計劃 | AW40: =IF(AV40="",0,IFERROR(CHOOSE(MATCH(AV40,Pulldown!$B$2:$B$3,0),1,2),0)) -> 1 | AX40: MC -> VC | AY40: =IF(AX40="",0,IFERROR(CHOOSE(MATCH(AX40,Pulldown!$G$1:$G$2,0),1,2),0)) -> 1 | AZ40: 0 | BA40: 0 | BB40: 0 | BC40: N/A | BD40: N/A | BE40: N/A | BF40: N/A | BG40: N/A | BH40: N/A | BI40: N/A | BJ40: N/A | BK40: N/A | BL40: N/A | BM40: N/A | BN40: N/A | BO40: N/A | BP40: N/A | BQ40: N/A | BR40: N/A | BS40: N/A | BT40: N/A | BU40: =IF(ISNA(INDIRECT("BT" & ROW())), "N/A", INDIRECT("BT" & ROW())) -> N/A | BV40: 沒有 | BW40: =IF(BV40="",0,IFERROR(CHOOSE(MATCH(BV40,Pulldown!$H$1:$H$2,0),1,2),0)) -> 2 | BX40: 011 | BY40: 0 | BZ40: 0 | CA40: 0 | CB40: 0 | CC40: 0 | CD40: 0 | CE40: 0 | CF40: 0 | CG40: N/A | CH40: N/A | CI40: Invalid case | CJ40: 0 | CK40: 0 | CL40: 0 | CM40: N/A | CN40: 0 | CO40: 不超過50萬元 | CP40: =IF(CO40=Pulldown!$A$1,1,IF(CO40=Pulldown!$A$2,2,0)) -> 1 | CQ40: 0 | CR40: =IFERROR( IF(NOT(OR(CP40=1,CP40=2)),0%, IF(ISERROR(MATCH(CQ40,Subsidy!$A$2:$A$26,0)),0%, IF(CP40=1,VLOOKUP(CQ40,Subsidy!$A$2:$G$26,6,FALSE), IF(CP40=2,VLOOKUP(CQ40,Subsidy!$A$2:$G$26,7,FALSE),0%)))), "Calculation error") -> 0 | CS40: =IFERROR( IF(NOT(OR(CP40=1,CP40=2)),0%, IF(ISERROR(MATCH(CQ40,Subsidy!$A$2:$A$26,0)),0%, IF(CP40=1,VLOOKUP(CQ40,Subsidy!$A$2:$D$26,2,FALSE), IF(CP40=2,VLOOKUP(CQ40,Subsidy!$A$2:$D$26,4,FALSE),0%)))), "Calculation error") -> 0 | CT40: 0 | CU40: =IFERROR( IF(NOT(OR(CP40=1,CP40=2)),0, IF(ISERROR(MATCH(CQ40,Subsidy!$A$2:$A$26,0)),0, IF(CP40=2,"N/A", IF(AND(CP40=1,CQ40<=9),VLOOKUP(CQ40,Subsidy!$A$2:$D$26,3,FALSE),0)))), "Calculation error") -> 0 | CV40: =IF(AND(CP40=1, CQ40<=9, NOT(ISERROR(MATCH(CQ40, Subsidy!$A$2:$A$26, 0)))), IFERROR(CL40-CU40, 0), 0) -> 0 | CW40: 0 | CX40: 0 | CY40: 0 | CZ40: 0 | DA40: 0 | DB40: 0 | DC40: 0
A41: 32 | C41: 請選擇 | D41: =IF(OR(C41="", C41="Pls select"), 0, IF(C41=Pulldown!$F$2, 1, IF(C41=Pulldown!$F$3, 2, 0))) -> 0 | E41: 2025-05-01 | H41: Input Required | I41: =IFERROR(CHOOSE(MATCH($H41,{"1-valid","2-valid","Input Required","Date Before Transition"},0),1,2,3,4),0) -> 3 | J41: Input Required | K41: =IFERROR(CHOOSE(MATCH($J41,{"轉制日前開始受僱","轉制日後開始受僱"},0),1,2),0) -> 0 | L41: 月薪僱員 | M41: =IFERROR(CHOOSE(MATCH($L41,Pulldown!$C$1:$C$2,0),22500,15000),0) -> 22500 | N41: =IFERROR(CHOOSE(MATCH($L41,Pulldown!$C$1:$C$2,0),2/3,1),0) -> 0.6666666667 | O41: 0 | P41: 0 | R41: 0.6666666667 | AD41: 0 | AF41: 0.6666666667 | AG41: 2025-05-01 | AS41: 0 | AT41: 0 | AU41: 0 | AV41: 強積金計劃 | AW41: =IF(AV41="",0,IFERROR(CHOOSE(MATCH(AV41,Pulldown!$B$2:$B$3,0),1,2),0)) -> 1 | AX41: MC -> VC | AY41: =IF(AX41="",0,IFERROR(CHOOSE(MATCH(AX41,Pulldown!$G$1:$G$2,0),1,2),0)) -> 1 | AZ41: 0 | BA41: 0 | BB41: 0 | BC41: N/A | BD41: N/A | BE41: N/A | BF41: N/A | BG41: N/A | BH41: N/A | BI41: N/A | BJ41: N/A | BK41: N/A | BL41: N/A | BM41: N/A | BN41: N/A | BO41: N/A | BP41: N/A | BQ41: N/A | BR41: N/A | BS41: N/A | BT41: N/A | BU41: =IF(ISNA(INDIRECT("BT" & ROW())), "N/A", INDIRECT("BT" & ROW())) -> N/A | BV41: 沒有 | BW41: =IF(BV41="",0,IFERROR(CHOOSE(MATCH(BV41,Pulldown!$H$1:$H$2,0),1,2),0)) -> 2 | BX41: 011 | BY41: 0 | BZ41: 0 | CA41: 0 | CB41: 0 | CC41: 0 | CD41: 0 | CE41: 0 | CF41: 0 | CG41: N/A | CH41: N/A | CI41: Invalid case | CJ41: 0 | CK41: 0 | CL41: 0 | CM41: N/A | CN41: 0 | CO41: 不超過50萬元 | CP41: =IF(CO41=Pulldown!$A$1,1,IF(CO41=Pulldown!$A$2,2,0)) -> 1 | CQ41: 0 | CR41: =IFERROR( IF(NOT(OR(CP41=1,CP41=2)),0%, IF(ISERROR(MATCH(CQ41,Subsidy!$A$2:$A$26,0)),0%, IF(CP41=1,VLOOKUP(CQ41,Subsidy!$A$2:$G$26,6,FALSE), IF(CP41=2,VLOOKUP(CQ41,Subsidy!$A$2:$G$26,7,FALSE),0%)))), "Calculation error") -> 0 | CS41: =IFERROR( IF(NOT(OR(CP41=1,CP41=2)),0%, IF(ISERROR(MATCH(CQ41,Subsidy!$A$2:$A$26,0)),0%, IF(CP41=1,VLOOKUP(CQ41,Subsidy!$A$2:$D$26,2,FALSE), IF(CP41=2,VLOOKUP(CQ41,Subsidy!$A$2:$D$26,4,FALSE),0%)))), "Calculation error") -> 0 | CT41: 0 | CU41: =IFERROR( IF(NOT(OR(CP41=1,CP41=2)),0, IF(ISERROR(MATCH(CQ41,Subsidy!$A$2:$A$26,0)),0, IF(CP41=2,"N/A", IF(AND(CP41=1,CQ41<=9),VLOOKUP(CQ41,Subsidy!$A$2:$D$26,3,FALSE),0)))), "Calculation error") -> 0 | CV41: =IF(AND(CP41=1, CQ41<=9, NOT(ISERROR(MATCH(CQ41, Subsidy!$A$2:$A$26, 0)))), IFERROR(CL41-CU41, 0), 0) -> 0 | CW41: 0 | CX41: 0 | CY41: 0 | CZ41: 0 | DA41: 0 | DB41: 0 | DC41: 0
A42: 33 | C42: 請選擇 | D42: =IF(OR(C42="", C42="Pls select"), 0, IF(C42=Pulldown!$F$2, 1, IF(C42=Pulldown!$F$3, 2, 0))) -> 0 | E42: =$A$3 -> 2025-05-01 | H42: Input Required | I42: =IFERROR(CHOOSE(MATCH($H42,{"1-valid","2-valid","Input Required","Date Before Transition"},0),1,2,3,4),0) -> 3 | J42: Input Required | K42: =IFERROR(CHOOSE(MATCH($J42,{"轉制日前開始受僱","轉制日後開始受僱"},0),1,2),0) -> 0 | L42: 月薪僱員 | M42: =IFERROR(CHOOSE(MATCH($L42,Pulldown!$C$1:$C$2,0),22500,15000),0) -> 22500 | N42: =IFERROR(CHOOSE(MATCH($L42,Pulldown!$C$1:$C$2,0),2/3,1),0) -> 0.6666666667 | O42: 0 | P42: 0 | Q42: =IF(OR(I42=1, I42=2), IF(K42=0, "", IF(K42=1, IF(OR(M42="N/A", O42="N/A"), "N/A", IF(OR(M42="", O42=""), "", MIN(M42, O42))), IF(K42=2, "N/A", ""))), "") ->  | R42: =$N42 -> 0.6666666667 | S42: =IF(OR(I42=1, I42=2), IF((F42<=E42),(DATEDIF(F42,E42,"Y")),"N/A"), "") ->  | T42: =IF(OR(I42=1, I42=2), IF(F42>E42, F42, F42), "") ->  | U42: =IF(OR(I42=1, I42=2), IF(F42>E42, E42-1, E42-1), "") ->  | V42: =IF(OR(I42=1, I42=2), IF(F42>E42, "N/A", E42-DATE(YEAR(F42)+S42, MONTH(F42), DAY(F42))), "") ->  | W42: =IF(OR(I42=1, I42=2), IF(F42>E42, DATE(YEAR(E42), MONTH(F42), DAY(F42)), DATE(YEAR(F42)+S42, MONTH(F42), DAY(F42))), "") ->  | X42: =IF(OR(I42=1, I42=2), IF(F42>E42, E42-1, E42-1), "") ->  | Y42: =IF(OR(I42=1, I42=2), IF(F42>E42, "N/A", DATE(YEAR(W42)+1, MONTH(W42), DAY(W42))-W42), "") ->  | Z42: =IF(OR(I42=1, I42=2), IF(F42>E42, DATE(YEAR(E42), MONTH(F42), DAY(F42)), DATE(YEAR(F42)+S42, MONTH(F42), DAY(F42))), "") ->  | AA42: =IF(OR(I42=1, I42=2), IF(F42>E42, DATE(YEAR(W42)+1, MONTH(W42), DAY(W42))-1, DATE(YEAR(W42)+1, MONTH(W42), DAY(W42))-1), "") ->  | AB42: =IF(OR(S42="N/A", V42="N/A", Y42="N/A"), "N/A", IF(OR(S42="", V42="", Y42="", Y42=0), "", V42/Y42)) ->  | AC42: =IF(AB42="N/A", "N/A", IF(AB42="", "", S42 + AB42)) ->  | AD42: 0 | AE42: =IF(OR(I42=1, I42=2), IF(K42=0, "", IF(OR(K42=1, K42=2), IF(OR(M42="N/A", P42="N/A"), "N/A", IF(OR(M42="", P42=""), "", MIN(M42, P42))), "")), "") ->  | AF42: =$N42 -> 0.6666666667 | AG42: =IF(E42>F42,E42,F42) -> 2025-05-01 | AH42: =IF(OR(I42=1, I42=2), IF(F42<=E42, DATEDIF(E42, G42, "Y"), DATEDIF(F42, G42, "Y")), "") ->  | AI42: =IF(OR(I42=1, I42=2), IF(F42<=E42, E42, F42), "") ->  | AJ42: =IF(OR(I42=1, I42=2), G42, "") ->  | AK42: =IF(OR(I42=1, I42=2), IF(F42<=E42, G42-DATE(YEAR(E42)+AH42, MONTH(E42), DAY(E42)), G42-DATE(YEAR(F42)+AH42, MONTH(F42), DAY(F42)))+1, "") ->  | AL42: =IF(OR(I42=1, I42=2), IF(F42<=E42, DATE(YEAR(E42)+AH42, MONTH(E42), DAY(E42)), DATE(YEAR(F42)+AH42, MONTH(F42), DAY(F42))), "") ->  | AM42: =IF(OR(I42=1, I42=2), G42, "") ->  | AQ42: =IF(OR(AH42="N/A", AK42="N/A", AN42="N/A"), "N/A", IF(OR(AH42="", AK42="", AN42="", AN42=0), "", AK42/AN42)) ->  | AR42: =IF(AQ42="N/A", "N/A", IF(AQ42="", "", AH42 + AQ42)) ->  | AS42: 0 | AT42: =IF(AD42="N/A", AS42, IFERROR(IF(AD42+AS42>=390000, 390000-AD42, AS42), AS42)) -> 0 | AU42: =IFERROR(ROUNDDOWN(MIN(SUM(AD42, AS42), 390000), 2), 0) -> 0 | AV42: 強積金計劃 | AW42: =IF(AV42="",0,IFERROR(CHOOSE(MATCH(AV42,Pulldown!$B$2:$B$3,0),1,2),0)) -> 1 | AX42: MC -> VC | AY42: =IF(AX42="",0,IFERROR(CHOOSE(MATCH(AX42,Pulldown!$G$1:$G$2,0),1,2),0)) -> 1 | AZ42: 0 | BA42: 0 | BB42: 0 | BC42: =IF(AW42=1, "N/A", IF(BB42="", 0, MIN(30000, BB42))) -> N/A | BD42: =IF(AW42=1,"N/A",(MAX("1/12/2000",F42))) -> N/A | BE42: =IF(AW42=1,"N/A",G42) -> N/A | BF42: =IF(AW42=1, "N/A", IF(AW42=2, IFERROR(IF(OR(NOT(ISNUMBER(BD42)), NOT(ISNUMBER(BE42)), BD42<DATE(1900,1,1), BE42<DATE(1900,1,1), BE42<BD42), "N/A", DATEDIF(BD42, BE42, "Y")), "N/A"), "")) -> N/A | BG42: =IF(AW42=1, "N/A", IF(AW42=2, BD42, "")) -> N/A | BH42: =IF(AW42=1, "N/A", IF(AW42=2, DATE(YEAR(BE42), MONTH(BD42), DAY(BD42)-1), "")) -> N/A | BI42: N/A | BJ42: N/A | BK42: =IF(AW42=1, "N/A", IF(AW42=2, BE42, "")) -> N/A | BL42: =IF(AW42=1, "N/A", IF(AW42=2, IF(OR(NOT(ISNUMBER(BD42)), NOT(ISNUMBER(BE42)), BD42<DATE(1900,1,1), BE42<DATE(1900,1,1), BE42<BD42, BF42="N/A", BF42="", NOT(ISNUMBER(BF42))), "N/A", IFERROR( IF(AND(ISNUMBER(DATE(YEAR(BD42)+BF42+1, MONTH(BD42), DAY(BD42)-1)), ISNUMBER(DATE(YEAR(BD42)+BF42, MONTH(BD42), DAY(BD42)))), DATE(YEAR(BD42)+BF42+1, MONTH(BD42), DAY(BD42)-1) - DATE(YEAR(BD42)+BF42, MONTH(BD42), DAY(BD42)) + 1, "N/A"), "N/A")), "")) -> N/A | BM42: N/A | BN42: =IF(AW42=1, "N/A", IF(AW42=2, IF(OR(NOT(ISNUMBER(BD42)), NOT(ISNUMBER(BE42)), BD42<DATE(1900,1,1), BE42<DATE(1900,1,1), BE42<BD42, BF42="N/A", BF42="", NOT(ISNUMBER(BF42))), "N/A", IFERROR( IF(ISNUMBER(DATE(YEAR(BD42)+BF42+1, MONTH(BD42), DAY(BD42)-1)), DATE(YEAR(BD42)+BF42+1, MONTH(BD42), DAY(BD42)-1), "N/A"), "N/A")), "")) -> N/A | BO42: =IF($AW42=1, "N/A", IF($AW42=2, IF(OR(NOT(ISNUMBER(BD42)), NOT(ISNUMBER(BE42)), BD42<DATE(1900,1,1), BE42<DATE(1900,1,1), BE42<BD42, BF42="N/A", BF42="", NOT(ISNUMBER(BF42)), BI42="N/A", NOT(ISNUMBER(BI42)), BL42="N/A", NOT(ISNUMBER(BL42)), BL42=0), "N/A", IFERROR(BI42/BL42, "N/A")), "")) -> N/A | BP42: =IF($AW42=1, "N/A", IF($AW42=2, IF(OR(NOT(ISNUMBER(BD42)), NOT(ISNUMBER(BE42)), BD42<DATE(1900,1,1), BE42<DATE(1900,1,1), BE42<BD42, BF42="N/A", BF42="", NOT(ISNUMBER(BF42)), BO42="N/A", NOT(ISNUMBER(BO42))), "N/A", IFERROR(BF42+BO42, "N/A")), "")) -> N/A | BQ42: =IF($AW42=1,"N/A",($BQ$5)) -> N/A | BR42: =IF($AW42=1,"N/A",($BR$5)) -> N/A | BS42: N/A | BT42: N/A | BU42: =IF(ISNA(INDIRECT("BT" & ROW())), "N/A", INDIRECT("BT" & ROW())) -> N/A | BV42: 沒有 | BW42: =IF(BV42="",0,IFERROR(CHOOSE(MATCH(BV42,Pulldown!$H$1:$H$2,0),1,2),0)) -> 2 | BX42: =CONCATENATE(K42,AW42,AY42) -> 011 | BY42: 0 | BZ42: 0 | CA42: 0 | CB42: 0 | CC42: 0 | CD42: 0 | CE42: =IF((AD42="N/A"),"N/A",(MIN(390000,AD42))) -> 0 | CF42: =IF($AW42=1, IF($AD42="N/A", "N/A", IF($AZ42="", 0, $AZ42)), "N/A") -> 0 | CG42: =IF($AW42=2,(IF((AD42="N/A"),"N/A",(BS42))),"N/A") -> N/A | CH42: N/A | CI42: Invalid case | CJ42: =IF((CE42="N/A"),AS42,(MIN(AS42,390000-CE42))) -> 0 | CK42: 0 | CL42: 0 | CM42: =IFERROR( IF(OR(I42=1,I42=2), SUM(CH42,CL42), "N/A"), "Calculation error") -> N/A | CN42: =IF(AND(ISNUMBER(CM42), CM42>0), 1, 0) -> 0 | CO42: 不超過50萬元 | CP42: =IF(CO42=Pulldown!$A$1,1,IF(CO42=Pulldown!$A$2,2,0)) -> 1 | CQ42: =IF(G42="", 0, IF(OR(E42="", G42<E42), "Invalid", DATEDIF(E42, G42, "Y") + 1)) -> 0 | CR42: =IFERROR( IF(NOT(OR(CP42=1,CP42=2)),0%, IF(ISERROR(MATCH(CQ42,Subsidy!$A$2:$A$26,0)),0%, IF(CP42=1,VLOOKUP(CQ42,Subsidy!$A$2:$G$26,6,FALSE), IF(CP42=2,VLOOKUP(CQ42,Subsidy!$A$2:$G$26,7,FALSE),0%)))), "Calculation error") -> 0 | CS42: =IFERROR( IF(NOT(OR(CP42=1,CP42=2)),0%, IF(ISERROR(MATCH(CQ42,Subsidy!$A$2:$A$26,0)),0%, IF(CP42=1,VLOOKUP(CQ42,Subsidy!$A$2:$D$26,2,FALSE), IF(CP42=2,VLOOKUP(CQ42,Subsidy!$A$2:$D$26,4,FALSE),0%)))), "Calculation error") -> 0 | CT42: =IFERROR(ROUNDDOWN((CL42*CS42),2), 0) -> 0 | CU42: =IFERROR( IF(NOT(OR(CP42=1,CP42=2)),0, IF(ISERROR(MATCH(CQ42,Subsidy!$A$2:$A$26,0)),0, IF(CP42=2,"N/A", IF(AND(CP42=1,CQ42<=9),VLOOKUP(CQ42,Subsidy!$A$2:$D$26,3,FALSE),0)))), "Calculation error") -> 0 | CV42: =IF(AND(CP42=1, CQ42<=9, NOT(ISERROR(MATCH(CQ42, Subsidy!$A$2:$A$26, 0)))), IFERROR(CL42-CU42, 0), 0) -> 0 | CW42: =MAX(CT42, CV42) -> 0 | CX42: =IFERROR(CL42-CW42, 0) -> 0 | CY42: =IFERROR(ROUNDDOWN(MIN(SUM(AD42, AS42), 390000), 2), 0) -> 0 | CZ42: =CY42-DA42 -> 0 | DA42: =SUM(CH42,CL42) -> 0 | DB42: =CW42 -> 0 | DC42: =DA42-DB42 -> 0
A43: 34 | C43: 請選擇 | D43: =IF(OR(C43="", C43="Pls select"), 0, IF(C43=Pulldown!$F$2, 1, IF(C43=Pulldown!$F$3, 2, 0))) -> 0 | E43: 2025-05-01 | H43: Input Required | I43: =IFERROR(CHOOSE(MATCH($H43,{"1-valid","2-valid","Input Required","Date Before Transition"},0),1,2,3,4),0) -> 3 | J43: Input Required | K43: =IFERROR(CHOOSE(MATCH($J43,{"轉制日前開始受僱","轉制日後開始受僱"},0),1,2),0) -> 0 | L43: 月薪僱員 | M43: =IFERROR(CHOOSE(MATCH($L43,Pulldown!$C$1:$C$2,0),22500,15000),0) -> 22500 | N43: =IFERROR(CHOOSE(MATCH($L43,Pulldown!$C$1:$C$2,0),2/3,1),0) -> 0.6666666667 | O43: 0 | P43: 0 | R43: 0.6666666667 | AD43: 0 | AF43: 0.6666666667 | AG43: 2025-05-01 | AS43: 0 | AT43: 0 | AU43: 0 | AV43: 強積金計劃 | AW43: =IF(AV43="",0,IFERROR(CHOOSE(MATCH(AV43,Pulldown!$B$2:$B$3,0),1,2),0)) -> 1 | AX43: MC -> VC | AY43: =IF(AX43="",0,IFERROR(CHOOSE(MATCH(AX43,Pulldown!$G$1:$G$2,0),1,2),0)) -> 1 | AZ43: 0 | BA43: 0 | BB43: 0 | BC43: N/A | BD43: N/A | BE43: N/A | BF43: N/A | BG43: N/A | BH43: N/A | BI43: N/A | BJ43: N/A | BK43: N/A | BL43: N/A | BM43: N/A | BN43: N/A | BO43: N/A | BP43: N/A | BQ43: N/A | BR43: N/A | BS43: N/A | BT43: N/A | BU43: =IF(ISNA(INDIRECT("BT" & ROW())), "N/A", INDIRECT("BT" & ROW())) -> N/A | BV43: 沒有 | BW43: =IF(BV43="",0,IFERROR(CHOOSE(MATCH(BV43,Pulldown!$H$1:$H$2,0),1,2),0)) -> 2 | BX43: 011 | BY43: 0 | BZ43: 0 | CA43: 0 | CB43: 0 | CC43: 0 | CD43: 0 | CE43: 0 | CF43: 0 | CG43: N/A | CH43: N/A | CI43: Invalid case | CJ43: 0 | CK43: 0 | CL43: 0 | CM43: N/A | CN43: 0 | CO43: 不超過50萬元 | CP43: =IF(CO43=Pulldown!$A$1,1,IF(CO43=Pulldown!$A$2,2,0)) -> 1 | CQ43: 0 | CR43: =IFERROR( IF(NOT(OR(CP43=1,CP43=2)),0%, IF(ISERROR(MATCH(CQ43,Subsidy!$A$2:$A$26,0)),0%, IF(CP43=1,VLOOKUP(CQ43,Subsidy!$A$2:$G$26,6,FALSE), IF(CP43=2,VLOOKUP(CQ43,Subsidy!$A$2:$G$26,7,FALSE),0%)))), "Calculation error") -> 0 | CS43: =IFERROR( IF(NOT(OR(CP43=1,CP43=2)),0%, IF(ISERROR(MATCH(CQ43,Subsidy!$A$2:$A$26,0)),0%, IF(CP43=1,VLOOKUP(CQ43,Subsidy!$A$2:$D$26,2,FALSE), IF(CP43=2,VLOOKUP(CQ43,Subsidy!$A$2:$D$26,4,FALSE),0%)))), "Calculation error") -> 0 | CT43: 0 | CU43: =IFERROR( IF(NOT(OR(CP43=1,CP43=2)),0, IF(ISERROR(MATCH(CQ43,Subsidy!$A$2:$A$26,0)),0, IF(CP43=2,"N/A", IF(AND(CP43=1,CQ43<=9),VLOOKUP(CQ43,Subsidy!$A$2:$D$26,3,FALSE),0)))), "Calculation error") -> 0 | CV43: =IF(AND(CP43=1, CQ43<=9, NOT(ISERROR(MATCH(CQ43, Subsidy!$A$2:$A$26, 0)))), IFERROR(CL43-CU43, 0), 0) -> 0 | CW43: 0 | CX43: 0 | CY43: 0 | CZ43: 0 | DA43: 0 | DB43: 0 | DC43: 0
A44: 35 | C44: 請選擇 | D44: =IF(OR(C44="", C44="Pls select"), 0, IF(C44=Pulldown!$F$2, 1, IF(C44=Pulldown!$F$3, 2, 0))) -> 0 | E44: 2025-05-01 | H44: Input Required | I44: =IFERROR(CHOOSE(MATCH($H44,{"1-valid","2-valid","Input Required","Date Before Transition"},0),1,2,3,4),0) -> 3 | J44: Input Required | K44: =IFERROR(CHOOSE(MATCH($J44,{"轉制日前開始受僱","轉制日後開始受僱"},0),1,2),0) -> 0 | L44: 月薪僱員 | M44: =IFERROR(CHOOSE(MATCH($L44,Pulldown!$C$1:$C$2,0),22500,15000),0) -> 22500 | N44: =IFERROR(CHOOSE(MATCH($L44,Pulldown!$C$1:$C$2,0),2/3,1),0) -> 0.6666666667 | O44: 0 | P44: 0 | R44: 0.6666666667 | AD44: 0 | AF44: 0.6666666667 | AG44: 2025-05-01 | AS44: 0 | AT44: 0 | AU44: 0 | AV44: 強積金計劃 | AW44: =IF(AV44="",0,IFERROR(CHOOSE(MATCH(AV44,Pulldown!$B$2:$B$3,0),1,2),0)) -> 1 | AX44: MC -> VC | AY44: =IF(AX44="",0,IFERROR(CHOOSE(MATCH(AX44,Pulldown!$G$1:$G$2,0),1,2),0)) -> 1 | AZ44: 0 | BA44: 0 | BB44: 0 | BC44: N/A | BD44: N/A | BE44: N/A | BF44: N/A | BG44: N/A | BH44: N/A | BI44: N/A | BJ44: N/A | BK44: N/A | BL44: N/A | BM44: N/A | BN44: N/A | BO44: N/A | BP44: N/A | BQ44: N/A | BR44: N/A | BS44: N/A | BT44: N/A | BU44: =IF(ISNA(INDIRECT("BT" & ROW())), "N/A", INDIRECT("BT" & ROW())) -> N/A | BV44: 沒有 | BW44: =IF(BV44="",0,IFERROR(CHOOSE(MATCH(BV44,Pulldown!$H$1:$H$2,0),1,2),0)) -> 2 | BX44: 011 | BY44: 0 | BZ44: 0 | CA44: 0 | CB44: 0 | CC44: 0 | CD44: 0 | CE44: 0 | CF44: 0 | CG44: N/A | CH44: N/A | CI44: Invalid case | CJ44: 0 | CK44: 0 | CL44: 0 | CM44: N/A | CN44: 0 | CO44: 不超過50萬元 | CP44: =IF(CO44=Pulldown!$A$1,1,IF(CO44=Pulldown!$A$2,2,0)) -> 1 | CQ44: 0 | CR44: =IFERROR( IF(NOT(OR(CP44=1,CP44=2)),0%, IF(ISERROR(MATCH(CQ44,Subsidy!$A$2:$A$26,0)),0%, IF(CP44=1,VLOOKUP(CQ44,Subsidy!$A$2:$G$26,6,FALSE), IF(CP44=2,VLOOKUP(CQ44,Subsidy!$A$2:$G$26,7,FALSE),0%)))), "Calculation error") -> 0 | CS44: =IFERROR( IF(NOT(OR(CP44=1,CP44=2)),0%, IF(ISERROR(MATCH(CQ44,Subsidy!$A$2:$A$26,0)),0%, IF(CP44=1,VLOOKUP(CQ44,Subsidy!$A$2:$D$26,2,FALSE), IF(CP44=2,VLOOKUP(CQ44,Subsidy!$A$2:$D$26,4,FALSE),0%)))), "Calculation error") -> 0 | CT44: 0 | CU44: =IFERROR( IF(NOT(OR(CP44=1,CP44=2)),0, IF(ISERROR(MATCH(CQ44,Subsidy!$A$2:$A$26,0)),0, IF(CP44=2,"N/A", IF(AND(CP44=1,CQ44<=9),VLOOKUP(CQ44,Subsidy!$A$2:$D$26,3,FALSE),0)))), "Calculation error") -> 0 | CV44: =IF(AND(CP44=1, CQ44<=9, NOT(ISERROR(MATCH(CQ44, Subsidy!$A$2:$A$26, 0)))), IFERROR(CL44-CU44, 0), 0) -> 0 | CW44: 0 | CX44: 0 | CY44: 0 | CZ44: 0 | DA44: 0 | DB44: 0 | DC44: 0
A45: 36 | C45: 請選擇 | D45: =IF(OR(C45="", C45="Pls select"), 0, IF(C45=Pulldown!$F$2, 1, IF(C45=Pulldown!$F$3, 2, 0))) -> 0 | E45: 2025-05-01 | H45: Input Required | I45: =IFERROR(CHOOSE(MATCH($H45,{"1-valid","2-valid","Input Required","Date Before Transition"},0),1,2,3,4),0) -> 3 | J45: Input Required | K45: =IFERROR(CHOOSE(MATCH($J45,{"轉制日前開始受僱","轉制日後開始受僱"},0),1,2),0) -> 0 | L45: 月薪僱員 | M45: =IFERROR(CHOOSE(MATCH($L45,Pulldown!$C$1:$C$2,0),22500,15000),0) -> 22500 | N45: =IFERROR(CHOOSE(MATCH($L45,Pulldown!$C$1:$C$2,0),2/3,1),0) -> 0.6666666667 | O45: 0 | P45: 0 | R45: 0.6666666667 | AD45: 0 | AF45: 0.6666666667 | AG45: 2025-05-01 | AS45: 0 | AT45: 0 | AU45: 0 | AV45: 強積金計劃 | AW45: =IF(AV45="",0,IFERROR(CHOOSE(MATCH(AV45,Pulldown!$B$2:$B$3,0),1,2),0)) -> 1 | AX45: MC -> VC | AY45: =IF(AX45="",0,IFERROR(CHOOSE(MATCH(AX45,Pulldown!$G$1:$G$2,0),1,2),0)) -> 1 | AZ45: 0 | BA45: 0 | BB45: 0 | BC45: N/A | BD45: N/A | BE45: N/A | BF45: N/A | BG45: N/A | BH45: N/A | BI45: N/A | BJ45: N/A | BK45: N/A | BL45: N/A | BM45: N/A | BN45: N/A | BO45: N/A | BP45: N/A | BQ45: N/A | BR45: N/A | BS45: N/A | BT45: N/A | BU45: =IF(ISNA(INDIRECT("BT" & ROW())), "N/A", INDIRECT("BT" & ROW())) -> N/A | BV45: 沒有 | BW45: =IF(BV45="",0,IFERROR(CHOOSE(MATCH(BV45,Pulldown!$H$1:$H$2,0),1,2),0)) -> 2 | BX45: 011 | BY45: 0 | BZ45: 0 | CA45: 0 | CB45: 0 | CC45: 0 | CD45: 0 | CE45: 0 | CF45: 0 | CG45: N/A | CH45: N/A | CI45: Invalid case | CJ45: 0 | CK45: 0 | CL45: 0 | CM45: N/A | CN45: 0 | CO45: 不超過50萬元 | CP45: =IF(CO45=Pulldown!$A$1,1,IF(CO45=Pulldown!$A$2,2,0)) -> 1 | CQ45: 0 | CR45: =IFERROR( IF(NOT(OR(CP45=1,CP45=2)),0%, IF(ISERROR(MATCH(CQ45,Subsidy!$A$2:$A$26,0)),0%, IF(CP45=1,VLOOKUP(CQ45,Subsidy!$A$2:$G$26,6,FALSE), IF(CP45=2,VLOOKUP(CQ45,Subsidy!$A$2:$G$26,7,FALSE),0%)))), "Calculation error") -> 0 | CS45: =IFERROR( IF(NOT(OR(CP45=1,CP45=2)),0%, IF(ISERROR(MATCH(CQ45,Subsidy!$A$2:$A$26,0)),0%, IF(CP45=1,VLOOKUP(CQ45,Subsidy!$A$2:$D$26,2,FALSE), IF(CP45=2,VLOOKUP(CQ45,Subsidy!$A$2:$D$26,4,FALSE),0%)))), "Calculation error") -> 0 | CT45: 0 | CU45: =IFERROR( IF(NOT(OR(CP45=1,CP45=2)),0, IF(ISERROR(MATCH(CQ45,Subsidy!$A$2:$A$26,0)),0, IF(CP45=2,"N/A", IF(AND(CP45=1,CQ45<=9),VLOOKUP(CQ45,Subsidy!$A$2:$D$26,3,FALSE),0)))), "Calculation error") -> 0 | CV45: =IF(AND(CP45=1, CQ45<=9, NOT(ISERROR(MATCH(CQ45, Subsidy!$A$2:$A$26, 0)))), IFERROR(CL45-CU45, 0), 0) -> 0 | CW45: 0 | CX45: 0 | CY45: 0 | CZ45: 0 | DA45: 0 | DB45: 0 | DC45: 0
A46: 37 | C46: 請選擇 | D46: =IF(OR(C46="", C46="Pls select"), 0, IF(C46=Pulldown!$F$2, 1, IF(C46=Pulldown!$F$3, 2, 0))) -> 0 | E46: 2025-05-01 | H46: Input Required | I46: =IFERROR(CHOOSE(MATCH($H46,{"1-valid","2-valid","Input Required","Date Before Transition"},0),1,2,3,4),0) -> 3 | J46: Input Required | K46: =IFERROR(CHOOSE(MATCH($J46,{"轉制日前開始受僱","轉制日後開始受僱"},0),1,2),0) -> 0 | L46: 月薪僱員 | M46: =IFERROR(CHOOSE(MATCH($L46,Pulldown!$C$1:$C$2,0),22500,15000),0) -> 22500 | N46: =IFERROR(CHOOSE(MATCH($L46,Pulldown!$C$1:$C$2,0),2/3,1),0) -> 0.6666666667 | O46: 0 | P46: 0 | R46: 0.6666666667 | AD46: 0 | AF46: 0.6666666667 | AG46: 2025-05-01 | AS46: 0 | AT46: 0 | AU46: 0 | AV46: 強積金計劃 | AW46: =IF(AV46="",0,IFERROR(CHOOSE(MATCH(AV46,Pulldown!$B$2:$B$3,0),1,2),0)) -> 1 | AX46: MC -> VC | AY46: =IF(AX46="",0,IFERROR(CHOOSE(MATCH(AX46,Pulldown!$G$1:$G$2,0),1,2),0)) -> 1 | AZ46: 0 | BA46: 0 | BB46: 0 | BC46: N/A | BD46: N/A | BE46: N/A | BF46: N/A | BG46: N/A | BH46: N/A | BI46: N/A | BJ46: N/A | BK46: N/A | BL46: N/A | BM46: N/A | BN46: N/A | BO46: N/A | BP46: N/A | BQ46: N/A | BR46: N/A | BS46: N/A | BT46: N/A | BU46: =IF(ISNA(INDIRECT("BT" & ROW())), "N/A", INDIRECT("BT" & ROW())) -> N/A | BV46: 沒有 | BW46: =IF(BV46="",0,IFERROR(CHOOSE(MATCH(BV46,Pulldown!$H$1:$H$2,0),1,2),0)) -> 2 | BX46: 011 | BY46: 0 | BZ46: 0 | CA46: 0 | CB46: 0 | CC46: 0 | CD46: 0 | CE46: 0 | CF46: 0 | CG46: N/A | CH46: N/A | CI46: Invalid case | CJ46: 0 | CK46: 0 | CL46: 0 | CM46: N/A | CN46: 0 | CO46: 不超過50萬元 | CP46: =IF(CO46=Pulldown!$A$1,1,IF(CO46=Pulldown!$A$2,2,0)) -> 1 | CQ46: 0 | CR46: =IFERROR( IF(NOT(OR(CP46=1,CP46=2)),0%, IF(ISERROR(MATCH(CQ46,Subsidy!$A$2:$A$26,0)),0%, IF(CP46=1,VLOOKUP(CQ46,Subsidy!$A$2:$G$26,6,FALSE), IF(CP46=2,VLOOKUP(CQ46,Subsidy!$A$2:$G$26,7,FALSE),0%)))), "Calculation error") -> 0 | CS46: =IFERROR( IF(NOT(OR(CP46=1,CP46=2)),0%, IF(ISERROR(MATCH(CQ46,Subsidy!$A$2:$A$26,0)),0%, IF(CP46=1,VLOOKUP(CQ46,Subsidy!$A$2:$D$26,2,FALSE), IF(CP46=2,VLOOKUP(CQ46,Subsidy!$A$2:$D$26,4,FALSE),0%)))), "Calculation error") -> 0 | CT46: 0 | CU46: =IFERROR( IF(NOT(OR(CP46=1,CP46=2)),0, IF(ISERROR(MATCH(CQ46,Subsidy!$A$2:$A$26,0)),0, IF(CP46=2,"N/A", IF(AND(CP46=1,CQ46<=9),VLOOKUP(CQ46,Subsidy!$A$2:$D$26,3,FALSE),0)))), "Calculation error") -> 0 | CV46: =IF(AND(CP46=1, CQ46<=9, NOT(ISERROR(MATCH(CQ46, Subsidy!$A$2:$A$26, 0)))), IFERROR(CL46-CU46, 0), 0) -> 0 | CW46: 0 | CX46: 0 | CY46: 0 | CZ46: 0 | DA46: 0 | DB46: 0 | DC46: 0
A47: 38 | C47: 請選擇 | D47: =IF(OR(C47="", C47="Pls select"), 0, IF(C47=Pulldown!$F$2, 1, IF(C47=Pulldown!$F$3, 2, 0))) -> 0 | E47: 2025-05-01 | H47: Input Required | I47: =IFERROR(CHOOSE(MATCH($H47,{"1-valid","2-valid","Input Required","Date Before Transition"},0),1,2,3,4),0) -> 3 | J47: Input Required | K47: =IFERROR(CHOOSE(MATCH($J47,{"轉制日前開始受僱","轉制日後開始受僱"},0),1,2),0) -> 0 | L47: 月薪僱員 | M47: =IFERROR(CHOOSE(MATCH($L47,Pulldown!$C$1:$C$2,0),22500,15000),0) -> 22500 | N47: =IFERROR(CHOOSE(MATCH($L47,Pulldown!$C$1:$C$2,0),2/3,1),0) -> 0.6666666667 | O47: 0 | P47: 0 | R47: 0.6666666667 | AD47: 0 | AF47: 0.6666666667 | AG47: 2025-05-01 | AS47: 0 | AT47: 0 | AU47: 0 | AV47: 強積金計劃 | AW47: =IF(AV47="",0,IFERROR(CHOOSE(MATCH(AV47,Pulldown!$B$2:$B$3,0),1,2),0)) -> 1 | AX47: MC -> VC | AY47: =IF(AX47="",0,IFERROR(CHOOSE(MATCH(AX47,Pulldown!$G$1:$G$2,0),1,2),0)) -> 1 | AZ47: 0 | BA47: 0 | BB47: 0 | BC47: N/A | BD47: N/A | BE47: N/A | BF47: N/A | BG47: N/A | BH47: N/A | BI47: N/A | BJ47: N/A | BK47: N/A | BL47: N/A | BM47: N/A | BN47: N/A | BO47: N/A | BP47: N/A | BQ47: N/A | BR47: N/A | BS47: N/A | BT47: N/A | BU47: =IF(ISNA(INDIRECT("BT" & ROW())), "N/A", INDIRECT("BT" & ROW())) -> N/A | BV47: 沒有 | BW47: =IF(BV47="",0,IFERROR(CHOOSE(MATCH(BV47,Pulldown!$H$1:$H$2,0),1,2),0)) -> 2 | BX47: 011 | BY47: 0 | BZ47: 0 | CA47: 0 | CB47: 0 | CC47: 0 | CD47: 0 | CE47: 0 | CF47: 0 | CG47: N/A | CH47: N/A | CI47: Invalid case | CJ47: 0 | CK47: 0 | CL47: 0 | CM47: N/A | CN47: 0 | CO47: 不超過50萬元 | CP47: =IF(CO47=Pulldown!$A$1,1,IF(CO47=Pulldown!$A$2,2,0)) -> 1 | CQ47: 0 | CR47: =IFERROR( IF(NOT(OR(CP47=1,CP47=2)),0%, IF(ISERROR(MATCH(CQ47,Subsidy!$A$2:$A$26,0)),0%, IF(CP47=1,VLOOKUP(CQ47,Subsidy!$A$2:$G$26,6,FALSE), IF(CP47=2,VLOOKUP(CQ47,Subsidy!$A$2:$G$26,7,FALSE),0%)))), "Calculation error") -> 0 | CS47: =IFERROR( IF(NOT(OR(CP47=1,CP47=2)),0%, IF(ISERROR(MATCH(CQ47,Subsidy!$A$2:$A$26,0)),0%, IF(CP47=1,VLOOKUP(CQ47,Subsidy!$A$2:$D$26,2,FALSE), IF(CP47=2,VLOOKUP(CQ47,Subsidy!$A$2:$D$26,4,FALSE),0%)))), "Calculation error") -> 0 | CT47: 0 | CU47: =IFERROR( IF(NOT(OR(CP47=1,CP47=2)),0, IF(ISERROR(MATCH(CQ47,Subsidy!$A$2:$A$26,0)),0, IF(CP47=2,"N/A", IF(AND(CP47=1,CQ47<=9),VLOOKUP(CQ47,Subsidy!$A$2:$D$26,3,FALSE),0)))), "Calculation error") -> 0 | CV47: =IF(AND(CP47=1, CQ47<=9, NOT(ISERROR(MATCH(CQ47, Subsidy!$A$2:$A$26, 0)))), IFERROR(CL47-CU47, 0), 0) -> 0 | CW47: 0 | CX47: 0 | CY47: 0 | CZ47: 0 | DA47: 0 | DB47: 0 | DC47: 0
A48: 39 | C48: 請選擇 | D48: =IF(OR(C48="", C48="Pls select"), 0, IF(C48=Pulldown!$F$2, 1, IF(C48=Pulldown!$F$3, 2, 0))) -> 0 | E48: 2025-05-01 | H48: Input Required | I48: =IFERROR(CHOOSE(MATCH($H48,{"1-valid","2-valid","Input Required","Date Before Transition"},0),1,2,3,4),0) -> 3 | J48: Input Required | K48: =IFERROR(CHOOSE(MATCH($J48,{"轉制日前開始受僱","轉制日後開始受僱"},0),1,2),0) -> 0 | L48: 月薪僱員 | M48: =IFERROR(CHOOSE(MATCH($L48,Pulldown!$C$1:$C$2,0),22500,15000),0) -> 22500 | N48: =IFERROR(CHOOSE(MATCH($L48,Pulldown!$C$1:$C$2,0),2/3,1),0) -> 0.6666666667 | O48: 0 | P48: 0 | R48: 0.6666666667 | AD48: 0 | AF48: 0.6666666667 | AG48: 2025-05-01 | AS48: 0 | AT48: 0 | AU48: 0 | AV48: 強積金計劃 | AW48: =IF(AV48="",0,IFERROR(CHOOSE(MATCH(AV48,Pulldown!$B$2:$B$3,0),1,2),0)) -> 1 | AX48: MC -> VC | AY48: =IF(AX48="",0,IFERROR(CHOOSE(MATCH(AX48,Pulldown!$G$1:$G$2,0),1,2),0)) -> 1 | AZ48: 0 | BA48: 0 | BB48: 0 | BC48: N/A | BD48: N/A | BE48: N/A | BF48: N/A | BG48: N/A | BH48: N/A | BI48: N/A | BJ48: N/A | BK48: N/A | BL48: N/A | BM48: N/A | BN48: N/A | BO48: N/A | BP48: N/A | BQ48: N/A | BR48: N/A | BS48: N/A | BT48: N/A | BU48: =IF(ISNA(INDIRECT("BT" & ROW())), "N/A", INDIRECT("BT" & ROW())) -> N/A | BV48: 沒有 | BW48: =IF(BV48="",0,IFERROR(CHOOSE(MATCH(BV48,Pulldown!$H$1:$H$2,0),1,2),0)) -> 2 | BX48: 011 | BY48: 0 | BZ48: 0 | CA48: 0 | CB48: 0 | CC48: 0 | CD48: 0 | CE48: 0 | CF48: 0 | CG48: N/A | CH48: N/A | CI48: Invalid case | CJ48: 0 | CK48: 0 | CL48: 0 | CM48: N/A | CN48: 0 | CO48: 不超過50萬元 | CP48: =IF(CO48=Pulldown!$A$1,1,IF(CO48=Pulldown!$A$2,2,0)) -> 1 | CQ48: 0 | CR48: =IFERROR( IF(NOT(OR(CP48=1,CP48=2)),0%, IF(ISERROR(MATCH(CQ48,Subsidy!$A$2:$A$26,0)),0%, IF(CP48=1,VLOOKUP(CQ48,Subsidy!$A$2:$G$26,6,FALSE), IF(CP48=2,VLOOKUP(CQ48,Subsidy!$A$2:$G$26,7,FALSE),0%)))), "Calculation error") -> 0 | CS48: =IFERROR( IF(NOT(OR(CP48=1,CP48=2)),0%, IF(ISERROR(MATCH(CQ48,Subsidy!$A$2:$A$26,0)),0%, IF(CP48=1,VLOOKUP(CQ48,Subsidy!$A$2:$D$26,2,FALSE), IF(CP48=2,VLOOKUP(CQ48,Subsidy!$A$2:$D$26,4,FALSE),0%)))), "Calculation error") -> 0 | CT48: 0 | CU48: =IFERROR( IF(NOT(OR(CP48=1,CP48=2)),0, IF(ISERROR(MATCH(CQ48,Subsidy!$A$2:$A$26,0)),0, IF(CP48=2,"N/A", IF(AND(CP48=1,CQ48<=9),VLOOKUP(CQ48,Subsidy!$A$2:$D$26,3,FALSE),0)))), "Calculation error") -> 0 | CV48: =IF(AND(CP48=1, CQ48<=9, NOT(ISERROR(MATCH(CQ48, Subsidy!$A$2:$A$26, 0)))), IFERROR(CL48-CU48, 0), 0) -> 0 | CW48: 0 | CX48: 0 | CY48: 0 | CZ48: 0 | DA48: 0 | DB48: 0 | DC48: 0
A49: 40 | C49: 請選擇 | D49: =IF(OR(C49="", C49="Pls select"), 0, IF(C49=Pulldown!$F$2, 1, IF(C49=Pulldown!$F$3, 2, 0))) -> 0 | E49: 2025-05-01 | H49: Input Required | I49: =IFERROR(CHOOSE(MATCH($H49,{"1-valid","2-valid","Input Required","Date Before Transition"},0),1,2,3,4),0) -> 3 | J49: Input Required | K49: =IFERROR(CHOOSE(MATCH($J49,{"轉制日前開始受僱","轉制日後開始受僱"},0),1,2),0) -> 0 | L49: 月薪僱員 | M49: =IFERROR(CHOOSE(MATCH($L49,Pulldown!$C$1:$C$2,0),22500,15000),0) -> 22500 | N49: =IFERROR(CHOOSE(MATCH($L49,Pulldown!$C$1:$C$2,0),2/3,1),0) -> 0.6666666667 | O49: 0 | P49: 0 | R49: 0.6666666667 | AD49: 0 | AF49: 0.6666666667 | AG49: 2025-05-01 | AS49: 0 | AT49: 0 | AU49: 0 | AV49: 強積金計劃 | AW49: =IF(AV49="",0,IFERROR(CHOOSE(MATCH(AV49,Pulldown!$B$2:$B$3,0),1,2),0)) -> 1 | AX49: MC -> VC | AY49: =IF(AX49="",0,IFERROR(CHOOSE(MATCH(AX49,Pulldown!$G$1:$G$2,0),1,2),0)) -> 1 | AZ49: 0 | BA49: 0 | BB49: 0 | BC49: N/A | BD49: N/A | BE49: N/A | BF49: N/A | BG49: N/A | BH49: N/A | BI49: N/A | BJ49: N/A | BK49: N/A | BL49: N/A | BM49: N/A | BN49: N/A | BO49: N/A | BP49: N/A | BQ49: N/A | BR49: N/A | BS49: N/A | BT49: N/A | BU49: =IF(ISNA(INDIRECT("BT" & ROW())), "N/A", INDIRECT("BT" & ROW())) -> N/A | BV49: 沒有 | BW49: =IF(BV49="",0,IFERROR(CHOOSE(MATCH(BV49,Pulldown!$H$1:$H$2,0),1,2),0)) -> 2 | BX49: 011 | BY49: 0 | BZ49: 0 | CA49: 0 | CB49: 0 | CC49: 0 | CD49: 0 | CE49: 0 | CF49: 0 | CG49: N/A | CH49: N/A | CI49: Invalid case | CJ49: 0 | CK49: 0 | CL49: 0 | CM49: N/A | CN49: 0 | CO49: 不超過50萬元 | CP49: =IF(CO49=Pulldown!$A$1,1,IF(CO49=Pulldown!$A$2,2,0)) -> 1 | CQ49: 0 | CR49: =IFERROR( IF(NOT(OR(CP49=1,CP49=2)),0%, IF(ISERROR(MATCH(CQ49,Subsidy!$A$2:$A$26,0)),0%, IF(CP49=1,VLOOKUP(CQ49,Subsidy!$A$2:$G$26,6,FALSE), IF(CP49=2,VLOOKUP(CQ49,Subsidy!$A$2:$G$26,7,FALSE),0%)))), "Calculation error") -> 0 | CS49: =IFERROR( IF(NOT(OR(CP49=1,CP49=2)),0%, IF(ISERROR(MATCH(CQ49,Subsidy!$A$2:$A$26,0)),0%, IF(CP49=1,VLOOKUP(CQ49,Subsidy!$A$2:$D$26,2,FALSE), IF(CP49=2,VLOOKUP(CQ49,Subsidy!$A$2:$D$26,4,FALSE),0%)))), "Calculation error") -> 0 | CT49: 0 | CU49: =IFERROR( IF(NOT(OR(CP49=1,CP49=2)),0, IF(ISERROR(MATCH(CQ49,Subsidy!$A$2:$A$26,0)),0, IF(CP49=2,"N/A", IF(AND(CP49=1,CQ49<=9),VLOOKUP(CQ49,Subsidy!$A$2:$D$26,3,FALSE),0)))), "Calculation error") -> 0 | CV49: =IF(AND(CP49=1, CQ49<=9, NOT(ISERROR(MATCH(CQ49, Subsidy!$A$2:$A$26, 0)))), IFERROR(CL49-CU49, 0), 0) -> 0 | CW49: 0 | CX49: 0 | CY49: 0 | CZ49: 0 | DA49: 0 | DB49: 0 | DC49: 0
A50: 41 | C50: 請選擇 | D50: =IF(OR(C50="", C50="Pls select"), 0, IF(C50=Pulldown!$F$2, 1, IF(C50=Pulldown!$F$3, 2, 0))) -> 0 | E50: 2025-05-01 | H50: Input Required | I50: =IFERROR(CHOOSE(MATCH($H50,{"1-valid","2-valid","Input Required","Date Before Transition"},0),1,2,3,4),0) -> 3 | J50: Input Required | K50: =IFERROR(CHOOSE(MATCH($J50,{"轉制日前開始受僱","轉制日後開始受僱"},0),1,2),0) -> 0 | L50: 月薪僱員 | M50: =IFERROR(CHOOSE(MATCH($L50,Pulldown!$C$1:$C$2,0),22500,15000),0) -> 22500 | N50: =IFERROR(CHOOSE(MATCH($L50,Pulldown!$C$1:$C$2,0),2/3,1),0) -> 0.6666666667 | O50: 0 | P50: 0 | R50: 0.6666666667 | AD50: 0 | AF50: 0.6666666667 | AG50: 2025-05-01 | AS50: 0 | AT50: 0 | AU50: 0 | AV50: 強積金計劃 | AW50: =IF(AV50="",0,IFERROR(CHOOSE(MATCH(AV50,Pulldown!$B$2:$B$3,0),1,2),0)) -> 1 | AX50: MC -> VC | AY50: =IF(AX50="",0,IFERROR(CHOOSE(MATCH(AX50,Pulldown!$G$1:$G$2,0),1,2),0)) -> 1 | AZ50: 0 | BA50: 0 | BB50: 0 | BC50: N/A | BD50: N/A | BE50: N/A | BF50: N/A | BG50: N/A | BH50: N/A | BI50: N/A | BJ50: N/A | BK50: N/A | BL50: N/A | BM50: N/A | BN50: N/A | BO50: N/A | BP50: N/A | BQ50: N/A | BR50: N/A | BS50: N/A | BT50: N/A | BU50: =IF(ISNA(INDIRECT("BT" & ROW())), "N/A", INDIRECT("BT" & ROW())) -> N/A | BV50: 沒有 | BW50: =IF(BV50="",0,IFERROR(CHOOSE(MATCH(BV50,Pulldown!$H$1:$H$2,0),1,2),0)) -> 2 | BX50: 011 | BY50: 0 | BZ50: 0 | CA50: 0 | CB50: 0 | CC50: 0 | CD50: 0 | CE50: 0 | CF50: 0 | CG50: N/A | CH50: N/A | CI50: Invalid case | CJ50: 0 | CK50: 0 | CL50: 0 | CM50: N/A | CN50: 0 | CO50: 不超過50萬元 | CP50: =IF(CO50=Pulldown!$A$1,1,IF(CO50=Pulldown!$A$2,2,0)) -> 1 | CQ50: 0 | CR50: =IFERROR( IF(NOT(OR(CP50=1,CP50=2)),0%, IF(ISERROR(MATCH(CQ50,Subsidy!$A$2:$A$26,0)),0%, IF(CP50=1,VLOOKUP(CQ50,Subsidy!$A$2:$G$26,6,FALSE), IF(CP50=2,VLOOKUP(CQ50,Subsidy!$A$2:$G$26,7,FALSE),0%)))), "Calculation error") -> 0 | CS50: =IFERROR( IF(NOT(OR(CP50=1,CP50=2)),0%, IF(ISERROR(MATCH(CQ50,Subsidy!$A$2:$A$26,0)),0%, IF(CP50=1,VLOOKUP(CQ50,Subsidy!$A$2:$D$26,2,FALSE), IF(CP50=2,VLOOKUP(CQ50,Subsidy!$A$2:$D$26,4,FALSE),0%)))), "Calculation error") -> 0 | CT50: 0 | CU50: =IFERROR( IF(NOT(OR(CP50=1,CP50=2)),0, IF(ISERROR(MATCH(CQ50,Subsidy!$A$2:$A$26,0)),0, IF(CP50=2,"N/A", IF(AND(CP50=1,CQ50<=9),VLOOKUP(CQ50,Subsidy!$A$2:$D$26,3,FALSE),0)))), "Calculation error") -> 0 | CV50: =IF(AND(CP50=1, CQ50<=9, NOT(ISERROR(MATCH(CQ50, Subsidy!$A$2:$A$26, 0)))), IFERROR(CL50-CU50, 0), 0) -> 0 | CW50: 0 | CX50: 0 | CY50: 0 | CZ50: 0 | DA50: 0 | DB50: 0 | DC50: 0
A51: 42 | C51: 請選擇 | D51: =IF(OR(C51="", C51="Pls select"), 0, IF(C51=Pulldown!$F$2, 1, IF(C51=Pulldown!$F$3, 2, 0))) -> 0 | E51: 2025-05-01 | H51: Input Required | I51: =IFERROR(CHOOSE(MATCH($H51,{"1-valid","2-valid","Input Required","Date Before Transition"},0),1,2,3,4),0) -> 3 | J51: Input Required | K51: =IFERROR(CHOOSE(MATCH($J51,{"轉制日前開始受僱","轉制日後開始受僱"},0),1,2),0) -> 0 | L51: 月薪僱員 | M51: =IFERROR(CHOOSE(MATCH($L51,Pulldown!$C$1:$C$2,0),22500,15000),0) -> 22500 | N51: =IFERROR(CHOOSE(MATCH($L51,Pulldown!$C$1:$C$2,0),2/3,1),0) -> 0.6666666667 | O51: 0 | P51: 0 | R51: 0.6666666667 | AD51: 0 | AF51: 0.6666666667 | AG51: 2025-05-01 | AS51: 0 | AT51: 0 | AU51: 0 | AV51: 強積金計劃 | AW51: =IF(AV51="",0,IFERROR(CHOOSE(MATCH(AV51,Pulldown!$B$2:$B$3,0),1,2),0)) -> 1 | AX51: MC -> VC | AY51: =IF(AX51="",0,IFERROR(CHOOSE(MATCH(AX51,Pulldown!$G$1:$G$2,0),1,2),0)) -> 1 | AZ51: 0 | BA51: 0 | BB51: 0 | BC51: N/A | BD51: N/A | BE51: N/A | BF51: N/A | BG51: N/A | BH51: N/A | BI51: N/A | BJ51: N/A | BK51: N/A | BL51: N/A | BM51: N/A | BN51: N/A | BO51: N/A | BP51: N/A | BQ51: N/A | BR51: N/A | BS51: N/A | BT51: N/A | BU51: =IF(ISNA(INDIRECT("BT" & ROW())), "N/A", INDIRECT("BT" & ROW())) -> N/A | BV51: 沒有 | BW51: =IF(BV51="",0,IFERROR(CHOOSE(MATCH(BV51,Pulldown!$H$1:$H$2,0),1,2),0)) -> 2 | BX51: 011 | BY51: 0 | BZ51: 0 | CA51: 0 | CB51: 0 | CC51: 0 | CD51: 0 | CE51: 0 | CF51: 0 | CG51: N/A | CH51: N/A | CI51: Invalid case | CJ51: 0 | CK51: 0 | CL51: 0 | CM51: N/A | CN51: 0 | CO51: 不超過50萬元 | CP51: =IF(CO51=Pulldown!$A$1,1,IF(CO51=Pulldown!$A$2,2,0)) -> 1 | CQ51: 0 | CR51: =IFERROR( IF(NOT(OR(CP51=1,CP51=2)),0%, IF(ISERROR(MATCH(CQ51,Subsidy!$A$2:$A$26,0)),0%, IF(CP51=1,VLOOKUP(CQ51,Subsidy!$A$2:$G$26,6,FALSE), IF(CP51=2,VLOOKUP(CQ51,Subsidy!$A$2:$G$26,7,FALSE),0%)))), "Calculation error") -> 0 | CS51: =IFERROR( IF(NOT(OR(CP51=1,CP51=2)),0%, IF(ISERROR(MATCH(CQ51,Subsidy!$A$2:$A$26,0)),0%, IF(CP51=1,VLOOKUP(CQ51,Subsidy!$A$2:$D$26,2,FALSE), IF(CP51=2,VLOOKUP(CQ51,Subsidy!$A$2:$D$26,4,FALSE),0%)))), "Calculation error") -> 0 | CT51: 0 | CU51: =IFERROR( IF(NOT(OR(CP51=1,CP51=2)),0, IF(ISERROR(MATCH(CQ51,Subsidy!$A$2:$A$26,0)),0, IF(CP51=2,"N/A", IF(AND(CP51=1,CQ51<=9),VLOOKUP(CQ51,Subsidy!$A$2:$D$26,3,FALSE),0)))), "Calculation error") -> 0 | CV51: =IF(AND(CP51=1, CQ51<=9, NOT(ISERROR(MATCH(CQ51, Subsidy!$A$2:$A$26, 0)))), IFERROR(CL51-CU51, 0), 0) -> 0 | CW51: 0 | CX51: 0 | CY51: 0 | CZ51: 0 | DA51: 0 | DB51: 0 | DC51: 0
A52: 43 | C52: 請選擇 | D52: =IF(OR(C52="", C52="Pls select"), 0, IF(C52=Pulldown!$F$2, 1, IF(C52=Pulldown!$F$3, 2, 0))) -> 0 | E52: 2025-05-01 | H52: Input Required | I52: =IFERROR(CHOOSE(MATCH($H52,{"1-valid","2-valid","Input Required","Date Before Transition"},0),1,2,3,4),0) -> 3 | J52: Input Required | K52: =IFERROR(CHOOSE(MATCH($J52,{"轉制日前開始受僱","轉制日後開始受僱"},0),1,2),0) -> 0 | L52: 月薪僱員 | M52: =IFERROR(CHOOSE(MATCH($L52,Pulldown!$C$1:$C$2,0),22500,15000),0) -> 22500 | N52: =IFERROR(CHOOSE(MATCH($L52,Pulldown!$C$1:$C$2,0),2/3,1),0) -> 0.6666666667 | O52: 0 | P52: 0 | R52: 0.6666666667 | AD52: 0 | AF52: 0.6666666667 | AG52: 2025-05-01 | AS52: 0 | AT52: 0 | AU52: 0 | AV52: 強積金計劃 | AW52: =IF(AV52="",0,IFERROR(CHOOSE(MATCH(AV52,Pulldown!$B$2:$B$3,0),1,2),0)) -> 1 | AX52: MC -> VC | AY52: =IF(AX52="",0,IFERROR(CHOOSE(MATCH(AX52,Pulldown!$G$1:$G$2,0),1,2),0)) -> 1 | AZ52: 0 | BA52: 0 | BB52: 0 | BC52: N/A | BD52: N/A | BE52: N/A | BF52: N/A | BG52: N/A | BH52: N/A | BI52: N/A | BJ52: N/A | BK52: N/A | BL52: N/A | BM52: N/A | BN52: N/A | BO52: N/A | BP52: N/A | BQ52: N/A | BR52: N/A | BS52: N/A | BT52: N/A | BU52: =IF(ISNA(INDIRECT("BT" & ROW())), "N/A", INDIRECT("BT" & ROW())) -> N/A | BV52: 沒有 | BW52: =IF(BV52="",0,IFERROR(CHOOSE(MATCH(BV52,Pulldown!$H$1:$H$2,0),1,2),0)) -> 2 | BX52: 011 | BY52: 0 | BZ52: 0 | CA52: 0 | CB52: 0 | CC52: 0 | CD52: 0 | CE52: 0 | CF52: 0 | CG52: N/A | CH52: N/A | CI52: Invalid case | CJ52: 0 | CK52: 0 | CL52: 0 | CM52: N/A | CN52: 0 | CO52: 不超過50萬元 | CP52: =IF(CO52=Pulldown!$A$1,1,IF(CO52=Pulldown!$A$2,2,0)) -> 1 | CQ52: 0 | CR52: =IFERROR( IF(NOT(OR(CP52=1,CP52=2)),0%, IF(ISERROR(MATCH(CQ52,Subsidy!$A$2:$A$26,0)),0%, IF(CP52=1,VLOOKUP(CQ52,Subsidy!$A$2:$G$26,6,FALSE), IF(CP52=2,VLOOKUP(CQ52,Subsidy!$A$2:$G$26,7,FALSE),0%)))), "Calculation error") -> 0 | CS52: =IFERROR( IF(NOT(OR(CP52=1,CP52=2)),0%, IF(ISERROR(MATCH(CQ52,Subsidy!$A$2:$A$26,0)),0%, IF(CP52=1,VLOOKUP(CQ52,Subsidy!$A$2:$D$26,2,FALSE), IF(CP52=2,VLOOKUP(CQ52,Subsidy!$A$2:$D$26,4,FALSE),0%)))), "Calculation error") -> 0 | CT52: 0 | CU52: =IFERROR( IF(NOT(OR(CP52=1,CP52=2)),0, IF(ISERROR(MATCH(CQ52,Subsidy!$A$2:$A$26,0)),0, IF(CP52=2,"N/A", IF(AND(CP52=1,CQ52<=9),VLOOKUP(CQ52,Subsidy!$A$2:$D$26,3,FALSE),0)))), "Calculation error") -> 0 | CV52: =IF(AND(CP52=1, CQ52<=9, NOT(ISERROR(MATCH(CQ52, Subsidy!$A$2:$A$26, 0)))), IFERROR(CL52-CU52, 0), 0) -> 0 | CW52: 0 | CX52: 0 | CY52: 0 | CZ52: 0 | DA52: 0 | DB52: 0 | DC52: 0
A53: 44 | C53: 請選擇 | D53: =IF(OR(C53="", C53="Pls select"), 0, IF(C53=Pulldown!$F$2, 1, IF(C53=Pulldown!$F$3, 2, 0))) -> 0 | E53: 2025-05-01 | H53: Input Required | I53: =IFERROR(CHOOSE(MATCH($H53,{"1-valid","2-valid","Input Required","Date Before Transition"},0),1,2,3,4),0) -> 3 | J53: Input Required | K53: =IFERROR(CHOOSE(MATCH($J53,{"轉制日前開始受僱","轉制日後開始受僱"},0),1,2),0) -> 0 | L53: 月薪僱員 | M53: =IFERROR(CHOOSE(MATCH($L53,Pulldown!$C$1:$C$2,0),22500,15000),0) -> 22500 | N53: =IFERROR(CHOOSE(MATCH($L53,Pulldown!$C$1:$C$2,0),2/3,1),0) -> 0.6666666667 | O53: 0 | P53: 0 | R53: 0.6666666667 | AD53: 0 | AF53: 0.6666666667 | AG53: 2025-05-01 | AS53: 0 | AT53: 0 | AU53: 0 | AV53: 強積金計劃 | AW53: =IF(AV53="",0,IFERROR(CHOOSE(MATCH(AV53,Pulldown!$B$2:$B$3,0),1,2),0)) -> 1 | AX53: MC -> VC | AY53: =IF(AX53="",0,IFERROR(CHOOSE(MATCH(AX53,Pulldown!$G$1:$G$2,0),1,2),0)) -> 1 | AZ53: 0 | BA53: 0 | BB53: 0 | BC53: N/A | BD53: N/A | BE53: N/A | BF53: N/A | BG53: N/A | BH53: N/A | BI53: N/A | BJ53: N/A | BK53: N/A | BL53: N/A | BM53: N/A | BN53: N/A | BO53: N/A | BP53: N/A | BQ53: N/A | BR53: N/A | BS53: N/A | BT53: N/A | BU53: =IF(ISNA(INDIRECT("BT" & ROW())), "N/A", INDIRECT("BT" & ROW())) -> N/A | BV53: 沒有 | BW53: =IF(BV53="",0,IFERROR(CHOOSE(MATCH(BV53,Pulldown!$H$1:$H$2,0),1,2),0)) -> 2 | BX53: 011 | BY53: 0 | BZ53: 0 | CA53: 0 | CB53: 0 | CC53: 0 | CD53: 0 | CE53: 0 | CF53: 0 | CG53: N/A | CH53: N/A | CI53: Invalid case | CJ53: 0 | CK53: 0 | CL53: 0 | CM53: N/A | CN53: 0 | CO53: 不超過50萬元 | CP53: =IF(CO53=Pulldown!$A$1,1,IF(CO53=Pulldown!$A$2,2,0)) -> 1 | CQ53: 0 | CR53: =IFERROR( IF(NOT(OR(CP53=1,CP53=2)),0%, IF(ISERROR(MATCH(CQ53,Subsidy!$A$2:$A$26,0)),0%, IF(CP53=1,VLOOKUP(CQ53,Subsidy!$A$2:$G$26,6,FALSE), IF(CP53=2,VLOOKUP(CQ53,Subsidy!$A$2:$G$26,7,FALSE),0%)))), "Calculation error") -> 0 | CS53: =IFERROR( IF(NOT(OR(CP53=1,CP53=2)),0%, IF(ISERROR(MATCH(CQ53,Subsidy!$A$2:$A$26,0)),0%, IF(CP53=1,VLOOKUP(CQ53,Subsidy!$A$2:$D$26,2,FALSE), IF(CP53=2,VLOOKUP(CQ53,Subsidy!$A$2:$D$26,4,FALSE),0%)))), "Calculation error") -> 0 | CT53: 0 | CU53: =IFERROR( IF(NOT(OR(CP53=1,CP53=2)),0, IF(ISERROR(MATCH(CQ53,Subsidy!$A$2:$A$26,0)),0, IF(CP53=2,"N/A", IF(AND(CP53=1,CQ53<=9),VLOOKUP(CQ53,Subsidy!$A$2:$D$26,3,FALSE),0)))), "Calculation error") -> 0 | CV53: =IF(AND(CP53=1, CQ53<=9, NOT(ISERROR(MATCH(CQ53, Subsidy!$A$2:$A$26, 0)))), IFERROR(CL53-CU53, 0), 0) -> 0 | CW53: 0 | CX53: 0 | CY53: 0 | CZ53: 0 | DA53: 0 | DB53: 0 | DC53: 0
A54: 45 | C54: 請選擇 | D54: =IF(OR(C54="", C54="Pls select"), 0, IF(C54=Pulldown!$F$2, 1, IF(C54=Pulldown!$F$3, 2, 0))) -> 0 | E54: 2025-05-01 | H54: Input Required | I54: =IFERROR(CHOOSE(MATCH($H54,{"1-valid","2-valid","Input Required","Date Before Transition"},0),1,2,3,4),0) -> 3 | J54: Input Required | K54: =IFERROR(CHOOSE(MATCH($J54,{"轉制日前開始受僱","轉制日後開始受僱"},0),1,2),0) -> 0 | L54: 月薪僱員 | M54: =IFERROR(CHOOSE(MATCH($L54,Pulldown!$C$1:$C$2,0),22500,15000),0) -> 22500 | N54: =IFERROR(CHOOSE(MATCH($L54,Pulldown!$C$1:$C$2,0),2/3,1),0) -> 0.6666666667 | O54: 0 | P54: 0 | R54: 0.6666666667 | AD54: 0 | AF54: 0.6666666667 | AG54: 2025-05-01 | AS54: 0 | AT54: 0 | AU54: 0 | AV54: 強積金計劃 | AW54: =IF(AV54="",0,IFERROR(CHOOSE(MATCH(AV54,Pulldown!$B$2:$B$3,0),1,2),0)) -> 1 | AX54: MC -> VC | AY54: =IF(AX54="",0,IFERROR(CHOOSE(MATCH(AX54,Pulldown!$G$1:$G$2,0),1,2),0)) -> 1 | AZ54: 0 | BA54: 0 | BB54: 0 | BC54: N/A | BD54: N/A | BE54: N/A | BF54: N/A | BG54: N/A | BH54: N/A | BI54: N/A | BJ54: N/A | BK54: N/A | BL54: N/A | BM54: N/A | BN54: N/A | BO54: N/A | BP54: N/A | BQ54: N/A | BR54: N/A | BS54: N/A | BT54: N/A | BU54: =IF(ISNA(INDIRECT("BT" & ROW())), "N/A", INDIRECT("BT" & ROW())) -> N/A | BV54: 沒有 | BW54: =IF(BV54="",0,IFERROR(CHOOSE(MATCH(BV54,Pulldown!$H$1:$H$2,0),1,2),0)) -> 2 | BX54: 011 | BY54: 0 | BZ54: 0 | CA54: 0 | CB54: 0 | CC54: 0 | CD54: 0 | CE54: 0 | CF54: 0 | CG54: N/A | CH54: N/A | CI54: Invalid case | CJ54: 0 | CK54: 0 | CL54: 0 | CM54: N/A | CN54: 0 | CO54: 不超過50萬元 | CP54: =IF(CO54=Pulldown!$A$1,1,IF(CO54=Pulldown!$A$2,2,0)) -> 1 | CQ54: 0 | CR54: =IFERROR( IF(NOT(OR(CP54=1,CP54=2)),0%, IF(ISERROR(MATCH(CQ54,Subsidy!$A$2:$A$26,0)),0%, IF(CP54=1,VLOOKUP(CQ54,Subsidy!$A$2:$G$26,6,FALSE), IF(CP54=2,VLOOKUP(CQ54,Subsidy!$A$2:$G$26,7,FALSE),0%)))), "Calculation error") -> 0 | CS54: =IFERROR( IF(NOT(OR(CP54=1,CP54=2)),0%, IF(ISERROR(MATCH(CQ54,Subsidy!$A$2:$A$26,0)),0%, IF(CP54=1,VLOOKUP(CQ54,Subsidy!$A$2:$D$26,2,FALSE), IF(CP54=2,VLOOKUP(CQ54,Subsidy!$A$2:$D$26,4,FALSE),0%)))), "Calculation error") -> 0 | CT54: 0 | CU54: =IFERROR( IF(NOT(OR(CP54=1,CP54=2)),0, IF(ISERROR(MATCH(CQ54,Subsidy!$A$2:$A$26,0)),0, IF(CP54=2,"N/A", IF(AND(CP54=1,CQ54<=9),VLOOKUP(CQ54,Subsidy!$A$2:$D$26,3,FALSE),0)))), "Calculation error") -> 0 | CV54: =IF(AND(CP54=1, CQ54<=9, NOT(ISERROR(MATCH(CQ54, Subsidy!$A$2:$A$26, 0)))), IFERROR(CL54-CU54, 0), 0) -> 0 | CW54: 0 | CX54: 0 | CY54: 0 | CZ54: 0 | DA54: 0 | DB54: 0 | DC54: 0
A55: 46 | C55: 請選擇 | D55: =IF(OR(C55="", C55="Pls select"), 0, IF(C55=Pulldown!$F$2, 1, IF(C55=Pulldown!$F$3, 2, 0))) -> 0 | E55: 2025-05-01 | H55: Input Required | I55: =IFERROR(CHOOSE(MATCH($H55,{"1-valid","2-valid","Input Required","Date Before Transition"},0),1,2,3,4),0) -> 3 | J55: Input Required | K55: =IFERROR(CHOOSE(MATCH($J55,{"轉制日前開始受僱","轉制日後開始受僱"},0),1,2),0) -> 0 | L55: 月薪僱員 | M55: =IFERROR(CHOOSE(MATCH($L55,Pulldown!$C$1:$C$2,0),22500,15000),0) -> 22500 | N55: =IFERROR(CHOOSE(MATCH($L55,Pulldown!$C$1:$C$2,0),2/3,1),0) -> 0.6666666667 | O55: 0 | P55: 0 | R55: 0.6666666667 | AD55: 0 | AF55: 0.6666666667 | AG55: 2025-05-01 | AS55: 0 | AT55: 0 | AU55: 0 | AV55: 強積金計劃 | AW55: =IF(AV55="",0,IFERROR(CHOOSE(MATCH(AV55,Pulldown!$B$2:$B$3,0),1,2),0)) -> 1 | AX55: MC -> VC | AY55: =IF(AX55="",0,IFERROR(CHOOSE(MATCH(AX55,Pulldown!$G$1:$G$2,0),1,2),0)) -> 1 | AZ55: 0 | BA55: 0 | BB55: 0 | BC55: N/A | BD55: N/A | BE55: N/A | BF55: N/A | BG55: N/A | BH55: N/A | BI55: N/A | BJ55: N/A | BK55: N/A | BL55: N/A | BM55: N/A | BN55: N/A | BO55: N/A | BP55: N/A | BQ55: N/A | BR55: N/A | BS55: N/A | BT55: N/A | BU55: =IF(ISNA(INDIRECT("BT" & ROW())), "N/A", INDIRECT("BT" & ROW())) -> N/A | BV55: 沒有 | BW55: =IF(BV55="",0,IFERROR(CHOOSE(MATCH(BV55,Pulldown!$H$1:$H$2,0),1,2),0)) -> 2 | BX55: 011 | BY55: 0 | BZ55: 0 | CA55: 0 | CB55: 0 | CC55: 0 | CD55: 0 | CE55: 0 | CF55: 0 | CG55: N/A | CH55: N/A | CI55: Invalid case | CJ55: 0 | CK55: 0 | CL55: 0 | CM55: N/A | CN55: 0 | CO55: 不超過50萬元 | CP55: =IF(CO55=Pulldown!$A$1,1,IF(CO55=Pulldown!$A$2,2,0)) -> 1 | CQ55: 0 | CR55: =IFERROR( IF(NOT(OR(CP55=1,CP55=2)),0%, IF(ISERROR(MATCH(CQ55,Subsidy!$A$2:$A$26,0)),0%, IF(CP55=1,VLOOKUP(CQ55,Subsidy!$A$2:$G$26,6,FALSE), IF(CP55=2,VLOOKUP(CQ55,Subsidy!$A$2:$G$26,7,FALSE),0%)))), "Calculation error") -> 0 | CS55: =IFERROR( IF(NOT(OR(CP55=1,CP55=2)),0%, IF(ISERROR(MATCH(CQ55,Subsidy!$A$2:$A$26,0)),0%, IF(CP55=1,VLOOKUP(CQ55,Subsidy!$A$2:$D$26,2,FALSE), IF(CP55=2,VLOOKUP(CQ55,Subsidy!$A$2:$D$26,4,FALSE),0%)))), "Calculation error") -> 0 | CT55: 0 | CU55: =IFERROR( IF(NOT(OR(CP55=1,CP55=2)),0, IF(ISERROR(MATCH(CQ55,Subsidy!$A$2:$A$26,0)),0, IF(CP55=2,"N/A", IF(AND(CP55=1,CQ55<=9),VLOOKUP(CQ55,Subsidy!$A$2:$D$26,3,FALSE),0)))), "Calculation error") -> 0 | CV55: =IF(AND(CP55=1, CQ55<=9, NOT(ISERROR(MATCH(CQ55, Subsidy!$A$2:$A$26, 0)))), IFERROR(CL55-CU55, 0), 0) -> 0 | CW55: 0 | CX55: 0 | CY55: 0 | CZ55: 0 | DA55: 0 | DB55: 0 | DC55: 0
A56: 47 | C56: 請選擇 | D56: =IF(OR(C56="", C56="Pls select"), 0, IF(C56=Pulldown!$F$2, 1, IF(C56=Pulldown!$F$3, 2, 0))) -> 0 | E56: 2025-05-01 | H56: Input Required | I56: =IFERROR(CHOOSE(MATCH($H56,{"1-valid","2-valid","Input Required","Date Before Transition"},0),1,2,3,4),0) -> 3 | J56: Input Required | K56: =IFERROR(CHOOSE(MATCH($J56,{"轉制日前開始受僱","轉制日後開始受僱"},0),1,2),0) -> 0 | L56: 月薪僱員 | M56: =IFERROR(CHOOSE(MATCH($L56,Pulldown!$C$1:$C$2,0),22500,15000),0) -> 22500 | N56: =IFERROR(CHOOSE(MATCH($L56,Pulldown!$C$1:$C$2,0),2/3,1),0) -> 0.6666666667 | O56: 0 | P56: 0 | R56: 0.6666666667 | AD56: 0 | AF56: 0.6666666667 | AG56: 2025-05-01 | AS56: 0 | AT56: 0 | AU56: 0 | AV56: 強積金計劃 | AW56: =IF(AV56="",0,IFERROR(CHOOSE(MATCH(AV56,Pulldown!$B$2:$B$3,0),1,2),0)) -> 1 | AX56: MC -> VC | AY56: =IF(AX56="",0,IFERROR(CHOOSE(MATCH(AX56,Pulldown!$G$1:$G$2,0),1,2),0)) -> 1 | AZ56: 0 | BA56: 0 | BB56: 0 | BC56: N/A | BD56: N/A | BE56: N/A | BF56: N/A | BG56: N/A | BH56: N/A | BI56: N/A | BJ56: N/A | BK56: N/A | BL56: N/A | BM56: N/A | BN56: N/A | BO56: N/A | BP56: N/A | BQ56: N/A | BR56: N/A | BS56: N/A | BT56: N/A | BU56: =IF(ISNA(INDIRECT("BT" & ROW())), "N/A", INDIRECT("BT" & ROW())) -> N/A | BV56: 沒有 | BW56: =IF(BV56="",0,IFERROR(CHOOSE(MATCH(BV56,Pulldown!$H$1:$H$2,0),1,2),0)) -> 2 | BX56: 011 | BY56: 0 | BZ56: 0 | CA56: 0 | CB56: 0 | CC56: 0 | CD56: 0 | CE56: 0 | CF56: 0 | CG56: N/A | CH56: N/A | CI56: Invalid case | CJ56: 0 | CK56: 0 | CL56: 0 | CM56: N/A | CN56: 0 | CO56: 不超過50萬元 | CP56: =IF(CO56=Pulldown!$A$1,1,IF(CO56=Pulldown!$A$2,2,0)) -> 1 | CQ56: 0 | CR56: =IFERROR( IF(NOT(OR(CP56=1,CP56=2)),0%, IF(ISERROR(MATCH(CQ56,Subsidy!$A$2:$A$26,0)),0%, IF(CP56=1,VLOOKUP(CQ56,Subsidy!$A$2:$G$26,6,FALSE), IF(CP56=2,VLOOKUP(CQ56,Subsidy!$A$2:$G$26,7,FALSE),0%)))), "Calculation error") -> 0 | CS56: =IFERROR( IF(NOT(OR(CP56=1,CP56=2)),0%, IF(ISERROR(MATCH(CQ56,Subsidy!$A$2:$A$26,0)),0%, IF(CP56=1,VLOOKUP(CQ56,Subsidy!$A$2:$D$26,2,FALSE), IF(CP56=2,VLOOKUP(CQ56,Subsidy!$A$2:$D$26,4,FALSE),0%)))), "Calculation error") -> 0 | CT56: 0 | CU56: =IFERROR( IF(NOT(OR(CP56=1,CP56=2)),0, IF(ISERROR(MATCH(CQ56,Subsidy!$A$2:$A$26,0)),0, IF(CP56=2,"N/A", IF(AND(CP56=1,CQ56<=9),VLOOKUP(CQ56,Subsidy!$A$2:$D$26,3,FALSE),0)))), "Calculation error") -> 0 | CV56: =IF(AND(CP56=1, CQ56<=9, NOT(ISERROR(MATCH(CQ56, Subsidy!$A$2:$A$26, 0)))), IFERROR(CL56-CU56, 0), 0) -> 0 | CW56: 0 | CX56: 0 | CY56: 0 | CZ56: 0 | DA56: 0 | DB56: 0 | DC56: 0
A57: 48 | C57: 請選擇 | D57: =IF(OR(C57="", C57="Pls select"), 0, IF(C57=Pulldown!$F$2, 1, IF(C57=Pulldown!$F$3, 2, 0))) -> 0 | E57: 2025-05-01 | H57: Input Required | I57: =IFERROR(CHOOSE(MATCH($H57,{"1-valid","2-valid","Input Required","Date Before Transition"},0),1,2,3,4),0) -> 3 | J57: Input Required | K57: =IFERROR(CHOOSE(MATCH($J57,{"轉制日前開始受僱","轉制日後開始受僱"},0),1,2),0) -> 0 | L57: 月薪僱員 | M57: =IFERROR(CHOOSE(MATCH($L57,Pulldown!$C$1:$C$2,0),22500,15000),0) -> 22500 | N57: =IFERROR(CHOOSE(MATCH($L57,Pulldown!$C$1:$C$2,0),2/3,1),0) -> 0.6666666667 | O57: 0 | P57: 0 | R57: 0.6666666667 | AD57: 0 | AF57: 0.6666666667 | AG57: 2025-05-01 | AS57: 0 | AT57: 0 | AU57: 0 | AV57: 強積金計劃 | AW57: =IF(AV57="",0,IFERROR(CHOOSE(MATCH(AV57,Pulldown!$B$2:$B$3,0),1,2),0)) -> 1 | AX57: MC -> VC | AY57: =IF(AX57="",0,IFERROR(CHOOSE(MATCH(AX57,Pulldown!$G$1:$G$2,0),1,2),0)) -> 1 | AZ57: 0 | BA57: 0 | BB57: 0 | BC57: N/A | BD57: N/A | BE57: N/A | BF57: N/A | BG57: N/A | BH57: N/A | BI57: N/A | BJ57: N/A | BK57: N/A | BL57: N/A | BM57: N/A | BN57: N/A | BO57: N/A | BP57: N/A | BQ57: N/A | BR57: N/A | BS57: N/A | BT57: N/A | BU57: =IF(ISNA(INDIRECT("BT" & ROW())), "N/A", INDIRECT("BT" & ROW())) -> N/A | BV57: 沒有 | BW57: =IF(BV57="",0,IFERROR(CHOOSE(MATCH(BV57,Pulldown!$H$1:$H$2,0),1,2),0)) -> 2 | BX57: 011 | BY57: 0 | BZ57: 0 | CA57: 0 | CB57: 0 | CC57: 0 | CD57: 0 | CE57: 0 | CF57: 0 | CG57: N/A | CH57: N/A | CI57: Invalid case | CJ57: 0 | CK57: 0 | CL57: 0 | CM57: N/A | CN57: 0 | CO57: 不超過50萬元 | CP57: =IF(CO57=Pulldown!$A$1,1,IF(CO57=Pulldown!$A$2,2,0)) -> 1 | CQ57: 0 | CR57: =IFERROR( IF(NOT(OR(CP57=1,CP57=2)),0%, IF(ISERROR(MATCH(CQ57,Subsidy!$A$2:$A$26,0)),0%, IF(CP57=1,VLOOKUP(CQ57,Subsidy!$A$2:$G$26,6,FALSE), IF(CP57=2,VLOOKUP(CQ57,Subsidy!$A$2:$G$26,7,FALSE),0%)))), "Calculation error") -> 0 | CS57: =IFERROR( IF(NOT(OR(CP57=1,CP57=2)),0%, IF(ISERROR(MATCH(CQ57,Subsidy!$A$2:$A$26,0)),0%, IF(CP57=1,VLOOKUP(CQ57,Subsidy!$A$2:$D$26,2,FALSE), IF(CP57=2,VLOOKUP(CQ57,Subsidy!$A$2:$D$26,4,FALSE),0%)))), "Calculation error") -> 0 | CT57: 0 | CU57: =IFERROR( IF(NOT(OR(CP57=1,CP57=2)),0, IF(ISERROR(MATCH(CQ57,Subsidy!$A$2:$A$26,0)),0, IF(CP57=2,"N/A", IF(AND(CP57=1,CQ57<=9),VLOOKUP(CQ57,Subsidy!$A$2:$D$26,3,FALSE),0)))), "Calculation error") -> 0 | CV57: =IF(AND(CP57=1, CQ57<=9, NOT(ISERROR(MATCH(CQ57, Subsidy!$A$2:$A$26, 0)))), IFERROR(CL57-CU57, 0), 0) -> 0 | CW57: 0 | CX57: 0 | CY57: 0 | CZ57: 0 | DA57: 0 | DB57: 0 | DC57: 0
A58: 49 | C58: 請選擇 | D58: =IF(OR(C58="", C58="Pls select"), 0, IF(C58=Pulldown!$F$2, 1, IF(C58=Pulldown!$F$3, 2, 0))) -> 0 | E58: 2025-05-01 | H58: Input Required | I58: =IFERROR(CHOOSE(MATCH($H58,{"1-valid","2-valid","Input Required","Date Before Transition"},0),1,2,3,4),0) -> 3 | J58: Input Required | K58: =IFERROR(CHOOSE(MATCH($J58,{"轉制日前開始受僱","轉制日後開始受僱"},0),1,2),0) -> 0 | L58: 月薪僱員 | M58: =IFERROR(CHOOSE(MATCH($L58,Pulldown!$C$1:$C$2,0),22500,15000),0) -> 22500 | N58: =IFERROR(CHOOSE(MATCH($L58,Pulldown!$C$1:$C$2,0),2/3,1),0) -> 0.6666666667 | O58: 0 | P58: 0 | R58: 0.6666666667 | AD58: 0 | AF58: 0.6666666667 | AG58: 2025-05-01 | AS58: 0 | AT58: 0 | AU58: 0 | AV58: 強積金計劃 | AW58: =IF(AV58="",0,IFERROR(CHOOSE(MATCH(AV58,Pulldown!$B$2:$B$3,0),1,2),0)) -> 1 | AX58: MC -> VC | AY58: =IF(AX58="",0,IFERROR(CHOOSE(MATCH(AX58,Pulldown!$G$1:$G$2,0),1,2),0)) -> 1 | AZ58: 0 | BA58: 0 | BB58: 0 | BC58: N/A | BD58: N/A | BE58: N/A | BF58: N/A | BG58: N/A | BH58: N/A | BI58: N/A | BJ58: N/A | BK58: N/A | BL58: N/A | BM58: N/A | BN58: N/A | BO58: N/A | BP58: N/A | BQ58: N/A | BR58: N/A | BS58: N/A | BT58: N/A | BU58: =IF(ISNA(INDIRECT("BT" & ROW())), "N/A", INDIRECT("BT" & ROW())) -> N/A | BV58: 沒有 | BW58: =IF(BV58="",0,IFERROR(CHOOSE(MATCH(BV58,Pulldown!$H$1:$H$2,0),1,2),0)) -> 2 | BX58: 011 | BY58: 0 | BZ58: 0 | CA58: 0 | CB58: 0 | CC58: 0 | CD58: 0 | CE58: 0 | CF58: 0 | CG58: N/A | CH58: N/A | CI58: Invalid case | CJ58: 0 | CK58: 0 | CL58: 0 | CM58: N/A | CN58: 0 | CO58: 不超過50萬元 | CP58: =IF(CO58=Pulldown!$A$1,1,IF(CO58=Pulldown!$A$2,2,0)) -> 1 | CQ58: 0 | CR58: =IFERROR( IF(NOT(OR(CP58=1,CP58=2)),0%, IF(ISERROR(MATCH(CQ58,Subsidy!$A$2:$A$26,0)),0%, IF(CP58=1,VLOOKUP(CQ58,Subsidy!$A$2:$G$26,6,FALSE), IF(CP58=2,VLOOKUP(CQ58,Subsidy!$A$2:$G$26,7,FALSE),0%)))), "Calculation error") -> 0 | CS58: =IFERROR( IF(NOT(OR(CP58=1,CP58=2)),0%, IF(ISERROR(MATCH(CQ58,Subsidy!$A$2:$A$26,0)),0%, IF(CP58=1,VLOOKUP(CQ58,Subsidy!$A$2:$D$26,2,FALSE), IF(CP58=2,VLOOKUP(CQ58,Subsidy!$A$2:$D$26,4,FALSE),0%)))), "Calculation error") -> 0 | CT58: 0 | CU58: =IFERROR( IF(NOT(OR(CP58=1,CP58=2)),0, IF(ISERROR(MATCH(CQ58,Subsidy!$A$2:$A$26,0)),0, IF(CP58=2,"N/A", IF(AND(CP58=1,CQ58<=9),VLOOKUP(CQ58,Subsidy!$A$2:$D$26,3,FALSE),0)))), "Calculation error") -> 0 | CV58: =IF(AND(CP58=1, CQ58<=9, NOT(ISERROR(MATCH(CQ58, Subsidy!$A$2:$A$26, 0)))), IFERROR(CL58-CU58, 0), 0) -> 0 | CW58: 0 | CX58: 0 | CY58: 0 | CZ58: 0 | DA58: 0 | DB58: 0 | DC58: 0
A59: 50 | C59: 請選擇 | D59: =IF(OR(C59="", C59="Pls select"), 0, IF(C59=Pulldown!$F$2, 1, IF(C59=Pulldown!$F$3, 2, 0))) -> 0 | E59: 2025-05-01 | H59: Input Required | I59: =IFERROR(CHOOSE(MATCH($H59,{"1-valid","2-valid","Input Required","Date Before Transition"},0),1,2,3,4),0) -> 3 | J59: Input Required | K59: =IFERROR(CHOOSE(MATCH($J59,{"轉制日前開始受僱","轉制日後開始受僱"},0),1,2),0) -> 0 | L59: 月薪僱員 | M59: =IFERROR(CHOOSE(MATCH($L59,Pulldown!$C$1:$C$2,0),22500,15000),0) -> 22500 | N59: =IFERROR(CHOOSE(MATCH($L59,Pulldown!$C$1:$C$2,0),2/3,1),0) -> 0.6666666667 | O59: 0 | P59: 0 | R59: 0.6666666667 | AD59: 0 | AF59: 0.6666666667 | AG59: 2025-05-01 | AS59: 0 | AT59: 0 | AU59: 0 | AV59: 強積金計劃 | AW59: =IF(AV59="",0,IFERROR(CHOOSE(MATCH(AV59,Pulldown!$B$2:$B$3,0),1,2),0)) -> 1 | AX59: MC -> VC | AY59: =IF(AX59="",0,IFERROR(CHOOSE(MATCH(AX59,Pulldown!$G$1:$G$2,0),1,2),0)) -> 1 | AZ59: 0 | BA59: 0 | BB59: 0 | BC59: N/A | BD59: N/A | BE59: N/A | BF59: N/A | BG59: N/A | BH59: N/A | BI59: N/A | BJ59: N/A | BK59: N/A | BL59: N/A | BM59: N/A | BN59: N/A | BO59: N/A | BP59: N/A | BQ59: N/A | BR59: N/A | BS59: N/A | BT59: N/A | BU59: =IF(ISNA(INDIRECT("BT" & ROW())), "N/A", INDIRECT("BT" & ROW())) -> N/A | BV59: 沒有 | BW59: =IF(BV59="",0,IFERROR(CHOOSE(MATCH(BV59,Pulldown!$H$1:$H$2,0),1,2),0)) -> 2 | BX59: 011 | BY59: 0 | BZ59: 0 | CA59: 0 | CB59: 0 | CC59: 0 | CD59: 0 | CE59: 0 | CF59: 0 | CG59: N/A | CH59: N/A | CI59: Invalid case | CJ59: 0 | CK59: 0 | CL59: 0 | CM59: N/A | CN59: 0 | CO59: 不超過50萬元 | CP59: =IF(CO59=Pulldown!$A$1,1,IF(CO59=Pulldown!$A$2,2,0)) -> 1 | CQ59: 0 | CR59: =IFERROR( IF(NOT(OR(CP59=1,CP59=2)),0%, IF(ISERROR(MATCH(CQ59,Subsidy!$A$2:$A$26,0)),0%, IF(CP59=1,VLOOKUP(CQ59,Subsidy!$A$2:$G$26,6,FALSE), IF(CP59=2,VLOOKUP(CQ59,Subsidy!$A$2:$G$26,7,FALSE),0%)))), "Calculation error") -> 0 | CS59: =IFERROR( IF(NOT(OR(CP59=1,CP59=2)),0%, IF(ISERROR(MATCH(CQ59,Subsidy!$A$2:$A$26,0)),0%, IF(CP59=1,VLOOKUP(CQ59,Subsidy!$A$2:$D$26,2,FALSE), IF(CP59=2,VLOOKUP(CQ59,Subsidy!$A$2:$D$26,4,FALSE),0%)))), "Calculation error") -> 0 | CT59: 0 | CU59: =IFERROR( IF(NOT(OR(CP59=1,CP59=2)),0, IF(ISERROR(MATCH(CQ59,Subsidy!$A$2:$A$26,0)),0, IF(CP59=2,"N/A", IF(AND(CP59=1,CQ59<=9),VLOOKUP(CQ59,Subsidy!$A$2:$D$26,3,FALSE),0)))), "Calculation error") -> 0 | CV59: =IF(AND(CP59=1, CQ59<=9, NOT(ISERROR(MATCH(CQ59, Subsidy!$A$2:$A$26, 0)))), IFERROR(CL59-CU59, 0), 0) -> 0 | CW59: 0 | CX59: 0 | CY59: 0 | CZ59: 0 | DA59: 0 | DB59: 0 | DC59: 0
A60: 51 | C60: 請選擇 | D60: =IF(OR(C60="", C60="Pls select"), 0, IF(C60=Pulldown!$F$2, 1, IF(C60=Pulldown!$F$3, 2, 0))) -> 0 | E60: 2025-05-01 | H60: Input Required | I60: =IFERROR(CHOOSE(MATCH($H60,{"1-valid","2-valid","Input Required","Date Before Transition"},0),1,2,3,4),0) -> 3 | J60: Input Required | K60: =IFERROR(CHOOSE(MATCH($J60,{"轉制日前開始受僱","轉制日後開始受僱"},0),1,2),0) -> 0 | L60: 月薪僱員 | M60: =IFERROR(CHOOSE(MATCH($L60,Pulldown!$C$1:$C$2,0),22500,15000),0) -> 22500 | N60: =IFERROR(CHOOSE(MATCH($L60,Pulldown!$C$1:$C$2,0),2/3,1),0) -> 0.6666666667 | O60: 0 | P60: 0 | R60: 0.6666666667 | AD60: 0 | AF60: 0.6666666667 | AG60: 2025-05-01 | AS60: 0 | AT60: 0 | AU60: 0 | AV60: 強積金計劃 | AW60: =IF(AV60="",0,IFERROR(CHOOSE(MATCH(AV60,Pulldown!$B$2:$B$3,0),1,2),0)) -> 1 | AX60: MC -> VC | AY60: =IF(AX60="",0,IFERROR(CHOOSE(MATCH(AX60,Pulldown!$G$1:$G$2,0),1,2),0)) -> 1 | AZ60: 0 | BA60: 0 | BB60: 0 | BC60: N/A | BD60: N/A | BE60: N/A | BF60: N/A | BG60: N/A | BH60: N/A | BI60: N/A | BJ60: N/A | BK60: N/A | BL60: N/A | BM60: N/A | BN60: N/A | BO60: N/A | BP60: N/A | BQ60: N/A | BR60: N/A | BS60: N/A | BT60: N/A | BU60: =IF(ISNA(INDIRECT("BT" & ROW())), "N/A", INDIRECT("BT" & ROW())) -> N/A | BV60: 沒有 | BW60: =IF(BV60="",0,IFERROR(CHOOSE(MATCH(BV60,Pulldown!$H$1:$H$2,0),1,2),0)) -> 2 | BX60: 011 | BY60: 0 | BZ60: 0 | CA60: 0 | CB60: 0 | CC60: 0 | CD60: 0 | CE60: 0 | CF60: 0 | CG60: N/A | CH60: N/A | CI60: Invalid case | CJ60: 0 | CK60: 0 | CL60: 0 | CM60: N/A | CN60: 0 | CO60: 不超過50萬元 | CP60: =IF(CO60=Pulldown!$A$1,1,IF(CO60=Pulldown!$A$2,2,0)) -> 1 | CQ60: 0 | CR60: =IFERROR( IF(NOT(OR(CP60=1,CP60=2)),0%, IF(ISERROR(MATCH(CQ60,Subsidy!$A$2:$A$26,0)),0%, IF(CP60=1,VLOOKUP(CQ60,Subsidy!$A$2:$G$26,6,FALSE), IF(CP60=2,VLOOKUP(CQ60,Subsidy!$A$2:$G$26,7,FALSE),0%)))), "Calculation error") -> 0 | CS60: =IFERROR( IF(NOT(OR(CP60=1,CP60=2)),0%, IF(ISERROR(MATCH(CQ60,Subsidy!$A$2:$A$26,0)),0%, IF(CP60=1,VLOOKUP(CQ60,Subsidy!$A$2:$D$26,2,FALSE), IF(CP60=2,VLOOKUP(CQ60,Subsidy!$A$2:$D$26,4,FALSE),0%)))), "Calculation error") -> 0 | CT60: 0 | CU60: =IFERROR( IF(NOT(OR(CP60=1,CP60=2)),0, IF(ISERROR(MATCH(CQ60,Subsidy!$A$2:$A$26,0)),0, IF(CP60=2,"N/A", IF(AND(CP60=1,CQ60<=9),VLOOKUP(CQ60,Subsidy!$A$2:$D$26,3,FALSE),0)))), "Calculation error") -> 0 | CV60: =IF(AND(CP60=1, CQ60<=9, NOT(ISERROR(MATCH(CQ60, Subsidy!$A$2:$A$26, 0)))), IFERROR(CL60-CU60, 0), 0) -> 0 | CW60: 0 | CX60: 0 | CY60: 0 | CZ60: 0 | DA60: 0 | DB60: 0 | DC60: 0
A61: 52 | C61: 請選擇 | D61: =IF(OR(C61="", C61="Pls select"), 0, IF(C61=Pulldown!$F$2, 1, IF(C61=Pulldown!$F$3, 2, 0))) -> 0 | E61: 2025-05-01 | H61: Input Required | I61: =IFERROR(CHOOSE(MATCH($H61,{"1-valid","2-valid","Input Required","Date Before Transition"},0),1,2,3,4),0) -> 3 | J61: Input Required | K61: =IFERROR(CHOOSE(MATCH($J61,{"轉制日前開始受僱","轉制日後開始受僱"},0),1,2),0) -> 0 | L61: 月薪僱員 | M61: =IFERROR(CHOOSE(MATCH($L61,Pulldown!$C$1:$C$2,0),22500,15000),0) -> 22500 | N61: =IFERROR(CHOOSE(MATCH($L61,Pulldown!$C$1:$C$2,0),2/3,1),0) -> 0.6666666667 | O61: 0 | P61: 0 | R61: 0.6666666667 | AD61: 0 | AF61: 0.6666666667 | AG61: 2025-05-01 | AS61: 0 | AT61: 0 | AU61: 0 | AV61: 強積金計劃 | AW61: =IF(AV61="",0,IFERROR(CHOOSE(MATCH(AV61,Pulldown!$B$2:$B$3,0),1,2),0)) -> 1 | AX61: MC -> VC | AY61: =IF(AX61="",0,IFERROR(CHOOSE(MATCH(AX61,Pulldown!$G$1:$G$2,0),1,2),0)) -> 1 | AZ61: 0 | BA61: 0 | BB61: 0 | BC61: N/A | BD61: N/A | BE61: N/A | BF61: N/A | BG61: N/A | BH61: N/A | BI61: N/A | BJ61: N/A | BK61: N/A | BL61: N/A | BM61: N/A | BN61: N/A | BO61: N/A | BP61: N/A | BQ61: N/A | BR61: N/A | BS61: N/A | BT61: N/A | BU61: =IF(ISNA(INDIRECT("BT" & ROW())), "N/A", INDIRECT("BT" & ROW())) -> N/A | BV61: 沒有 | BW61: =IF(BV61="",0,IFERROR(CHOOSE(MATCH(BV61,Pulldown!$H$1:$H$2,0),1,2),0)) -> 2 | BX61: 011 | BY61: 0 | BZ61: 0 | CA61: 0 | CB61: 0 | CC61: 0 | CD61: 0 | CE61: 0 | CF61: 0 | CG61: N/A | CH61: N/A | CI61: Invalid case | CJ61: 0 | CK61: 0 | CL61: 0 | CM61: N/A | CN61: 0 | CO61: 不超過50萬元 | CP61: =IF(CO61=Pulldown!$A$1,1,IF(CO61=Pulldown!$A$2,2,0)) -> 1 | CQ61: 0 | CR61: =IFERROR( IF(NOT(OR(CP61=1,CP61=2)),0%, IF(ISERROR(MATCH(CQ61,Subsidy!$A$2:$A$26,0)),0%, IF(CP61=1,VLOOKUP(CQ61,Subsidy!$A$2:$G$26,6,FALSE), IF(CP61=2,VLOOKUP(CQ61,Subsidy!$A$2:$G$26,7,FALSE),0%)))), "Calculation error") -> 0 | CS61: =IFERROR( IF(NOT(OR(CP61=1,CP61=2)),0%, IF(ISERROR(MATCH(CQ61,Subsidy!$A$2:$A$26,0)),0%, IF(CP61=1,VLOOKUP(CQ61,Subsidy!$A$2:$D$26,2,FALSE), IF(CP61=2,VLOOKUP(CQ61,Subsidy!$A$2:$D$26,4,FALSE),0%)))), "Calculation error") -> 0 | CT61: 0 | CU61: =IFERROR( IF(NOT(OR(CP61=1,CP61=2)),0, IF(ISERROR(MATCH(CQ61,Subsidy!$A$2:$A$26,0)),0, IF(CP61=2,"N/A", IF(AND(CP61=1,CQ61<=9),VLOOKUP(CQ61,Subsidy!$A$2:$D$26,3,FALSE),0)))), "Calculation error") -> 0 | CV61: =IF(AND(CP61=1, CQ61<=9, NOT(ISERROR(MATCH(CQ61, Subsidy!$A$2:$A$26, 0)))), IFERROR(CL61-CU61, 0), 0) -> 0 | CW61: 0 | CX61: 0 | CY61: 0 | CZ61: 0 | DA61: 0 | DB61: 0 | DC61: 0
A62: 53 | C62: 請選擇 | D62: =IF(OR(C62="", C62="Pls select"), 0, IF(C62=Pulldown!$F$2, 1, IF(C62=Pulldown!$F$3, 2, 0))) -> 0 | E62: 2025-05-01 | H62: Input Required | I62: =IFERROR(CHOOSE(MATCH($H62,{"1-valid","2-valid","Input Required","Date Before Transition"},0),1,2,3,4),0) -> 3 | J62: Input Required | K62: =IFERROR(CHOOSE(MATCH($J62,{"轉制日前開始受僱","轉制日後開始受僱"},0),1,2),0) -> 0 | L62: 月薪僱員 | M62: =IFERROR(CHOOSE(MATCH($L62,Pulldown!$C$1:$C$2,0),22500,15000),0) -> 22500 | N62: =IFERROR(CHOOSE(MATCH($L62,Pulldown!$C$1:$C$2,0),2/3,1),0) -> 0.6666666667 | O62: 0 | P62: 0 | R62: 0.6666666667 | AD62: 0 | AF62: 0.6666666667 | AG62: 2025-05-01 | AS62: 0 | AT62: 0 | AU62: 0 | AV62: 強積金計劃 | AW62: =IF(AV62="",0,IFERROR(CHOOSE(MATCH(AV62,Pulldown!$B$2:$B$3,0),1,2),0)) -> 1 | AX62: MC -> VC | AY62: =IF(AX62="",0,IFERROR(CHOOSE(MATCH(AX62,Pulldown!$G$1:$G$2,0),1,2),0)) -> 1 | AZ62: 0 | BA62: 0 | BB62: 0 | BC62: N/A | BD62: N/A | BE62: N/A | BF62: N/A | BG62: N/A | BH62: N/A | BI62: N/A | BJ62: N/A | BK62: N/A | BL62: N/A | BM62: N/A | BN62: N/A | BO62: N/A | BP62: N/A | BQ62: N/A | BR62: N/A | BS62: N/A | BT62: N/A | BU62: =IF(ISNA(INDIRECT("BT" & ROW())), "N/A", INDIRECT("BT" & ROW())) -> N/A | BV62: 沒有 | BW62: =IF(BV62="",0,IFERROR(CHOOSE(MATCH(BV62,Pulldown!$H$1:$H$2,0),1,2),0)) -> 2 | BX62: 011 | BY62: 0 | BZ62: 0 | CA62: 0 | CB62: 0 | CC62: 0 | CD62: 0 | CE62: 0 | CF62: 0 | CG62: N/A | CH62: N/A | CI62: Invalid case | CJ62: 0 | CK62: 0 | CL62: 0 | CM62: N/A | CN62: 0 | CO62: 不超過50萬元 | CP62: =IF(CO62=Pulldown!$A$1,1,IF(CO62=Pulldown!$A$2,2,0)) -> 1 | CQ62: 0 | CR62: =IFERROR( IF(NOT(OR(CP62=1,CP62=2)),0%, IF(ISERROR(MATCH(CQ62,Subsidy!$A$2:$A$26,0)),0%, IF(CP62=1,VLOOKUP(CQ62,Subsidy!$A$2:$G$26,6,FALSE), IF(CP62=2,VLOOKUP(CQ62,Subsidy!$A$2:$G$26,7,FALSE),0%)))), "Calculation error") -> 0 | CS62: =IFERROR( IF(NOT(OR(CP62=1,CP62=2)),0%, IF(ISERROR(MATCH(CQ62,Subsidy!$A$2:$A$26,0)),0%, IF(CP62=1,VLOOKUP(CQ62,Subsidy!$A$2:$D$26,2,FALSE), IF(CP62=2,VLOOKUP(CQ62,Subsidy!$A$2:$D$26,4,FALSE),0%)))), "Calculation error") -> 0 | CT62: 0 | CU62: =IFERROR( IF(NOT(OR(CP62=1,CP62=2)),0, IF(ISERROR(MATCH(CQ62,Subsidy!$A$2:$A$26,0)),0, IF(CP62=2,"N/A", IF(AND(CP62=1,CQ62<=9),VLOOKUP(CQ62,Subsidy!$A$2:$D$26,3,FALSE),0)))), "Calculation error") -> 0 | CV62: =IF(AND(CP62=1, CQ62<=9, NOT(ISERROR(MATCH(CQ62, Subsidy!$A$2:$A$26, 0)))), IFERROR(CL62-CU62, 0), 0) -> 0 | CW62: 0 | CX62: 0 | CY62: 0 | CZ62: 0 | DA62: 0 | DB62: 0 | DC62: 0
A63: 54 | C63: 請選擇 | D63: =IF(OR(C63="", C63="Pls select"), 0, IF(C63=Pulldown!$F$2, 1, IF(C63=Pulldown!$F$3, 2, 0))) -> 0 | E63: 2025-05-01 | H63: Input Required | I63: =IFERROR(CHOOSE(MATCH($H63,{"1-valid","2-valid","Input Required","Date Before Transition"},0),1,2,3,4),0) -> 3 | J63: Input Required | K63: =IFERROR(CHOOSE(MATCH($J63,{"轉制日前開始受僱","轉制日後開始受僱"},0),1,2),0) -> 0 | L63: 月薪僱員 | M63: =IFERROR(CHOOSE(MATCH($L63,Pulldown!$C$1:$C$2,0),22500,15000),0) -> 22500 | N63: =IFERROR(CHOOSE(MATCH($L63,Pulldown!$C$1:$C$2,0),2/3,1),0) -> 0.6666666667 | O63: 0 | P63: 0 | R63: 0.6666666667 | AD63: 0 | AF63: 0.6666666667 | AG63: 2025-05-01 | AS63: 0 | AT63: 0 | AU63: 0 | AV63: 強積金計劃 | AW63: =IF(AV63="",0,IFERROR(CHOOSE(MATCH(AV63,Pulldown!$B$2:$B$3,0),1,2),0)) -> 1 | AX63: MC -> VC | AY63: =IF(AX63="",0,IFERROR(CHOOSE(MATCH(AX63,Pulldown!$G$1:$G$2,0),1,2),0)) -> 1 | AZ63: 0 | BA63: 0 | BB63: 0 | BC63: N/A | BD63: N/A | BE63: N/A | BF63: N/A | BG63: N/A | BH63: N/A | BI63: N/A | BJ63: N/A | BK63: N/A | BL63: N/A | BM63: N/A | BN63: N/A | BO63: N/A | BP63: N/A | BQ63: N/A | BR63: N/A | BS63: N/A | BT63: N/A | BU63: =IF(ISNA(INDIRECT("BT" & ROW())), "N/A", INDIRECT("BT" & ROW())) -> N/A | BV63: 沒有 | BW63: =IF(BV63="",0,IFERROR(CHOOSE(MATCH(BV63,Pulldown!$H$1:$H$2,0),1,2),0)) -> 2 | BX63: 011 | BY63: 0 | BZ63: 0 | CA63: 0 | CB63: 0 | CC63: 0 | CD63: 0 | CE63: 0 | CF63: 0 | CG63: N/A | CH63: N/A | CI63: Invalid case | CJ63: 0 | CK63: 0 | CL63: 0 | CM63: N/A | CN63: 0 | CO63: 不超過50萬元 | CP63: =IF(CO63=Pulldown!$A$1,1,IF(CO63=Pulldown!$A$2,2,0)) -> 1 | CQ63: 0 | CR63: =IFERROR( IF(NOT(OR(CP63=1,CP63=2)),0%, IF(ISERROR(MATCH(CQ63,Subsidy!$A$2:$A$26,0)),0%, IF(CP63=1,VLOOKUP(CQ63,Subsidy!$A$2:$G$26,6,FALSE), IF(CP63=2,VLOOKUP(CQ63,Subsidy!$A$2:$G$26,7,FALSE),0%)))), "Calculation error") -> 0 | CS63: =IFERROR( IF(NOT(OR(CP63=1,CP63=2)),0%, IF(ISERROR(MATCH(CQ63,Subsidy!$A$2:$A$26,0)),0%, IF(CP63=1,VLOOKUP(CQ63,Subsidy!$A$2:$D$26,2,FALSE), IF(CP63=2,VLOOKUP(CQ63,Subsidy!$A$2:$D$26,4,FALSE),0%)))), "Calculation error") -> 0 | CT63: 0 | CU63: =IFERROR( IF(NOT(OR(CP63=1,CP63=2)),0, IF(ISERROR(MATCH(CQ63,Subsidy!$A$2:$A$26,0)),0, IF(CP63=2,"N/A", IF(AND(CP63=1,CQ63<=9),VLOOKUP(CQ63,Subsidy!$A$2:$D$26,3,FALSE),0)))), "Calculation error") -> 0 | CV63: =IF(AND(CP63=1, CQ63<=9, NOT(ISERROR(MATCH(CQ63, Subsidy!$A$2:$A$26, 0)))), IFERROR(CL63-CU63, 0), 0) -> 0 | CW63: 0 | CX63: 0 | CY63: 0 | CZ63: 0 | DA63: 0 | DB63: 0 | DC63: 0
A64: 55 | C64: 請選擇 | D64: =IF(OR(C64="", C64="Pls select"), 0, IF(C64=Pulldown!$F$2, 1, IF(C64=Pulldown!$F$3, 2, 0))) -> 0 | E64: 2025-05-01 | H64: Input Required | I64: =IFERROR(CHOOSE(MATCH($H64,{"1-valid","2-valid","Input Required","Date Before Transition"},0),1,2,3,4),0) -> 3 | J64: Input Required | K64: =IFERROR(CHOOSE(MATCH($J64,{"轉制日前開始受僱","轉制日後開始受僱"},0),1,2),0) -> 0 | L64: 月薪僱員 | M64: =IFERROR(CHOOSE(MATCH($L64,Pulldown!$C$1:$C$2,0),22500,15000),0) -> 22500 | N64: =IFERROR(CHOOSE(MATCH($L64,Pulldown!$C$1:$C$2,0),2/3,1),0) -> 0.6666666667 | O64: 0 | P64: 0 | R64: 0.6666666667 | AD64: 0 | AF64: 0.6666666667 | AG64: 2025-05-01 | AS64: 0 | AT64: 0 | AU64: 0 | AV64: 強積金計劃 | AW64: =IF(AV64="",0,IFERROR(CHOOSE(MATCH(AV64,Pulldown!$B$2:$B$3,0),1,2),0)) -> 1 | AX64: MC -> VC | AY64: =IF(AX64="",0,IFERROR(CHOOSE(MATCH(AX64,Pulldown!$G$1:$G$2,0),1,2),0)) -> 1 | AZ64: 0 | BA64: 0 | BB64: 0 | BC64: N/A | BD64: N/A | BE64: N/A | BF64: N/A | BG64: N/A | BH64: N/A | BI64: N/A | BJ64: N/A | BK64: N/A | BL64: N/A | BM64: N/A | BN64: N/A | BO64: N/A | BP64: N/A | BQ64: N/A | BR64: N/A | BS64: N/A | BT64: N/A | BU64: =IF(ISNA(INDIRECT("BT" & ROW())), "N/A", INDIRECT("BT" & ROW())) -> N/A | BV64: 沒有 | BW64: =IF(BV64="",0,IFERROR(CHOOSE(MATCH(BV64,Pulldown!$H$1:$H$2,0),1,2),0)) -> 2 | BX64: 011 | BY64: 0 | BZ64: 0 | CA64: 0 | CB64: 0 | CC64: 0 | CD64: 0 | CE64: 0 | CF64: 0 | CG64: N/A | CH64: N/A | CI64: Invalid case | CJ64: 0 | CK64: 0 | CL64: 0 | CM64: N/A | CN64: 0 | CO64: 不超過50萬元 | CP64: =IF(CO64=Pulldown!$A$1,1,IF(CO64=Pulldown!$A$2,2,0)) -> 1 | CQ64: 0 | CR64: =IFERROR( IF(NOT(OR(CP64=1,CP64=2)),0%, IF(ISERROR(MATCH(CQ64,Subsidy!$A$2:$A$26,0)),0%, IF(CP64=1,VLOOKUP(CQ64,Subsidy!$A$2:$G$26,6,FALSE), IF(CP64=2,VLOOKUP(CQ64,Subsidy!$A$2:$G$26,7,FALSE),0%)))), "Calculation error") -> 0 | CS64: =IFERROR( IF(NOT(OR(CP64=1,CP64=2)),0%, IF(ISERROR(MATCH(CQ64,Subsidy!$A$2:$A$26,0)),0%, IF(CP64=1,VLOOKUP(CQ64,Subsidy!$A$2:$D$26,2,FALSE), IF(CP64=2,VLOOKUP(CQ64,Subsidy!$A$2:$D$26,4,FALSE),0%)))), "Calculation error") -> 0 | CT64: 0 | CU64: =IFERROR( IF(NOT(OR(CP64=1,CP64=2)),0, IF(ISERROR(MATCH(CQ64,Subsidy!$A$2:$A$26,0)),0, IF(CP64=2,"N/A", IF(AND(CP64=1,CQ64<=9),VLOOKUP(CQ64,Subsidy!$A$2:$D$26,3,FALSE),0)))), "Calculation error") -> 0 | CV64: =IF(AND(CP64=1, CQ64<=9, NOT(ISERROR(MATCH(CQ64, Subsidy!$A$2:$A$26, 0)))), IFERROR(CL64-CU64, 0), 0) -> 0 | CW64: 0 | CX64: 0 | CY64: 0 | CZ64: 0 | DA64: 0 | DB64: 0 | DC64: 0
A65: 56 | C65: 請選擇 | D65: =IF(OR(C65="", C65="Pls select"), 0, IF(C65=Pulldown!$F$2, 1, IF(C65=Pulldown!$F$3, 2, 0))) -> 0 | E65: 2025-05-01 | H65: Input Required | I65: =IFERROR(CHOOSE(MATCH($H65,{"1-valid","2-valid","Input Required","Date Before Transition"},0),1,2,3,4),0) -> 3 | J65: Input Required | K65: =IFERROR(CHOOSE(MATCH($J65,{"轉制日前開始受僱","轉制日後開始受僱"},0),1,2),0) -> 0 | L65: 月薪僱員 | M65: =IFERROR(CHOOSE(MATCH($L65,Pulldown!$C$1:$C$2,0),22500,15000),0) -> 22500 | N65: =IFERROR(CHOOSE(MATCH($L65,Pulldown!$C$1:$C$2,0),2/3,1),0) -> 0.6666666667 | O65: 0 | P65: 0 | R65: 0.6666666667 | AD65: 0 | AF65: 0.6666666667 | AG65: 2025-05-01 | AS65: 0 | AT65: 0 | AU65: 0 | AV65: 強積金計劃 | AW65: =IF(AV65="",0,IFERROR(CHOOSE(MATCH(AV65,Pulldown!$B$2:$B$3,0),1,2),0)) -> 1 | AX65: MC -> VC | AY65: =IF(AX65="",0,IFERROR(CHOOSE(MATCH(AX65,Pulldown!$G$1:$G$2,0),1,2),0)) -> 1 | AZ65: 0 | BA65: 0 | BB65: 0 | BC65: N/A | BD65: N/A | BE65: N/A | BF65: N/A | BG65: N/A | BH65: N/A | BI65: N/A | BJ65: N/A | BK65: N/A | BL65: N/A | BM65: N/A | BN65: N/A | BO65: N/A | BP65: N/A | BQ65: N/A | BR65: N/A | BS65: N/A | BT65: N/A | BU65: =IF(ISNA(INDIRECT("BT" & ROW())), "N/A", INDIRECT("BT" & ROW())) -> N/A | BV65: 沒有 | BW65: =IF(BV65="",0,IFERROR(CHOOSE(MATCH(BV65,Pulldown!$H$1:$H$2,0),1,2),0)) -> 2 | BX65: 011 | BY65: 0 | BZ65: 0 | CA65: 0 | CB65: 0 | CC65: 0 | CD65: 0 | CE65: 0 | CF65: 0 | CG65: N/A | CH65: N/A | CI65: Invalid case | CJ65: 0 | CK65: 0 | CL65: 0 | CM65: N/A | CN65: 0 | CO65: 不超過50萬元 | CP65: =IF(CO65=Pulldown!$A$1,1,IF(CO65=Pulldown!$A$2,2,0)) -> 1 | CQ65: 0 | CR65: =IFERROR( IF(NOT(OR(CP65=1,CP65=2)),0%, IF(ISERROR(MATCH(CQ65,Subsidy!$A$2:$A$26,0)),0%, IF(CP65=1,VLOOKUP(CQ65,Subsidy!$A$2:$G$26,6,FALSE), IF(CP65=2,VLOOKUP(CQ65,Subsidy!$A$2:$G$26,7,FALSE),0%)))), "Calculation error") -> 0 | CS65: =IFERROR( IF(NOT(OR(CP65=1,CP65=2)),0%, IF(ISERROR(MATCH(CQ65,Subsidy!$A$2:$A$26,0)),0%, IF(CP65=1,VLOOKUP(CQ65,Subsidy!$A$2:$D$26,2,FALSE), IF(CP65=2,VLOOKUP(CQ65,Subsidy!$A$2:$D$26,4,FALSE),0%)))), "Calculation error") -> 0 | CT65: 0 | CU65: =IFERROR( IF(NOT(OR(CP65=1,CP65=2)),0, IF(ISERROR(MATCH(CQ65,Subsidy!$A$2:$A$26,0)),0, IF(CP65=2,"N/A", IF(AND(CP65=1,CQ65<=9),VLOOKUP(CQ65,Subsidy!$A$2:$D$26,3,FALSE),0)))), "Calculation error") -> 0 | CV65: =IF(AND(CP65=1, CQ65<=9, NOT(ISERROR(MATCH(CQ65, Subsidy!$A$2:$A$26, 0)))), IFERROR(CL65-CU65, 0), 0) -> 0 | CW65: 0 | CX65: 0 | CY65: 0 | CZ65: 0 | DA65: 0 | DB65: 0 | DC65: 0
A66: 57 | C66: 請選擇 | D66: =IF(OR(C66="", C66="Pls select"), 0, IF(C66=Pulldown!$F$2, 1, IF(C66=Pulldown!$F$3, 2, 0))) -> 0 | E66: 2025-05-01 | H66: Input Required | I66: =IFERROR(CHOOSE(MATCH($H66,{"1-valid","2-valid","Input Required","Date Before Transition"},0),1,2,3,4),0) -> 3 | J66: Input Required | K66: =IFERROR(CHOOSE(MATCH($J66,{"轉制日前開始受僱","轉制日後開始受僱"},0),1,2),0) -> 0 | L66: 月薪僱員 | M66: =IFERROR(CHOOSE(MATCH($L66,Pulldown!$C$1:$C$2,0),22500,15000),0) -> 22500 | N66: =IFERROR(CHOOSE(MATCH($L66,Pulldown!$C$1:$C$2,0),2/3,1),0) -> 0.6666666667 | O66: 0 | P66: 0 | R66: 0.6666666667 | AD66: 0 | AF66: 0.6666666667 | AG66: 2025-05-01 | AS66: 0 | AT66: 0 | AU66: 0 | AV66: 強積金計劃 | AW66: =IF(AV66="",0,IFERROR(CHOOSE(MATCH(AV66,Pulldown!$B$2:$B$3,0),1,2),0)) -> 1 | AX66: MC -> VC | AY66: =IF(AX66="",0,IFERROR(CHOOSE(MATCH(AX66,Pulldown!$G$1:$G$2,0),1,2),0)) -> 1 | AZ66: 0 | BA66: 0 | BB66: 0 | BC66: N/A | BD66: N/A | BE66: N/A | BF66: N/A | BG66: N/A | BH66: N/A | BI66: N/A | BJ66: N/A | BK66: N/A | BL66: N/A | BM66: N/A | BN66: N/A | BO66: N/A | BP66: N/A | BQ66: N/A | BR66: N/A | BS66: N/A | BT66: N/A | BU66: =IF(ISNA(INDIRECT("BT" & ROW())), "N/A", INDIRECT("BT" & ROW())) -> N/A | BV66: 沒有 | BW66: =IF(BV66="",0,IFERROR(CHOOSE(MATCH(BV66,Pulldown!$H$1:$H$2,0),1,2),0)) -> 2 | BX66: 011 | BY66: 0 | BZ66: 0 | CA66: 0 | CB66: 0 | CC66: 0 | CD66: 0 | CE66: 0 | CF66: 0 | CG66: N/A | CH66: N/A | CI66: Invalid case | CJ66: 0 | CK66: 0 | CL66: 0 | CM66: N/A | CN66: 0 | CO66: 不超過50萬元 | CP66: =IF(CO66=Pulldown!$A$1,1,IF(CO66=Pulldown!$A$2,2,0)) -> 1 | CQ66: 0 | CR66: =IFERROR( IF(NOT(OR(CP66=1,CP66=2)),0%, IF(ISERROR(MATCH(CQ66,Subsidy!$A$2:$A$26,0)),0%, IF(CP66=1,VLOOKUP(CQ66,Subsidy!$A$2:$G$26,6,FALSE), IF(CP66=2,VLOOKUP(CQ66,Subsidy!$A$2:$G$26,7,FALSE),0%)))), "Calculation error") -> 0 | CS66: =IFERROR( IF(NOT(OR(CP66=1,CP66=2)),0%, IF(ISERROR(MATCH(CQ66,Subsidy!$A$2:$A$26,0)),0%, IF(CP66=1,VLOOKUP(CQ66,Subsidy!$A$2:$D$26,2,FALSE), IF(CP66=2,VLOOKUP(CQ66,Subsidy!$A$2:$D$26,4,FALSE),0%)))), "Calculation error") -> 0 | CT66: 0 | CU66: =IFERROR( IF(NOT(OR(CP66=1,CP66=2)),0, IF(ISERROR(MATCH(CQ66,Subsidy!$A$2:$A$26,0)),0, IF(CP66=2,"N/A", IF(AND(CP66=1,CQ66<=9),VLOOKUP(CQ66,Subsidy!$A$2:$D$26,3,FALSE),0)))), "Calculation error") -> 0 | CV66: =IF(AND(CP66=1, CQ66<=9, NOT(ISERROR(MATCH(CQ66, Subsidy!$A$2:$A$26, 0)))), IFERROR(CL66-CU66, 0), 0) -> 0 | CW66: 0 | CX66: 0 | CY66: 0 | CZ66: 0 | DA66: 0 | DB66: 0 | DC66: 0
A67: 58 | C67: 請選擇 | D67: =IF(OR(C67="", C67="Pls select"), 0, IF(C67=Pulldown!$F$2, 1, IF(C67=Pulldown!$F$3, 2, 0))) -> 0 | E67: 2025-05-01 | H67: Input Required | I67: =IFERROR(CHOOSE(MATCH($H67,{"1-valid","2-valid","Input Required","Date Before Transition"},0),1,2,3,4),0) -> 3 | J67: Input Required | K67: =IFERROR(CHOOSE(MATCH($J67,{"轉制日前開始受僱","轉制日後開始受僱"},0),1,2),0) -> 0 | L67: 月薪僱員 | M67: =IFERROR(CHOOSE(MATCH($L67,Pulldown!$C$1:$C$2,0),22500,15000),0) -> 22500 | N67: =IFERROR(CHOOSE(MATCH($L67,Pulldown!$C$1:$C$2,0),2/3,1),0) -> 0.6666666667 | O67: 0 | P67: 0 | R67: 0.6666666667 | AD67: 0 | AF67: 0.6666666667 | AG67: 2025-05-01 | AS67: 0 | AT67: 0 | AU67: 0 | AV67: 強積金計劃 | AW67: =IF(AV67="",0,IFERROR(CHOOSE(MATCH(AV67,Pulldown!$B$2:$B$3,0),1,2),0)) -> 1 | AX67: MC -> VC | AY67: =IF(AX67="",0,IFERROR(CHOOSE(MATCH(AX67,Pulldown!$G$1:$G$2,0),1,2),0)) -> 1 | AZ67: 0 | BA67: 0 | BB67: 0 | BC67: N/A | BD67: N/A | BE67: N/A | BF67: N/A | BG67: N/A | BH67: N/A | BI67: N/A | BJ67: N/A | BK67: N/A | BL67: N/A | BM67: N/A | BN67: N/A | BO67: N/A | BP67: N/A | BQ67: N/A | BR67: N/A | BS67: N/A | BT67: N/A | BU67: =IF(ISNA(INDIRECT("BT" & ROW())), "N/A", INDIRECT("BT" & ROW())) -> N/A | BV67: 沒有 | BW67: =IF(BV67="",0,IFERROR(CHOOSE(MATCH(BV67,Pulldown!$H$1:$H$2,0),1,2),0)) -> 2 | BX67: 011 | BY67: 0 | BZ67: 0 | CA67: 0 | CB67: 0 | CC67: 0 | CD67: 0 | CE67: 0 | CF67: 0 | CG67: N/A | CH67: N/A | CI67: Invalid case | CJ67: 0 | CK67: 0 | CL67: 0 | CM67: N/A | CN67: 0 | CO67: 不超過50萬元 | CP67: =IF(CO67=Pulldown!$A$1,1,IF(CO67=Pulldown!$A$2,2,0)) -> 1 | CQ67: 0 | CR67: =IFERROR( IF(NOT(OR(CP67=1,CP67=2)),0%, IF(ISERROR(MATCH(CQ67,Subsidy!$A$2:$A$26,0)),0%, IF(CP67=1,VLOOKUP(CQ67,Subsidy!$A$2:$G$26,6,FALSE), IF(CP67=2,VLOOKUP(CQ67,Subsidy!$A$2:$G$26,7,FALSE),0%)))), "Calculation error") -> 0 | CS67: =IFERROR( IF(NOT(OR(CP67=1,CP67=2)),0%, IF(ISERROR(MATCH(CQ67,Subsidy!$A$2:$A$26,0)),0%, IF(CP67=1,VLOOKUP(CQ67,Subsidy!$A$2:$D$26,2,FALSE), IF(CP67=2,VLOOKUP(CQ67,Subsidy!$A$2:$D$26,4,FALSE),0%)))), "Calculation error") -> 0 | CT67: 0 | CU67: =IFERROR( IF(NOT(OR(CP67=1,CP67=2)),0, IF(ISERROR(MATCH(CQ67,Subsidy!$A$2:$A$26,0)),0, IF(CP67=2,"N/A", IF(AND(CP67=1,CQ67<=9),VLOOKUP(CQ67,Subsidy!$A$2:$D$26,3,FALSE),0)))), "Calculation error") -> 0 | CV67: =IF(AND(CP67=1, CQ67<=9, NOT(ISERROR(MATCH(CQ67, Subsidy!$A$2:$A$26, 0)))), IFERROR(CL67-CU67, 0), 0) -> 0 | CW67: 0 | CX67: 0 | CY67: 0 | CZ67: 0 | DA67: 0 | DB67: 0 | DC67: 0
